Workbook

Sheet PROCESSSUS TYPIQUE
B2: PROCESSUS DE COLLECTE DE DONNÉES ÉNERGÉTIQUES POUR LE TRANSPORT
B3: Colonne1 | C3: Adéquate | D3: Place à amélioration
B4: 1. La majorité des MO ne possède pas de véhicules lourds, mais parmi les MO qui en possèdent, les données énergétiques de ces véhicules sont saisies de la même manière que celles des véhicules légers. | C4: x
B5: 2. Pour les litres et les montants dépensés en carburant, il n’y a pas de tendance quant au choix des outils utilisés pour la saisie des données.
B6: 3. Pour le kilométrage, cette valeur est obtenue en vérifiant l’odomètre de chacun des véhicules dans la plupart des cas. | C6: x
B7: 4. Pour le nombre de véhicules, cette donnée provient généralement d’une application maison. De plus, ce chiffre représente une photo de la flotte en date du 31 mars ou d’une autre journée. Cependant, au sujet de la consommation, la donnée remise au MELCCFP contient généralement les valeurs de carburant pour tous les véhicules ayant roulé durant l’année. | C7: x
B8: 5. La validation des données énergétiques est généralement effectuée une fois par année. | D8: x
B9: 6. Lorsqu’une nouvelle personne est en charge de la collecte des données énergétiques au sein d’un MO, sa formation consiste généralement en une transmission sommaire des informations. | D9: x
B10: 7. La compilation est effectuée dans une application maison ou encore dans le fichier du MELCCFP. | C10: x
B11: 8. Parmi ceux qui font des locations de longue durée, les données énergétiques de ces véhicules sont majoritairement remises au MELCCFP. Ce n’est pas le cas pour les locations de courte durée. | C11: x
B12: 9. L’analyse de l’évolution des consommations n’est pas effectuée par la majorité des MO; les MO qui font ce type d’analyse sont majoritairement de gros joueurs. | D12: x
B13: 10. Les documents contenant les données énergétiques, transmis au MELCCFP, doivent d’abord être révisés par une personne en autorité dans la plupart des cas. | C13: x
B14: 11. Dans le cas des gros joueurs, les données font généralement partie d’une publication publiée sous la gouverne du MO. | C14: x
B15: 12. Le fichier de saisie du MELCCFP est utilisé par une grande partie des MO | C15: x
B17: Au printemps 2015, les MO ont été contactés afin de participer à une enquête au sujet de leur collecte de données énergétiques effectuée à l'automne de chaque année. Cette enquête contenait des questionnaires qui portaient sur les bâtiments et les véhicules. Le tableau ci-dessus décrit sommairement le processus de cueillette de données énergétiques typiques ; il s'agit d'une synthèse illustrant ce que la majorité des répondants ont choisi comme réponse à chacune des questions. Notez qu'il s'agit du regroupement des réponses les plus répandues et non pas le processus d'un MO en particulier. Chaque affirmation affichée est évaluée afin de savoir si elle représente une étape adéquate dans le processus ou s'il pourrait y avoir place à l'amélioration.

Sheet 1. IDENTITÉ
A3: Dernière mise à jour : 2024-09-18
B4: Version 22__01-11-2016
A8: Identité et coordonnées | B8: Veuillez inscrire l'information dans les cellules ombragées en bleu pâle.
A10: Ministère ou organisme : | B10: NOM DE L'ENTITÉ | C10: ← Veuillez utiliser la liste déroulante pour choisir le nom de votre organisation
A11: Code du ministère ou de l'organisme : | B11: =IF(ISERROR(VLOOKUP(B10,ListeMO!A3:B1004,2,FALSE)),0,VLOOKUP(B10,ListeMO!A3:B1004,2,FALSE)) -> 0
A12: Initiale ou acronyme :
A13: Nom de la personne responsable :
A14: Titre :
A15: Adresse :
A16: Ville :
A17: Téléphone :
A18: Courriel :
A19: Année financière : | B19: 1er avril au 31 mars | C19: ← Veuillez utiliser la liste déroulante pour choisir la période de l'année financière
A20: Date :
A21: Année de référence :
A23: Types de véhicules : | B23: 1
A26: 1er janvier au 31 décembre
A27: 1er avril au 31 mars
A28: 1er mai au 30 avril
A29: 1er juin au 31 mai
A30: 1er juillet au 30 juin
A32: Objectif du document :
A33: Recueillir l'information sur la consommation de carburant liée aux déplacements professionnels
A34: et suivre son évolution.
A35: L'onglet 2. CARBURANT est réservé aux données sur les véhicules de l'organisme. Celles relatives aux véhicules de location de courte durée
A36: ou aux véhicules personnels doivent être saisies dans l'onglet 3. KM POLLUANTS)
A37: *Pour le carburant, il est important de fournir les montants pour les dépenses ET pour la consommation.
A41: 2009-2010
A42: 2010-2011
A43: 2011-2012
A44: 2012-2013
A45: 2013-2014
A46: 2014-2015
A47: 2015-2016
A48: 2016-2017
A49: 2018-2019
A50: 2019-2020
A51: 2020-2021
A52: 2009
A53: 2010
A54: 2011
A55: 2012
A56: 2013
A57: 2014
A58: 2015
A59: 2016
A60: 2017
A61: 2018
A62: 2019
A63: 2020
A65: Exemple de calculs des émissions de gaz à effet de serre (GES)
A66: Le calcul des émissions de GES dans le présent fichier s'effectue en considérant la multiplication d'une quantité de carburant par le facteur d'émission qui lui est associé.
A67: Voici un exemple pour une quantité d'essence de 100 000 litres:
A68: quantité d'essence consommée, en litres: | B68: 100000 | C68: valeur 1 | D68: : provenant de la compilation de l'organisation
A69: facteur d'émission associé à un litre d'essence: | B69: =L_ess_to_GES -> 0.002317356 | C69: valeur 2 | D69: : provenant de l'onglet Conversion
A71: quantité d'émissions de GES correspondante à la consommation d'essence:
B72: =B68*B69 -> 231.7356 | C72: valeur 3 | D72: : multiplication des valeurs 1 et 2
A74: Dans le cas des autres déplacements (voir onglet KM polluants), le calcul se fait en considérant plutôt une quantité de km parcourus, selon le type de déplacement effectué,
A75: et le facteur d'émission associé.

Sheet 2. CARBURANT (Véhicules légers)
Z1: Ce tableau est réservé aux données de véhicules de l'organisme (celles relatives aux véhicules de location de courte durée ou aux véhicules personnels doivent être saisies dans l'onglet 3. KM POLLUANTS)
B2: Saisir les données de dépenses annuelles dans les cellules ombragées en bleu pâle. | I2: Réél | L2: Saisir les données de dépenses annuelles dans les cellules ombragées en bleu pâle. | AB2: Saisir les données de dépenses annuelles dans les cellules ombragées en bleu pâle.
I3: Estimé
B4: Si des données de consommation de carburant sont disponibles, utiliser les | L4: Si des données de consommation de carburant sont disponibles, utiliser les | AB4: Si des données de consommation de carburant sont disponibles, utiliser les
H5: cellules ombragées en vert pâle ou en jaune pâle, après avoir choisi " Réel " dans la colonne R/E. | AB5: cellules ombragées en vert pâle ou en jaune pâle, après avoir choisi " Réel " dans la colonne R/E.
D8: DÉPENSES ANNUELLES EN CARBURANT | N8: DÉPENSES ANNUELLES EN CARBURANT | AD8: DÉPENSES ANNUELLES EN CARBURANT
B9: 2002-2003 | D9: 2003-2004 | F9: 2004-2005 | H9: 2005-2006 | J9: 2006-2007 | L9: 2007-2008 | N9: 2008-2009 | P9: 2009-2010 | R9: 2010-2011 | T9: 2011-2012 | V9: 2012-2013 | X9: 2013-2014 | Z9: 2014-2015 | AB9: 2015-2016 | AD9: 2016-2017 | AF9: 2017-2018 | AH9: 2018-2019 | AJ9: 2019-2020 | AL9: 2020-2021 | AN9: 2021-2022 | AP9: 2022-2023 | AR9: 2023-2024 | AT9: 2024-2025
A10: Dépenses des carburants traditionnels
A11: Essence [$]
A12: Diesel [$]
A13: Gaz naturel [$]
A14: Propane [$]
A16: Dépenses en biocarburants
A17: Essence éthanol [$]
A18: Biodiesel [$]
A20: Total [$] | B20: =SUM(B11:B14,B17:B18) -> 0 | D20: =SUM(D11:D14,D17:D18) -> 0 | F20: =SUM(F11:F14,F17:F18) -> 0 | H20: =SUM(H11:H14,H17:H18) -> 0 | J20: =SUM(J11:J14,J17:J18) -> 0 | L20: =SUM(L11:L14,L17:L18) -> 0 | N20: =SUM(N11:N14,N17:N18) -> 0 | P20: =SUM(P11:P14,P17:P18) -> 0 | R20: =SUM(R11:R14,R17:R18) -> 0 | T20: =SUM(T11:T14,T17:T18) -> 0 | V20: =SUM(V11:V14,V17:V18) -> 0 | X20: =SUM(X11:X14,X17:X18) -> 0 | Z20: =SUM(Z11:Z14,Z17:Z18) -> 0 | AB20: =SUM(AB11:AB14,AB17:AB18) -> 0 | AD20: =SUM(AD11:AD14,AD17:AD18) -> 0 | AF20: =SUM(AF11:AF14,AF17:AF18) -> 0 | AH20: =SUM(AH11:AH14,AH17:AH18) -> 0 | AJ20: =SUM(AJ11:AJ14,AJ17:AJ18) -> 0 | AL20: =SUM(AL11:AL14,AL17:AL18) -> 0 | AN20: =SUM(AN11:AN14,AN17:AN18) -> 0 | AP20: =SUM(AP11:AP14,AP17:AP18) -> 0 | AR20: =SUM(AR11:AR14,AR17:AR18) -> 0 | AT20: =SUM(AT11:AT14,AT17:AT18) -> 0
D21: =CONCATENATE("CAD_vehic_instit_",MID(D9,3,2),"_",MID(D9,8,2)) -> CAD_vehic_instit_03_04 | F21: =CONCATENATE("CAD_vehic_instit_",MID(F9,3,2),"_",MID(F9,8,2)) -> CAD_vehic_instit_04_05 | H21: =CONCATENATE("CAD_vehic_instit_",MID(H9,3,2),"_",MID(H9,8,2)) -> CAD_vehic_instit_05_06 | J21: =CONCATENATE("CAD_vehic_instit_",MID(J9,3,2),"_",MID(J9,8,2)) -> CAD_vehic_instit_06_07 | L21: =CONCATENATE("CAD_vehic_instit_",MID(L9,3,2),"_",MID(L9,8,2)) -> CAD_vehic_instit_07_08 | N21: =CONCATENATE("CAD_vehic_instit_",MID(N9,3,2),"_",MID(N9,8,2)) -> CAD_vehic_instit_08_09 | P21: =CONCATENATE("CAD_vehic_instit_",MID(P9,3,2),"_",MID(P9,8,2)) -> CAD_vehic_instit_09_10 | R21: =CONCATENATE("CAD_vehic_instit_",MID(R9,3,2),"_",MID(R9,8,2)) -> CAD_vehic_instit_10_11 | T21: =CONCATENATE("CAD_vehic_instit_",MID(T9,3,2),"_",MID(T9,8,2)) -> CAD_vehic_instit_11_12 | V21: =CONCATENATE("CAD_vehic_instit_",MID(V9,3,2),"_",MID(V9,8,2)) -> CAD_vehic_instit_12_13 | X21: =CONCATENATE("CAD_vehic_instit_",MID(X9,3,2),"_",MID(X9,8,2)) -> CAD_vehic_instit_13_14 | Z21: =CONCATENATE("CAD_vehic_instit_",MID(Z9,3,2),"_",MID(Z9,8,2)) -> CAD_vehic_instit_14_15 | AB21: =CONCATENATE("CAD_vehic_instit_",MID(AB9,3,2),"_",MID(AB9,8,2)) -> CAD_vehic_instit_15_16 | AD21: =CONCATENATE("CAD_vehic_instit_",MID(AD9,3,2),"_",MID(AD9,8,2)) -> CAD_vehic_instit_16_17 | AF21: =CONCATENATE("CAD_vehic_instit_",MID(AF9,3,2),"_",MID(AF9,8,2)) -> CAD_vehic_instit_17_18 | AH21: =CONCATENATE("CAD_vehic_instit_",MID(AH9,3,2),"_",MID(AH9,8,2)) -> CAD_vehic_instit_18_19 | AJ21: =CONCATENATE("CAD_vehic_instit_",MID(AJ9,3,2),"_",MID(AJ9,8,2)) -> CAD_vehic_instit_19_20 | AL21: =CONCATENATE("CAD_vehic_instit_",MID(AL9,3,2),"_",MID(AL9,8,2)) -> CAD_vehic_instit_20_21 | AN21: =CONCATENATE("CAD_vehic_instit_",MID(AN9,3,2),"_",MID(AN9,8,2)) -> CAD_vehic_instit_21_22
D22: VOLUME DE CARBURANT CONSOMMÉ ANNUELLEMENT | L22: VOLUME DE CARBURANT CONSOMMÉ ANNUELLEMENT | T22: VOLUME DE CARBURANT CONSOMMÉ ANNUELLEMENT | AB22: VOLUME DE CARBURANT CONSOMMÉ ANNUELLEMENT | AH22: VOLUME DE CARBURANT CONSOMMÉ ANNUELLEMENT
B23: 2002-2003 | C23: R/E | D23: 2003-2004 | E23: R/E | F23: 2004-2005 | G23: R/E | H23: 2005-2006 | I23: R/E | J23: 2006-2007 | K23: R/E | L23: 2007-2008 | M23: R/E | N23: 2008-2009 | O23: R/E | P23: 2009-2010 | Q23: R/E | R23: 2010-2011 | S23: R/E | T23: 2011-2012 | U23: R/E | V23: 2012-2013 | W23: R/E | X23: 2013-2014 | Y23: R/E | Z23: 2014-2015 | AA23: R/E | AB23: 2015-2016 | AC23: R/E | AD23: 2016-2017 | AE23: R/E | AF23: 2017-2018 | AG23: R/E | AH23: 2018-2019 | AI23: R/E | AJ23: 2019-2020 | AK23: R/E | AL23: 2020-2021 | AM23: R/E | AN23: 2021-2022 | AO23: R/E | AP23: 2022-2023 | AQ23: R/E | AR23: 2023-2024 | AS23: R/E | AT23: 2024-2025 | AU23: R/E
A24: Consommation des carburants traditionnels
A25: Essence [litres] | B25: =IF(C25="Estimé",B11/INDEX(plage_conv,MATCH($A$25,plage_tag,0),MATCH($B$23,plage_an,0)),"Insérer valeur Réelle") -> 0 | C25: Estimé | D25: =IF(E25="Estimé",D11/INDEX(plage_conv,MATCH($A$25,plage_tag,0),MATCH($D$23,plage_an,0)),"Insérer valeur Réelle") -> 0 | E25: Estimé | F25: =IF(G25="Estimé",F11/INDEX(plage_conv,MATCH($A$25,plage_tag,0),MATCH($F$23,plage_an,0)),"Insérer valeur Réelle") -> 0 | G25: Estimé | H25: =IF(I25="Estimé",H11/INDEX(plage_conv,MATCH($A$25,plage_tag,0),MATCH($H$23,plage_an,0)),"Insérer valeur Réelle") -> 0 | I25: Estimé | J25: =IF(K25="Estimé",J11/INDEX(plage_conv,MATCH($A$25,plage_tag,0),MATCH($J$23,plage_an,0)),"Insérer valeur Réelle") -> 0 | K25: Estimé | L25: =IF(M25="Estimé",L11/INDEX(plage_conv,MATCH($A$25,plage_tag,0),MATCH($L$23,plage_an,0)),"Insérer valeur Réelle") -> 0 | M25: Estimé | N25: =IF(O25="Estimé",N11/INDEX(plage_conv,MATCH($A$25,plage_tag,0),MATCH($N$23,plage_an,0)),"Insérer valeur Réelle") -> 0 | O25: Estimé | P25: =IF(Q25="Estimé",P11/INDEX(plage_conv,MATCH($A25,plage_tag,0),MATCH(P$23,plage_an,0)),"Insérer valeur Réelle") -> 0 | Q25: Estimé | R25: =IF(S25="Estimé",R11/INDEX(plage_conv,MATCH($A25,plage_tag,0),MATCH(R$23,plage_an,0)),"Insérer valeur Réelle") -> 0 | S25: Estimé | T25: =IF(U25="Estimé",T11/INDEX(plage_conv,MATCH($A25,plage_tag,0),MATCH(T$23,plage_an,0)),"Insérer valeur Réelle") -> 0 | U25: Estimé | V25: =IF(W25="Estimé",V11/INDEX(plage_conv,MATCH($A25,plage_tag,0),MATCH(V$23,plage_an,0)),"Insérer valeur Réelle") -> 0 | W25: Estimé | X25: =IF(Y25="Estimé",X11/INDEX(plage_conv,MATCH($A25,plage_tag,0),MATCH(X$23,plage_an,0)),"Insérer valeur Réelle") -> 0 | Y25: Estimé | Z25: =IF(AA25="Estimé",Z11/INDEX(plage_conv,MATCH($A25,plage_tag,0),MATCH(Z$23,plage_an,0)),"Insérer valeur Réelle") -> 0 | AA25: Estimé | AB25: =IF(AC25="Estimé",AB11/INDEX(plage_conv,MATCH($A25,plage_tag,0),MATCH(AB$23,plage_an,0)),"Insérer valeur Réelle") -> 0 | AC25: Estimé | AD25: =IF(AE25="Estimé",AD11/INDEX(plage_conv,MATCH($A25,plage_tag,0),MATCH(AD$23,plage_an,0)),"Insérer valeur Réelle") -> 0 | AE25: Estimé | AF25: =IF(AG25="Estimé",AF11/INDEX(plage_conv,MATCH($A25,plage_tag,0),MATCH(AF$23,plage_an,0)),"Insérer valeur Réelle") -> 0 | AG25: Estimé | AH25: =IF(AI25="Estimé",AH11/INDEX(plage_conv,MATCH($A25,plage_tag,0),MATCH(AH$23,plage_an,0)),"Insérer valeur Réelle") -> 0 | AI25: Estimé | AJ25: =IF(AK25="Estimé",AJ11/INDEX(plage_conv,MATCH($A25,plage_tag,0),MATCH($AJ23,plage_an,0)),"Insérer valeur Réelle") -> 0 | AK25: Estimé | AL25: =IF(AM25="Estimé",AL11/INDEX(plage_conv,MATCH($A$25,plage_tag,0),MATCH($AL$23,plage_an,0)),"Insérer valeur Réelle") -> 0 | AM25: Estimé | AN25: =IF(AO25="Estimé",AN11/INDEX(plage_conv,MATCH($A$25,plage_tag,0),MATCH($AN$23,plage_an,0)),"Insérer valeur Réelle") -> 0 | AO25: Estimé | AP25: =IF(AQ25="Estimé",AP11/INDEX(plage_conv,MATCH($A$25,plage_tag,0),MATCH($AP$23,plage_an,0)),"Insérer valeur Réelle") -> 0 | AQ25: Estimé | AR25: =IF(AS25="Estimé",AR11/INDEX(plage_conv,MATCH($A$25,plage_tag,0),MATCH($AR$23,plage_an,0)),"Insérer valeur Réelle") -> 0 | AS25: Estimé | AT25: =IF(AU25="Estimé",AT11/INDEX(plage_conv,MATCH($A$25,plage_tag,0),MATCH($AT$23,plage_an,0)),"Insérer valeur Réelle") -> 0 | AU25: Estimé
A26: Diesel [litres] | B26: =IF(C26="Estimé",B12/INDEX(plage_conv,MATCH($A$26,plage_tag,0),MATCH($B$23,plage_an,0)),"Insérer valeur Réelle") -> 0 | C26: Estimé | D26: =IF(E26="Estimé",D12/INDEX(plage_conv,MATCH($A$26,plage_tag,0),MATCH($D$23,plage_an,0)),"Insérer valeur Réelle") -> 0 | E26: Estimé | F26: =IF(G26="Estimé",F12/INDEX(plage_conv,MATCH($A$26,plage_tag,0),MATCH($F$23,plage_an,0)),"Insérer valeur Réelle") -> 0 | G26: Estimé | H26: =IF(I26="Estimé",H12/INDEX(plage_conv,MATCH($A$26,plage_tag,0),MATCH($H$23,plage_an,0)),"Insérer valeur Réelle") -> 0 | I26: Estimé | J26: =IF(K26="Estimé",J12/INDEX(plage_conv,MATCH($A$26,plage_tag,0),MATCH($J$23,plage_an,0)),"Insérer valeur Réelle") -> 0 | K26: Estimé | L26: =IF(M26="Estimé",L12/INDEX(plage_conv,MATCH($A$26,plage_tag,0),MATCH($L$23,plage_an,0)),"Insérer valeur Réelle") -> 0 | M26: Estimé | N26: =IF(O26="Estimé",N12/INDEX(plage_conv,MATCH($A$26,plage_tag,0),MATCH($N$23,plage_an,0)),"Insérer valeur Réelle") -> 0 | O26: Estimé | P26: =IF(Q26="Estimé",P12/INDEX(plage_conv,MATCH($A26,plage_tag,0),MATCH(P$23,plage_an,0)),"Insérer valeur Réelle") -> 0 | Q26: Estimé | R26: =IF(S26="Estimé",R12/INDEX(plage_conv,MATCH($A26,plage_tag,0),MATCH(R$23,plage_an,0)),"Insérer valeur Réelle") -> 0 | S26: Estimé | T26: =IF(U26="Estimé",T12/INDEX(plage_conv,MATCH($A26,plage_tag,0),MATCH(T$23,plage_an,0)),"Insérer valeur Réelle") -> 0 | U26: Estimé | V26: =IF(W26="Estimé",V12/INDEX(plage_conv,MATCH($A26,plage_tag,0),MATCH(V$23,plage_an,0)),"Insérer valeur Réelle") -> 0 | W26: Estimé | X26: =IF(Y26="Estimé",X12/INDEX(plage_conv,MATCH($A26,plage_tag,0),MATCH(X$23,plage_an,0)),"Insérer valeur Réelle") -> 0 | Y26: Estimé | Z26: =IF(AA26="Estimé",Z12/INDEX(plage_conv,MATCH($A26,plage_tag,0),MATCH(Z$23,plage_an,0)),"Insérer valeur Réelle") -> 0 | AA26: Estimé | AB26: =IF(AC26="Estimé",AB12/INDEX(plage_conv,MATCH($A26,plage_tag,0),MATCH(AB$23,plage_an,0)),"Insérer valeur Réelle") -> 0 | AC26: Estimé | AD26: =IF(AE26="Estimé",AD12/INDEX(plage_conv,MATCH($A26,plage_tag,0),MATCH(AD$23,plage_an,0)),"Insérer valeur Réelle") -> 0 | AE26: Estimé | AF26: =IF(AG26="Estimé",AF12/INDEX(plage_conv,MATCH($A26,plage_tag,0),MATCH(AF$23,plage_an,0)),"Insérer valeur Réelle") -> 0 | AG26: Estimé | AH26: =IF(AI26="Estimé",AH12/INDEX(plage_conv,MATCH($A26,plage_tag,0),MATCH(AH$23,plage_an,0)),"Insérer valeur Réelle") -> 0 | AI26: Estimé | AJ26: =IF(AK26="Estimé",AJ12/INDEX(plage_conv,MATCH($A26,plage_tag,0),MATCH(AJ$23,plage_an,0)),"Insérer valeur Réelle") -> 0 | AK26: Estimé | AL26: =IF(AM26="Estimé",AL12/INDEX(plage_conv,MATCH($A$26,plage_tag,0),MATCH($AL$23,plage_an,0)),"Insérer valeur Réelle") -> 0 | AM26: Estimé | AN26: =IF(AO26="Estimé",AN12/INDEX(plage_conv,MATCH($A$26,plage_tag,0),MATCH($AN$23,plage_an,0)),"Insérer valeur Réelle") -> 0 | AO26: Estimé | AP26: =IF(AQ26="Estimé",AP12/INDEX(plage_conv,MATCH($A$26,plage_tag,0),MATCH($AN$23,plage_an,0)),"Insérer valeur Réelle") -> 0 | AQ26: Estimé | AR26: =IF(AS26="Estimé",AR12/INDEX(plage_conv,MATCH($A$26,plage_tag,0),MATCH($AR$23,plage_an,0)),"Insérer valeur Réelle") -> 0 | AS26: Estimé | AT26: =IF(AU26="Estimé",AT12/INDEX(plage_conv,MATCH($A$26,plage_tag,0),MATCH($AT$23,plage_an,0)),"Insérer valeur Réelle") -> 0 | AU26: Estimé
A27: Gaz naturel [m³] | B27: =IF(C27="Estimé",B13/INDEX(plage_conv,MATCH($A$27,plage_tag,0),MATCH($B$23,plage_an,0)),"Insérer valeur Réelle") -> 0 | C27: Estimé | D27: =IF(E27="Estimé",D13/INDEX(plage_conv,MATCH($A$26,plage_tag,0),MATCH($D$23,plage_an,0)),"Insérer valeur Réelle") -> 0 | E27: Estimé | F27: =IF(G27="Estimé",F13/INDEX(plage_conv,MATCH($A$27,plage_tag,0),MATCH($F$23,plage_an,0)),"Insérer valeur Réelle") -> 0 | G27: Estimé | H27: =IF(I27="Estimé",H13/INDEX(plage_conv,MATCH($A$27,plage_tag,0),MATCH($H$23,plage_an,0)),"Insérer valeur Réelle") -> 0 | I27: Estimé | J27: =IF(K27="Estimé",J13/INDEX(plage_conv,MATCH($A$27,plage_tag,0),MATCH($J$23,plage_an,0)),"Insérer valeur Réelle") -> 0 | K27: Estimé | L27: =IF(M27="Estimé",L13/INDEX(plage_conv,MATCH($A$27,plage_tag,0),MATCH($L$23,plage_an,0)),"Insérer valeur Réelle") -> 0 | M27: Estimé | N27: =IF(O27="Estimé",N13/INDEX(plage_conv,MATCH($A$27,plage_tag,0),MATCH($N$23,plage_an,0)),"Insérer valeur Réelle") -> 0 | O27: Estimé | P27: =IF(Q27="Estimé",P13/INDEX(plage_conv,MATCH($A27,plage_tag,0),MATCH(P$23,plage_an,0)),"Insérer valeur Réelle") -> 0 | Q27: Estimé | R27: =IF(S27="Estimé",R13/INDEX(plage_conv,MATCH($A27,plage_tag,0),MATCH(R$23,plage_an,0)),"Insérer valeur Réelle") -> 0 | S27: Estimé | T27: =IF(U27="Estimé",T13/INDEX(plage_conv,MATCH($A27,plage_tag,0),MATCH(T$23,plage_an,0)),"Insérer valeur Réelle") -> 0 | U27: Estimé | V27: =IF(W27="Estimé",V13/INDEX(plage_conv,MATCH($A27,plage_tag,0),MATCH(V$23,plage_an,0)),"Insérer valeur Réelle") -> 0 | W27: Estimé | X27: =IF(Y27="Estimé",X13/INDEX(plage_conv,MATCH($A27,plage_tag,0),MATCH(X$23,plage_an,0)),"Insérer valeur Réelle") -> 0 | Y27: Estimé | Z27: 0 | AA27: Estimé | AB27: 0 | AC27: Réél | AD27: 0 | AE27: Estimé | AF27: 0 | AG27: Estimé | AH27: 0 | AI27: Estimé | AJ27: 0 | AK27: Estimé | AL27: 0 | AM27: Estimé | AN27: 0 | AO27: Réél | AP27: 0 | AQ27: Réél | AR27: 0 | AS27: Réél | AT27: 0 | AU27: Réél
A28: Propane [litres] | B28: =IF(C28="Estimé",B14/INDEX(plage_conv,MATCH($A$28,plage_tag,0),MATCH($B$23,plage_an,0)),"Insérer valeur Réelle") -> 0 | C28: Estimé | D28: =IF(E28="Estimé",D14/INDEX(plage_conv,MATCH($A$28,plage_tag,0),MATCH($D$23,plage_an,0)),"Insérer valeur Réelle") -> 0 | E28: Estimé | F28: =IF(G28="Estimé",F14/INDEX(plage_conv,MATCH($A$28,plage_tag,0),MATCH($F$23,plage_an,0)),"Insérer valeur Réelle") -> 0 | G28: Estimé | H28: =IF(I28="Estimé",H14/INDEX(plage_conv,MATCH($A$28,plage_tag,0),MATCH($H$23,plage_an,0)),"Insérer valeur Réelle") -> 0 | I28: Estimé | J28: =IF(K28="Estimé",J14/INDEX(plage_conv,MATCH($A$28,plage_tag,0),MATCH($J$23,plage_an,0)),"Insérer valeur Réelle") -> 0 | K28: Estimé | L28: =IF(M28="Estimé",L14/INDEX(plage_conv,MATCH($A$28,plage_tag,0),MATCH($L$23,plage_an,0)),"Insérer valeur Réelle") -> 0 | M28: Estimé | N28: =IF(O28="Estimé",N14/INDEX(plage_conv,MATCH($A$28,plage_tag,0),MATCH($N$23,plage_an,0)),"Insérer valeur Réelle") -> 0 | O28: Estimé | P28: =IF(Q28="Estimé",P14/INDEX(plage_conv,MATCH($A28,plage_tag,0),MATCH(P$23,plage_an,0)),"Insérer valeur Réelle") -> 0 | Q28: Estimé | R28: =IF(S28="Estimé",R14/INDEX(plage_conv,MATCH($A28,plage_tag,0),MATCH(R$23,plage_an,0)),"Insérer valeur Réelle") -> 0 | S28: Estimé | T28: =IF(U28="Estimé",T14/INDEX(plage_conv,MATCH($A28,plage_tag,0),MATCH(T$23,plage_an,0)),"Insérer valeur Réelle") -> 0 | U28: Estimé | V28: =IF(W28="Estimé",V14/INDEX(plage_conv,MATCH($A28,plage_tag,0),MATCH(V$23,plage_an,0)),"Insérer valeur Réelle") -> 0 | W28: Estimé | X28: =IF(Y28="Estimé",X14/INDEX(plage_conv,MATCH($A28,plage_tag,0),MATCH(X$23,plage_an,0)),"Insérer valeur Réelle") -> 0 | Y28: Estimé | Z28: =IF(AA28="Estimé",Z14/INDEX(plage_conv,MATCH($A28,plage_tag,0),MATCH(Z$23,plage_an,0)),"Insérer valeur Réelle") -> 0 | AA28: Estimé | AB28: 0 | AC28: Réél | AD28: 0 | AE28: Estimé | AF28: 0 | AG28: Estimé | AH28: 0 | AI28: Estimé | AJ28: 0 | AK28: Estimé | AL28: 0 | AM28: Estimé | AN28: 0 | AO28: Réél | AP28: 0 | AQ28: Réél | AR28: 0 | AS28: Réél | AT28: 0 | AU28: Réél
A30: Consommation des biocarburants
A31: Essence éthanol [litres] | C31: Réél | E31: Réél | G31: Estimé | I31: Réél | K31: Réél | M31: Réél | O31: Réél | Q31: Réél | S31: Réél | U31: Réél | W31: Réél | Y31: Réél | AA31: Réél | AC31: Réél | AE31: Réél | AG31: Réél | AI31: Réél | AK31: Réél | AM31: Réél | AO31: Réél | AQ31: Réél | AS31: Réél | AU31: Réél
A32: Biodiesel [litres] | C32: Réél | E32: Réél | G32: Réél | I32: Réél | K32: Réél | M32: Réél | O32: Réél | Q32: Réél | S32: Réél | U32: Réél | W32: Réél | Y32: Réél | AA32: Réél | AC32: Réél | AE32: Réél | AG32: Réél | AI32: Réél | AK32: Réél | AM32: Réél | AO32: Réél | AQ32: Réél | AS32: Réél | AU32: Réél
A34: Total [L-éq. essence] | B34: =B36/L_ess_to_GJ -> 0 | D34: =D36/L_ess_to_GJ -> 0 | F34: =F36/L_ess_to_GJ -> 0 | H34: =H36/L_ess_to_GJ -> 0 | J34: =J36/L_ess_to_GJ -> 0 | L34: =L36/L_ess_to_GJ -> 0 | N34: =N36/L_ess_to_GJ -> 0 | P34: =P36/L_ess_to_GJ -> 0 | R34: =R36/L_ess_to_GJ -> 0 | T34: =T36/L_ess_to_GJ -> 0 | V34: =V36/L_ess_to_GJ -> 0 | X34: =X36/L_ess_to_GJ -> 0 | Z34: =Z36/L_ess_to_GJ -> 0 | AB34: =IFERROR(AB36/L_ess_to_GJ,0) -> 0 | AD34: =AD36/L_ess_to_GJ -> 0 | AF34: =AF36/L_ess_to_GJ -> 0 | AH34: =AH36/L_ess_to_GJ -> 0 | AJ34: =AJ36/L_ess_to_GJ -> 0 | AL34: =AL36/L_ess_to_GJ -> 0 | AN34: =AN36/L_ess_to_GJ -> 0 | AP34: =AP36/L_ess_to_GJ -> 0 | AR34: =AR36/L_ess_to_GJ -> 0 | AT34: =AT36/L_ess_to_GJ -> 0
A36: Total [GJ] | B36: =B25*L_ess_to_GJ+B26*L_dies_to_GJ+B27*m3_gn_to_GJ+B28*L_prop_to_GJ+B31*L_esseth_to_GJ+B32*L_biodies_to_GJ -> 0 | D36: =D25*L_ess_to_GJ+D26*L_dies_to_GJ+D27*m3_gn_to_GJ+D28*L_prop_to_GJ+D31*L_esseth_to_GJ+D32*L_biodies_to_GJ -> 0 | F36: =F25*L_ess_to_GJ+F26*L_dies_to_GJ+F27*m3_gn_to_GJ+F28*L_prop_to_GJ+F31*L_esseth_to_GJ+F32*L_biodies_to_GJ -> 0 | H36: =H25*L_ess_to_GJ+H26*L_dies_to_GJ+H27*m3_gn_to_GJ+H28*L_prop_to_GJ+H31*L_esseth_to_GJ+H32*L_biodies_to_GJ -> 0 | J36: =J25*L_ess_to_GJ+J26*L_dies_to_GJ+J27*m3_gn_to_GJ+J28*L_prop_to_GJ+J31*L_esseth_to_GJ+J32*L_biodies_to_GJ -> 0 | L36: =L25*L_ess_to_GJ+L26*L_dies_to_GJ+L27*m3_gn_to_GJ+L28*L_prop_to_GJ+L31*L_esseth_to_GJ+L32*L_biodies_to_GJ -> 0 | N36: =N25*L_ess_to_GJ+N26*L_dies_to_GJ+N27*m3_gn_to_GJ+N28*L_prop_to_GJ+N31*L_esseth_to_GJ+N32*L_biodies_to_GJ -> 0 | P36: =P25*L_ess_to_GJ+P26*L_dies_to_GJ+P27*m3_gn_to_GJ+P28*L_prop_to_GJ+P31*L_esseth_to_GJ+P32*L_biodies_to_GJ -> 0 | R36: =R25*L_ess_to_GJ+R26*L_dies_to_GJ+R27*m3_gn_to_GJ+R28*L_prop_to_GJ+R31*L_esseth_to_GJ+R32*L_biodies_to_GJ -> 0 | T36: =T25*L_ess_to_GJ+T26*L_dies_to_GJ+T27*m3_gn_to_GJ+T28*L_prop_to_GJ+T31*L_esseth_to_GJ+T32*L_biodies_to_GJ -> 0 | V36: =V25*L_ess_to_GJ+V26*L_dies_to_GJ+V27*m3_gn_to_GJ+V28*L_prop_to_GJ+V31*L_esseth_to_GJ+V32*L_biodies_to_GJ -> 0 | X36: =X25*L_ess_to_GJ+X26*L_dies_to_GJ+X27*m3_gn_to_GJ+X28*L_prop_to_GJ+X31*L_esseth_to_GJ+X32*L_biodies_to_GJ -> 0 | Z36: =Z25*L_ess_to_GJ+Z26*L_dies_to_GJ+Z27*m3_gn_to_GJ+Z28*L_prop_to_GJ+Z31*L_esseth_to_GJ+Z32*L_biodies_to_GJ -> 0 | AB36: =IFERROR(AB25*L_ess_to_GJ+AB26*L_dies_to_GJ+AB27*m3_gn_to_GJ+AB28*L_prop_to_GJ+AB31*L_esseth_to_GJ+AB32*L_biodies_to_GJ,0) -> 0 | AD36: =AD25*L_ess_to_GJ+AD26*L_dies_to_GJ+AD27*m3_gn_to_GJ+AD28*L_prop_to_GJ+AD31*L_esseth_to_GJ+AD32*L_biodies_to_GJ -> 0 | AF36: =AF25*L_ess_to_GJ+AF26*L_dies_to_GJ+AF27*m3_gn_to_GJ+AF28*L_prop_to_GJ+AF31*L_esseth_to_GJ+AF32*L_biodies_to_GJ -> 0 | AH36: =AH25*L_ess_to_GJ+AH26*L_dies_to_GJ+AH27*m3_gn_to_GJ+AH28*L_prop_to_GJ+AH31*L_esseth_to_GJ+AH32*L_biodies_to_GJ -> 0 | AJ36: =AJ25*L_ess_to_GJ+AJ26*L_dies_to_GJ+AJ27*m3_gn_to_GJ+AJ28*L_prop_to_GJ+AJ31*L_esseth_to_GJ+AJ32*L_biodies_to_GJ -> 0 | AL36: =AL25*L_ess_to_GJ+AL26*L_dies_to_GJ+AL27*m3_gn_to_GJ+AL28*L_prop_to_GJ+AL31*L_esseth_to_GJ+AL32*L_biodies_to_GJ -> 0 | AN36: =AN25*L_ess_to_GJ+AN26*L_dies_to_GJ+AN27*m3_gn_to_GJ+AN28*L_prop_to_GJ+AN31*L_esseth_to_GJ+AN32*L_biodies_to_GJ -> 0 | AP36: =AP25*L_ess_to_GJ+AP26*L_dies_to_GJ+AP27*m3_gn_to_GJ+AP28*L_prop_to_GJ+AP31*L_esseth_to_GJ+AP32*L_biodies_to_GJ -> 0 | AR36: =AR25*L_ess_to_GJ+AR26*L_dies_to_GJ+AR27*m3_gn_to_GJ+AR28*L_prop_to_GJ+AR31*L_esseth_to_GJ+AR32*L_biodies_to_GJ -> 0 | AT36: =AT25*L_ess_to_GJ+AT26*L_dies_to_GJ+AT27*m3_gn_to_GJ+AT28*L_prop_to_GJ+AT31*L_esseth_to_GJ+AT32*L_biodies_to_GJ -> 0
B37: =CONCATENATE("GJ_vehic_instit_",MID(B23,3,2),"_",MID(B23,8,2)) -> GJ_vehic_instit_02_03 | D37: =CONCATENATE("GJ_vehic_instit_",MID(D23,3,2),"_",MID(D23,8,2)) -> GJ_vehic_instit_03_04 | F37: =CONCATENATE("GJ_vehic_instit_",MID(F23,3,2),"_",MID(F23,8,2)) -> GJ_vehic_instit_04_05 | H37: =CONCATENATE("GJ_vehic_instit_",MID(H23,3,2),"_",MID(H23,8,2)) -> GJ_vehic_instit_05_06 | J37: =CONCATENATE("GJ_vehic_instit_",MID(J23,3,2),"_",MID(J23,8,2)) -> GJ_vehic_instit_06_07 | L37: =CONCATENATE("GJ_vehic_instit_",MID(L23,3,2),"_",MID(L23,8,2)) -> GJ_vehic_instit_07_08 | N37: =CONCATENATE("GJ_vehic_instit_",MID(N23,3,2),"_",MID(N23,8,2)) -> GJ_vehic_instit_08_09 | P37: =CONCATENATE("GJ_vehic_instit_",MID(P23,3,2),"_",MID(P23,8,2)) -> GJ_vehic_instit_09_10 | R37: =CONCATENATE("GJ_vehic_instit_",MID(R23,3,2),"_",MID(R23,8,2)) -> GJ_vehic_instit_10_11 | T37: =CONCATENATE("GJ_vehic_instit_",MID(T23,3,2),"_",MID(T23,8,2)) -> GJ_vehic_instit_11_12 | V37: =CONCATENATE("GJ_vehic_instit_",MID(V23,3,2),"_",MID(V23,8,2)) -> GJ_vehic_instit_12_13 | X37: =CONCATENATE("GJ_vehic_instit_",MID(X23,3,2),"_",MID(X23,8,2)) -> GJ_vehic_instit_13_14 | Z37: =CONCATENATE("GJ_vehic_instit_",MID(Z23,3,2),"_",MID(Z23,8,2)) -> GJ_vehic_instit_14_15 | AB37: =CONCATENATE("GJ_vehic_instit_",MID(AB23,3,2),"_",MID(AB23,8,2)) -> GJ_vehic_instit_15_16 | AD37: =CONCATENATE("GJ_vehic_instit_",MID(AD23,3,2),"_",MID(AD23,8,2)) -> GJ_vehic_instit_16_17 | AF37: =CONCATENATE("GJ_vehic_instit_",MID(AF23,3,2),"_",MID(AF23,8,2)) -> GJ_vehic_instit_17_18 | AH37: =CONCATENATE("GJ_vehic_instit_",MID(AH23,3,2),"_",MID(AH23,8,2)) -> GJ_vehic_instit_18_19 | AJ37: =CONCATENATE("GJ_vehic_instit_",MID(AJ23,3,2),"_",MID(AJ23,8,2)) -> GJ_vehic_instit_19_20 | AL37: =CONCATENATE("GJ_vehic_instit_",MID(AL23,3,2),"_",MID(AL23,8,2)) -> GJ_vehic_instit_20_21 | AN37: =CONCATENATE("GJ_vehic_instit_",MID(AN23,3,2),"_",MID(AN23,8,2)) -> GJ_vehic_instit_21_22
D38: ESTIMATION DES ÉMISSIONS DE GAZ À EFFET DE SERRE | L38: ESTIMATION DES ÉMISSIONS DE GAZ À EFFET DE SERRE | T38: ESTIMATION DES ÉMISSIONS DE GAZ À EFFET DE SERRE | AB38: ESTIMATION DES ÉMISSIONS DE GAZ À EFFET DE SERRE | AH38: ESTIMATION DES ÉMISSIONS DE GAZ À EFFET DE SERRE
B39: 2002-2003 | D39: 2003-2004 | F39: 2004-2005 | H39: 2005-2006 | J39: 2006-2007 | L39: 2007-2008 | N39: 2008-2009 | P39: 2009-2010 | R39: 2010-2011 | T39: 2011-2012 | V39: 2012-2013 | X39: 2013-2014 | Z39: 2014-2015 | AB39: 2015-2016 | AD39: 2016-2017 | AF39: 2017-2018 | AH39: 2018-2019 | AJ39: 2019-2020 | AL39: 2020-2021 | AN39: 2021-2022 | AP39: 2022-2023 | AR39: 2023-2024 | AT39: 2024-2025
A40: Émissions des carburants traditionnels
A41: Essence [t CO2 éq.] | B41: =B25*L_ess_to_GES -> 0 | D41: =D25*L_ess_to_GES -> 0 | F41: =F25*L_ess_to_GES -> 0 | H41: =H25*L_ess_to_GES -> 0 | J41: =J25*L_ess_to_GES -> 0 | L41: =L25*L_ess_to_GES -> 0 | N41: =N25*L_ess_to_GES -> 0 | P41: =P25*L_ess_to_GES -> 0 | R41: =R25*L_ess_to_GES -> 0 | T41: =T25*L_ess_to_GES -> 0 | V41: =V25*L_ess_to_GES -> 0 | X41: =X25*L_ess_to_GES -> 0 | Z41: =Z25*L_ess_to_GES -> 0 | AB41: =AB25*L_ess_to_GES -> 0 | AD41: =AD25*L_ess_to_GES -> 0 | AF41: =AF25*L_ess_to_GES -> 0 | AH41: =AH25*L_ess_to_GES -> 0 | AJ41: =AJ25*L_ess_to_GES -> 0 | AL41: =AL25*L_ess_to_GES -> 0 | AN41: =AN25*L_ess_to_GES -> 0 | AP41: =AP25*L_ess_to_GES -> 0 | AR41: =AR25*L_ess_to_GES -> 0 | AT41: =AT25*L_ess_to_GES -> 0
A42: Diesel [t CO2 éq.] | B42: =B26*L_dies_to_GES -> 0 | D42: =D26*L_dies_to_GES -> 0 | F42: =F26*L_dies_to_GES -> 0 | H42: =H26*L_dies_to_GES -> 0 | J42: =J26*L_dies_to_GES -> 0 | L42: =L26*L_dies_to_GES -> 0 | N42: =N26*L_dies_to_GES -> 0 | P42: =P26*L_dies_to_GES -> 0 | R42: =R26*L_dies_to_GES -> 0 | T42: =T26*L_dies_to_GES -> 0 | V42: =V26*L_dies_to_GES -> 0 | X42: =X26*L_dies_to_GES -> 0 | Z42: =Z26*L_dies_to_GES -> 0 | AB42: =AB26*L_dies_to_GES -> 0 | AD42: =AD26*L_dies_to_GES -> 0 | AF42: =AF26*L_dies_to_GES -> 0 | AH42: =AH26*L_dies_to_GES -> 0 | AJ42: =AJ26*L_dies_to_GES -> 0 | AL42: =AL26*L_dies_to_GES -> 0 | AN42: =AN26*L_dies_to_GES -> 0 | AP42: =AP26*L_dies_to_GES -> 0 | AR42: =AR26*L_dies_to_GES -> 0 | AT42: =AT26*L_dies_to_GES -> 0
A43: Gaz naturel [t CO2 éq.] | B43: =B27*m3_gn_to_GES -> 0 | D43: =D27*m3_gn_to_GES -> 0 | F43: =F27*m3_gn_to_GES -> 0 | H43: =H27*m3_gn_to_GES -> 0 | J43: =J27*m3_gn_to_GES -> 0 | L43: =L27*m3_gn_to_GES -> 0 | N43: =N27*m3_gn_to_GES -> 0 | P43: =P27*m3_gn_to_GES -> 0 | R43: =R27*m3_gn_to_GES -> 0 | T43: =T27*m3_gn_to_GES -> 0 | V43: =V27*m3_gn_to_GES -> 0 | X43: =X27*m3_gn_to_GES -> 0 | Z43: =Z27*m3_gn_to_GES -> 0 | AB43: =IFERROR(AB27*m3_gn_to_GES,0) -> 0 | AD43: =AD27*m3_gn_to_GES -> 0 | AF43: =AF27*m3_gn_to_GES -> 0 | AH43: =AH27*m3_gn_to_GES -> 0 | AJ43: =AJ27*m3_gn_to_GES -> 0 | AL43: =AL27*m3_gn_to_GES -> 0 | AN43: =AN27*m3_gn_to_GES -> 0 | AP43: =AP27*m3_gn_to_GES -> 0 | AR43: =AR27*m3_gn_to_GES -> 0 | AT43: =AT27*m3_gn_to_GES -> 0
A44: Propane [t CO2 éq.] | B44: =B28*L_prop_to_GES -> 0 | D44: =D28*L_prop_to_GES -> 0 | F44: =F28*L_prop_to_GES -> 0 | H44: =H28*L_prop_to_GES -> 0 | J44: =J28*L_prop_to_GES -> 0 | L44: =L28*L_prop_to_GES -> 0 | N44: =N28*L_prop_to_GES -> 0 | P44: =P28*L_prop_to_GES -> 0 | R44: =R28*L_prop_to_GES -> 0 | T44: =T28*L_prop_to_GES -> 0 | V44: =V28*L_prop_to_GES -> 0 | X44: =X28*L_prop_to_GES -> 0 | Z44: =Z28*L_prop_to_GES -> 0 | AB44: =IFERROR(AB28*L_prop_to_GES,0) -> 0 | AD44: =AD28*L_prop_to_GES -> 0 | AF44: =AF28*L_prop_to_GES -> 0 | AH44: =AH28*L_prop_to_GES -> 0 | AJ44: =AJ28*L_prop_to_GES -> 0 | AL44: =AL28*L_prop_to_GES -> 0 | AN44: =AN28*L_prop_to_GES -> 0 | AP44: =AP28*L_prop_to_GES -> 0 | AR44: =AR28*L_prop_to_GES -> 0 | AT44: =AT28*L_prop_to_GES -> 0
A46: Émissions des biocarburants
A47: Essence éthanol [t CO2 éq.] | B47: =B31*L_esseth_to_GES -> 0 | D47: =D31*L_esseth_to_GES -> 0 | F47: =F31*L_esseth_to_GES -> 0 | H47: =H31*L_esseth_to_GES -> 0 | J47: =J31*L_esseth_to_GES -> 0 | L47: =L31*L_esseth_to_GES -> 0 | N47: =N31*L_esseth_to_GES -> 0 | P47: =P31*L_esseth_to_GES -> 0 | R47: =R31*L_esseth_to_GES -> 0 | T47: =T31*L_esseth_to_GES -> 0 | V47: =V31*L_esseth_to_GES -> 0 | X47: =X31*L_esseth_to_GES -> 0 | Z47: =Z31*L_esseth_to_GES -> 0 | AB47: =AB31*L_esseth_to_GES -> 0 | AD47: =AD31*L_esseth_to_GES -> 0 | AF47: =AF31*L_esseth_to_GES -> 0 | AH47: =AH31*L_esseth_to_GES -> 0 | AJ47: =AJ31*L_esseth_to_GES -> 0 | AL47: =AL31*L_esseth_to_GES -> 0 | AN47: =AN31*L_esseth_to_GES -> 0 | AP47: =AP31*L_esseth_to_GES -> 0 | AR47: =AR31*L_esseth_to_GES -> 0 | AT47: =AT31*L_esseth_to_GES -> 0
A48: Biodiesel [t CO2 éq.] | B48: =B32*L_biodies_to_GES -> 0 | D48: =D32*L_biodies_to_GES -> 0 | F48: =F32*L_biodies_to_GES -> 0 | H48: =H32*L_biodies_to_GES -> 0 | J48: =J32*L_biodies_to_GES -> 0 | L48: =L32*L_biodies_to_GES -> 0 | N48: =N32*L_biodies_to_GES -> 0 | P48: =P32*L_biodies_to_GES -> 0 | R48: =R32*L_biodies_to_GES -> 0 | T48: =T32*L_biodies_to_GES -> 0 | V48: =V32*L_biodies_to_GES -> 0 | X48: =X32*L_biodies_to_GES -> 0 | Z48: =Z32*L_biodies_to_GES -> 0 | AB48: =AB32*L_biodies_to_GES -> 0 | AD48: =AD32*L_biodies_to_GES -> 0 | AF48: =AF32*L_biodies_to_GES -> 0 | AH48: =AH32*L_biodies_to_GES -> 0 | AJ48: =AJ32*L_biodies_to_GES -> 0 | AL48: =AL32*L_biodies_to_GES -> 0 | AN48: =AN32*L_biodies_to_GES -> 0 | AP48: =AP32*L_biodies_to_GES -> 0 | AR48: =AR32*L_biodies_to_GES -> 0 | AT48: =AT32*L_biodies_to_GES -> 0
A50: Total [t CO2 éq.] | B50: =B41+B42+B43+B44+B47+B48 -> 0 | D50: =D41+D42+D43+D44+D47+D48 -> 0 | F50: =F41+F42+F43+F44+F47+F48 -> 0 | H50: =H41+H42+H43+H44+H47+H48 -> 0 | J50: =J41+J42+J43+J44+J47+J48 -> 0 | L50: =L41+L42+L43+L44+L47+L48 -> 0 | N50: =N41+N42+N43+N44+N47+N48 -> 0 | P50: =P41+P42+P43+P44+P47+P48 -> 0 | R50: =R41+R42+R43+R44+R47+R48 -> 0 | T50: =T41+T42+T43+T44+T47+T48 -> 0 | V50: =V41+V42+V43+V44+V47+V48 -> 0 | X50: =X41+X42+X43+X44+X47+X48 -> 0 | Z50: =Z41+Z42+Z43+Z44+Z47+Z48 -> 0 | AB50: =AB41+AB42+AB43+AB44+AB47+AB48 -> 0 | AD50: =AD41+AD42+AD43+AD44+AD47+AD48 -> 0 | AF50: =AF41+AF42+AF43+AF44+AF47+AF48 -> 0 | AH50: =AH41+AH42+AH43+AH44+AH47+AH48 -> 0 | AJ50: =AJ41+AJ42+AJ43+AJ44+AJ47+AJ48 -> 0 | AL50: =AL41+AL42+AL43+AL44+AL47+AL48 -> 0 | AN50: =AN41+AN42+AN43+AN44+AN47+AN48 -> 0 | AP50: =AP41+AP42+AP43+AP44+AP47+AP48 -> 0 | AR50: =AR41+AR42+AR43+AR44+AR47+AR48 -> 0 | AT50: =AT41+AT42+AT43+AT44+AT47+AT48 -> 0
B51: =CONCATENATE("GES_vehic_instit_",MID(B39,3,2),"_",MID(B39,8,2)) -> GES_vehic_instit_02_03 | D51: =CONCATENATE("GES_vehic_instit_",MID(D39,3,2),"_",MID(D39,8,2)) -> GES_vehic_instit_03_04 | F51: =CONCATENATE("GES_vehic_instit_",MID(F39,3,2),"_",MID(F39,8,2)) -> GES_vehic_instit_04_05 | H51: =CONCATENATE("GES_vehic_instit_",MID(H39,3,2),"_",MID(H39,8,2)) -> GES_vehic_instit_05_06 | J51: =CONCATENATE("GES_vehic_instit_",MID(J39,3,2),"_",MID(J39,8,2)) -> GES_vehic_instit_06_07 | L51: =CONCATENATE("GES_vehic_instit_",MID(L39,3,2),"_",MID(L39,8,2)) -> GES_vehic_instit_07_08 | N51: =CONCATENATE("GES_vehic_instit_",MID(N39,3,2),"_",MID(N39,8,2)) -> GES_vehic_instit_08_09 | P51: =CONCATENATE("GES_vehic_instit_",MID(P39,3,2),"_",MID(P39,8,2)) -> GES_vehic_instit_09_10 | R51: =CONCATENATE("GES_vehic_instit_",MID(R39,3,2),"_",MID(R39,8,2)) -> GES_vehic_instit_10_11 | T51: =CONCATENATE("GES_vehic_instit_",MID(T39,3,2),"_",MID(T39,8,2)) -> GES_vehic_instit_11_12 | V51: =CONCATENATE("GES_vehic_instit_",MID(V39,3,2),"_",MID(V39,8,2)) -> GES_vehic_instit_12_13 | X51: =CONCATENATE("GES_vehic_instit_",MID(X39,3,2),"_",MID(X39,8,2)) -> GES_vehic_instit_13_14 | Z51: =CONCATENATE("GES_vehic_instit_",MID(Z39,3,2),"_",MID(Z39,8,2)) -> GES_vehic_instit_14_15 | AB51: =CONCATENATE("GES_vehic_instit_",MID(AB39,3,2),"_",MID(AB39,8,2)) -> GES_vehic_instit_15_16 | AD51: =CONCATENATE("GES_vehic_instit_",MID(AD39,3,2),"_",MID(AD39,8,2)) -> GES_vehic_instit_16_17 | AF51: =CONCATENATE("GES_vehic_instit_",MID(AF39,3,2),"_",MID(AF39,8,2)) -> GES_vehic_instit_17_18 | AH51: =CONCATENATE("GES_vehic_instit_",MID(AH39,3,2),"_",MID(AH39,8,2)) -> GES_vehic_instit_18_19 | AJ51: =CONCATENATE("GES_vehic_instit_",MID(AJ39,3,2),"_",MID(AJ39,8,2)) -> GES_vehic_instit_19_20 | AL51: =CONCATENATE("GES_vehic_instit_",MID(AL39,3,2),"_",MID(AL39,8,2)) -> GES_vehic_instit_20_21 | AN51: =CONCATENATE("GES_vehic_instit_",MID(AN39,3,2),"_",MID(AN39,8,2)) -> GES_vehic_instit_21_22

Sheet 2. CARBURANT (Véhicules lourds)
Z1: Ce tableau est réservé aux données de véhicules de l'organisme (celles relatives aux véhicules de location de courte durée ou aux véhicules personnels doivent être saisies dans l'onglet 3. KM POLLUANTS)
B2: Saisir les données de dépenses annuelles, avant taxes, dans les cellules ombragées en bleu pâle. | I2: Réél | L2: Saisir les données de dépenses annuelles, avant taxes, dans les cellules ombragées en bleu pâle. | AB2: Saisir les données de dépenses annuelles, avant taxes, dans les cellules ombragées en bleu pâle.
I3: Estimé
B4: Si des données de consommation de carburant sont disponibles, utiliser les | L4: Si des données de consommation de carburant sont disponibles, utiliser les | AB4: Si des données de consommation de carburant sont disponibles, utiliser les ombragées en vert pâle
H5: cellules ombragées en vert pâle ou en jaune pâle, après avoir choisi " Réel " dans la colonne R/E. | AB5: ou en jaune pâle, après avoir choisi " Réel " dans la colonne R/E. | AJ5: cellules ombragées en vert pâle ou en jaune pâle, après avoir choisi " Réel " dans la colonne R/E.
D8: DÉPENSES ANNUELLES EN CARBURANT | N8: DÉPENSES ANNUELLES EN CARBURANT | AD8: DÉPENSES ANNUELLES EN CARBURANT
B9: 2002-2003 | D9: 2003-2004 | F9: 2004-2005 | H9: 2005-2006 | J9: 2006-2007 | L9: 2007-2008 | N9: 2008-2009 | P9: 2009-2010 | R9: 2010-2011 | T9: 2011-2012 | V9: 2012-2013 | X9: 2013-2014 | Z9: 2014-2015 | AB9: 2015-2016 | AD9: 2016-2017 | AF9: 2017-2018 | AH9: 2018-2019 | AJ9: 2019-2020 | AL9: 2020-2021 | AN9: 2021-2022 | AP9: 2022-2023 | AR9: 2023-2024 | AT9: 2024-2025
A10: Dépenses des carburants traditionnels
A11: Essence [$]
A12: Diesel [$]
A13: Gaz naturel [$]
A14: Propane [$]
A16: Dépenses en biocarburants
A17: Essence éthanol [$]
A18: Biodiesel [$]
A20: Total [$] | B20: =SUM(B11:B14,B17:B18) -> 0 | D20: =SUM(D11:D14,D17:D18) -> 0 | F20: =SUM(F11:F14,F17:F18) -> 0 | H20: =SUM(H11:H14,H17:H18) -> 0 | J20: =SUM(J11:J14,J17:J18) -> 0 | L20: =SUM(L11:L14,L17:L18) -> 0 | N20: =SUM(N11:N14,N17:N18) -> 0 | P20: =SUM(P11:P14,P17:P18) -> 0 | R20: =SUM(R11:R14,R17:R18) -> 0 | T20: =SUM(T11:T14,T17:T18) -> 0 | V20: =SUM(V11:V14,V17:V18) -> 0 | X20: =SUM(X11:X14,X17:X18) -> 0 | Z20: =SUM(Z11:Z14,Z17:Z18) -> 0 | AB20: =SUM(AB11:AB14,AB17:AB18) -> 0 | AD20: =SUM(AD11:AD14,AD17:AD18) -> 0 | AF20: =SUM(AF11:AF14,AF17:AF18) -> 0 | AH20: =SUM(AH11:AH14,AH17:AH18) -> 0 | AJ20: =SUM(AJ11:AJ14,AJ17:AJ18) -> 0 | AL20: =SUM(AL11:AL14,AL17:AL18) -> 0 | AN20: =SUM(AN11:AN14,AN17:AN18) -> 0 | AP20: =SUM(AP11:AP14,AP17:AP18) -> 0 | AR20: =SUM(AR11:AR14,AR17:AR18) -> 0 | AT20: =SUM(AT11:AT14,AT17:AT18) -> 0
D21: =CONCATENATE("CAD_vehic_instit_",MID(D9,3,2),"_",MID(D9,8,2)) -> CAD_vehic_instit_03_04 | F21: =CONCATENATE("CAD_vehic_instit_",MID(F9,3,2),"_",MID(F9,8,2)) -> CAD_vehic_instit_04_05 | H21: =CONCATENATE("CAD_vehic_instit_",MID(H9,3,2),"_",MID(H9,8,2)) -> CAD_vehic_instit_05_06 | J21: =CONCATENATE("CAD_vehic_instit_",MID(J9,3,2),"_",MID(J9,8,2)) -> CAD_vehic_instit_06_07 | L21: =CONCATENATE("CAD_vehic_instit_",MID(L9,3,2),"_",MID(L9,8,2)) -> CAD_vehic_instit_07_08 | N21: =CONCATENATE("CAD_vehic_instit_",MID(N9,3,2),"_",MID(N9,8,2)) -> CAD_vehic_instit_08_09 | P21: =CONCATENATE("CAD_vehic_instit_",MID(P9,3,2),"_",MID(P9,8,2)) -> CAD_vehic_instit_09_10 | R21: =CONCATENATE("CAD_vehic_instit_",MID(R9,3,2),"_",MID(R9,8,2)) -> CAD_vehic_instit_10_11 | T21: =CONCATENATE("CAD_vehic_instit_",MID(T9,3,2),"_",MID(T9,8,2)) -> CAD_vehic_instit_11_12 | V21: =CONCATENATE("CAD_vehic_instit_",MID(V9,3,2),"_",MID(V9,8,2)) -> CAD_vehic_instit_12_13 | X21: =CONCATENATE("CAD_vehic_instit_",MID(X9,3,2),"_",MID(X9,8,2)) -> CAD_vehic_instit_13_14 | Z21: =CONCATENATE("CAD_vehic_instit_",MID(Z9,3,2),"_",MID(Z9,8,2)) -> CAD_vehic_instit_14_15 | AB21: =CONCATENATE("CAD_vehic_instit_",MID(AB9,3,2),"_",MID(AB9,8,2)) -> CAD_vehic_instit_15_16 | AD21: =CONCATENATE("CAD_vehic_instit_",MID(AD9,3,2),"_",MID(AD9,8,2)) -> CAD_vehic_instit_16_17 | AF21: =CONCATENATE("CAD_vehic_instit_",MID(AF9,3,2),"_",MID(AF9,8,2)) -> CAD_vehic_instit_17_18 | AH21: =CONCATENATE("CAD_vehic_instit_",MID(AH9,3,2),"_",MID(AH9,8,2)) -> CAD_vehic_instit_18_19 | AJ21: =CONCATENATE("CAD_vehic_instit_",MID(AJ9,3,2),"_",MID(AJ9,8,2)) -> CAD_vehic_instit_19_20 | AL21: =CONCATENATE("CAD_vehic_instit_",MID(AL9,3,2),"_",MID(AL9,8,2)) -> CAD_vehic_instit_20_21 | AN21: =CONCATENATE("CAD_vehic_instit_",MID(AN9,3,2),"_",MID(AN9,8,2)) -> CAD_vehic_instit_21_22
D22: VOLUME DE CARBURANT CONSOMMÉ ANNUELLEMENT | L22: VOLUME DE CARBURANT CONSOMMÉ ANNUELLEMENT | T22: VOLUME DE CARBURANT CONSOMMÉ ANNUELLEMENT | AB22: VOLUME DE CARBURANT CONSOMMÉ ANNUELLEMENT | AH22: VOLUME DE CARBURANT CONSOMMÉ ANNUELLEMENT
B23: 2002-2003 | C23: R/E | D23: 2003-2004 | E23: R/E | F23: 2004-2005 | G23: R/E | H23: 2005-2006 | I23: R/E | J23: 2006-2007 | K23: R/E | L23: 2007-2008 | M23: R/E | N23: 2008-2009 | O23: R/E | P23: 2009-2010 | Q23: R/E | R23: 2010-2011 | S23: R/E | T23: 2011-2012 | U23: R/E | V23: 2012-2013 | W23: R/E | X23: 2013-2014 | Y23: R/E | Z23: 2014-2015 | AA23: R/E | AB23: 2015-2016 | AC23: R/E | AD23: 2016-2017 | AE23: R/E | AF23: 2017-2018 | AG23: R/E | AH23: 2018-2019 | AI23: R/E | AJ23: 2019-2020 | AK23: R/E | AL23: 2020-2021 | AM23: R/E | AN23: 2021-2022 | AO23: R/E | AP23: 2022-2023 | AQ23: R/E | AR23: 2023-2024 | AS23: R/E | AT23: 2024-2025 | AU23: R/E
A24: Consommation des carburants traditionnels
A25: Essence [litres] | B25: =IF(C25="Estimé",B11/INDEX(plage_conv,MATCH($A25,plage_tag,0),MATCH($B$23,plage_an,0)),"Insérer valeur Réelle") -> 0 | C25: Estimé | D25: =IF(E25="Estimé",D11/INDEX(plage_conv,MATCH($A25,plage_tag,0),MATCH($D$23,plage_an,0)),"Insérer valeur Réelle") -> 0 | E25: Estimé | F25: =IF(G25="Estimé",F11/INDEX(plage_conv,MATCH($A25,plage_tag,0),MATCH($F$23,plage_an,0)),"Insérer valeur Réelle") -> 0 | G25: Estimé | H25: =IF(I25="Estimé",H11/INDEX(plage_conv,MATCH($A25,plage_tag,0),MATCH($H$23,plage_an,0)),"Insérer valeur Réelle") -> 0 | I25: Estimé | J25: =IF(K25="Estimé",J11/INDEX(plage_conv,MATCH($A25,plage_tag,0),MATCH($J$23,plage_an,0)),"Insérer valeur Réelle") -> 0 | K25: Estimé | L25: =IF(M25="Estimé",L11/INDEX(plage_conv,MATCH($A25,plage_tag,0),MATCH($L$23,plage_an,0)),"Insérer valeur Réelle") -> 0 | M25: Estimé | N25: =IF(O25="Estimé",N11/INDEX(plage_conv,MATCH($A25,plage_tag,0),MATCH($N$23,plage_an,0)),"Insérer valeur Réelle") -> 0 | O25: Estimé | P25: =IF(Q25="Estimé",P11/INDEX(plage_conv,MATCH($A25,plage_tag,0),MATCH(P$23,plage_an,0)),"Insérer valeur Réelle") -> 0 | Q25: Estimé | R25: =IF(S25="Estimé",R11/INDEX(plage_conv,MATCH($A25,plage_tag,0),MATCH(R$23,plage_an,0)),"Insérer valeur Réelle") -> 0 | S25: Estimé | T25: =IF(U25="Estimé",T11/INDEX(plage_conv,MATCH($A25,plage_tag,0),MATCH(T$23,plage_an,0)),"Insérer valeur Réelle") -> 0 | U25: Estimé | V25: =IF(W25="Estimé",V11/INDEX(plage_conv,MATCH($A25,plage_tag,0),MATCH(V$23,plage_an,0)),"Insérer valeur Réelle") -> 0 | W25: Estimé | X25: =IF(Y25="Estimé",X11/INDEX(plage_conv,MATCH($A25,plage_tag,0),MATCH(X$23,plage_an,0)),"Insérer valeur Réelle") -> 0 | Y25: Estimé | Z25: =IF(AA25="Estimé",Z11/INDEX(plage_conv,MATCH($A25,plage_tag,0),MATCH(Z$23,plage_an,0)),"Insérer valeur Réelle") -> 0 | AA25: Estimé | AB25: =IF(AC25="Estimé",AB11/INDEX(plage_conv,MATCH($A25,plage_tag,0),MATCH(AB$23,plage_an,0)),"Insérer valeur Réelle") -> 0 | AC25: Estimé | AD25: =IF(AE25="Estimé",AD11/INDEX(plage_conv,MATCH($A25,plage_tag,0),MATCH(AD$23,plage_an,0)),"Insérer valeur Réelle") -> 0 | AE25: Estimé | AF25: =IF(AG25="Estimé",AF11/INDEX(plage_conv,MATCH($A25,plage_tag,0),MATCH(AF$23,plage_an,0)),"Insérer valeur Réelle") -> 0 | AG25: Estimé | AH25: =IF(AI25="Estimé",AH11/INDEX(plage_conv,MATCH($A25,plage_tag,0),MATCH(AH$23,plage_an,0)),"Insérer valeur Réelle") -> 0 | AI25: Estimé | AJ25: =IF(AK25="Estimé",AJ11/INDEX(plage_conv,MATCH($A25,plage_tag,0),MATCH(AJ$23,plage_an,0)),"Insérer valeur Réelle") -> 0 | AK25: Estimé | AL25: =IF(AM25="Estimé",AL11/INDEX(plage_conv,MATCH($A25,plage_tag,0),MATCH(AL$23,plage_an,0)),"Insérer valeur Réelle") -> 0 | AM25: Estimé | AN25: =IF(AO25="Estimé",AN11/INDEX(plage_conv,MATCH($A25,plage_tag,0),MATCH(AN$23,plage_an,0)),"Insérer valeur Réelle") -> 0 | AO25: Estimé | AP25: =IF(AQ25="Estimé",AP11/INDEX(plage_conv,MATCH($A25,plage_tag,0),MATCH(AP$23,plage_an,0)),"Insérer valeur Réelle") -> 0 | AQ25: Estimé | AR25: =IF(AS25="Estimé",AR11/INDEX(plage_conv,MATCH($A25,plage_tag,0),MATCH(AR$23,plage_an,0)),"Insérer valeur Réelle") -> 0 | AS25: Estimé | AT25: =IF(AU25="Estimé",AT11/INDEX(plage_conv,MATCH($A25,plage_tag,0),MATCH(AT$23,plage_an,0)),"Insérer valeur Réelle") -> 0 | AU25: Estimé
A26: Diesel [litres] | B26: =IF(C26="Estimé",B12/INDEX(plage_conv,MATCH($A26,plage_tag,0),MATCH($B$23,plage_an,0)),"Insérer valeur Réelle") -> 0 | C26: Estimé | D26: =IF(E26="Estimé",D12/INDEX(plage_conv,MATCH($A26,plage_tag,0),MATCH($D$23,plage_an,0)),"Insérer valeur Réelle") -> 0 | E26: Estimé | F26: =IF(G26="Estimé",F12/INDEX(plage_conv,MATCH($A26,plage_tag,0),MATCH($F$23,plage_an,0)),"Insérer valeur Réelle") -> 0 | G26: Estimé | H26: =IF(I26="Estimé",H12/INDEX(plage_conv,MATCH($A26,plage_tag,0),MATCH($H$23,plage_an,0)),"Insérer valeur Réelle") -> 0 | I26: Estimé | J26: =IF(K26="Estimé",J12/INDEX(plage_conv,MATCH($A26,plage_tag,0),MATCH($J$23,plage_an,0)),"Insérer valeur Réelle") -> 0 | K26: Estimé | L26: =IF(M26="Estimé",L12/INDEX(plage_conv,MATCH($A26,plage_tag,0),MATCH($L$23,plage_an,0)),"Insérer valeur Réelle") -> 0 | M26: Estimé | N26: =IF(O26="Estimé",N12/INDEX(plage_conv,MATCH($A26,plage_tag,0),MATCH($N$23,plage_an,0)),"Insérer valeur Réelle") -> 0 | O26: Estimé | P26: =IF(Q26="Estimé",P12/INDEX(plage_conv,MATCH($A26,plage_tag,0),MATCH(P$23,plage_an,0)),"Insérer valeur Réelle") -> 0 | Q26: Estimé | R26: =IF(S26="Estimé",R12/INDEX(plage_conv,MATCH($A26,plage_tag,0),MATCH(R$23,plage_an,0)),"Insérer valeur Réelle") -> 0 | S26: Estimé | T26: =IF(U26="Estimé",T12/INDEX(plage_conv,MATCH($A26,plage_tag,0),MATCH(T$23,plage_an,0)),"Insérer valeur Réelle") -> 0 | U26: Estimé | V26: =IF(W26="Estimé",V12/INDEX(plage_conv,MATCH($A26,plage_tag,0),MATCH(V$23,plage_an,0)),"Insérer valeur Réelle") -> 0 | W26: Estimé | X26: =IF(Y26="Estimé",X12/INDEX(plage_conv,MATCH($A26,plage_tag,0),MATCH(X$23,plage_an,0)),"Insérer valeur Réelle") -> 0 | Y26: Estimé | Z26: =IF(AA26="Estimé",Z12/INDEX(plage_conv,MATCH($A26,plage_tag,0),MATCH(Z$23,plage_an,0)),"Insérer valeur Réelle") -> 0 | AA26: Estimé | AB26: =IF(AC26="Estimé",AB12/INDEX(plage_conv,MATCH($A26,plage_tag,0),MATCH(AB$23,plage_an,0)),"Insérer valeur Réelle") -> 0 | AC26: Estimé | AD26: =IF(AE26="Estimé",AD12/INDEX(plage_conv,MATCH($A26,plage_tag,0),MATCH(AD$23,plage_an,0)),"Insérer valeur Réelle") -> 0 | AE26: Estimé | AF26: =IF(AG26="Estimé",AF12/INDEX(plage_conv,MATCH($A26,plage_tag,0),MATCH(AF$23,plage_an,0)),"Insérer valeur Réelle") -> 0 | AG26: Estimé | AH26: =IF(AI26="Estimé",AH12/INDEX(plage_conv,MATCH($A26,plage_tag,0),MATCH(AH$23,plage_an,0)),"Insérer valeur Réelle") -> 0 | AI26: Estimé | AJ26: =IF(AK26="Estimé",AJ12/INDEX(plage_conv,MATCH($A26,plage_tag,0),MATCH(AJ$23,plage_an,0)),"Insérer valeur Réelle") -> 0 | AK26: Estimé | AL26: =IF(AM26="Estimé",AL12/INDEX(plage_conv,MATCH($A26,plage_tag,0),MATCH(AL$23,plage_an,0)),"Insérer valeur Réelle") -> 0 | AM26: Estimé | AN26: =IF(AO26="Estimé",AN12/INDEX(plage_conv,MATCH($A26,plage_tag,0),MATCH(AN$23,plage_an,0)),"Insérer valeur Réelle") -> 0 | AO26: Estimé | AP26: =IF(AQ26="Estimé",AP12/INDEX(plage_conv,MATCH($A26,plage_tag,0),MATCH(AP$23,plage_an,0)),"Insérer valeur Réelle") -> 0 | AQ26: Estimé | AR26: =IF(AS26="Estimé",AR12/INDEX(plage_conv,MATCH($A26,plage_tag,0),MATCH(AR$23,plage_an,0)),"Insérer valeur Réelle") -> 0 | AS26: Estimé | AT26: =IF(AU26="Estimé",AT12/INDEX(plage_conv,MATCH($A26,plage_tag,0),MATCH(AT$23,plage_an,0)),"Insérer valeur Réelle") -> 0 | AU26: Estimé
A27: Gaz naturel [m³] | B27: =IF(C27="Estimé",B13/INDEX(plage_conv,MATCH($A27,plage_tag,0),MATCH($B$23,plage_an,0)),"Insérer valeur Réelle") -> 0 | C27: Estimé | D27: =IF(E27="Estimé",D13/INDEX(plage_conv,MATCH($A27,plage_tag,0),MATCH($D$23,plage_an,0)),"Insérer valeur Réelle") -> 0 | E27: Estimé | F27: =IF(G27="Estimé",F13/INDEX(plage_conv,MATCH($A27,plage_tag,0),MATCH($F$23,plage_an,0)),"Insérer valeur Réelle") -> 0 | G27: Estimé | H27: =IF(I27="Estimé",H13/INDEX(plage_conv,MATCH($A27,plage_tag,0),MATCH($H$23,plage_an,0)),"Insérer valeur Réelle") -> 0 | I27: Estimé | J27: =IF(K27="Estimé",J13/INDEX(plage_conv,MATCH($A27,plage_tag,0),MATCH($J$23,plage_an,0)),"Insérer valeur Réelle") -> 0 | K27: Estimé | L27: =IF(M27="Estimé",L13/INDEX(plage_conv,MATCH($A27,plage_tag,0),MATCH($L$23,plage_an,0)),"Insérer valeur Réelle") -> 0 | M27: Estimé | N27: =IF(O27="Estimé",N13/INDEX(plage_conv,MATCH($A27,plage_tag,0),MATCH($N$23,plage_an,0)),"Insérer valeur Réelle") -> 0 | O27: Estimé | P27: =IF(Q27="Estimé",P13/INDEX(plage_conv,MATCH($A27,plage_tag,0),MATCH(P$23,plage_an,0)),"Insérer valeur Réelle") -> 0 | Q27: Estimé | R27: =IF(S27="Estimé",R13/INDEX(plage_conv,MATCH($A27,plage_tag,0),MATCH(R$23,plage_an,0)),"Insérer valeur Réelle") -> 0 | S27: Estimé | T27: =IF(U27="Estimé",T13/INDEX(plage_conv,MATCH($A27,plage_tag,0),MATCH(T$23,plage_an,0)),"Insérer valeur Réelle") -> 0 | U27: Estimé | V27: =IF(W27="Estimé",V13/INDEX(plage_conv,MATCH($A27,plage_tag,0),MATCH(V$23,plage_an,0)),"Insérer valeur Réelle") -> 0 | W27: Estimé | X27: =IF(Y27="Estimé",X13/INDEX(plage_conv,MATCH($A27,plage_tag,0),MATCH(X$23,plage_an,0)),"Insérer valeur Réelle") -> 0 | Y27: Estimé | Z27: 0 | AA27: Estimé | AB27: 0 | AC27: Réél | AD27: 0 | AE27: Estimé | AF27: 0 | AG27: Estimé | AH27: 0 | AI27: Estimé | AJ27: 0 | AK27: Estimé | AL27: 0 | AM27: Estimé | AN27: 0 | AO27: Estimé | AP27: 0 | AQ27: Estimé | AR27: 0 | AS27: Estimé | AT27: 0 | AU27: Estimé
A28: Propane [litres] | B28: =IF(C28="Estimé",B14/INDEX(plage_conv,MATCH($A28,plage_tag,0),MATCH($B$23,plage_an,0)),"Insérer valeur Réelle") -> 0 | C28: Estimé | D28: =IF(E28="Estimé",D14/INDEX(plage_conv,MATCH($A28,plage_tag,0),MATCH($D$23,plage_an,0)),"Insérer valeur Réelle") -> 0 | E28: Estimé | F28: =IF(G28="Estimé",F14/INDEX(plage_conv,MATCH($A28,plage_tag,0),MATCH($F$23,plage_an,0)),"Insérer valeur Réelle") -> 0 | G28: Estimé | H28: =IF(I28="Estimé",H14/INDEX(plage_conv,MATCH($A28,plage_tag,0),MATCH($H$23,plage_an,0)),"Insérer valeur Réelle") -> 0 | I28: Estimé | J28: =IF(K28="Estimé",J14/INDEX(plage_conv,MATCH($A28,plage_tag,0),MATCH($J$23,plage_an,0)),"Insérer valeur Réelle") -> 0 | K28: Estimé | L28: =IF(M28="Estimé",L14/INDEX(plage_conv,MATCH($A28,plage_tag,0),MATCH($L$23,plage_an,0)),"Insérer valeur Réelle") -> 0 | M28: Estimé | N28: =IF(O28="Estimé",N14/INDEX(plage_conv,MATCH($A28,plage_tag,0),MATCH($N$23,plage_an,0)),"Insérer valeur Réelle") -> 0 | O28: Estimé | P28: =IF(Q28="Estimé",P14/INDEX(plage_conv,MATCH($A28,plage_tag,0),MATCH(P$23,plage_an,0)),"Insérer valeur Réelle") -> 0 | Q28: Estimé | R28: =IF(S28="Estimé",R14/INDEX(plage_conv,MATCH($A28,plage_tag,0),MATCH(R$23,plage_an,0)),"Insérer valeur Réelle") -> 0 | S28: Estimé | T28: =IF(U28="Estimé",T14/INDEX(plage_conv,MATCH($A28,plage_tag,0),MATCH(T$23,plage_an,0)),"Insérer valeur Réelle") -> 0 | U28: Estimé | V28: =IF(W28="Estimé",V14/INDEX(plage_conv,MATCH($A28,plage_tag,0),MATCH(V$23,plage_an,0)),"Insérer valeur Réelle") -> 0 | W28: Estimé | X28: =IF(Y28="Estimé",X14/INDEX(plage_conv,MATCH($A28,plage_tag,0),MATCH(X$23,plage_an,0)),"Insérer valeur Réelle") -> 0 | Y28: Estimé | Z28: 0 | AA28: Estimé | AB28: 0 | AC28: Réél | AD28: 0 | AE28: Estimé | AF28: 0 | AG28: Estimé | AH28: 0 | AI28: Estimé | AJ28: 0 | AK28: Estimé | AL28: 0 | AM28: Estimé | AN28: 0 | AO28: Estimé | AP28: 0 | AQ28: Estimé | AR28: 0 | AS28: Estimé | AT28: 0 | AU28: Estimé
A30: Consommation des biocarburants
A31: Essence éthanol [litres] | C31: Réél | E31: Réél | G31: Réél | I31: Réél | K31: Réél | M31: Réél | O31: Réél | Q31: Réél | S31: Réél | U31: Réél | W31: Réél | Y31: Réél | AA31: Réél | AC31: Réél | AE31: Réél | AG31: Réél | AI31: Réél | AK31: Réél | AM31: Réél | AO31: Réél | AQ31: Réél | AS31: Réél | AU31: Réél
A32: Biodiesel [litres] | C32: Réél | E32: Réél | G32: Réél | I32: Réél | K32: Réél | M32: Réél | O32: Réél | Q32: Réél | S32: Réél | U32: Réél | W32: Réél | Y32: Réél | AA32: Réél | AC32: Réél | AE32: Réél | AG32: Réél | AI32: Réél | AK32: Réél | AM32: Réél | AO32: Réél | AQ32: Réél | AS32: Réél | AU32: Réél
A34: Total [L-éq. diesel] | B34: =B36/L_ess_to_GJ_Lourd -> 0 | D34: =D36/L_ess_to_GJ_Lourd -> 0 | F34: =F36/L_ess_to_GJ_Lourd -> 0 | H34: =H36/L_ess_to_GJ_Lourd -> 0 | J34: =J36/L_ess_to_GJ_Lourd -> 0 | L34: =L36/L_ess_to_GJ_Lourd -> 0 | N34: =N36/L_ess_to_GJ_Lourd -> 0 | P34: =P36/L_dies_to_GJ_Lourd -> 0 | R34: =R36/L_dies_to_GJ_Lourd -> 0 | T34: =T36/L_dies_to_GJ_Lourd -> 0 | V34: =V36/L_dies_to_GJ_Lourd -> 0 | X34: =X36/L_dies_to_GJ_Lourd -> 0 | Z34: =Z36/L_dies_to_GJ_Lourd -> 0 | AB34: =AB36/L_dies_to_GJ_Lourd -> 0 | AD34: =AD36/L_dies_to_GJ_Lourd -> 0 | AF34: =AF36/L_dies_to_GJ_Lourd -> 0 | AH34: =AH36/L_dies_to_GJ_Lourd -> 0 | AJ34: =AJ36/L_dies_to_GJ_Lourd -> 0 | AL34: =AL36/L_dies_to_GJ_Lourd -> 0 | AN34: =AN36/L_dies_to_GJ_Lourd -> 0 | AP34: =AP36/L_dies_to_GJ_Lourd -> 0 | AR34: =AR36/L_dies_to_GJ_Lourd -> 0 | AT34: =AT36/L_dies_to_GJ_Lourd -> 0
A36: Total [GJ] | B36: =B25*L_ess_to_GJ_Lourd+B26*L_dies_to_GJ_Lourd+B27*m3_gn_to_GJ+B28*L_prop_to_GJ+B31*L_esseth_to_GJ_Lourd+B32*L_biodies_to_GJ_Lourd -> 0 | D36: =D25*L_ess_to_GJ_Lourd+D26*L_dies_to_GJ_Lourd+D27*m3_gn_to_GJ+D28*L_prop_to_GJ+D31*L_esseth_to_GJ_Lourd+D32*L_biodies_to_GJ_Lourd -> 0 | F36: =F25*L_ess_to_GJ_Lourd+F26*L_dies_to_GJ_Lourd+F27*m3_gn_to_GJ+F28*L_prop_to_GJ+F31*L_esseth_to_GJ_Lourd+F32*L_biodies_to_GJ_Lourd -> 0 | H36: =H25*L_ess_to_GJ_Lourd+H26*L_dies_to_GJ_Lourd+H27*m3_gn_to_GJ+H28*L_prop_to_GJ+H31*L_esseth_to_GJ_Lourd+H32*L_biodies_to_GJ_Lourd -> 0 | J36: =J25*L_ess_to_GJ_Lourd+J26*L_dies_to_GJ_Lourd+J27*m3_gn_to_GJ+J28*L_prop_to_GJ+J31*L_esseth_to_GJ_Lourd+J32*L_biodies_to_GJ_Lourd -> 0 | L36: =L25*L_ess_to_GJ_Lourd+L26*L_dies_to_GJ_Lourd+L27*m3_gn_to_GJ+L28*L_prop_to_GJ+L31*L_esseth_to_GJ_Lourd+L32*L_biodies_to_GJ_Lourd -> 0 | N36: =N25*L_ess_to_GJ_Lourd+N26*L_dies_to_GJ_Lourd+N27*m3_gn_to_GJ+N28*L_prop_to_GJ+N31*L_esseth_to_GJ_Lourd+N32*L_biodies_to_GJ_Lourd -> 0 | P36: =P25*L_ess_to_GJ_Lourd+P26*L_dies_to_GJ_Lourd+P27*m3_gn_to_GJ+P28*L_prop_to_GJ+P31*L_esseth_to_GJ_Lourd+P32*L_biodies_to_GJ_Lourd -> 0 | R36: =R25*L_ess_to_GJ_Lourd+R26*L_dies_to_GJ_Lourd+R27*m3_gn_to_GJ+R28*L_prop_to_GJ+R31*L_esseth_to_GJ_Lourd+R32*L_biodies_to_GJ_Lourd -> 0 | T36: =T25*L_ess_to_GJ_Lourd+T26*L_dies_to_GJ_Lourd+T27*m3_gn_to_GJ+T28*L_prop_to_GJ+T31*L_esseth_to_GJ_Lourd+T32*L_biodies_to_GJ_Lourd -> 0 | V36: =V25*L_ess_to_GJ_Lourd+V26*L_dies_to_GJ_Lourd+V27*m3_gn_to_GJ+V28*L_prop_to_GJ+V31*L_esseth_to_GJ_Lourd+V32*L_biodies_to_GJ_Lourd -> 0 | X36: =X25*L_ess_to_GJ_Lourd+X26*L_dies_to_GJ_Lourd+X27*m3_gn_to_GJ+X28*L_prop_to_GJ+X31*L_esseth_to_GJ_Lourd+X32*L_biodies_to_GJ_Lourd -> 0 | Z36: =Z25*L_ess_to_GJ_Lourd+Z26*L_dies_to_GJ_Lourd+Z27*m3_gn_to_GJ+Z28*L_prop_to_GJ+Z31*L_esseth_to_GJ_Lourd+Z32*L_biodies_to_GJ_Lourd -> 0 | AB36: =IFERROR(AB25*L_ess_to_GJ_Lourd+AB26*L_dies_to_GJ_Lourd+AB27*m3_gn_to_GJ+AB28*L_prop_to_GJ+AB31*L_esseth_to_GJ_Lourd+AB32*L_biodies_to_GJ_Lourd,0) -> 0 | AD36: =AD25*L_ess_to_GJ_Lourd+AD26*L_dies_to_GJ_Lourd+AD27*m3_gn_to_GJ+AD28*L_prop_to_GJ+AD31*L_esseth_to_GJ_Lourd+AD32*L_biodies_to_GJ_Lourd -> 0 | AF36: =AF25*L_ess_to_GJ_Lourd+AF26*L_dies_to_GJ_Lourd+AF27*m3_gn_to_GJ+AF28*L_prop_to_GJ+AF31*L_esseth_to_GJ_Lourd+AF32*L_biodies_to_GJ_Lourd -> 0 | AH36: =AH25*L_ess_to_GJ_Lourd+AH26*L_dies_to_GJ_Lourd+AH27*m3_gn_to_GJ+AH28*L_prop_to_GJ+AH31*L_esseth_to_GJ_Lourd+AH32*L_biodies_to_GJ_Lourd -> 0 | AJ36: =AJ25*L_ess_to_GJ_Lourd+AJ26*L_dies_to_GJ_Lourd+AJ27*m3_gn_to_GJ+AJ28*L_prop_to_GJ+AJ31*L_esseth_to_GJ_Lourd+AJ32*L_biodies_to_GJ_Lourd -> 0 | AL36: =AL25*L_ess_to_GJ_Lourd+AL26*L_dies_to_GJ_Lourd+AL27*m3_gn_to_GJ+AL28*L_prop_to_GJ+AL31*L_esseth_to_GJ_Lourd+AL32*L_biodies_to_GJ_Lourd -> 0 | AN36: =AN25*L_ess_to_GJ_Lourd+AN26*L_dies_to_GJ_Lourd+AN27*m3_gn_to_GJ+AN28*L_prop_to_GJ+AN31*L_esseth_to_GJ_Lourd+AN32*L_biodies_to_GJ_Lourd -> 0 | AP36: =AP25*L_ess_to_GJ_Lourd+AP26*L_dies_to_GJ_Lourd+AP27*m3_gn_to_GJ+AP28*L_prop_to_GJ+AP31*L_esseth_to_GJ_Lourd+AP32*L_biodies_to_GJ_Lourd -> 0 | AR36: =AR25*L_ess_to_GJ_Lourd+AR26*L_dies_to_GJ_Lourd+AR27*m3_gn_to_GJ+AR28*L_prop_to_GJ+AR31*L_esseth_to_GJ_Lourd+AR32*L_biodies_to_GJ_Lourd -> 0 | AT36: =AT25*L_ess_to_GJ_Lourd+AT26*L_dies_to_GJ_Lourd+AT27*m3_gn_to_GJ+AT28*L_prop_to_GJ+AT31*L_esseth_to_GJ_Lourd+AT32*L_biodies_to_GJ_Lourd -> 0
B37: =CONCATENATE("GJ_vehic_instit_",MID(B23,3,2),"_",MID(B23,8,2)) -> GJ_vehic_instit_02_03 | D37: =CONCATENATE("GJ_vehic_instit_",MID(D23,3,2),"_",MID(D23,8,2)) -> GJ_vehic_instit_03_04 | F37: =CONCATENATE("GJ_vehic_instit_",MID(F23,3,2),"_",MID(F23,8,2)) -> GJ_vehic_instit_04_05 | H37: =CONCATENATE("GJ_vehic_instit_",MID(H23,3,2),"_",MID(H23,8,2)) -> GJ_vehic_instit_05_06 | J37: =CONCATENATE("GJ_vehic_instit_",MID(J23,3,2),"_",MID(J23,8,2)) -> GJ_vehic_instit_06_07 | L37: =CONCATENATE("GJ_vehic_instit_",MID(L23,3,2),"_",MID(L23,8,2)) -> GJ_vehic_instit_07_08 | N37: =CONCATENATE("GJ_vehic_instit_",MID(N23,3,2),"_",MID(N23,8,2)) -> GJ_vehic_instit_08_09 | P37: =CONCATENATE("GJ_vehic_instit_",MID(P23,3,2),"_",MID(P23,8,2)) -> GJ_vehic_instit_09_10 | R37: =CONCATENATE("GJ_vehic_instit_",MID(R23,3,2),"_",MID(R23,8,2)) -> GJ_vehic_instit_10_11 | T37: =CONCATENATE("GJ_vehic_instit_",MID(T23,3,2),"_",MID(T23,8,2)) -> GJ_vehic_instit_11_12 | V37: =CONCATENATE("GJ_vehic_instit_",MID(V23,3,2),"_",MID(V23,8,2)) -> GJ_vehic_instit_12_13 | X37: =CONCATENATE("GJ_vehic_instit_",MID(X23,3,2),"_",MID(X23,8,2)) -> GJ_vehic_instit_13_14 | Z37: =CONCATENATE("GJ_vehic_instit_",MID(Z23,3,2),"_",MID(Z23,8,2)) -> GJ_vehic_instit_14_15 | AB37: =CONCATENATE("GJ_vehic_instit_",MID(AB23,3,2),"_",MID(AB23,8,2)) -> GJ_vehic_instit_15_16 | AD37: =CONCATENATE("GJ_vehic_instit_",MID(AD23,3,2),"_",MID(AD23,8,2)) -> GJ_vehic_instit_16_17 | AF37: =CONCATENATE("GJ_vehic_instit_",MID(AF23,3,2),"_",MID(AF23,8,2)) -> GJ_vehic_instit_17_18 | AH37: =CONCATENATE("GJ_vehic_instit_",MID(AH23,3,2),"_",MID(AH23,8,2)) -> GJ_vehic_instit_18_19 | AJ37: =CONCATENATE("GJ_vehic_instit_",MID(AJ23,3,2),"_",MID(AJ23,8,2)) -> GJ_vehic_instit_19_20 | AL37: =CONCATENATE("GJ_vehic_instit_",MID(AL23,3,2),"_",MID(AL23,8,2)) -> GJ_vehic_instit_20_21 | AN37: =CONCATENATE("GJ_vehic_instit_",MID(AN23,3,2),"_",MID(AN23,8,2)) -> GJ_vehic_instit_21_22
D38: ESTIMATION DES ÉMISSIONS DE GAZ À EFFET DE SERRE | L38: ESTIMATION DES ÉMISSIONS DE GAZ À EFFET DE SERRE | T38: ESTIMATION DES ÉMISSIONS DE GAZ À EFFET DE SERRE | AB38: ESTIMATION DES ÉMISSIONS DE GAZ À EFFET DE SERRE | AH38: ESTIMATION DES ÉMISSIONS DE GAZ À EFFET DE SERRE
B39: 2002-2003 | D39: 2003-2004 | F39: 2004-2005 | H39: 2005-2006 | J39: 2006-2007 | L39: 2007-2008 | N39: 2008-2009 | P39: 2009-2010 | R39: 2010-2011 | T39: 2011-2012 | V39: 2012-2013 | X39: 2013-2014 | Z39: 2014-2015 | AB39: 2015-2016 | AD39: 2016-2017 | AF39: 2017-2018 | AH39: 2018-2019 | AJ39: 2019-2020 | AL39: 2020-2021 | AN39: 2021-2022 | AP39: 2022-2023 | AR39: 2023-2024 | AT39: 2024-2025
A40: Émissions des carburants traditionnels
A41: Essence [t CO2 éq.] | B41: =B25*L_ess_to_GES_Lourd -> 0 | D41: =D25*L_ess_to_GES_Lourd -> 0 | F41: =F25*L_ess_to_GES_Lourd -> 0 | H41: =H25*L_ess_to_GES_Lourd -> 0 | J41: =J25*L_ess_to_GES_Lourd -> 0 | L41: =L25*L_ess_to_GES_Lourd -> 0 | N41: =N25*L_ess_to_GES_Lourd -> 0 | P41: =P25*L_ess_to_GES_Lourd -> 0 | R41: =R25*L_ess_to_GES_Lourd -> 0 | T41: =T25*L_ess_to_GES_Lourd -> 0 | V41: =V25*L_ess_to_GES_Lourd -> 0 | X41: =X25*L_ess_to_GES_Lourd -> 0 | Z41: =Z25*L_ess_to_GES_Lourd -> 0 | AB41: =AB25*L_ess_to_GES_Lourd -> 0 | AD41: =AD25*L_ess_to_GES_Lourd -> 0 | AF41: =AF25*L_ess_to_GES_Lourd -> 0 | AH41: =AH25*L_ess_to_GES_Lourd -> 0 | AJ41: =AJ25*L_ess_to_GES_Lourd -> 0 | AL41: =AL25*L_ess_to_GES_Lourd -> 0 | AN41: =AN25*L_ess_to_GES_Lourd -> 0 | AP41: =AP25*L_ess_to_GES_Lourd -> 0 | AR41: =AR25*L_ess_to_GES_Lourd -> 0 | AT41: =AT25*L_ess_to_GES_Lourd -> 0
A42: Diesel [t CO2 éq.] | B42: =B26*L_dies_to_GES_Lourd -> 0 | D42: =D26*L_dies_to_GES_Lourd -> 0 | F42: =F26*L_dies_to_GES_Lourd -> 0 | H42: =H26*L_dies_to_GES_Lourd -> 0 | J42: =J26*L_dies_to_GES_Lourd -> 0 | L42: =L26*L_dies_to_GES_Lourd -> 0 | N42: =N26*L_dies_to_GES_Lourd -> 0 | P42: =P26*L_dies_to_GES_Lourd -> 0 | R42: =R26*L_dies_to_GES_Lourd -> 0 | T42: =T26*L_dies_to_GES_Lourd -> 0 | V42: =V26*L_dies_to_GES_Lourd -> 0 | X42: =X26*L_dies_to_GES_Lourd -> 0 | Z42: =Z26*L_dies_to_GES_Lourd -> 0 | AB42: =AB26*L_dies_to_GES_Lourd -> 0 | AD42: =AD26*L_dies_to_GES_Lourd -> 0 | AF42: =AF26*L_dies_to_GES_Lourd -> 0 | AH42: =AH26*L_dies_to_GES_Lourd -> 0 | AJ42: =AJ26*L_dies_to_GES_Lourd -> 0 | AL42: =AL26*L_dies_to_GES_Lourd -> 0 | AN42: =AN26*L_dies_to_GES_Lourd -> 0 | AP42: =AP26*L_dies_to_GES_Lourd -> 0 | AR42: =AR26*L_dies_to_GES_Lourd -> 0 | AT42: =AT26*L_dies_to_GES_Lourd -> 0
A43: Gaz naturel [t CO2 éq.] | B43: =B27*m3_gn_to_GES -> 0 | D43: =D27*m3_gn_to_GES -> 0 | F43: =F27*m3_gn_to_GES -> 0 | H43: =H27*m3_gn_to_GES -> 0 | J43: =J27*m3_gn_to_GES -> 0 | L43: =L27*m3_gn_to_GES -> 0 | N43: =N27*m3_gn_to_GES -> 0 | P43: =P27*m3_gn_to_GES -> 0 | R43: =R27*m3_gn_to_GES -> 0 | T43: =T27*m3_gn_to_GES -> 0 | V43: =V27*m3_gn_to_GES -> 0 | X43: =X27*m3_gn_to_GES -> 0 | Z43: =Z27*m3_gn_to_GES -> 0 | AB43: =AB27*m3_gn_to_GES -> 0 | AD43: =AD27*m3_gn_to_GES -> 0 | AF43: =AF27*m3_gn_to_GES -> 0 | AH43: =AH27*m3_gn_to_GES -> 0 | AJ43: =AJ27*m3_gn_to_GES -> 0 | AL43: =AL27*m3_gn_to_GES -> 0 | AN43: =AN27*m3_gn_to_GES -> 0 | AP43: =AP27*m3_gn_to_GES -> 0 | AR43: =AR27*m3_gn_to_GES -> 0 | AT43: =AT27*m3_gn_to_GES -> 0
A44: Propane [t CO2 éq.] | B44: =B28*L_prop_to_GES -> 0 | D44: =D28*L_prop_to_GES -> 0 | F44: =F28*L_prop_to_GES -> 0 | H44: =H28*L_prop_to_GES -> 0 | J44: =J28*L_prop_to_GES -> 0 | L44: =L28*L_prop_to_GES -> 0 | N44: =N28*L_prop_to_GES -> 0 | P44: =P28*L_prop_to_GES -> 0 | R44: =R28*L_prop_to_GES -> 0 | T44: =T28*L_prop_to_GES -> 0 | V44: =V28*L_prop_to_GES -> 0 | X44: =X28*L_prop_to_GES -> 0 | Z44: =Z28*L_prop_to_GES -> 0 | AB44: =AB28*L_prop_to_GES -> 0 | AD44: =AD28*L_prop_to_GES -> 0 | AF44: =AF28*L_prop_to_GES -> 0 | AH44: =AH28*L_prop_to_GES -> 0 | AJ44: =AJ28*L_prop_to_GES -> 0 | AL44: =AL28*L_prop_to_GES -> 0 | AN44: =AN28*L_prop_to_GES -> 0 | AP44: =AP28*L_prop_to_GES -> 0 | AR44: =AR28*L_prop_to_GES -> 0 | AT44: =AT28*L_prop_to_GES -> 0
A46: Émissions des biocarburants
A47: Essence éthanol [t CO2 éq.] | B47: =B31*L_esseth_to_GES_Lourd -> 0 | D47: =D31*L_esseth_to_GES_Lourd -> 0 | F47: =F31*L_esseth_to_GES_Lourd -> 0 | H47: =H31*L_esseth_to_GES_Lourd -> 0 | J47: =J31*L_esseth_to_GES_Lourd -> 0 | L47: =L31*L_esseth_to_GES_Lourd -> 0 | N47: =N31*L_esseth_to_GES_Lourd -> 0 | P47: =P31*L_esseth_to_GES_Lourd -> 0 | R47: =R31*L_esseth_to_GES_Lourd -> 0 | T47: =T31*L_esseth_to_GES_Lourd -> 0 | V47: =V31*L_esseth_to_GES_Lourd -> 0 | X47: =X31*L_esseth_to_GES_Lourd -> 0 | Z47: =Z31*L_esseth_to_GES_Lourd -> 0 | AB47: =AB31*L_esseth_to_GES_Lourd -> 0 | AD47: =AD31*L_esseth_to_GES_Lourd -> 0 | AF47: =AF31*L_esseth_to_GES_Lourd -> 0 | AH47: =AH31*L_esseth_to_GES_Lourd -> 0 | AJ47: =AJ31*L_esseth_to_GES_Lourd -> 0 | AL47: =AL31*L_esseth_to_GES_Lourd -> 0 | AN47: =AN31*L_esseth_to_GES_Lourd -> 0 | AP47: =AP31*L_esseth_to_GES_Lourd -> 0 | AR47: =AR31*L_esseth_to_GES_Lourd -> 0 | AT47: =AT31*L_esseth_to_GES_Lourd -> 0
A48: Biodiesel [t CO2 éq.] | B48: =B32*L_biodies_to_GES_Lourd -> 0 | D48: =D32*L_biodies_to_GES_Lourd -> 0 | F48: =F32*L_biodies_to_GES_Lourd -> 0 | H48: =H32*L_biodies_to_GES_Lourd -> 0 | J48: =J32*L_biodies_to_GES_Lourd -> 0 | L48: =L32*L_biodies_to_GES_Lourd -> 0 | N48: =N32*L_biodies_to_GES_Lourd -> 0 | P48: =P32*L_biodies_to_GES_Lourd -> 0 | R48: =R32*L_biodies_to_GES_Lourd -> 0 | T48: =T32*L_biodies_to_GES_Lourd -> 0 | V48: =V32*L_biodies_to_GES_Lourd -> 0 | X48: =X32*L_biodies_to_GES_Lourd -> 0 | Z48: =Z32*L_biodies_to_GES_Lourd -> 0 | AB48: =AB32*L_biodies_to_GES_Lourd -> 0 | AD48: =AD32*L_biodies_to_GES_Lourd -> 0 | AF48: =AF32*L_biodies_to_GES_Lourd -> 0 | AH48: =AH32*L_biodies_to_GES_Lourd -> 0 | AJ48: =AJ32*L_biodies_to_GES_Lourd -> 0 | AL48: =AL32*L_biodies_to_GES_Lourd -> 0 | AN48: =AN32*L_biodies_to_GES_Lourd -> 0 | AP48: =AP32*L_biodies_to_GES_Lourd -> 0 | AR48: =AR32*L_biodies_to_GES_Lourd -> 0 | AT48: =AT32*L_biodies_to_GES_Lourd -> 0
A50: Total [t CO2 éq.] | B50: =B41+B42+B43+B44+B47+B48 -> 0 | D50: =D41+D42+D43+D44+D47+D48 -> 0 | F50: =F41+F42+F43+F44+F47+F48 -> 0 | H50: =H41+H42+H43+H44+H47+H48 -> 0 | J50: =J41+J42+J43+J44+J47+J48 -> 0 | L50: =L41+L42+L43+L44+L47+L48 -> 0 | N50: =N41+N42+N43+N44+N47+N48 -> 0 | P50: =P41+P42+P43+P44+P47+P48 -> 0 | R50: =R41+R42+R43+R44+R47+R48 -> 0 | T50: =T41+T42+T43+T44+T47+T48 -> 0 | V50: =V41+V42+V43+V44+V47+V48 -> 0 | X50: =X41+X42+X43+X44+X47+X48 -> 0 | Z50: =Z41+Z42+Z43+Z44+Z47+Z48 -> 0 | AB50: =AB41+AB42+AB43+AB44+AB47+AB48 -> 0 | AD50: =AD41+AD42+AD43+AD44+AD47+AD48 -> 0 | AF50: =AF41+AF42+AF43+AF44+AF47+AF48 -> 0 | AH50: =AH41+AH42+AH43+AH44+AH47+AH48 -> 0 | AJ50: =AJ41+AJ42+AJ43+AJ44+AJ47+AJ48 -> 0 | AL50: =AL41+AL42+AL43+AL44+AL47+AL48 -> 0 | AN50: =AN41+AN42+AN43+AN44+AN47+AN48 -> 0 | AP50: =AP41+AP42+AP43+AP44+AP47+AP48 -> 0 | AR50: =AR41+AR42+AR43+AR44+AR47+AR48 -> 0 | AT50: =AT41+AT42+AT43+AT44+AT47+AT48 -> 0
B51: =CONCATENATE("GES_vehic_instit_",MID(B39,3,2),"_",MID(B39,8,2)) -> GES_vehic_instit_02_03 | D51: =CONCATENATE("GES_vehic_instit_",MID(D39,3,2),"_",MID(D39,8,2)) -> GES_vehic_instit_03_04 | F51: =CONCATENATE("GES_vehic_instit_",MID(F39,3,2),"_",MID(F39,8,2)) -> GES_vehic_instit_04_05 | H51: =CONCATENATE("GES_vehic_instit_",MID(H39,3,2),"_",MID(H39,8,2)) -> GES_vehic_instit_05_06 | J51: =CONCATENATE("GES_vehic_instit_",MID(J39,3,2),"_",MID(J39,8,2)) -> GES_vehic_instit_06_07 | L51: =CONCATENATE("GES_vehic_instit_",MID(L39,3,2),"_",MID(L39,8,2)) -> GES_vehic_instit_07_08 | N51: =CONCATENATE("GES_vehic_instit_",MID(N39,3,2),"_",MID(N39,8,2)) -> GES_vehic_instit_08_09 | P51: =CONCATENATE("GES_vehic_instit_",MID(P39,3,2),"_",MID(P39,8,2)) -> GES_vehic_instit_09_10 | R51: =CONCATENATE("GES_vehic_instit_",MID(R39,3,2),"_",MID(R39,8,2)) -> GES_vehic_instit_10_11 | T51: =CONCATENATE("GES_vehic_instit_",MID(T39,3,2),"_",MID(T39,8,2)) -> GES_vehic_instit_11_12 | V51: =CONCATENATE("GES_vehic_instit_",MID(V39,3,2),"_",MID(V39,8,2)) -> GES_vehic_instit_12_13 | X51: =CONCATENATE("GES_vehic_instit_",MID(X39,3,2),"_",MID(X39,8,2)) -> GES_vehic_instit_13_14 | Z51: =CONCATENATE("GES_vehic_instit_",MID(Z39,3,2),"_",MID(Z39,8,2)) -> GES_vehic_instit_14_15 | AB51: =CONCATENATE("GES_vehic_instit_",MID(AB39,3,2),"_",MID(AB39,8,2)) -> GES_vehic_instit_15_16 | AD51: =CONCATENATE("GES_vehic_instit_",MID(AD39,3,2),"_",MID(AD39,8,2)) -> GES_vehic_instit_16_17 | AF51: =CONCATENATE("GES_vehic_instit_",MID(AF39,3,2),"_",MID(AF39,8,2)) -> GES_vehic_instit_17_18 | AH51: =CONCATENATE("GES_vehic_instit_",MID(AH39,3,2),"_",MID(AH39,8,2)) -> GES_vehic_instit_18_19 | AJ51: =CONCATENATE("GES_vehic_instit_",MID(AJ39,3,2),"_",MID(AJ39,8,2)) -> GES_vehic_instit_19_20 | AL51: =CONCATENATE("GES_vehic_instit_",MID(AL39,3,2),"_",MID(AL39,8,2)) -> GES_vehic_instit_20_21 | AN51: =CONCATENATE("GES_vehic_instit_",MID(AN39,3,2),"_",MID(AN39,8,2)) -> GES_vehic_instit_21_22

Sheet 3. KM POLLUANTS
D7: KILOMÉTRAGE ANNUEL | L7: KILOMÉTRAGE ANNUEL | T7: KILOMÉTRAGE ANNUEL | AB7: KILOMÉTRAGE ANNUEL | AH7: KILOMÉTRAGE ANNUEL
B9: 2002-2003 | D9: 2003-2004 | F9: 2004-2005 | H9: 2005-2006 | J9: 2006-2007 | L9: 2007-2008 | N9: 2008-2009 | P9: 2009-2010 | R9: 2010-2011 | T9: 2011-2012 | V9: 2012-2013 | X9: 2013-2014 | Z9: 2014-2015 | AB9: 2015-2016 | AD9: 2016-2017 | AF9: 2017-2018 | AH9: 2018-2019 | AJ9: 2019-2020 | AL9: 2020-2021 | AN9: 2021-2022 | AP9: 2022-2023 | AR9: 2023-2024 | AT9: 2024-2025
A10: Véhicules légers de l'organisation *
A11: Sur route (y compris les locations longue durée) [km]
A12: Hors route ( VTT, motoneige…) [km]
A13: Total [km] | B13: =SUM(B11:B12) -> 0 | D13: =SUM(D11:D12) -> 0 | F13: 0 | H13: 0 | J13: 0 | L13: 0 | N13: 0 | P13: =SUM(P11:P12) -> 0 | R13: =SUM(R11:R12) -> 0 | T13: =SUM(T11:T12) -> 0 | V13: =SUM(V11:V12) -> 0 | X13: =SUM(X11:X12) -> 0 | Z13: =SUM(Z11:Z12) -> 0 | AB13: =SUM(AB11:AB12) -> 0 | AD13: =SUM(AD11:AD12) -> 0 | AF13: =SUM(AF11:AF12) -> 0 | AH13: =SUM(AH11:AH12) -> 0 | AJ13: =SUM(AJ11:AJ12) -> 0 | AL13: =SUM(AL11:AL12) -> 0 | AN13: =SUM(AN11:AN12) -> 0 | AP13: =SUM(AP11:AP12) -> 0 | AR13: =SUM(AR11:AR12) -> 0 | AT13: =SUM(AT11:AT12) -> 0
A14: Véhicules lourds de l'organisation *
A15: Sur route (y compris les locations longue durée) [km]
A16: Hors route [km]
A17: Total [km] | B17: =SUM(B15:B16) -> 0 | D17: =SUM(D15:D16) -> 0 | F17: =SUM(F15:F16) -> 0 | H17: =SUM(H15:H16) -> 0 | J17: =SUM(J15:J16) -> 0 | L17: =SUM(L15:L16) -> 0 | N17: =SUM(N15:N16) -> 0 | P17: =SUM(P15:P16) -> 0 | R17: =SUM(R15:R16) -> 0 | T17: =SUM(T15:T16) -> 0 | V17: =SUM(V15:V16) -> 0 | X17: =SUM(X15:X16) -> 0 | Z17: =SUM(Z15:Z16) -> 0 | AB17: =SUM(AB15:AB16) -> 0 | AD17: =SUM(AD15:AD16) -> 0 | AF17: =SUM(AF15:AF16) -> 0 | AH17: =SUM(AH15:AH16) -> 0 | AJ17: =SUM(AJ15:AJ16) -> 0 | AL17: =SUM(AL15:AL16) -> 0 | AN17: =SUM(AN15:AN16) -> 0 | AP17: =SUM(AP15:AP16) -> 0 | AR17: =SUM(AR15:AR16) -> 0 | AT17: =SUM(AT15:AT16) -> 0
V19: * Kilométrage annuel des véhicules de l'organisation sur lesquels portent les données énergétiques fournies aux onglets : 2. CARBURANT (lignes 11 à 32) et 5. NOMBRE DE VÉHICULES (lignes 11 à 16).
B22: =CONCATENATE("km_vehic_inst_",MID(B9,3,2),"_",MID(B9,8,2)) -> km_vehic_inst_02_03 | D22: =CONCATENATE("km_vehic_inst_",MID(D9,3,2),"_",MID(D9,8,2)) -> km_vehic_inst_03_04 | F22: km_vehic_inst_04_05 | H22: km_vehic_inst_05_06 | J22: km_vehic_inst_06_07 | L22: km_vehic_inst_07_08 | N22: km_vehic_inst_08_09 | P22: km_vehic_inst_09_10 | R22: km_vehic_inst_10_11 | T22: km_vehic_inst_11_12 | V22: km_vehic_inst_12_13 | X22: km_vehic_inst_13_14 | Z22: km_vehic_inst_14_15 | AB22: km_vehic_inst_15_16 | AD22: km_vehic_inst_16_17 | AF22: km_vehic_inst_17_18 | AH22: km_vehic_inst_18_19 | AJ22: km_vehic_inst_19_20 | AL22: km_vehic_inst_20_21 | AN22: =CONCATENATE("km_vehic_inst_",MID(AN9,3,2),"_",MID(AN9,8,2)) -> km_vehic_inst_21_22 | AP22: =CONCATENATE("km_vehic_inst_",MID(AP9,3,2),"_",MID(AP9,8,2)) -> km_vehic_inst_22_23 | AR22: km_vehic_inst_23_24 | AT22: =CONCATENATE("km_vehic_inst_",MID(AT9,3,2),"_",MID(AT9,8,2)) -> km_vehic_inst_24_25
A23: Autres déplacements à des fins professionnelles Bien qu'importante, cette section reste facultative. Saisir les données seulement si elles sont disponibles et accessibles.
A24: Taxi [km]
A25: Passager covoiturage [km]
A26: Autobus urbain [km]
A27: Autobus interurbain [km]
A28: Métro [km]
A29: Train [km]
A30: Véhicule de location courte durée [km]
A31: Véhicule personnel [km]
A32: Avion [km]
A33: Total [km] | B33: =SUM(B24:B32) -> 0 | D33: =SUM(D24:D32) -> 0 | F33: =SUM(F24:F32) -> 0 | H33: =SUM(H24:H32) -> 0 | J33: =SUM(J24:J32) -> 0 | L33: =SUM(L24:L32) -> 0 | N33: =SUM(N24:N32) -> 0 | P33: =SUM(P24:P32) -> 0 | R33: =SUM(R24:R32) -> 0 | T33: =SUM(T24:T32) -> 0 | V33: =SUM(V24:V32) -> 0 | X33: =SUM(X24:X32) -> 0 | Z33: =SUM(Z24:Z32) -> 0 | AB33: =SUM(AB24:AB32) -> 0 | AD33: =SUM(AD24:AD32) -> 0 | AF33: =SUM(AF24:AF32) -> 0 | AH33: =SUM(AH24:AH32) -> 0 | AJ33: =SUM(AJ24:AJ32) -> 0 | AL33: =SUM(AL24:AL32) -> 0 | AN33: =SUM(AN24:AN32) -> 0 | AP33: =SUM(AP24:AP32) -> 0 | AR33: =SUM(AR24:AR32) -> 0 | AT33: =SUM(AT24:AT32) -> 0
B34: =CONCATENATE("km_autre_",MID(B9,3,2),"_",MID(B9,8,2)) -> km_autre_02_03 | D34: =CONCATENATE("km_autre_",MID(D9,3,2),"_",MID(D9,8,2)) -> km_autre_03_04 | F34: km_autre_04_05 | H34: km_autre_05_06 | J34: km_autre_06_07 | L34: km_autre_07_08 | N34: km_autre_08_09 | P34: =CONCATENATE("km_autre_",MID(P9,3,2),"_",MID(P9,8,2)) -> km_autre_09_10 | R34: =CONCATENATE("km_autre_",MID(R9,3,2),"_",MID(R9,8,2)) -> km_autre_10_11 | T34: =CONCATENATE("km_autre_",MID(T9,3,2),"_",MID(T9,8,2)) -> km_autre_11_12 | V34: =CONCATENATE("km_autre_",MID(V9,3,2),"_",MID(V9,8,2)) -> km_autre_12_13 | X34: =CONCATENATE("km_autre_",MID(X9,3,2),"_",MID(X9,8,2)) -> km_autre_13_14 | Z34: =CONCATENATE("km_autre_",MID(Z9,3,2),"_",MID(Z9,8,2)) -> km_autre_14_15 | AB34: =CONCATENATE("km_autre_",MID(AB9,3,2),"_",MID(AB9,8,2)) -> km_autre_15_16 | AD34: =CONCATENATE("km_autre_",MID(AD9,3,2),"_",MID(AD9,8,2)) -> km_autre_16_17 | AF34: =CONCATENATE("km_autre_",MID(AF9,3,2),"_",MID(AF9,8,2)) -> km_autre_17_18 | AH34: =CONCATENATE("km_autre_",MID(AH9,3,2),"_",MID(AH9,8,2)) -> km_autre_18_19 | AJ34: =CONCATENATE("km_autre_",MID(AJ9,3,2),"_",MID(AJ9,8,2)) -> km_autre_19_20 | AL34: =CONCATENATE("km_autre_",MID(AL9,3,2),"_",MID(AL9,8,2)) -> km_autre_20_21 | AN34: =CONCATENATE("km_autre_",MID(AN9,3,2),"_",MID(AN9,8,2)) -> km_autre_21_22 | AP34: =CONCATENATE("km_autre_",MID(AP9,3,2),"_",MID(AP9,8,2)) -> km_autre_22_23 | AR34: =CONCATENATE("km_autre_",MID(AR9,3,2),"_",MID(AR9,8,2)) -> km_autre_23_24 | AT34: =CONCATENATE("km_autre_",MID(AT9,3,2),"_",MID(AT9,8,2)) -> km_autre_24_25
A35: Total [GJ] | B35: =B24*GJ_to_km_taxi+B25*GJ_to_km_covoit+B26*GJ_to_km_busu+B28*GJ_to_km_metro+B29*GJ_to_km_train+B30*GJ_to_km_loc+B32*GJ_to_km_avion+B27*GJ_to_km_busi+B31*GJ_to_km_loc -> 0 | D35: =D24*GJ_to_km_taxi+D25*GJ_to_km_covoit+D26*GJ_to_km_busu+D28*GJ_to_km_metro+D29*GJ_to_km_train+D30*GJ_to_km_loc+D32*GJ_to_km_avion+D27*GJ_to_km_busi+D31*GJ_to_km_loc -> 0 | F35: =F24*GJ_to_km_taxi+F25*GJ_to_km_covoit+F26*GJ_to_km_busu+F28*GJ_to_km_metro+F29*GJ_to_km_train+F30*GJ_to_km_loc+F32*GJ_to_km_avion+F27*GJ_to_km_busi+F31*GJ_to_km_loc -> 0 | H35: =H24*GJ_to_km_taxi+H25*GJ_to_km_covoit+H26*GJ_to_km_busu+H28*GJ_to_km_metro+H29*GJ_to_km_train+H30*GJ_to_km_loc+H32*GJ_to_km_avion+H27*GJ_to_km_busi+H31*GJ_to_km_loc -> 0 | J35: =J24*GJ_to_km_taxi+J25*GJ_to_km_covoit+J26*GJ_to_km_busu+J28*GJ_to_km_metro+J29*GJ_to_km_train+J30*GJ_to_km_loc+J32*GJ_to_km_avion+J27*GJ_to_km_busi+J31*GJ_to_km_loc -> 0 | L35: =L24*GJ_to_km_taxi+L25*GJ_to_km_covoit+L26*GJ_to_km_busu+L28*GJ_to_km_metro+L29*GJ_to_km_train+L30*GJ_to_km_loc+L32*GJ_to_km_avion+L27*GJ_to_km_busi+L31*GJ_to_km_loc -> 0 | N35: =N24*GJ_to_km_taxi+N25*GJ_to_km_covoit+N26*GJ_to_km_busu+N28*GJ_to_km_metro+N29*GJ_to_km_train+N30*GJ_to_km_loc+N32*GJ_to_km_avion+N27*GJ_to_km_busi+N31*GJ_to_km_loc -> 0 | P35: =P24*GJ_to_km_taxi+P25*GJ_to_km_covoit+P26*GJ_to_km_busu+P28*GJ_to_km_metro+P29*GJ_to_km_train+P30*GJ_to_km_loc+P32*GJ_to_km_avion+P27*GJ_to_km_busi+P31*GJ_to_km_loc -> 0 | R35: =R24*GJ_to_km_taxi+R25*GJ_to_km_covoit+R26*GJ_to_km_busu+R28*GJ_to_km_metro+R29*GJ_to_km_train+R30*GJ_to_km_loc+R32*GJ_to_km_avion+R27*GJ_to_km_busi+R31*GJ_to_km_loc -> 0 | T35: =T24*GJ_to_km_taxi+T25*GJ_to_km_covoit+T26*GJ_to_km_busu+T28*GJ_to_km_metro+T29*GJ_to_km_train+T30*GJ_to_km_loc+T32*GJ_to_km_avion+T27*GJ_to_km_busi+T31*GJ_to_km_loc -> 0 | V35: =V24*GJ_to_km_taxi+V25*GJ_to_km_covoit+V26*GJ_to_km_busu+V28*GJ_to_km_metro+V29*GJ_to_km_train+V30*GJ_to_km_loc+V32*GJ_to_km_avion+V27*GJ_to_km_busi+V31*GJ_to_km_loc -> 0 | X35: =X24*GJ_to_km_taxi+X25*GJ_to_km_covoit+X26*GJ_to_km_busu+X28*GJ_to_km_metro+X29*GJ_to_km_train+X30*GJ_to_km_loc+X32*GJ_to_km_avion+X27*GJ_to_km_busi+X31*GJ_to_km_loc -> 0 | Z35: =Z24*GJ_to_km_taxi+Z25*GJ_to_km_covoit+Z26*GJ_to_km_busu+Z28*GJ_to_km_metro+Z29*GJ_to_km_train+Z30*GJ_to_km_loc+Z32*GJ_to_km_avion+Z27*GJ_to_km_busi+Z31*GJ_to_km_loc -> 0 | AB35: =AB24*GJ_to_km_taxi+AB25*GJ_to_km_covoit+AB26*GJ_to_km_busu+AB28*GJ_to_km_metro+AB29*GJ_to_km_train+AB30*GJ_to_km_loc+AB32*GJ_to_km_avion+AB27*GJ_to_km_busi+AB31*GJ_to_km_loc -> 0 | AD35: =AD24*GJ_to_km_taxi+AD25*GJ_to_km_covoit+AD26*GJ_to_km_busu+AD28*GJ_to_km_metro+AD29*GJ_to_km_train+AD30*GJ_to_km_loc+AD32*GJ_to_km_avion+AD27*GJ_to_km_busi+AD31*GJ_to_km_loc -> 0 | AF35: =AF24*GJ_to_km_taxi+AF25*GJ_to_km_covoit+AF26*GJ_to_km_busu+AF28*GJ_to_km_metro+AF29*GJ_to_km_train+AF30*GJ_to_km_loc+AF32*GJ_to_km_avion+AF27*GJ_to_km_busi+AF31*GJ_to_km_loc -> 0 | AH35: =AH24*GJ_to_km_taxi+AH25*GJ_to_km_covoit+AH26*GJ_to_km_busu+AH28*GJ_to_km_metro+AH29*GJ_to_km_train+AH30*GJ_to_km_loc+AH32*GJ_to_km_avion+AH27*GJ_to_km_busi+AH31*GJ_to_km_loc -> 0 | AJ35: =AJ24*GJ_to_km_taxi+AJ25*GJ_to_km_covoit+AJ26*GJ_to_km_busu+AJ28*GJ_to_km_metro+AJ29*GJ_to_km_train+AJ30*GJ_to_km_loc+AJ32*GJ_to_km_avion+AJ27*GJ_to_km_busi+AJ31*GJ_to_km_loc -> 0 | AL35: =AL24*GJ_to_km_taxi+AL25*GJ_to_km_covoit+AL26*GJ_to_km_busu+AL28*GJ_to_km_metro+AL29*GJ_to_km_train+AL30*GJ_to_km_loc+AL32*GJ_to_km_avion+AL27*GJ_to_km_busi+AL31*GJ_to_km_loc -> 0 | AN35: =AN24*GJ_to_km_taxi+AN25*GJ_to_km_covoit+AN26*GJ_to_km_busu+AN28*GJ_to_km_metro+AN29*GJ_to_km_train+AN30*GJ_to_km_loc+AN32*GJ_to_km_avion+AN27*GJ_to_km_busi+AN31*GJ_to_km_loc -> 0 | AP35: =AP24*GJ_to_km_taxi+AP25*GJ_to_km_covoit+AP26*GJ_to_km_busu+AP28*GJ_to_km_metro+AP29*GJ_to_km_train+AP30*GJ_to_km_loc+AP32*GJ_to_km_avion+AP27*GJ_to_km_busi+AP31*GJ_to_km_loc -> 0 | AR35: =AR24*GJ_to_km_taxi+AR25*GJ_to_km_covoit+AR26*GJ_to_km_busu+AR28*GJ_to_km_metro+AR29*GJ_to_km_train+AR30*GJ_to_km_loc+AR32*GJ_to_km_avion+AR27*GJ_to_km_busi+AR31*GJ_to_km_loc -> 0 | AT35: =AT24*GJ_to_km_taxi+AT25*GJ_to_km_covoit+AT26*GJ_to_km_busu+AT28*GJ_to_km_metro+AT29*GJ_to_km_train+AT30*GJ_to_km_loc+AT32*GJ_to_km_avion+AT27*GJ_to_km_busi+AT31*GJ_to_km_loc -> 0
B36: =CONCATENATE("GJ_autre_",MID(B9,3,2),"_",MID(B9,8,2)) -> GJ_autre_02_03 | D36: =CONCATENATE("GJ_autre_",MID(D9,3,2),"_",MID(D9,8,2)) -> GJ_autre_03_04 | F36: GJ_autre_04_05 | H36: GJ_autre_05_06 | J36: GJ_autre_06_07 | L36: GJ_autre_07_08 | N36: GJ_autre_08_09 | P36: =CONCATENATE("GJ_autre_",MID(P9,3,2),"_",MID(P9,8,2)) -> GJ_autre_09_10 | R36: =CONCATENATE("GJ_autre_",MID(R9,3,2),"_",MID(R9,8,2)) -> GJ_autre_10_11 | T36: =CONCATENATE("GJ_autre_",MID(T9,3,2),"_",MID(T9,8,2)) -> GJ_autre_11_12 | V36: =CONCATENATE("GJ_autre_",MID(V9,3,2),"_",MID(V9,8,2)) -> GJ_autre_12_13 | X36: =CONCATENATE("GJ_autre_",MID(X9,3,2),"_",MID(X9,8,2)) -> GJ_autre_13_14 | Z36: =CONCATENATE("GJ_autre_",MID(Z9,3,2),"_",MID(Z9,8,2)) -> GJ_autre_14_15 | AB36: =CONCATENATE("GJ_autre_",MID(AB9,3,2),"_",MID(AB9,8,2)) -> GJ_autre_15_16 | AE36: =CONCATENATE("GJ_autre_",MID(AE9,3,2),"_",MID(AE9,8,2)) -> GJ_autre__ | AG36: =CONCATENATE("GJ_autre_",MID(AG9,3,2),"_",MID(AG9,8,2)) -> GJ_autre__ | AI36: =CONCATENATE("GJ_autre_",MID(AI9,3,2),"_",MID(AI9,8,2)) -> GJ_autre__ | AK36: =CONCATENATE("GJ_autre_",MID(AK9,3,2),"_",MID(AK9,8,2)) -> GJ_autre__ | AL36: GJ_autre_20_21 | AM36: GJ_autre__ | AN36: GJ_autre_21_22 | AO36: =CONCATENATE("GJ_autre_",MID(AO9,3,2),"_",MID(AO9,8,2)) -> GJ_autre__ | AP36: GJ_autre_22_23 | AQ36: =CONCATENATE("GJ_autre_",MID(AQ9,3,2),"_",MID(AQ9,8,2)) -> GJ_autre__ | AR36: GJ_autre_23_24 | AS36: =CONCATENATE("GJ_autre_",MID(AS9,3,2),"_",MID(AS9,8,2)) -> GJ_autre__ | AT36: GJ_autre_24_25
A37: Total [t éq.CO2] | B37: =B24*GES_to_km_taxi+B25*GES_to_km_covoit+B26*GES_to_km_busu+B28*GES_to_km_metro+B30*GES_to_km_train+B29*GES_to_km_loc+B32*GES_to_km_avion+B27*GES_to_km_busi+B31*GES_to_km_loc -> 0 | D37: =D24*GES_to_km_taxi+D25*GES_to_km_covoit+D26*GES_to_km_busu+D28*GES_to_km_metro+D30*GES_to_km_train+D29*GES_to_km_loc+D32*GES_to_km_avion+D27*GES_to_km_busi+D31*GES_to_km_loc -> 0 | F37: =F24*GES_to_km_taxi+F25*GES_to_km_covoit+F26*GES_to_km_busu+F28*GES_to_km_metro+F30*GES_to_km_train+F29*GES_to_km_loc+F32*GES_to_km_avion+F27*GES_to_km_busi+F31*GES_to_km_loc -> 0 | H37: =H24*GES_to_km_taxi+H25*GES_to_km_covoit+H26*GES_to_km_busu+H28*GES_to_km_metro+H30*GES_to_km_train+H29*GES_to_km_loc+H32*GES_to_km_avion+H27*GES_to_km_busi+H31*GES_to_km_loc -> 0 | J37: =J24*GES_to_km_taxi+J25*GES_to_km_covoit+J26*GES_to_km_busu+J28*GES_to_km_metro+J30*GES_to_km_train+J29*GES_to_km_loc+J32*GES_to_km_avion+J27*GES_to_km_busi+J31*GES_to_km_loc -> 0 | L37: =L24*GES_to_km_taxi+L25*GES_to_km_covoit+L26*GES_to_km_busu+L28*GES_to_km_metro+L29*GES_to_km_train+L30*GES_to_km_loc+L32*GES_to_km_avion+L27*GES_to_km_busi+L31*GES_to_km_loc -> 0 | N37: =N24*GES_to_km_taxi+N25*GES_to_km_covoit+N26*GES_to_km_busu+N28*GES_to_km_metro+N29*GES_to_km_train+N30*GES_to_km_loc+N32*GES_to_km_avion+N27*GES_to_km_busi+N31*GES_to_km_loc -> 0 | P37: =P24*GES_to_km_taxi+P25*GES_to_km_covoit+P26*GES_to_km_busu+P28*GES_to_km_metro+P29*GES_to_km_train+P30*GES_to_km_loc+P32*GES_to_km_avion+P27*GES_to_km_busi+P31*GES_to_km_loc -> 0 | R37: =R24*GES_to_km_taxi+R25*GES_to_km_covoit+R26*GES_to_km_busu+R28*GES_to_km_metro+R29*GES_to_km_train+R30*GES_to_km_loc+R32*GES_to_km_avion+R27*GES_to_km_busi+R31*GES_to_km_loc -> 0 | T37: =T24*GES_to_km_taxi+T25*GES_to_km_covoit+T26*GES_to_km_busu+T28*GES_to_km_metro+T29*GES_to_km_train+T30*GES_to_km_loc+T32*GES_to_km_avion+T27*GES_to_km_busi+T31*GES_to_km_loc -> 0 | V37: =V24*GES_to_km_taxi+V25*GES_to_km_covoit+V26*GES_to_km_busu+V28*GES_to_km_metro+V29*GES_to_km_train+V30*GES_to_km_loc+V32*GES_to_km_avion+V27*GES_to_km_busi+V31*GES_to_km_loc -> 0 | X37: =X24*GES_to_km_taxi+X25*GES_to_km_covoit+X26*GES_to_km_busu+X28*GES_to_km_metro+X29*GES_to_km_train+X30*GES_to_km_loc+X32*GES_to_km_avion+X27*GES_to_km_busi+X31*GES_to_km_loc -> 0 | Z37: =Z24*GES_to_km_taxi+Z25*GES_to_km_covoit+Z26*GES_to_km_busu+Z28*GES_to_km_metro+Z29*GES_to_km_train+Z30*GES_to_km_loc+Z32*GES_to_km_avion+Z27*GES_to_km_busi+Z31*GES_to_km_loc -> 0 | AB37: =AB24*GES_to_km_taxi+AB25*GES_to_km_covoit+AB26*GES_to_km_busu+AB28*GES_to_km_metro+AB29*GES_to_km_train+AB30*GES_to_km_loc+AB32*GES_to_km_avion+AB27*GES_to_km_busi+AB31*GES_to_km_loc -> 0 | AD37: =AD24*GES_to_km_taxi+AD25*GES_to_km_covoit+AD26*GES_to_km_busu+AD28*GES_to_km_metro+AD29*GES_to_km_train+AD30*GES_to_km_loc+AD32*GES_to_km_avion+AD27*GES_to_km_busi+AD31*GES_to_km_loc -> 0 | AF37: =AF24*GES_to_km_taxi+AF25*GES_to_km_covoit+AF26*GES_to_km_busu+AF28*GES_to_km_metro+AF29*GES_to_km_train+AF30*GES_to_km_loc+AF32*GES_to_km_avion+AF27*GES_to_km_busi+AF31*GES_to_km_loc -> 0 | AH37: =AH24*GES_to_km_taxi+AH25*GES_to_km_covoit+AH26*GES_to_km_busu+AH28*GES_to_km_metro+AH29*GES_to_km_train+AH30*GES_to_km_loc+AH32*GES_to_km_avion+AH27*GES_to_km_busi+AH31*GES_to_km_loc -> 0 | AJ37: =AJ24*GES_to_km_taxi+AJ25*GES_to_km_covoit+AJ26*GES_to_km_busu+AJ28*GES_to_km_metro+AJ29*GES_to_km_train+AJ30*GES_to_km_loc+AJ32*GES_to_km_avion+AJ27*GES_to_km_busi+AJ31*GES_to_km_loc -> 0 | AL37: =AL24*GES_to_km_taxi+AL25*GES_to_km_covoit+AL26*GES_to_km_busu+AL28*GES_to_km_metro+AL30*GES_to_km_train+AL29*GES_to_km_loc+AL32*GES_to_km_avion+AL27*GES_to_km_busi+AL31*GES_to_km_loc -> 0 | AN37: =AN24*GES_to_km_taxi+AN25*GES_to_km_covoit+AN26*GES_to_km_busu+AN28*GES_to_km_metro+AN30*GES_to_km_train+AN29*GES_to_km_loc+AN32*GES_to_km_avion+AN27*GES_to_km_busi+AN31*GES_to_km_loc -> 0 | AP37: =AP24*GES_to_km_taxi+AP25*GES_to_km_covoit+AP26*GES_to_km_busu+AP28*GES_to_km_metro+AP30*GES_to_km_train+AP29*GES_to_km_loc+AP32*GES_to_km_avion+AP27*GES_to_km_busi+AP31*GES_to_km_loc -> 0 | AR37: =AR24*GES_to_km_taxi+AR25*GES_to_km_covoit+AR26*GES_to_km_busu+AR28*GES_to_km_metro+AR30*GES_to_km_train+AR29*GES_to_km_loc+AR32*GES_to_km_avion+AR27*GES_to_km_busi+AR31*GES_to_km_loc -> 0 | AT37: =AT24*GES_to_km_taxi+AT25*GES_to_km_covoit+AT26*GES_to_km_busu+AT28*GES_to_km_metro+AT30*GES_to_km_train+AT29*GES_to_km_loc+AT32*GES_to_km_avion+AT27*GES_to_km_busi+AT31*GES_to_km_loc -> 0
B38: =CONCATENATE("GES_autre_",MID(B9,3,2),"_",MID(B9,8,2)) -> GES_autre_02_03 | D38: =CONCATENATE("GES_autre_",MID(D9,3,2),"_",MID(D9,8,2)) -> GES_autre_03_04 | F38: GES_autre_04_05 | H38: GES_autre_05_06 | J38: GES_autre_06_07 | L38: GES_autre_07_08 | N38: GES_autre_08_09 | P38: =CONCATENATE("GES_autre_",MID(P9,3,2),"_",MID(P9,8,2)) -> GES_autre_09_10 | R38: =CONCATENATE("GES_autre_",MID(R9,3,2),"_",MID(R9,8,2)) -> GES_autre_10_11 | T38: =CONCATENATE("GES_autre_",MID(T9,3,2),"_",MID(T9,8,2)) -> GES_autre_11_12 | V38: =CONCATENATE("GES_autre_",MID(V9,3,2),"_",MID(V9,8,2)) -> GES_autre_12_13 | X38: =CONCATENATE("GES_autre_",MID(X9,3,2),"_",MID(X9,8,2)) -> GES_autre_13_14 | Z38: =CONCATENATE("GES_autre_",MID(Z9,3,2),"_",MID(Z9,8,2)) -> GES_autre_14_15 | AB38: =CONCATENATE("GES_autre_",MID(AB9,3,2),"_",MID(AB9,8,2)) -> GES_autre_15_16 | AE38: =CONCATENATE("GES_autre_",MID(AE9,3,2),"_",MID(AE9,8,2)) -> GES_autre__ | AG38: =CONCATENATE("GES_autre_",MID(AG9,3,2),"_",MID(AG9,8,2)) -> GES_autre__ | AI38: =CONCATENATE("GES_autre_",MID(AI9,3,2),"_",MID(AI9,8,2)) -> GES_autre__ | AK38: =CONCATENATE("GES_autre_",MID(AK9,3,2),"_",MID(AK9,8,2)) -> GES_autre__ | AL38: GES_autre_20_21 | AM38: GES_autre__ | AN38: GES_autre_21_22 | AO38: GES_autre__ | AP38: GES_autre_22_23 | AQ38: =CONCATENATE("GES_autre_",MID(AQ9,3,2),"_",MID(AQ9,8,2)) -> GES_autre__ | AR38: GES_autre_23_24 | AS38: =CONCATENATE("GES_autre_",MID(AS9,3,2),"_",MID(AS9,8,2)) -> GES_autre__ | AT38: GES_autre_24_25
A39: Note :
A40: Les autres déplacements excluent les déplacements personnels des employé(e)s pour se rendre à leur lieu de travail ou le quitter.

Sheet 5. NOMBRE DE VÉHICULES
E7: Nombre de véhicules de l'organisation sur lesquels portent les données énergétiques fournies | AD7: Nombre de véhicules de l'organisation sur lesquels portent les données énergétiques fournies aux onglets 2. (lignes 11 à 32) et 3 (lignes 11 à 16).
B9: 2002-2003 | D9: 2003-2004 | F9: 2004-2005 | H9: 2005-2006 | J9: 2006-2007 | L9: 2007-2008 | N9: 2008-2009 | P9: 2009-2010 | R9: 2010-2011 | T9: 2011-2012 | V9: 2012-2013 | X9: 2013-2014 | Z9: 2014-2015 | AB9: 2015-2016 | AD9: 2016-2017 | AF9: 2017-2018 | AH9: 2018-2019 | AJ9: 2019-2020 | AL9: 2020-2021 | AN9: 2021-2022 | AP9: 2022-2023 | AR9: 2023-2024 | AT9: 2024-2025
A10: Nombre de véhicules légers de l'organisation sur lesquels portent les données énergétiques fournies *
A11: Sur route (incluant locations longue durée)
A12: Hors route (VTT, motoneige, etc.)
A13: Hybrides [1]
A14: Hybrides rechargeables [2]
A15: Électriques à batterie (100% électrique) [3]
A16: Total | B16: =SUM(B11:B15) -> 0 | D16: =SUM(D11:D15) -> 0 | F16: 0 | H16: 0 | J16: 0 | L16: 0 | N16: 0 | P16: 0 | R16: =SUM(R11:R15) -> 0 | T16: =SUM(T11:T15) -> 0 | V16: =SUM(V11:V15) -> 0 | X16: =SUM(X11:X15) -> 0 | Z16: =SUM(Z11:Z15) -> 0 | AB16: =SUM(AB11:AB15) -> 0 | AD16: =SUM(AD11:AD15) -> 0 | AF16: =SUM(AF11:AF15) -> 0 | AH16: =SUM(AH11:AH15) -> 0 | AJ16: =SUM(AJ11:AJ15) -> 0 | AL16: =SUM(AL11:AL15) -> 0 | AN16: =SUM(AN11:AN15) -> 0 | AP16: =SUM(AP11:AP15) -> 0 | AR16: =SUM(AR11:AR15) -> 0 | AT16: =SUM(AT11:AT15) -> 0
B17: =CONCATENATE("nb_vehic_inst_",MID(B9,3,2),"_",MID(B9,8,2)) -> nb_vehic_inst_02_03 | D17: =CONCATENATE("nb_vehic_inst_",MID(D9,3,2),"_",MID(D9,8,2)) -> nb_vehic_inst_03_04 | F17: nb_vehic_inst_04_05 | H17: nb_vehic_inst_05_06 | J17: nb_vehic_inst_06_07 | L17: nb_vehic_inst_07_08 | N17: nb_vehic_inst_08_09 | P17: nb_vehic_inst_09_10 | R17: nb_vehic_inst_10_11 | T17: nb_vehic_inst_11_12 | V17: nb_vehic_inst_12_13 | X17: nb_vehic_inst_13_14 | Z17: nb_vehic_inst_14_15 | AB17: nb_vehic_inst_15_16 | AD17: nb_vehic_inst_16_17 | AF17: nb_vehic_inst_17_18 | AH17: nb_vehic_inst_18_19 | AJ17: nb_vehic_inst_19_20 | AL17: nb_vehic_inst_20_21 | AN17: =CONCATENATE("nb_vehic_inst_",MID(AN9,3,2),"_",MID(AN9,8,2)) -> nb_vehic_inst_21_22 | AP17: nb_vehic_inst_22_23 | AR17: =CONCATENATE("nb_vehic_inst_",MID(AR9,3,2),"_",MID(AR9,8,2)) -> nb_vehic_inst_23_24 | AT17: nb_vehic_inst_24_25
B18: nb_vehic_inst_02_03 | D18: nb_vehic_inst_03_04 | F18: nb_vehic_inst_04_05 | H18: nb_vehic_inst_05_06 | J18: nb_vehic_inst_06_07 | L18: nb_vehic_inst_07_08 | N18: nb_vehic_inst_08_09 | P18: nb_vehic_inst_09_10 | R18: nb_vehic_inst_10_11 | T18: nb_vehic_inst_11_12 | V18: nb_vehic_inst_12_13 | X18: nb_vehic_inst_13_14 | Z18: nb_vehic_inst_14_15 | AB18: nb_vehic_inst_15_16 | AD18: nb_vehic_inst_16_17 | AF18: nb_vehic_inst_17_18 | AH18: nb_vehic_inst_18_19 | AJ18: nb_vehic_inst_19_20 | AL18: nb_vehic_inst_20_21 | AN18: nb_vehic_inst_20_21 | AP18: nb_vehic_inst_20_21 | AR18: nb_vehic_inst_20_21 | AT18: nb_vehic_inst_20_21
A22: Nombre de véhicules lourds de l'organisation sur lesquels portent les données énergétiques fournies *
A23: Sur route (incluant locations longue durée)
A24: Hors route (VTT, motoneige, etc.)
A25: Hybrides [1]
A26: Hybrides rechargeables [2]
A27: Électriques à batterie (100% électrique) [3]
A28: Total | B28: =SUM(B23:B27) -> 0 | D28: =SUM(D23:D27) -> 0 | F28: =SUM(F23:F27) -> 0 | H28: =SUM(H23:H27) -> 0 | J28: =SUM(J23:J27) -> 0 | L28: =SUM(L23:L27) -> 0 | N28: =SUM(N23:N27) -> 0 | P28: =SUM(P23:P27) -> 0 | R28: =SUM(R23:R27) -> 0 | T28: =SUM(T23:T27) -> 0 | V28: =SUM(V23:V27) -> 0 | X28: =SUM(X23:X27) -> 0 | Z28: =SUM(Z23:Z27) -> 0 | AB28: =SUM(AB23:AB27) -> 0 | AD28: =SUM(AD23:AD27) -> 0 | AF28: =SUM(AF23:AF27) -> 0 | AH28: =SUM(AH23:AH27) -> 0 | AJ28: =SUM(AJ23:AJ27) -> 0 | AL28: =SUM(AL23:AL27) -> 0 | AN28: =SUM(AN23:AN27) -> 0 | AP28: =SUM(AP23:AP27) -> 0 | AR28: =SUM(AR23:AR27) -> 0 | AT28: =SUM(AT23:AT27) -> 0
A29: Nous distinguons trois types de véhicules autres que traditionnels : | X29: * Les données énergétiques fournies dans l'onglet : 2. CARBURANT (lignes 11 à 32).
A30: 1. Véhicules hybrides
A31: Ne peuvent pas être branchés sur le réseau électrique – ils sont uniquement rechargés par le moteur à essence et le freinage par récupération.
A33: 2. Véhicules hybrides rechargeables
A34: Peuvent être chargés en étant branchés sur le réseau électrique.
A36: 3. Véhicules électriques à batterie
A37: Fonctionnent entièrement grâce à une batterie et à une transmission électrique et il faut les brancher à une source externe d’électricité pour recharger leur batterie.
A39: Source : CAA. Types de véhicules électriques, [En ligne]. http://electricvehicles.caa.ca/fr/types-de-vehicules-electriques

Sheet 4. KM ZÉRO ÉMISSION
D7: KILOMÉTRAGE ANNUEL | L7: KILOMÉTRAGE ANNUEL | T7: KILOMÉTRAGE ANNUEL | AD7: KILOMÉTRAGE ANNUEL | AH7: KILOMÉTRAGE ANNUEL
A9: Déplacements dans le cadre du travail | B9: 2002-2003 | D9: 2003-2004 | F9: 2004-2005 | H9: 2005-2006 | J9: 2006-2007 | L9: 2007-2008 | N9: 2008-2009 | P9: 2009-2010 | R9: 2010-2011 | T9: 2011-2012 | V9: 2012-2013 | X9: 2013-2014 | Z9: 2014-2015 | AB9: 2015-2016 | AD9: 2016-2017 | AF9: 2017-2018 | AH9: 2018-2019 | AJ9: 2019-2020 | AL9: 2020-2021 | AN9: 2021-2022 | AP9: 2022-2023 | AR9: 2023-2024 | AT9: 2024-2025
A10: Carnet de suivi
A11: À pied [km]
A12: À bicyclette [km]
A13: Autres mesures [km]
A14: Total [km] | B14: =SUM(B11:B13) -> 0 | D14: =SUM(D11:D13) -> 0 | F14: =SUM(F11:F13) -> 0 | H14: =SUM(H11:H13) -> 0 | J14: =SUM(J11:J13) -> 0 | L14: =SUM(L11:L13) -> 0 | N14: =SUM(N11:N13) -> 0 | P14: =SUM(P11:P13) -> 0 | R14: =SUM(R11:R13) -> 0 | T14: =SUM(T11:T13) -> 0 | V14: =SUM(V11:V13) -> 0 | X14: =SUM(X11:X13) -> 0 | Z14: =SUM(Z11:Z13) -> 0 | AB14: =SUM(AB11:AB13) -> 0 | AD14: =SUM(AD11:AD13) -> 0 | AF14: =SUM(AF11:AF13) -> 0 | AH14: =SUM(AH11:AH13) -> 0 | AJ14: =SUM(AJ11:AJ13) -> 0 | AL14: =SUM(AL11:AL13) -> 0 | AN14: =SUM(AN11:AN13) -> 0 | AP14: =SUM(AP11:AP13) -> 0 | AR14: =SUM(AR11:AR13) -> 0 | AT14: =SUM(AT11:AT13) -> 0
B15: =CONCATENATE("km_zero_",MID(B9,3,2),"_",MID(B9,8,2)) -> km_zero_02_03 | D15: =CONCATENATE("km_zero_",MID(D9,3,2),"_",MID(D9,8,2)) -> km_zero_03_04 | F15: =CONCATENATE("km_zero_",MID(F9,3,2),"_",MID(F9,8,2)) -> km_zero_04_05 | H15: =CONCATENATE("km_zero_",MID(H9,3,2),"_",MID(H9,8,2)) -> km_zero_05_06 | J15: =CONCATENATE("km_zero_",MID(J9,3,2),"_",MID(J9,8,2)) -> km_zero_06_07 | L15: =CONCATENATE("km_zero_",MID(L9,3,2),"_",MID(L9,8,2)) -> km_zero_07_08 | N15: =CONCATENATE("km_zero_",MID(N9,3,2),"_",MID(N9,8,2)) -> km_zero_08_09 | P15: =CONCATENATE("km_zero_",MID(P9,3,2),"_",MID(P9,8,2)) -> km_zero_09_10 | R15: =CONCATENATE("km_zero_",MID(R9,3,2),"_",MID(R9,8,2)) -> km_zero_10_11 | T15: =CONCATENATE("km_zero_",MID(T9,3,2),"_",MID(T9,8,2)) -> km_zero_11_12 | V15: =CONCATENATE("km_zero_",MID(V9,3,2),"_",MID(V9,8,2)) -> km_zero_12_13 | X15: =CONCATENATE("km_zero_",MID(X9,3,2),"_",MID(X9,8,2)) -> km_zero_13_14 | Z15: =CONCATENATE("km_zero_",MID(Z9,3,2),"_",MID(Z9,8,2)) -> km_zero_14_15 | AB15: =CONCATENATE("km_zero_",MID(AB9,3,2),"_",MID(AB9,8,2)) -> km_zero_15_16 | AD15: =CONCATENATE("km_zero_",MID(AD9,3,2),"_",MID(AD9,8,2)) -> km_zero_16_17 | AF15: =CONCATENATE("km_zero_",MID(AF9,3,2),"_",MID(AF9,8,2)) -> km_zero_17_18 | AH15: =CONCATENATE("km_zero_",MID(AH9,3,2),"_",MID(AH9,8,2)) -> km_zero_18_19 | AJ15: =CONCATENATE("km_zero_",MID(AJ9,3,2),"_",MID(AJ9,8,2)) -> km_zero_19_20 | AL15: =CONCATENATE("km_zero_",MID(AL9,3,2),"_",MID(AL9,8,2)) -> km_zero_20_21 | AN15: =CONCATENATE("km_zero_",MID(AN9,3,2),"_",MID(AN9,8,2)) -> km_zero_21_22 | AP15: =CONCATENATE("km_zero_",MID(AP9,3,2),"_",MID(AP9,8,2)) -> km_zero_22_23 | AR15: =CONCATENATE("km_zero_",MID(AR9,3,2),"_",MID(AR9,8,2)) -> km_zero_23_24 | AT15: =CONCATENATE("km_zero_",MID(AT9,3,2),"_",MID(AT9,8,2)) -> km_zero_24_25
A16: Déplacements évités
A17: Téléconférences [km]
A18: Autres mesures [km]
A19: Total [km] | B19: =SUM(B17:B18) -> 0 | D19: =SUM(D17:D18) -> 0 | F19: 0 | H19: 0 | J19: 0 | L19: 0 | N19: 0 | P19: =SUM(P17:P18) -> 0 | R19: =SUM(R17:R18) -> 0 | T19: =SUM(T17:T18) -> 0 | V19: =SUM(V17:V18) -> 0 | X19: =SUM(X17:X18) -> 0 | Z19: =SUM(Z17:Z18) -> 0 | AB19: =SUM(AB17:AB18) -> 0 | AD19: =SUM(AD17:AD18) -> 0 | AF19: =SUM(AF17:AF18) -> 0 | AH19: =SUM(AH17:AH18) -> 0 | AJ19: =SUM(AJ17:AJ18) -> 0 | AL19: =SUM(AL17:AL18) -> 0 | AN19: =SUM(AN17:AN18) -> 0 | AP19: =SUM(AP17:AP18) -> 0 | AR19: =SUM(AR17:AR18) -> 0 | AT19: =SUM(AT17:AT18) -> 0
B20: =CONCATENATE("km_evite_",MID(B9,3,2),"_",MID(B9,8,2)) -> km_evite_02_03 | D20: =CONCATENATE("km_evite_",MID(D9,3,2),"_",MID(D9,8,2)) -> km_evite_03_04 | F20: km_evite_04_05 | H20: km_evite_05_06 | J20: km_evite_06_07 | L20: km_evite_07_08 | N20: km_evite_08_09 | P20: km_evite_09_10 | R20: km_evite_10_11 | T20: km_evite_11_12 | V20: km_evite_12_13 | X20: km_evite_13_14 | Z20: km_evite_14_15 | AB20: km_evite_15_16 | AD20: km_evite_16_17 | AF20: km_evite_17_18 | AH20: km_evite_18_19 | AJ20: km_evite_19_20 | AL20: km_evite_20_21 | AN20: =CONCATENATE("km_evite_",MID(AN9,3,2),"_",MID(AN9,8,2)) -> km_evite_21_22
A21: Attention
A22: Bien qu'importante, cette section reste facultative. Saisir les données seulement si elles sont disponibles et accessibles.

Sheet Transition (hidden)
A1: Transition Transport : Données à recueillir - Pour le volet TRANSPORT
A2: 32 | C2: Transport - VÉHICULES LÉGERS | G2: 38 | H2: 46 | CJ2: Transport - AUTRES | DC2: 147 | DE2: Transport - VÉHICULES LOURDS | DI2: 153 | DJ2: 161 | GN2: CETTE SECTION N'EST PAS UTILISÉE
A3: Concatener (cette colonne permet la géeneration des données sur les rapports personnalisés) | B3: Code du ministére | C3: Année (Rapport BEIE) | D3: Ministère (acronyme) | E3: Ministère ou organisme | F3: Année de référence | G3: Année financière | H3: Distance | K3: Essence | R3: Diesel | Y3: Gaz naturel | AF3: Propane | AM3: Essence Ethanol | AT3: Bio Diesel | BA3: INDICATEURS | BR3: Nombre de véhicules | BZ3: TOTAUX (pas importés) | CD3: Estimation des émissions de gaz à effet de serre | CO3: Déplacements pour lesquels il y a des émissions de GES | CV3: Déplacements ZÉRO émissions de GES | CZ3: Déplacements ÉVITÉS | DD3: Concatener (cette colonne permet la géeneration des données sur les rapports personnalisés) | DE3: Code du ministére | DF3: Année (Rapport BEIE) | DG3: Ministère (acronyme) | DH3: Ministère ou organisme | DI3: Année de référence | DJ3: Année financière | DK3: Distance | DN3: Essence | DU3: Diesel | EB3: Gaz naturel | EI3: Propane | EP3: Essence Ethanol | EW3: Bio Diesel | FD3: INDICATEURS | FU3: Nombre de véhicules | GC3: TOTAUX (pas importés) | GG3: Estimation des émissions de gaz à effet de serre | GR3: Déplacements pour lesquels il y a des émissions de GES | GY3: Déplacements ZÉRO émissions de GES | HC3: Déplacements ÉVITÉS
A5: Identifiant (CodeMO+année) | B5: Code du MO | C5: Année | D5: Acronyme | E5: MO ou réseau | F5: Statut du MO/Réseau | G5: Année financière Choix possibles: Janvier-Décembre Avril-Mars Mai-Avril Juillet-Juin | H5: Distance sur route [km] | I5: Distance hors route [km] | J5: TOTAL Distance [km] | BA5: F | BB5: F | BC5: F | BD5: F | BE5: F | BF5: F | BG5: F | BH5: F | BI5: F | BJ5: F | BK5: F | BL5: F | BM5: F | BN5: F | BO5: F+V | BP5: F+V | BQ5: F | DK5: Distance sur route [km] | DL5: Distance hors route [km] | DM5: TOTAL Distance [km] | FD5: F | FE5: F | FF5: F | FG5: F | FH5: F | FI5: F | FJ5: F | FK5: F | FL5: F | FM5: F | FN5: F | FO5: F | FP5: F | FQ5: F | FR5: F+V | FS5: F+V | FT5: F
H6: Sur route [km] | I6: Hors route [km] | J6: Totale [km] | K6: Essence Litres [L] | L6: Essence [$] | R6: Diesel Litres [L] | S6: Diesel [$] | Y6: Gaz naturel [m³] | Z6: Gaz naturel [$] | AF6: Propane Litres [L] | AG6: Propane [$] | AM6: Essence Ethanol Litres [L] | AN6: Essence Ethanol [$] | AT6: Bio Diesel Litres [L] | AU6: Bio Diesel [$] | BA6: TOTAL Consommation Véh_légers [GJ] | BB6: TOTAL Consommation Véh_légers [L-éq.] | BC6: Consommation aux 100 km [L/100km] | BD6: Variation L/100km pr année précédente | BE6: Variation L/100 km pr 2012-2013 | BF6: TOTAL Dépenses Véh_légers [$] | BG6: Coûts ajustés à l'année courante [$] | BH6: Coûts ajustés comparés à l'année la plus récente | BI6: Coût au kilomètre ($/km) véhicules de l'organisation | BJ6: Coût unitaire du litre éq. [$/L. éq.] | BK6: TOTAL Dioxide de carbone [kg CO2] | BL6: TOTAL Méthane [kg CH4] | BM6: TOTAL Oxyde nitreux [kg N2O] | BN6: TOTAL Émissions Véh_légers [kg CO2 éq.] | BO6: Variation Émissions pr année précédente [%] | BP6: Variation Émissions pr 2009-2010 [%] | BQ6: Émission par km [kgCO2eq/km] | BR6: Traditionnel sur route | BS6: Traditionnel hors route | BT6: Hybride | BU6: Hybride rechargeable | BV6: 100% électrique | BW6: TOTAL Nombre Véh_Légers | BX6: Distance parcourue par véhicule [km/véh.] | BY6: Date | CD6: Essence [ton CO2 éq.] | CE6: Diesel [ton CO2 éq.] | CF6: Gaz naturel [ton CO2 éq.] | CG6: Propane [ton CO2 éq.] | CH6: Essence Ethanol [ton CO2 éq.] | CI6: Bio Diesel [ton CO2 éq.] | CJ6: Véhicule de location courte durée [km] | CK6: Véhicule personnel [km] | CL6: Passager en covoiturage [km] | CM6: Taxi [km] | CN6: Avion longue distance (>= 1600 km) [km] | CO6: Train [km] | CP6: Autobus interurbain [km] | CQ6: Autobus urbain [km] | CR6: Métro [km] | CS6: TOTAL Autres dépl. Avec GES [km] | CT6: TOTAL Autre dépl avec GES [GJ] | CU6: TOTAL GES [kg CO2eq] | CV6: Bicyclette [km] | CW6: À pied [km] | CX6: Autre [km] | CY6: TOTAL GES = 0 [km] | CZ6: Téléconférence [km] | DA6: Autres mesures [km] | DB6: TOTAL déplacements évités [km] | DK6: Sur route [km] | DL6: Hors route [km] | DM6: Totale [km] | DN6: Essence Litres [L] | DO6: Essence [$] | DU6: Diesel Litres [L] | DV6: Diesel [$] | EB6: Gaz naturel [m³] | EC6: Gaz naturel [$] | EI6: Propane Litres [L] | EJ6: Propane [$] | EP6: Essence Ethanol Litres [L] | EQ6: Essence Ethanol [$] | EW6: Bio Diesel Litres [L] | EX6: Bio Diesel [$] | FD6: TOTAL Consommation Véh_lourds [GJ] | FE6: TOTAL Consommation Véh_lourds [L-éq.] | FF6: Consommation aux 100 km [L/100km] | FG6: Variation L/100km pr année précédente | FH6: Variation L/100 km pr 2012-2013 | FI6: TOTAL Dépenses Véh_lourds [$] | FJ6: Coûts ajustés à l'année courante [$] | FK6: Coûts ajustés comparés à l'année la plus récente | FL6: Coût au kilomètre ($/km) véhicules de l'organisation | FM6: Coût unitaire du litre éq. [$/L. éq.] | FN6: TOTAL Dioxide de carbone [kg CO2] | FO6: TOTAL Méthane [kg CH4] | FP6: TOTAL Oxyde nitreux [kg N2O] | FQ6: TOTAL Émissions Véh_légers [kg CO2 éq.] | FR6: Variation Émissions pr année précédente [%] | FS6: Variation Émissions pr 2009-2010 [%] | FT6: Émission par km [kgCO2eq/km] | FU6: Traditionnel sur route | FV6: Traditionnel hors route | FW6: Hybride | FX6: Hybride rechargeable | FY6: 100% électrique | FZ6: TOTAL Nombre Véh_Légers | GA6: Distance parcourue par véhicule [km/véh.] | GB6: Date | GG6: Essence [ton CO2 éq.] | GH6: Diesel [ton CO2 éq.] | GI6: Gaz naturel [ton CO2 éq.] | GJ6: Propane [ton CO2 éq.] | GK6: Essence Ethanol [ton CO2 éq.] | GL6: Bio Diesel [ton CO2 éq.] | GM6: Véhicule de location courte durée [km] | GN6: Véhicule personnel [km] | GO6: Passager en covoiturage [km] | GP6: Taxi [km] | GQ6: Avion longue distance (>= 1600 km) [km] | GR6: Train [km] | GS6: Autobus interurbain [km] | GT6: Autobus urbain [km] | GU6: Métro [km] | GV6: TOTAL Autres dépl. Avec GES [km] | GW6: TOTAL Autre dépl avec GES [GJ] | GX6: TOTAL GES [kg CO2eq] | GY6: Bicyclette [km] | GZ6: À pied [km] | HA6: Autre [km] | HB6: TOTAL GES = 0 [km] | HC6: Téléconférence [km] | HD6: Autres mesures [km] | HE6: TOTAL déplacements évités [km] | IV6: =SI(OU(NBVAL(DK10:GA10)= 0;SOMME(DK10:GA10)= 0);"";"2")
C7: 0 | D7: Initiale ou acronyme : | E7: Ministère ou organisme : | F7: Année de référence : | H7: Sur route (y compris les locations longue durée) [km] | I7: Hors route ( VTT, motoneige…) [km] | J7: Total [km] | K7: Essence [litres] | L7: Essence [$] | R7: Diesel [litres] | S7: Diesel [$] | Y7: Gaz naturel [m³] | Z7: Gaz naturel [$] | AF7: Propane [litres] | AG7: Propane [$] | AM7: Essence éthanol [litres] | AN7: Essence éthanol [$] | AT7: Biodiesel [litres] | AU7: Biodiesel [$] | BR7: Sur route (incluant locations longue durée) | BS7: Hors route (VTT, motoneige, etc.) | BT7: Hybrides [1] | BU7: Hybrides rechargeables [2] | BV7: Électriques à batterie (100% électrique) [3] | BY7: Date : | BZ7: Total [L-éq. essence] | CA7: Total [GJ] | CB7: Total [$] | CC7: Total [t CO2 éq.] | CD7: Essence [t CO2 éq.] | CE7: Diesel [t CO2 éq.] | CF7: Gaz naturel [t CO2 éq.] | CG7: Propane [t CO2 éq.] | CH7: Essence éthanol [t CO2 éq.] | CI7: Biodiesel [t CO2 éq.] | CJ7: Véhicule de location courte durée [km] | CK7: Véhicule personnel [km] | CL7: Passager covoiturage [km] | CM7: Taxi [km] | CN7: Avion [km] | CO7: Train [km] | CP7: Autobus interurbain [km] | CQ7: Autobus urbain [km] | CR7: Métro [km] | CV7: À bicyclette [km] | CW7: À pied [km] | CX7: Autres mesures [km] | CY7: Total [km] | CZ7: Téléconférences [km] | DA7: Autres mesures [km] | DB7: Total [km] | DF7: 0 | DG7: Initiale ou acronyme : | DH7: Ministère ou organisme : | DI7: Année de référence : | DK7: Sur route (y compris les locations longue durée) [km] | DL7: Hors route ( VTT, motoneige…) [km] | DM7: Total [km] | DN7: Essence [litres] | DO7: Essence [$] | DU7: Diesel [litres] | DV7: Diesel [$] | EB7: Gaz naturel [m³] | EC7: Gaz naturel [$] | EI7: Propane [litres] | EJ7: Propane [$] | EP7: Essence éthanol [litres] | EQ7: Essence éthanol [$] | EW7: Biodiesel [litres] | EX7: Biodiesel [$] | FL7: Coût unitaire du litre éq. [$/L. éq.] | FM7: TOTAL Dioxide de carbone [kg CO2] | FT7: Émission par km [kgCO2eq/km] | FU7: Sur route (incluant locations longue durée) | FV7: Hors route (VTT, motoneige, etc.) | FW7: Hybrides [1] | FX7: Hybrides rechargeables [2] | FY7: Électriques à batterie (100% électrique) [3] | FZ7: TOTAL Nombre Véh_Légers | GA7: Distance parcourue par véhicule [km/véh.] | GB7: Date | GC7: Total [L-éq. essence] | GD7: Total [GJ] | GE7: Total [$] | GF7: Total [t CO2 éq.] | GG7: Essence [t CO2 éq.] | GH7: Diesel [t CO2 éq.] | GI7: Gaz naturel [t CO2 éq.] | GJ7: Propane [t CO2 éq.] | GK7: Essence éthanol [t CO2 éq.] | GL7: Biodiesel [t CO2 éq.] | GM7: Véhicule de location courte durée [km] | GN7: Véhicule personnel [km] | GO7: Passager covoiturage [km] | GP7: Taxi [km] | GQ7: Avion [km] | GR7: Train [km] | GS7: Autobus interurbain [km] | GT7: Autobus urbain [km] | GU7: Métro [km] | GY7: À bicyclette [km] | GZ7: À pied [km] | HA7: Autres mesures [km] | HB7: Total [km] | HC7: Téléconférences [km] | HD7: Autres mesures [km] | HE7: Total [km] | HF7: 0 | HG7: 0 | HH7: 0 | HI7: 0 | HJ7: 0 | HK7: 0 | HL7: 0 | HM7: 0 | HN7: 0 | HO7: 0 | HP7: 0 | HQ7: 0 | HR7: 0 | HS7: 0 | HT7: 0 | IU7: LÉGER | IV7: LOURD
F8: Statut du MO: | R8: =IF((P12+Q12)=R12,"",P12+Q12) ->  | S8: =S11*100/9.6 -> 0 | Y8: =IF(Z8="","",Z8/L_ess_to_GJ) ->  | Z8: =IF((S12*L_ess_to_GJ+T12*L_dies_to_GJ+U12*m3_gn_to_GJ+V12*L_prop_to_GJ+W12*L_esseth_to_GJ+X12*L_biodies_to_GJ)<>Z12,S12*L_ess_to_GJ+T12*L_dies_to_GJ+U12*m3_gn_to_GJ+V12*L_prop_to_GJ+W12*L_esseth_to_GJ+X12*L_biodies_to_GJ,"") ->  | AG8: =IF(SUM(AA12:AF12)<>AG12,SUM(AA12:AF12),"") ->  | AM8: =IF(AH12+AI12+AJ12+AL12<>AM12,AH12+AI12+AJ12+AL12,"") ->  | AT8: =IF(SUM(AN12:AS12)=AT12,"",SUM(AN12:AS12)) ->  | BD8: =IF(SUM(AU12:BC12)=BD12,"",SUM(AX12:BC12)) ->  | BJ8: =IF(SUM(BG12:BI12)=BJ12,"",SUM(BG12:BI12)) ->  | BM8: =IF(SUM(BK12:BL12)=BM12,"",SUM(BK12:BL12)) -> 
R9: =IF((P13+Q13)=R13,"",P13+Q13) ->  | Y9: =IF(Z9="","",Z9/L_ess_to_GJ) ->  | Z9: =IF((S13*L_ess_to_GJ+T13*L_dies_to_GJ+U13*m3_gn_to_GJ+V13*L_prop_to_GJ+W13*L_esseth_to_GJ+X13*L_biodies_to_GJ)<>Z13,S13*L_ess_to_GJ+T13*L_dies_to_GJ+U13*m3_gn_to_GJ+V13*L_prop_to_GJ+W13*L_esseth_to_GJ+X13*L_biodies_to_GJ,"") ->  | AG9: =IF(SUM(AA13:AF13)<>AG13,SUM(AA13:AF13),"") ->  | AM9: =IF(AH13+AI13+AJ13+AL13<>AM13,AH13+AI13+AJ13+AL13,"") ->  | AT9: =IF(SUM(AN13:AS13)=AT13,"",SUM(AN13:AS13)) ->  | BD9: =IF(SUM(AU13:BC13)=BD13,"",SUM(AX13:BC13)) ->  | BJ9: =IF(SUM(BG13:BI13)=BJ13,"",SUM(BG13:BI13)) ->  | BM9: =IF(SUM(BK13:BL13)=BM13,"",SUM(BK13:BL13)) -> 
IU10: =IF(OR(COUNTA(H10:BX10)= 0,SUM(H10:BX10)= 0),"","1") ->  | IV10: =IF(OR(COUNTA(DK10:GA10)= 0,SUM(DK10:GA10)= 0),"","2") -> 
IU11: =IF(OR(COUNTA(H11:BX11)= 0,SUM(H11:BX11)= 0),"","1") ->  | IV11: =IF(OR(COUNTA(DK11:GA11)= 0,SUM(DK11:GA11)= 0),"","2") -> 
A30: 2023-2024 | C30: 0 | E30: 2023-2024 | F30: Fondation de la faune du Québec | G30: 0 | H30: 0 | I30: 0 | J30: 0 | K30: 0 | L30: 0 | M30: 0 | N30: 0 | O30: 0 | P30: 1000 | Q30: 1000 | R30: 2000 | S30: 200 | T30: 200 | W30: 0 | X30: 0 | AA30: 1000 | AB30: 1000 | AC30: 1000 | AD30: 1000 | AE30: 0 | AF30: 0 | AG30: 4000 | AH30: 100 | AI30: 100 | AJ30: 100 | AK30: 100 | AL30: 100 | AM30: 500 | AN30: 0.47224 | AO30: 0.557959 | AQ30: 0.557959 | AR30: 0 | AS30: 0.557959 | AU30: 0.557959 | AV30: 1000 | AW30: 0.557959 | AX30: 1000 | AY30: 0.557959 | AZ30: 1000 | BA30: 1000 | BB30: 1000 | BC30: 1000 | BD30: 9000 | BE30: 16.1368335 | BF30: 1.106714667 | BG30: 0 | BH30: 0 | BI30: 0 | BJ30: 0 | BK30: 0 | BL30: 0 | BM30: 0 | CH30: 2
F31: Liaisons | G31: =G34 -> 2002-2003 | I31: =I34 -> 2003-2004 | K31: =K34 -> 2004-2005 | M31: =M34 -> 2005-2006 | O31: =O34 -> 2006-2007 | Q31: =Q34 -> 2007-2008 | S31: =S34 -> 2008-2009 | U31: =U34 -> 2009-2010 | W31: =W34 -> 2010-2011 | Y31: =Y34 -> 2011-2012 | AA31: =AA34 -> 2012-2013 | AC31: =AC34 -> 2013-2014 | AE31: =AE34 -> 2014-2015 | AG31: =AG34 -> 2015-2016 | AI31: =AI34 -> 2016-2017 | AK31: =AK34 -> 2017-2018 | AM31: =AM34 -> 2018-2019 | AO31: =AO34 -> 2019-2020 | AQ31: =AQ34 -> 2020-2021 | AS31: =AS34 -> 2021-2022 | AU31: =AU34 -> 2022-2023 | AW31: =AW34 -> 2023-2024 | AY31: =AY34 -> 2024-2025
A32: Identification et coordonnées | C32: Concatener (cette colonne permet la géeneration des données sur les rapports personnalisés) | G32: =CONCATENATE(G34,"-",G33) -> 2002-2003- | I32: =CONCATENATE(I34,"-",I33) -> 2003-2004- | K32: =CONCATENATE(K34,"-",K33) -> 2004-2005- | M32: =CONCATENATE(M34,"-",M33) -> 2005-2006- | O32: =CONCATENATE(O34,"-",O33) -> 2006-2007- | Q32: =CONCATENATE(Q34,"-",Q33) -> 2007-2008- | S32: =CONCATENATE(S34,"-",S33) -> 2008-2009- | U32: =CONCATENATE(U34,"-",U33) -> 2009-2010- | W32: =CONCATENATE(W34,"-",W33) -> 2010-2011- | Y32: =CONCATENATE(Y34,"-",Y33) -> 2011-2012- | AA32: =CONCATENATE(AA34,"-",AA33) -> 2012-2013- | AC32: =CONCATENATE(AC34,"-",AC33) -> 2013-2014- | AE32: =CONCATENATE(AE34,"-",AE33) -> 2014-2015- | AG32: =CONCATENATE(AG34,"-",AG33) -> 2015-2016- | AI32: =CONCATENATE(AI34,"-",AI33) -> 2016-2017- | AK32: =CONCATENATE(AK34,"-",AK33) -> 2017-2018- | AM32: =CONCATENATE(AM34,"-",AM33) -> 2018-2019- | AO32: =CONCATENATE(AO34,"-",AO33) -> 2019-2020- | AQ32: =CONCATENATE(AQ34,"-",AQ33) -> 2020-2021- | AS32: =CONCATENATE(AS34,"-",AS33) -> 2021-2022- | AU32: =CONCATENATE(AU34,"-",AU33) -> 2022-2023- | AW32: =CONCATENATE(AW34,"-",AW33) -> 2023-2024- | AY32: =CONCATENATE(AY34,"-",AY33) -> 2024-2025-
C33: Code du ministére | G33: =IF('1. IDENTITÉ'!$B$11<>0,'1. IDENTITÉ'!$B$11,IF(ISERROR(VLOOKUP(G36,ListeMO!$A$3:$B$135,2,FALSE)),"",VLOOKUP(G36,ListeMO!$A$3:$B$135,2,FALSE))) ->  | I33: =IF('1. IDENTITÉ'!$B$11<>0,'1. IDENTITÉ'!$B$11,IF(ISERROR(VLOOKUP(I36,ListeMO!$A$3:$B$135,2,FALSE)),"",VLOOKUP(I36,ListeMO!$A$3:$B$135,2,FALSE))) ->  | K33: =IF('1. IDENTITÉ'!$B$11<>0,'1. IDENTITÉ'!$B$11,IF(ISERROR(VLOOKUP(K36,ListeMO!$A$3:$B$135,2,FALSE)),"",VLOOKUP(K36,ListeMO!$A$3:$B$135,2,FALSE))) ->  | M33: =IF('1. IDENTITÉ'!$B$11<>0,'1. IDENTITÉ'!$B$11,IF(ISERROR(VLOOKUP(M36,ListeMO!$A$3:$B$135,2,FALSE)),"",VLOOKUP(M36,ListeMO!$A$3:$B$135,2,FALSE))) ->  | O33: =IF('1. IDENTITÉ'!$B$11<>0,'1. IDENTITÉ'!$B$11,IF(ISERROR(VLOOKUP(O36,ListeMO!$A$3:$B$135,2,FALSE)),"",VLOOKUP(O36,ListeMO!$A$3:$B$135,2,FALSE))) ->  | Q33: =IF('1. IDENTITÉ'!$B$11<>0,'1. IDENTITÉ'!$B$11,IF(ISERROR(VLOOKUP(Q36,ListeMO!$A$3:$B$135,2,FALSE)),"",VLOOKUP(Q36,ListeMO!$A$3:$B$135,2,FALSE))) ->  | S33: =IF('1. IDENTITÉ'!$B$11<>0,'1. IDENTITÉ'!$B$11,IF(ISERROR(VLOOKUP(S36,ListeMO!$A$3:$B$135,2,FALSE)),"",VLOOKUP(S36,ListeMO!$A$3:$B$135,2,FALSE))) ->  | U33: =IF('1. IDENTITÉ'!$B$11<>0,'1. IDENTITÉ'!$B$11,IF(ISERROR(VLOOKUP(U36,ListeMO!$A$3:$B$135,2,FALSE)),"",VLOOKUP(U36,ListeMO!$A$3:$B$135,2,FALSE))) ->  | W33: =IF('1. IDENTITÉ'!$B$11<>0,'1. IDENTITÉ'!$B$11,IF(ISERROR(VLOOKUP(W36,ListeMO!$A$3:$B$135,2,FALSE)),"",VLOOKUP(W36,ListeMO!$A$3:$B$135,2,FALSE))) ->  | Y33: =IF('1. IDENTITÉ'!$B$11<>0,'1. IDENTITÉ'!$B$11,IF(ISERROR(VLOOKUP(Y36,ListeMO!$A$3:$B$135,2,FALSE)),"",VLOOKUP(Y36,ListeMO!$A$3:$B$135,2,FALSE))) ->  | AA33: =IF('1. IDENTITÉ'!$B$11<>0,'1. IDENTITÉ'!$B$11,IF(ISERROR(VLOOKUP(AA36,ListeMO!$A$3:$B$135,2,FALSE)),"",VLOOKUP(AA36,ListeMO!$A$3:$B$135,2,FALSE))) ->  | AC33: =IF('1. IDENTITÉ'!$B$11<>0,'1. IDENTITÉ'!$B$11,IF(ISERROR(VLOOKUP(AC36,ListeMO!$A$3:$B$135,2,FALSE)),"",VLOOKUP(AC36,ListeMO!$A$3:$B$135,2,FALSE))) ->  | AE33: =IF('1. IDENTITÉ'!$B$11<>0,'1. IDENTITÉ'!$B$11,IF(ISERROR(VLOOKUP(AE36,ListeMO!$A$3:$B$135,2,FALSE)),"",VLOOKUP(AE36,ListeMO!$A$3:$B$135,2,FALSE))) ->  | AG33: =IF('1. IDENTITÉ'!$B$11<>0,'1. IDENTITÉ'!$B$11,IF(ISERROR(VLOOKUP(AG36,ListeMO!$A$3:$B$135,2,FALSE)),"",VLOOKUP(AG36,ListeMO!$A$3:$B$135,2,FALSE))) ->  | AI33: =IF('1. IDENTITÉ'!$B$11<>0,'1. IDENTITÉ'!$B$11,IF(ISERROR(VLOOKUP(AI36,ListeMO!$A$3:$B$135,2,FALSE)),"",VLOOKUP(AI36,ListeMO!$A$3:$B$135,2,FALSE))) ->  | AK33: =IF('1. IDENTITÉ'!$B$11<>0,'1. IDENTITÉ'!$B$11,IF(ISERROR(VLOOKUP(AK36,ListeMO!$A$3:$B$135,2,FALSE)),"",VLOOKUP(AK36,ListeMO!$A$3:$B$135,2,FALSE))) ->  | AM33: =IF('1. IDENTITÉ'!$B$11<>0,'1. IDENTITÉ'!$B$11,IF(ISERROR(VLOOKUP(AM36,ListeMO!$A$3:$B$135,2,FALSE)),"",VLOOKUP(AM36,ListeMO!$A$3:$B$135,2,FALSE))) ->  | AO33: =IF('1. IDENTITÉ'!$B$11<>0,'1. IDENTITÉ'!$B$11,IF(ISERROR(VLOOKUP(AO36,ListeMO!$A$3:$B$135,2,FALSE)),"",VLOOKUP(AO36,ListeMO!$A$3:$B$135,2,FALSE))) ->  | AQ33: =IF('1. IDENTITÉ'!$B$11<>0,'1. IDENTITÉ'!$B$11,IF(ISERROR(VLOOKUP(AQ36,ListeMO!$A$3:$B$135,2,FALSE)),"",VLOOKUP(AQ36,ListeMO!$A$3:$B$135,2,FALSE))) ->  | AS33: =IF('1. IDENTITÉ'!$B$11<>0,'1. IDENTITÉ'!$B$11,IF(ISERROR(VLOOKUP(AS36,ListeMO!$A$3:$B$135,2,FALSE)),"",VLOOKUP(AS36,ListeMO!$A$3:$B$135,2,FALSE))) ->  | AU33: =IF('1. IDENTITÉ'!$B$11<>0,'1. IDENTITÉ'!$B$11,IF(ISERROR(VLOOKUP(AU36,ListeMO!$A$3:$B$135,2,FALSE)),"",VLOOKUP(AU36,ListeMO!$A$3:$B$135,2,FALSE))) ->  | AW33: =IF('1. IDENTITÉ'!$B$11<>0,'1. IDENTITÉ'!$B$11,IF(ISERROR(VLOOKUP(AW36,ListeMO!$A$3:$B$135,2,FALSE)),"",VLOOKUP(AW36,ListeMO!$A$3:$B$135,2,FALSE))) ->  | AY33: =IF('1. IDENTITÉ'!$B$11<>0,'1. IDENTITÉ'!$B$11,IF(ISERROR(VLOOKUP(AY36,ListeMO!$A$3:$B$135,2,FALSE)),"",VLOOKUP(AY36,ListeMO!$A$3:$B$135,2,FALSE))) -> 
C34: Année (Rapport BEIE) | F34: ='2. CARBURANT (Véhicules légers)'!A9 -> 0 | G34: ='2. CARBURANT (Véhicules légers)'!B9 -> 2002-2003 | I34: ='2. CARBURANT (Véhicules légers)'!D9 -> 2003-2004 | K34: ='2. CARBURANT (Véhicules légers)'!F9 -> 2004-2005 | M34: ='2. CARBURANT (Véhicules légers)'!H9 -> 2005-2006 | O34: ='2. CARBURANT (Véhicules légers)'!J9 -> 2006-2007 | Q34: ='2. CARBURANT (Véhicules légers)'!L9 -> 2007-2008 | S34: ='2. CARBURANT (Véhicules légers)'!N9 -> 2008-2009 | U34: ='2. CARBURANT (Véhicules légers)'!P9 -> 2009-2010 | W34: ='2. CARBURANT (Véhicules légers)'!R9 -> 2010-2011 | Y34: ='2. CARBURANT (Véhicules légers)'!T9 -> 2011-2012 | AA34: ='2. CARBURANT (Véhicules légers)'!V9 -> 2012-2013 | AC34: ='2. CARBURANT (Véhicules légers)'!X9 -> 2013-2014 | AE34: ='2. CARBURANT (Véhicules légers)'!Z9 -> 2014-2015 | AG34: ='2. CARBURANT (Véhicules légers)'!AB9 -> 2015-2016 | AI34: ='2. CARBURANT (Véhicules légers)'!AD9 -> 2016-2017 | AK34: ='2. CARBURANT (Véhicules légers)'!AF9 -> 2017-2018 | AM34: ='2. CARBURANT (Véhicules légers)'!AH9 -> 2018-2019 | AO34: ='2. CARBURANT (Véhicules légers)'!AJ9 -> 2019-2020 | AQ34: ='2. CARBURANT (Véhicules légers)'!AL9 -> 2020-2021 | AS34: ='2. CARBURANT (Véhicules légers)'!AN9 -> 2021-2022 | AU34: ='2. CARBURANT (Véhicules légers)'!AP9 -> 2022-2023 | AW34: ='2. CARBURANT (Véhicules légers)'!AR9 -> 2023-2024 | AY34: ='2. CARBURANT (Véhicules légers)'!AT9 -> 2024-2025
C35: Ministère (acronyme) | F35: ='1. IDENTITÉ'!A12 -> Initiale ou acronyme : | G35: ='1. IDENTITÉ'!$B$12 -> 0 | I35: ='1. IDENTITÉ'!$B$12 -> 0 | K35: ='1. IDENTITÉ'!$B$12 -> 0 | M35: ='1. IDENTITÉ'!$B$12 -> 0 | O35: ='1. IDENTITÉ'!$B$12 -> 0 | Q35: ='1. IDENTITÉ'!$B$12 -> 0 | S35: ='1. IDENTITÉ'!$B$12 -> 0 | U35: ='1. IDENTITÉ'!$B$12 -> 0 | W35: ='1. IDENTITÉ'!$B$12 -> 0 | Y35: ='1. IDENTITÉ'!$B$12 -> 0 | AA35: ='1. IDENTITÉ'!$B$12 -> 0 | AC35: ='1. IDENTITÉ'!$B$12 -> 0 | AE35: ='1. IDENTITÉ'!$B$12 -> 0 | AG35: ='1. IDENTITÉ'!$B$12 -> 0 | AI35: ='1. IDENTITÉ'!$B$12 -> 0 | AK35: ='1. IDENTITÉ'!$B$12 -> 0 | AM35: ='1. IDENTITÉ'!$B$12 -> 0 | AO35: ='1. IDENTITÉ'!$B$12 -> 0 | AQ35: ='1. IDENTITÉ'!$B$12 -> 0 | AS35: ='1. IDENTITÉ'!$B$12 -> 0 | AU35: ='1. IDENTITÉ'!$B$12 -> 0 | AW35: ='1. IDENTITÉ'!$B$12 -> 0 | AY35: ='1. IDENTITÉ'!$B$12 -> 0
C36: Ministère ou organisme | F36: ='1. IDENTITÉ'!A10 -> Ministère ou organisme : | G36: ='1. IDENTITÉ'!$B$10 | I36: ='1. IDENTITÉ'!$B$10 -> NOM DE L'ENTITÉ | K36: ='1. IDENTITÉ'!$B$10 -> NOM DE L'ENTITÉ | M36: ='1. IDENTITÉ'!$B$10 -> NOM DE L'ENTITÉ | O36: ='1. IDENTITÉ'!$B$10 -> NOM DE L'ENTITÉ | Q36: ='1. IDENTITÉ'!$B$10 -> NOM DE L'ENTITÉ | S36: ='1. IDENTITÉ'!$B$10 -> NOM DE L'ENTITÉ | U36: ='1. IDENTITÉ'!$B$10 -> NOM DE L'ENTITÉ | W36: ='1. IDENTITÉ'!$B$10 -> NOM DE L'ENTITÉ | Y36: ='1. IDENTITÉ'!$B$10 -> NOM DE L'ENTITÉ | AA36: ='1. IDENTITÉ'!$B$10 -> NOM DE L'ENTITÉ | AC36: ='1. IDENTITÉ'!$B$10 -> NOM DE L'ENTITÉ | AE36: ='1. IDENTITÉ'!$B$10 -> NOM DE L'ENTITÉ | AG36: ='1. IDENTITÉ'!$B$10 -> NOM DE L'ENTITÉ | AI36: ='1. IDENTITÉ'!$B$10 -> NOM DE L'ENTITÉ | AK36: ='1. IDENTITÉ'!$B$10 -> NOM DE L'ENTITÉ | AM36: ='1. IDENTITÉ'!$B$10 -> NOM DE L'ENTITÉ | AO36: ='1. IDENTITÉ'!$B$10 -> NOM DE L'ENTITÉ | AQ36: ='1. IDENTITÉ'!$B$10 -> NOM DE L'ENTITÉ | AS36: ='1. IDENTITÉ'!$B$10 -> NOM DE L'ENTITÉ | AU36: ='1. IDENTITÉ'!$B$10 -> NOM DE L'ENTITÉ | AW36: ='1. IDENTITÉ'!$B$10 -> NOM DE L'ENTITÉ | AY36: ='1. IDENTITÉ'!$B$10 -> NOM DE L'ENTITÉ
C37: Année de référence | F37: ='1. IDENTITÉ'!A21 -> Année de référence : | G37: ='1. IDENTITÉ'!$B$21 -> 0 | I37: ='1. IDENTITÉ'!$B$21 -> 0 | K37: ='1. IDENTITÉ'!$B$21 -> 0 | M37: ='1. IDENTITÉ'!$B$21 -> 0 | O37: ='1. IDENTITÉ'!$B$21 -> 0 | Q37: ='1. IDENTITÉ'!$B$21 -> 0 | S37: ='1. IDENTITÉ'!$B$21 -> 0 | U37: ='1. IDENTITÉ'!$B$21 -> 0 | W37: ='1. IDENTITÉ'!$B$21 -> 0 | Y37: ='1. IDENTITÉ'!$B$21 -> 0 | AA37: ='1. IDENTITÉ'!$B$21 -> 0 | AC37: ='1. IDENTITÉ'!$B$21 -> 0 | AE37: ='1. IDENTITÉ'!$B$21 -> 0 | AG37: ='1. IDENTITÉ'!$B$21 -> 0 | AI37: ='1. IDENTITÉ'!$B$21 -> 0 | AK37: ='1. IDENTITÉ'!$B$21 -> 0 | AM37: ='1. IDENTITÉ'!$B$21 -> 0 | AO37: ='1. IDENTITÉ'!$B$21 -> 0 | AQ37: ='1. IDENTITÉ'!$B$21 -> 0 | AS37: ='1. IDENTITÉ'!$B$21 -> 0 | AU37: ='1. IDENTITÉ'!$B$21 -> 0 | AW37: ='1. IDENTITÉ'!$B$21 -> 0 | AY37: ='1. IDENTITÉ'!$B$21 -> 0
C38: Année financière | F38: ='1. IDENTITÉ'!A19 -> Année financière : | G38: ='1. IDENTITÉ'!$B$19 -> 1er avril au 31 mars | I38: ='1. IDENTITÉ'!$B$19 -> 1er avril au 31 mars | K38: ='1. IDENTITÉ'!$B$19 -> 1er avril au 31 mars | M38: ='1. IDENTITÉ'!$B$19 -> 1er avril au 31 mars | O38: ='1. IDENTITÉ'!$B$19 -> 1er avril au 31 mars | Q38: ='1. IDENTITÉ'!$B$19 -> 1er avril au 31 mars | S38: ='1. IDENTITÉ'!$B$19 -> 1er avril au 31 mars | U38: ='1. IDENTITÉ'!$B$19 -> 1er avril au 31 mars | W38: ='1. IDENTITÉ'!$B$19 -> 1er avril au 31 mars | Y38: ='1. IDENTITÉ'!$B$19 -> 1er avril au 31 mars | AA38: ='1. IDENTITÉ'!$B$19 -> 1er avril au 31 mars | AC38: ='1. IDENTITÉ'!$B$19 -> 1er avril au 31 mars | AE38: ='1. IDENTITÉ'!$B$19 -> 1er avril au 31 mars | AG38: ='1. IDENTITÉ'!$B$19 -> 1er avril au 31 mars | AI38: ='1. IDENTITÉ'!$B$19 -> 1er avril au 31 mars | AK38: ='1. IDENTITÉ'!$B$19 -> 1er avril au 31 mars | AM38: ='1. IDENTITÉ'!$B$19 -> 1er avril au 31 mars | AO38: ='1. IDENTITÉ'!$B$19 -> 1er avril au 31 mars | AQ38: ='1. IDENTITÉ'!$B$19 -> 1er avril au 31 mars | AS38: ='1. IDENTITÉ'!$B$19 -> 1er avril au 31 mars | AU38: ='1. IDENTITÉ'!$B$19 -> 1er avril au 31 mars | AW38: ='1. IDENTITÉ'!$B$19 -> 1er avril au 31 mars | AY38: ='1. IDENTITÉ'!$B$19 -> 1er avril au 31 mars
C39: Critère d'inclusion et d'exclusion
C40: Nom de la personne responsable | F40: ='1. IDENTITÉ'!A13 -> Nom de la personne responsable : | G40: ='1. IDENTITÉ'!$B$13 -> 0 | I40: ='1. IDENTITÉ'!$B$13 -> 0 | K40: ='1. IDENTITÉ'!$B$13 -> 0 | M40: ='1. IDENTITÉ'!$B$13 -> 0 | O40: ='1. IDENTITÉ'!$B$13 -> 0 | Q40: ='1. IDENTITÉ'!$B$13 -> 0 | S40: ='1. IDENTITÉ'!$B$13 -> 0 | U40: ='1. IDENTITÉ'!$B$13 -> 0 | W40: ='1. IDENTITÉ'!$B$13 -> 0 | Y40: ='1. IDENTITÉ'!$B$13 -> 0 | AA40: ='1. IDENTITÉ'!$B$13 -> 0 | AC40: ='1. IDENTITÉ'!$B$13 -> 0 | AE40: ='1. IDENTITÉ'!$B$13 -> 0 | AG40: ='1. IDENTITÉ'!$B$13 -> 0 | AI40: ='1. IDENTITÉ'!$B$13 -> 0 | AK40: ='1. IDENTITÉ'!$B$13 -> 0 | AM40: ='1. IDENTITÉ'!$B$13 -> 0 | AO40: ='1. IDENTITÉ'!$B$13 -> 0 | AQ40: ='1. IDENTITÉ'!$B$13 -> 0 | AS40: ='1. IDENTITÉ'!$B$13 -> 0 | AU40: ='1. IDENTITÉ'!$B$13 -> 0 | AW40: ='1. IDENTITÉ'!$B$13 -> 0 | AY40: ='1. IDENTITÉ'!$B$13 -> 0
C41: Titre | F41: ='1. IDENTITÉ'!A14 -> Titre : | G41: ='1. IDENTITÉ'!$B$14 -> 0 | I41: ='1. IDENTITÉ'!$B$14 -> 0 | K41: ='1. IDENTITÉ'!$B$14 -> 0 | M41: ='1. IDENTITÉ'!$B$14 -> 0 | O41: ='1. IDENTITÉ'!$B$14 -> 0 | Q41: ='1. IDENTITÉ'!$B$14 -> 0 | S41: ='1. IDENTITÉ'!$B$14 -> 0 | U41: ='1. IDENTITÉ'!$B$14 -> 0 | W41: ='1. IDENTITÉ'!$B$14 -> 0 | Y41: ='1. IDENTITÉ'!$B$14 -> 0 | AA41: ='1. IDENTITÉ'!$B$14 -> 0 | AC41: ='1. IDENTITÉ'!$B$14 -> 0 | AE41: ='1. IDENTITÉ'!$B$14 -> 0 | AG41: ='1. IDENTITÉ'!$B$14 -> 0 | AI41: ='1. IDENTITÉ'!$B$14 -> 0 | AK41: ='1. IDENTITÉ'!$B$14 -> 0 | AM41: ='1. IDENTITÉ'!$B$14 -> 0 | AO41: ='1. IDENTITÉ'!$B$14 -> 0 | AQ41: ='1. IDENTITÉ'!$B$14 -> 0 | AS41: ='1. IDENTITÉ'!$B$14 -> 0 | AU41: ='1. IDENTITÉ'!$B$14 -> 0 | AW41: ='1. IDENTITÉ'!$B$14 -> 0 | AY41: ='1. IDENTITÉ'!$B$14 -> 0
C42: Adresse | F42: ='1. IDENTITÉ'!A15 -> Adresse : | G42: ='1. IDENTITÉ'!$B$15 -> 0 | I42: ='1. IDENTITÉ'!$B$15 -> 0 | K42: ='1. IDENTITÉ'!$B$15 -> 0 | M42: ='1. IDENTITÉ'!$B$15 -> 0 | O42: ='1. IDENTITÉ'!$B$15 -> 0 | Q42: ='1. IDENTITÉ'!$B$15 -> 0 | S42: ='1. IDENTITÉ'!$B$15 -> 0 | U42: ='1. IDENTITÉ'!$B$15 -> 0 | W42: ='1. IDENTITÉ'!$B$15 -> 0 | Y42: ='1. IDENTITÉ'!$B$15 -> 0 | AA42: ='1. IDENTITÉ'!$B$15 -> 0 | AC42: ='1. IDENTITÉ'!$B$15 -> 0 | AE42: ='1. IDENTITÉ'!$B$15 -> 0 | AG42: ='1. IDENTITÉ'!$B$15 -> 0 | AI42: ='1. IDENTITÉ'!$B$15 -> 0 | AK42: ='1. IDENTITÉ'!$B$15 -> 0 | AM42: ='1. IDENTITÉ'!$B$15 -> 0 | AO42: ='1. IDENTITÉ'!$B$15 -> 0 | AQ42: ='1. IDENTITÉ'!$B$15 -> 0 | AS42: ='1. IDENTITÉ'!$B$15 -> 0 | AU42: ='1. IDENTITÉ'!$B$15 -> 0 | AW42: ='1. IDENTITÉ'!$B$15 -> 0 | AY42: ='1. IDENTITÉ'!$B$15 -> 0
C43: Ville | F43: ='1. IDENTITÉ'!A16 -> Ville : | G43: ='1. IDENTITÉ'!$B$16 -> 0 | I43: ='1. IDENTITÉ'!$B$16 -> 0 | K43: ='1. IDENTITÉ'!$B$16 -> 0 | M43: ='1. IDENTITÉ'!$B$16 -> 0 | O43: ='1. IDENTITÉ'!$B$16 -> 0 | Q43: ='1. IDENTITÉ'!$B$16 -> 0 | S43: ='1. IDENTITÉ'!$B$16 -> 0 | U43: ='1. IDENTITÉ'!$B$16 -> 0 | W43: ='1. IDENTITÉ'!$B$16 -> 0 | Y43: ='1. IDENTITÉ'!$B$16 -> 0 | AA43: ='1. IDENTITÉ'!$B$16 -> 0 | AC43: ='1. IDENTITÉ'!$B$16 -> 0 | AE43: ='1. IDENTITÉ'!$B$16 -> 0 | AG43: ='1. IDENTITÉ'!$B$16 -> 0 | AI43: ='1. IDENTITÉ'!$B$16 -> 0 | AK43: ='1. IDENTITÉ'!$B$16 -> 0 | AM43: ='1. IDENTITÉ'!$B$16 -> 0 | AO43: ='1. IDENTITÉ'!$B$16 -> 0 | AQ43: ='1. IDENTITÉ'!$B$16 -> 0 | AS43: ='1. IDENTITÉ'!$B$16 -> 0 | AU43: ='1. IDENTITÉ'!$B$16 -> 0 | AW43: ='1. IDENTITÉ'!$B$16 -> 0 | AY43: ='1. IDENTITÉ'!$B$16 -> 0
C44: Téléphone | F44: ='1. IDENTITÉ'!A17 -> Téléphone : | G44: ='1. IDENTITÉ'!$B$17 -> 0 | I44: ='1. IDENTITÉ'!$B$17 -> 0 | K44: ='1. IDENTITÉ'!$B$17 -> 0 | M44: ='1. IDENTITÉ'!$B$17 -> 0 | O44: ='1. IDENTITÉ'!$B$17 -> 0 | Q44: ='1. IDENTITÉ'!$B$17 -> 0 | S44: ='1. IDENTITÉ'!$B$17 -> 0 | U44: ='1. IDENTITÉ'!$B$17 -> 0 | W44: ='1. IDENTITÉ'!$B$17 -> 0 | Y44: ='1. IDENTITÉ'!$B$17 -> 0 | AA44: ='1. IDENTITÉ'!$B$17 -> 0 | AC44: ='1. IDENTITÉ'!$B$17 -> 0 | AE44: ='1. IDENTITÉ'!$B$17 -> 0 | AG44: ='1. IDENTITÉ'!$B$17 -> 0 | AI44: ='1. IDENTITÉ'!$B$17 -> 0 | AK44: ='1. IDENTITÉ'!$B$17 -> 0 | AM44: ='1. IDENTITÉ'!$B$17 -> 0 | AO44: ='1. IDENTITÉ'!$B$17 -> 0 | AQ44: ='1. IDENTITÉ'!$B$17 -> 0 | AS44: ='1. IDENTITÉ'!$B$17 -> 0 | AU44: ='1. IDENTITÉ'!$B$17 -> 0 | AW44: ='1. IDENTITÉ'!$B$17 -> 0 | AY44: ='1. IDENTITÉ'!$B$17 -> 0
C45: Courriel | F45: ='1. IDENTITÉ'!A18 -> Courriel : | G45: ='1. IDENTITÉ'!$B$18 -> 0 | I45: ='1. IDENTITÉ'!$B$18 -> 0 | K45: ='1. IDENTITÉ'!$B$18 -> 0 | M45: ='1. IDENTITÉ'!$B$18 -> 0 | O45: ='1. IDENTITÉ'!$B$18 -> 0 | Q45: ='1. IDENTITÉ'!$B$18 -> 0 | S45: ='1. IDENTITÉ'!$B$18 -> 0 | U45: ='1. IDENTITÉ'!$B$18 -> 0 | W45: ='1. IDENTITÉ'!$B$18 -> 0 | Y45: ='1. IDENTITÉ'!$B$18 -> 0 | AA45: ='1. IDENTITÉ'!$B$18 -> 0 | AC45: ='1. IDENTITÉ'!$B$18 -> 0 | AE45: ='1. IDENTITÉ'!$B$18 -> 0 | AG45: ='1. IDENTITÉ'!$B$18 -> 0 | AI45: ='1. IDENTITÉ'!$B$18 -> 0 | AK45: ='1. IDENTITÉ'!$B$18 -> 0 | AM45: ='1. IDENTITÉ'!$B$18 -> 0 | AO45: ='1. IDENTITÉ'!$B$18 -> 0 | AQ45: ='1. IDENTITÉ'!$B$18 -> 0 | AS45: ='1. IDENTITÉ'!$B$18 -> 0 | AU45: ='1. IDENTITÉ'!$B$18 -> 0 | AW45: ='1. IDENTITÉ'!$B$18 -> 0 | AY45: ='1. IDENTITÉ'!$B$18 -> 0
A46: Déplacements standards avec le véhicule de l'institution (véhicules en propriété ou en location à long durée) Véhicules légers | C46: Distance | E46: Sur route [km] | F46: ='3. KM POLLUANTS'!A11 -> Sur route (y compris les locations longue durée) [km] | G46: ='3. KM POLLUANTS'!B11 -> 0 | I46: ='3. KM POLLUANTS'!D11 -> 0 | K46: ='3. KM POLLUANTS'!F11 -> 0 | M46: ='3. KM POLLUANTS'!H11 -> 0 | O46: ='3. KM POLLUANTS'!J11 -> 0 | Q46: ='3. KM POLLUANTS'!L11 -> 0 | S46: ='3. KM POLLUANTS'!N11 -> 0 | U46: ='3. KM POLLUANTS'!P11 -> 0 | W46: ='3. KM POLLUANTS'!R11 -> 0 | Y46: ='3. KM POLLUANTS'!T11 -> 0 | AA46: ='3. KM POLLUANTS'!V11 -> 0 | AC46: ='3. KM POLLUANTS'!X11 -> 0 | AE46: ='3. KM POLLUANTS'!Z11 -> 0 | AG46: ='3. KM POLLUANTS'!AB11 -> 0 | AI46: ='3. KM POLLUANTS'!AD11 -> 0 | AK46: ='3. KM POLLUANTS'!AF11 -> 0 | AM46: ='3. KM POLLUANTS'!AH11 -> 0 | AO46: ='3. KM POLLUANTS'!AJ11 -> 0 | AQ46: ='3. KM POLLUANTS'!AL11 -> 0 | AS46: ='3. KM POLLUANTS'!AN11 -> 0 | AU46: ='3. KM POLLUANTS'!AP11 -> 0 | AW46: ='3. KM POLLUANTS'!AR11 -> 0 | AY46: ='3. KM POLLUANTS'!AT11 -> 0
E47: Hors route [km] | F47: ='3. KM POLLUANTS'!A12 -> Hors route ( VTT, motoneige…) [km] | G47: ='3. KM POLLUANTS'!B12 -> 0 | I47: ='3. KM POLLUANTS'!D12 -> 0 | K47: ='3. KM POLLUANTS'!F12 -> 0 | M47: ='3. KM POLLUANTS'!H12 -> 0 | O47: ='3. KM POLLUANTS'!J12 -> 0 | Q47: ='3. KM POLLUANTS'!L12 -> 0 | S47: ='3. KM POLLUANTS'!N12 -> 0 | U47: ='3. KM POLLUANTS'!P12 -> 0 | W47: ='3. KM POLLUANTS'!R12 -> 0 | Y47: ='3. KM POLLUANTS'!T12 -> 0 | AA47: ='3. KM POLLUANTS'!V12 -> 0 | AC47: ='3. KM POLLUANTS'!X12 -> 0 | AE47: ='3. KM POLLUANTS'!Z12 -> 0 | AG47: ='3. KM POLLUANTS'!AB12 -> 0 | AI47: ='3. KM POLLUANTS'!AD12 -> 0 | AK47: ='3. KM POLLUANTS'!AF12 -> 0 | AM47: ='3. KM POLLUANTS'!AH12 -> 0 | AO47: ='3. KM POLLUANTS'!AJ12 -> 0 | AQ47: ='3. KM POLLUANTS'!AL12 -> 0 | AS47: ='3. KM POLLUANTS'!AN12 -> 0 | AU47: ='3. KM POLLUANTS'!AP12 -> 0 | AW47: ='3. KM POLLUANTS'!AR12 -> 0 | AY47: ='3. KM POLLUANTS'!AT12 -> 0
E48: Totale [km] | F48: ='3. KM POLLUANTS'!A13 -> Total [km] | G48: ='3. KM POLLUANTS'!B13 -> 0 | I48: ='3. KM POLLUANTS'!D13 -> 0 | K48: ='3. KM POLLUANTS'!F13 -> 0 | M48: ='3. KM POLLUANTS'!H13 -> 0 | O48: ='3. KM POLLUANTS'!J13 -> 0 | Q48: ='3. KM POLLUANTS'!L13 -> 0 | S48: ='3. KM POLLUANTS'!N13 -> 0 | U48: ='3. KM POLLUANTS'!P13 -> 0 | W48: ='3. KM POLLUANTS'!R13 -> 0 | Y48: ='3. KM POLLUANTS'!T13 -> 0 | AA48: ='3. KM POLLUANTS'!V13 -> 0 | AC48: ='3. KM POLLUANTS'!X13 -> 0 | AE48: ='3. KM POLLUANTS'!Z13 -> 0 | AG48: ='3. KM POLLUANTS'!AB13 -> 0 | AI48: ='3. KM POLLUANTS'!AD13 -> 0 | AK48: ='3. KM POLLUANTS'!AF13 -> 0 | AM48: ='3. KM POLLUANTS'!AH13 -> 0 | AO48: ='3. KM POLLUANTS'!AJ13 -> 0 | AQ48: ='3. KM POLLUANTS'!AL13 -> 0 | AS48: ='3. KM POLLUANTS'!AN13 -> 0 | AU48: ='3. KM POLLUANTS'!AP13 -> 0 | AW48: ='3. KM POLLUANTS'!AR13 -> 0 | AY48: ='3. KM POLLUANTS'!AT13 -> 0
C49: Essence | E49: Essence Litres [L] | F49: ='2. CARBURANT (Véhicules légers)'!A25 -> Essence [litres] | G49: ='2. CARBURANT (Véhicules légers)'!B25 -> 0 | I49: ='2. CARBURANT (Véhicules légers)'!D25 -> 0 | K49: ='2. CARBURANT (Véhicules légers)'!F25 -> 0 | M49: ='2. CARBURANT (Véhicules légers)'!H25 -> 0 | O49: ='2. CARBURANT (Véhicules légers)'!J25 -> 0 | Q49: ='2. CARBURANT (Véhicules légers)'!L25 -> 0 | S49: ='2. CARBURANT (Véhicules légers)'!N25 -> 0 | U49: ='2. CARBURANT (Véhicules légers)'!P25 -> 0 | W49: ='2. CARBURANT (Véhicules légers)'!R25 -> 0 | Y49: ='2. CARBURANT (Véhicules légers)'!T25 -> 0 | AA49: ='2. CARBURANT (Véhicules légers)'!V25 -> 0 | AC49: ='2. CARBURANT (Véhicules légers)'!X25 -> 0 | AE49: ='2. CARBURANT (Véhicules légers)'!Z25 -> 0 | AG49: ='2. CARBURANT (Véhicules légers)'!AB25 -> 0 | AI49: ='2. CARBURANT (Véhicules légers)'!AD25 -> 0 | AK49: ='2. CARBURANT (Véhicules légers)'!AF25 -> 0 | AM49: ='2. CARBURANT (Véhicules légers)'!AH25 -> 0 | AO49: ='2. CARBURANT (Véhicules légers)'!AJ25 -> 0 | AQ49: ='2. CARBURANT (Véhicules légers)'!AL25 -> 0 | AS49: ='2. CARBURANT (Véhicules légers)'!AN25 -> 0 | AU49: ='2. CARBURANT (Véhicules légers)'!AP25 -> 0 | AW49: ='2. CARBURANT (Véhicules légers)'!AR25 -> 0 | AY49: ='2. CARBURANT (Véhicules légers)'!AT25 -> 0
E50: Essence [$] | F50: ='2. CARBURANT (Véhicules légers)'!A11 -> Essence [$] | G50: ='2. CARBURANT (Véhicules légers)'!B11 -> 0 | I50: ='2. CARBURANT (Véhicules légers)'!D11 -> 0 | K50: ='2. CARBURANT (Véhicules légers)'!F11 -> 0 | M50: ='2. CARBURANT (Véhicules légers)'!H11 -> 0 | O50: ='2. CARBURANT (Véhicules légers)'!J11 -> 0 | Q50: ='2. CARBURANT (Véhicules légers)'!L11 -> 0 | S50: ='2. CARBURANT (Véhicules légers)'!N11 -> 0 | U50: ='2. CARBURANT (Véhicules légers)'!P11 -> 0 | W50: ='2. CARBURANT (Véhicules légers)'!R11 -> 0 | Y50: ='2. CARBURANT (Véhicules légers)'!T11 -> 0 | AA50: ='2. CARBURANT (Véhicules légers)'!V11 -> 0 | AC50: ='2. CARBURANT (Véhicules légers)'!X11 -> 0 | AE50: ='2. CARBURANT (Véhicules légers)'!Z11 -> 0 | AG50: ='2. CARBURANT (Véhicules légers)'!AB11 -> 0 | AI50: ='2. CARBURANT (Véhicules légers)'!AD11 -> 0 | AK50: ='2. CARBURANT (Véhicules légers)'!AF11 -> 0 | AM50: ='2. CARBURANT (Véhicules légers)'!AH11 -> 0 | AO50: ='2. CARBURANT (Véhicules légers)'!AJ11 -> 0 | AQ50: ='2. CARBURANT (Véhicules légers)'!AL11 -> 0 | AS50: ='2. CARBURANT (Véhicules légers)'!AN11 -> 0 | AU50: ='2. CARBURANT (Véhicules légers)'!AP11 -> 0 | AW50: ='2. CARBURANT (Véhicules légers)'!AR11 -> 0 | AY50: ='2. CARBURANT (Véhicules légers)'!AT11 -> 0
C56: Diesel | E56: Diesel Litres [L] | F56: ='2. CARBURANT (Véhicules légers)'!A26 -> Diesel [litres] | G56: ='2. CARBURANT (Véhicules légers)'!B26 -> 0 | I56: ='2. CARBURANT (Véhicules légers)'!D26 -> 0 | K56: ='2. CARBURANT (Véhicules légers)'!F26 -> 0 | M56: ='2. CARBURANT (Véhicules légers)'!H26 -> 0 | O56: ='2. CARBURANT (Véhicules légers)'!J26 -> 0 | Q56: ='2. CARBURANT (Véhicules légers)'!L26 -> 0 | S56: ='2. CARBURANT (Véhicules légers)'!N26 -> 0 | U56: ='2. CARBURANT (Véhicules légers)'!P26 -> 0 | W56: ='2. CARBURANT (Véhicules légers)'!R26 -> 0 | Y56: ='2. CARBURANT (Véhicules légers)'!T26 -> 0 | AA56: ='2. CARBURANT (Véhicules légers)'!V26 -> 0 | AC56: ='2. CARBURANT (Véhicules légers)'!X26 -> 0 | AE56: ='2. CARBURANT (Véhicules légers)'!Z26 -> 0 | AG56: ='2. CARBURANT (Véhicules légers)'!AB26 -> 0 | AI56: ='2. CARBURANT (Véhicules légers)'!AD26 -> 0 | AK56: ='2. CARBURANT (Véhicules légers)'!AF26 -> 0 | AM56: ='2. CARBURANT (Véhicules légers)'!AH26 -> 0 | AO56: ='2. CARBURANT (Véhicules légers)'!AJ26 -> 0 | AQ56: ='2. CARBURANT (Véhicules légers)'!AL26 -> 0 | AS56: ='2. CARBURANT (Véhicules légers)'!AN26 -> 0 | AU56: ='2. CARBURANT (Véhicules légers)'!AP26 -> 0 | AW56: ='2. CARBURANT (Véhicules légers)'!AR26 -> 0 | AY56: ='2. CARBURANT (Véhicules légers)'!AT26 -> 0
E57: Diesel [$] | F57: ='2. CARBURANT (Véhicules légers)'!A12 -> Diesel [$] | G57: ='2. CARBURANT (Véhicules légers)'!B12 -> 0 | I57: ='2. CARBURANT (Véhicules légers)'!D12 -> 0 | K57: ='2. CARBURANT (Véhicules légers)'!F12 -> 0 | M57: ='2. CARBURANT (Véhicules légers)'!H12 -> 0 | O57: ='2. CARBURANT (Véhicules légers)'!J12 -> 0 | Q57: ='2. CARBURANT (Véhicules légers)'!L12 -> 0 | S57: ='2. CARBURANT (Véhicules légers)'!N12 -> 0 | U57: ='2. CARBURANT (Véhicules légers)'!P12 -> 0 | W57: ='2. CARBURANT (Véhicules légers)'!R12 -> 0 | Y57: ='2. CARBURANT (Véhicules légers)'!T12 -> 0 | AA57: ='2. CARBURANT (Véhicules légers)'!V12 -> 0 | AC57: ='2. CARBURANT (Véhicules légers)'!X12 -> 0 | AE57: ='2. CARBURANT (Véhicules légers)'!Z12 -> 0 | AG57: ='2. CARBURANT (Véhicules légers)'!AB12 -> 0 | AI57: ='2. CARBURANT (Véhicules légers)'!AD12 -> 0 | AK57: ='2. CARBURANT (Véhicules légers)'!AF12 -> 0 | AM57: ='2. CARBURANT (Véhicules légers)'!AH12 -> 0 | AO57: ='2. CARBURANT (Véhicules légers)'!AJ12 -> 0 | AQ57: ='2. CARBURANT (Véhicules légers)'!AL12 -> 0 | AS57: ='2. CARBURANT (Véhicules légers)'!AN12 -> 0 | AU57: ='2. CARBURANT (Véhicules légers)'!AP12 -> 0 | AW57: ='2. CARBURANT (Véhicules légers)'!AR12 -> 0 | AY57: ='2. CARBURANT (Véhicules légers)'!AT12 -> 0
C63: Gaz naturel | E63: Gaz naturel [m³] | F63: ='2. CARBURANT (Véhicules légers)'!A27 -> Gaz naturel [m³] | G63: ='2. CARBURANT (Véhicules légers)'!B27 -> 0 | I63: ='2. CARBURANT (Véhicules légers)'!D27 -> 0 | K63: ='2. CARBURANT (Véhicules légers)'!F27 -> 0 | M63: ='2. CARBURANT (Véhicules légers)'!H27 -> 0 | O63: ='2. CARBURANT (Véhicules légers)'!J27 -> 0 | Q63: ='2. CARBURANT (Véhicules légers)'!L27 -> 0 | S63: ='2. CARBURANT (Véhicules légers)'!N27 -> 0 | U63: ='2. CARBURANT (Véhicules légers)'!P27 -> 0 | W63: ='2. CARBURANT (Véhicules légers)'!R27 -> 0 | Y63: ='2. CARBURANT (Véhicules légers)'!T27 -> 0 | AA63: ='2. CARBURANT (Véhicules légers)'!V27 -> 0 | AC63: ='2. CARBURANT (Véhicules légers)'!X27 -> 0 | AE63: ='2. CARBURANT (Véhicules légers)'!Z27 -> 0 | AG63: ='2. CARBURANT (Véhicules légers)'!AB27 -> 0 | AI63: ='2. CARBURANT (Véhicules légers)'!AD27 -> 0 | AK63: ='2. CARBURANT (Véhicules légers)'!AF27 -> 0 | AM63: ='2. CARBURANT (Véhicules légers)'!AH27 -> 0 | AO63: ='2. CARBURANT (Véhicules légers)'!AJ27 -> 0 | AQ63: ='2. CARBURANT (Véhicules légers)'!AL27 -> 0 | AS63: ='2. CARBURANT (Véhicules légers)'!AN27 -> 0 | AU63: ='2. CARBURANT (Véhicules légers)'!AP27 -> 0 | AW63: ='2. CARBURANT (Véhicules légers)'!AR27 -> 0 | AY63: ='2. CARBURANT (Véhicules légers)'!AT27 -> 0
E64: Gaz naturel [$] | F64: ='2. CARBURANT (Véhicules légers)'!A13 -> Gaz naturel [$] | G64: ='2. CARBURANT (Véhicules légers)'!B13 -> 0 | I64: ='2. CARBURANT (Véhicules légers)'!D13 -> 0 | K64: ='2. CARBURANT (Véhicules légers)'!F13 -> 0 | M64: ='2. CARBURANT (Véhicules légers)'!H13 -> 0 | O64: ='2. CARBURANT (Véhicules légers)'!J13 -> 0 | Q64: ='2. CARBURANT (Véhicules légers)'!L13 -> 0 | S64: ='2. CARBURANT (Véhicules légers)'!N13 -> 0 | U64: ='2. CARBURANT (Véhicules légers)'!P13 -> 0 | W64: ='2. CARBURANT (Véhicules légers)'!R13 -> 0 | Y64: ='2. CARBURANT (Véhicules légers)'!T13 -> 0 | AA64: ='2. CARBURANT (Véhicules légers)'!V13 -> 0 | AC64: ='2. CARBURANT (Véhicules légers)'!X13 -> 0 | AE64: ='2. CARBURANT (Véhicules légers)'!Z13 -> 0 | AG64: ='2. CARBURANT (Véhicules légers)'!AB13 -> 0 | AI64: ='2. CARBURANT (Véhicules légers)'!AD13 -> 0 | AK64: ='2. CARBURANT (Véhicules légers)'!AF13 -> 0 | AM64: ='2. CARBURANT (Véhicules légers)'!AH13 -> 0 | AO64: ='2. CARBURANT (Véhicules légers)'!AJ13 -> 0 | AQ64: ='2. CARBURANT (Véhicules légers)'!AL13 -> 0 | AS64: ='2. CARBURANT (Véhicules légers)'!AN13 -> 0 | AU64: ='2. CARBURANT (Véhicules légers)'!AP13 -> 0 | AW64: ='2. CARBURANT (Véhicules légers)'!AR13 -> 0 | AY64: ='2. CARBURANT (Véhicules légers)'!AT13 -> 0
C70: Propane | E70: Propane Litres [L] | F70: ='2. CARBURANT (Véhicules légers)'!A28 -> Propane [litres] | G70: ='2. CARBURANT (Véhicules légers)'!B28 -> 0 | I70: ='2. CARBURANT (Véhicules légers)'!D28 -> 0 | K70: ='2. CARBURANT (Véhicules légers)'!F28 -> 0 | M70: ='2. CARBURANT (Véhicules légers)'!H28 -> 0 | O70: ='2. CARBURANT (Véhicules légers)'!J28 -> 0 | Q70: ='2. CARBURANT (Véhicules légers)'!L28 -> 0 | S70: ='2. CARBURANT (Véhicules légers)'!N28 -> 0 | U70: ='2. CARBURANT (Véhicules légers)'!P28 -> 0 | W70: ='2. CARBURANT (Véhicules légers)'!R28 -> 0 | Y70: ='2. CARBURANT (Véhicules légers)'!T28 -> 0 | AA70: ='2. CARBURANT (Véhicules légers)'!V28 -> 0 | AC70: ='2. CARBURANT (Véhicules légers)'!X28 -> 0 | AE70: ='2. CARBURANT (Véhicules légers)'!Z28 -> 0 | AG70: ='2. CARBURANT (Véhicules légers)'!AB28 -> 0 | AI70: ='2. CARBURANT (Véhicules légers)'!AD28 -> 0 | AK70: ='2. CARBURANT (Véhicules légers)'!AF28 -> 0 | AM70: ='2. CARBURANT (Véhicules légers)'!AH28 -> 0 | AO70: ='2. CARBURANT (Véhicules légers)'!AJ28 -> 0 | AQ70: ='2. CARBURANT (Véhicules légers)'!AL28 -> 0 | AS70: ='2. CARBURANT (Véhicules légers)'!AN28 -> 0 | AU70: ='2. CARBURANT (Véhicules légers)'!AP28 -> 0 | AW70: ='2. CARBURANT (Véhicules légers)'!AR28 -> 0 | AY70: ='2. CARBURANT (Véhicules légers)'!AT28 -> 0
E71: Propane [$] | F71: ='2. CARBURANT (Véhicules légers)'!A14 -> Propane [$] | G71: ='2. CARBURANT (Véhicules légers)'!B14 -> 0 | I71: ='2. CARBURANT (Véhicules légers)'!D14 -> 0 | K71: ='2. CARBURANT (Véhicules légers)'!F14 -> 0 | M71: ='2. CARBURANT (Véhicules légers)'!H14 -> 0 | O71: ='2. CARBURANT (Véhicules légers)'!J14 -> 0 | Q71: ='2. CARBURANT (Véhicules légers)'!L14 -> 0 | S71: ='2. CARBURANT (Véhicules légers)'!N14 -> 0 | U71: ='2. CARBURANT (Véhicules légers)'!P14 -> 0 | W71: ='2. CARBURANT (Véhicules légers)'!R14 -> 0 | Y71: ='2. CARBURANT (Véhicules légers)'!T14 -> 0 | AA71: ='2. CARBURANT (Véhicules légers)'!V14 -> 0 | AC71: ='2. CARBURANT (Véhicules légers)'!X14 -> 0 | AE71: ='2. CARBURANT (Véhicules légers)'!Z14 -> 0 | AG71: ='2. CARBURANT (Véhicules légers)'!AB14 -> 0 | AI71: ='2. CARBURANT (Véhicules légers)'!AD14 -> 0 | AK71: ='2. CARBURANT (Véhicules légers)'!AF14 -> 0 | AM71: ='2. CARBURANT (Véhicules légers)'!AH14 -> 0 | AO71: ='2. CARBURANT (Véhicules légers)'!AJ14 -> 0 | AQ71: ='2. CARBURANT (Véhicules légers)'!AL14 -> 0 | AS71: ='2. CARBURANT (Véhicules légers)'!AN14 -> 0 | AU71: ='2. CARBURANT (Véhicules légers)'!AP14 -> 0 | AW71: ='2. CARBURANT (Véhicules légers)'!AR14 -> 0 | AY71: ='2. CARBURANT (Véhicules légers)'!AT14 -> 0
C77: Essence Ethanol | E77: Essence Ethanol Litres [L] | F77: ='2. CARBURANT (Véhicules légers)'!A31 -> Essence éthanol [litres] | G77: ='2. CARBURANT (Véhicules légers)'!B31 -> 0 | I77: ='2. CARBURANT (Véhicules légers)'!D31 -> 0 | K77: ='2. CARBURANT (Véhicules légers)'!F31 -> 0 | M77: ='2. CARBURANT (Véhicules légers)'!H31 -> 0 | O77: ='2. CARBURANT (Véhicules légers)'!J31 -> 0 | Q77: ='2. CARBURANT (Véhicules légers)'!L31 -> 0 | S77: ='2. CARBURANT (Véhicules légers)'!N31 -> 0 | U77: ='2. CARBURANT (Véhicules légers)'!P31 -> 0 | W77: ='2. CARBURANT (Véhicules légers)'!R31 -> 0 | Y77: ='2. CARBURANT (Véhicules légers)'!T31 -> 0 | AA77: ='2. CARBURANT (Véhicules légers)'!V31 -> 0 | AC77: ='2. CARBURANT (Véhicules légers)'!X31 -> 0 | AE77: ='2. CARBURANT (Véhicules légers)'!Z31 -> 0 | AG77: ='2. CARBURANT (Véhicules légers)'!AB31 -> 0 | AI77: ='2. CARBURANT (Véhicules légers)'!AD31 -> 0 | AK77: ='2. CARBURANT (Véhicules légers)'!AF31 -> 0 | AM77: ='2. CARBURANT (Véhicules légers)'!AH31 -> 0 | AO77: ='2. CARBURANT (Véhicules légers)'!AJ31 -> 0 | AQ77: ='2. CARBURANT (Véhicules légers)'!AL31 -> 0 | AS77: ='2. CARBURANT (Véhicules légers)'!AN31 -> 0 | AU77: ='2. CARBURANT (Véhicules légers)'!AP31 -> 0 | AW77: ='2. CARBURANT (Véhicules légers)'!AR31 -> 0 | AY77: ='2. CARBURANT (Véhicules légers)'!AT31 -> 0
E78: Essence Ethanol [$] | F78: ='2. CARBURANT (Véhicules légers)'!A17 -> Essence éthanol [$] | G78: ='2. CARBURANT (Véhicules légers)'!B17 -> 0 | I78: ='2. CARBURANT (Véhicules légers)'!D17 -> 0 | K78: ='2. CARBURANT (Véhicules légers)'!F17 -> 0 | M78: ='2. CARBURANT (Véhicules légers)'!H17 -> 0 | O78: ='2. CARBURANT (Véhicules légers)'!J17 -> 0 | Q78: ='2. CARBURANT (Véhicules légers)'!L17 -> 0 | S78: ='2. CARBURANT (Véhicules légers)'!N17 -> 0 | U78: ='2. CARBURANT (Véhicules légers)'!P17 -> 0 | W78: ='2. CARBURANT (Véhicules légers)'!R17 -> 0 | Y78: ='2. CARBURANT (Véhicules légers)'!T17 -> 0 | AA78: ='2. CARBURANT (Véhicules légers)'!V17 -> 0 | AC78: ='2. CARBURANT (Véhicules légers)'!X17 -> 0 | AE78: ='2. CARBURANT (Véhicules légers)'!Z17 -> 0 | AG78: ='2. CARBURANT (Véhicules légers)'!AB17 -> 0 | AI78: ='2. CARBURANT (Véhicules légers)'!AD17 -> 0 | AK78: ='2. CARBURANT (Véhicules légers)'!AF17 -> 0 | AM78: ='2. CARBURANT (Véhicules légers)'!AH17 -> 0 | AO78: ='2. CARBURANT (Véhicules légers)'!AJ17 -> 0 | AQ78: ='2. CARBURANT (Véhicules légers)'!AL17 -> 0 | AS78: ='2. CARBURANT (Véhicules légers)'!AN17 -> 0 | AU78: ='2. CARBURANT (Véhicules légers)'!AP17 -> 0 | AW78: ='2. CARBURANT (Véhicules légers)'!AR17 -> 0 | AY78: ='2. CARBURANT (Véhicules légers)'!AT17 -> 0
C84: Bio Diesel | E84: Bio Diesel Litres [L] | F84: ='2. CARBURANT (Véhicules légers)'!A32 -> Biodiesel [litres] | G84: ='2. CARBURANT (Véhicules légers)'!B32 -> 0 | I84: ='2. CARBURANT (Véhicules légers)'!D32 -> 0 | K84: ='2. CARBURANT (Véhicules légers)'!F32 -> 0 | M84: ='2. CARBURANT (Véhicules légers)'!H32 -> 0 | O84: ='2. CARBURANT (Véhicules légers)'!J32 -> 0 | Q84: ='2. CARBURANT (Véhicules légers)'!L32 -> 0 | S84: ='2. CARBURANT (Véhicules légers)'!N32 -> 0 | U84: ='2. CARBURANT (Véhicules légers)'!P32 -> 0 | W84: ='2. CARBURANT (Véhicules légers)'!R32 -> 0 | Y84: ='2. CARBURANT (Véhicules légers)'!T32 -> 0 | AA84: ='2. CARBURANT (Véhicules légers)'!V32 -> 0 | AC84: ='2. CARBURANT (Véhicules légers)'!X32 -> 0 | AE84: ='2. CARBURANT (Véhicules légers)'!Z32 -> 0 | AG84: ='2. CARBURANT (Véhicules légers)'!AB32 -> 0 | AI84: ='2. CARBURANT (Véhicules légers)'!AD32 -> 0 | AK84: ='2. CARBURANT (Véhicules légers)'!AF32 -> 0 | AM84: ='2. CARBURANT (Véhicules légers)'!AH32 -> 0 | AO84: ='2. CARBURANT (Véhicules légers)'!AJ32 -> 0 | AQ84: ='2. CARBURANT (Véhicules légers)'!AL32 -> 0 | AS84: ='2. CARBURANT (Véhicules légers)'!AN32 -> 0 | AU84: ='2. CARBURANT (Véhicules légers)'!AP32 -> 0 | AW84: ='2. CARBURANT (Véhicules légers)'!AR32 -> 0 | AY84: ='2. CARBURANT (Véhicules légers)'!AT32 -> 0
E85: Bio Diesel [$] | F85: ='2. CARBURANT (Véhicules légers)'!A18 -> Biodiesel [$] | G85: ='2. CARBURANT (Véhicules légers)'!B18 -> 0 | I85: ='2. CARBURANT (Véhicules légers)'!D18 -> 0 | K85: ='2. CARBURANT (Véhicules légers)'!F18 -> 0 | M85: ='2. CARBURANT (Véhicules légers)'!H18 -> 0 | O85: ='2. CARBURANT (Véhicules légers)'!J18 -> 0 | Q85: ='2. CARBURANT (Véhicules légers)'!L18 -> 0 | S85: ='2. CARBURANT (Véhicules légers)'!N18 -> 0 | U85: ='2. CARBURANT (Véhicules légers)'!P18 -> 0 | W85: ='2. CARBURANT (Véhicules légers)'!R18 -> 0 | Y85: ='2. CARBURANT (Véhicules légers)'!T18 -> 0 | AA85: ='2. CARBURANT (Véhicules légers)'!V18 -> 0 | AC85: ='2. CARBURANT (Véhicules légers)'!X18 -> 0 | AE85: ='2. CARBURANT (Véhicules légers)'!Z18 -> 0 | AG85: ='2. CARBURANT (Véhicules légers)'!AB18 -> 0 | AI85: ='2. CARBURANT (Véhicules légers)'!AD18 -> 0 | AK85: ='2. CARBURANT (Véhicules légers)'!AF18 -> 0 | AM85: ='2. CARBURANT (Véhicules légers)'!AH18 -> 0 | AO85: ='2. CARBURANT (Véhicules légers)'!AJ18 -> 0 | AQ85: ='2. CARBURANT (Véhicules légers)'!AL18 -> 0 | AS85: ='2. CARBURANT (Véhicules légers)'!AN18 -> 0 | AU85: ='2. CARBURANT (Véhicules légers)'!AP18 -> 0 | AW85: ='2. CARBURANT (Véhicules légers)'!AR18 -> 0 | AY85: ='2. CARBURANT (Véhicules légers)'!AT18 -> 0
C92: Formules
C108: Nombre de véhicules | D108: Sur route | F108: ='5. NOMBRE DE VÉHICULES'!A11 -> Sur route (incluant locations longue durée) | G108: ='5. NOMBRE DE VÉHICULES'!B11 -> 0 | I108: ='5. NOMBRE DE VÉHICULES'!D11 -> 0 | K108: ='5. NOMBRE DE VÉHICULES'!F11 -> 0 | M108: ='5. NOMBRE DE VÉHICULES'!H11 -> 0 | O108: ='5. NOMBRE DE VÉHICULES'!J11 -> 0 | Q108: ='5. NOMBRE DE VÉHICULES'!L11 -> 0 | S108: ='5. NOMBRE DE VÉHICULES'!N11 -> 0 | U108: ='5. NOMBRE DE VÉHICULES'!P11 -> 0 | W108: ='5. NOMBRE DE VÉHICULES'!R11 -> 0 | Y108: ='5. NOMBRE DE VÉHICULES'!T11 -> 0 | AA108: ='5. NOMBRE DE VÉHICULES'!V11 -> 0 | AC108: ='5. NOMBRE DE VÉHICULES'!X11 -> 0 | AE108: ='5. NOMBRE DE VÉHICULES'!Z11 -> 0 | AG108: ='5. NOMBRE DE VÉHICULES'!AB11 -> 0 | AI108: ='5. NOMBRE DE VÉHICULES'!AD11 -> 0 | AK108: ='5. NOMBRE DE VÉHICULES'!AF11 -> 0 | AM108: ='5. NOMBRE DE VÉHICULES'!AH11 -> 0 | AO108: ='5. NOMBRE DE VÉHICULES'!AJ11 -> 0 | AQ108: ='5. NOMBRE DE VÉHICULES'!AL11 -> 0 | AS108: ='5. NOMBRE DE VÉHICULES'!AN11 -> 0 | AU108: ='5. NOMBRE DE VÉHICULES'!AP11 -> 0 | AW108: ='5. NOMBRE DE VÉHICULES'!AR11 -> 0 | AY108: ='5. NOMBRE DE VÉHICULES'!AT11 -> 0
D109: Hors route | F109: ='5. NOMBRE DE VÉHICULES'!A12 -> Hors route (VTT, motoneige, etc.) | G109: ='5. NOMBRE DE VÉHICULES'!B12 -> 0 | I109: ='5. NOMBRE DE VÉHICULES'!D12 -> 0 | K109: ='5. NOMBRE DE VÉHICULES'!F12 -> 0 | M109: ='5. NOMBRE DE VÉHICULES'!H12 -> 0 | O109: ='5. NOMBRE DE VÉHICULES'!J12 -> 0 | Q109: ='5. NOMBRE DE VÉHICULES'!L12 -> 0 | S109: ='5. NOMBRE DE VÉHICULES'!N12 -> 0 | U109: ='5. NOMBRE DE VÉHICULES'!P12 -> 0 | W109: ='5. NOMBRE DE VÉHICULES'!R12 -> 0 | Y109: ='5. NOMBRE DE VÉHICULES'!T12 -> 0 | AA109: ='5. NOMBRE DE VÉHICULES'!V12 -> 0 | AC109: ='5. NOMBRE DE VÉHICULES'!X12 -> 0 | AE109: ='5. NOMBRE DE VÉHICULES'!Z12 -> 0 | AG109: ='5. NOMBRE DE VÉHICULES'!AB12 -> 0 | AI109: ='5. NOMBRE DE VÉHICULES'!AD12 -> 0 | AK109: ='5. NOMBRE DE VÉHICULES'!AF12 -> 0 | AM109: ='5. NOMBRE DE VÉHICULES'!AH12 -> 0 | AO109: ='5. NOMBRE DE VÉHICULES'!AJ12 -> 0 | AQ109: ='5. NOMBRE DE VÉHICULES'!AL12 -> 0 | AS109: ='5. NOMBRE DE VÉHICULES'!AN12 -> 0 | AU109: ='5. NOMBRE DE VÉHICULES'!AP12 -> 0 | AW109: ='5. NOMBRE DE VÉHICULES'!AR12 -> 0 | AY109: ='5. NOMBRE DE VÉHICULES'!AT12 -> 0
D110: Hybride | F110: ='5. NOMBRE DE VÉHICULES'!A13 -> Hybrides [1] | G110: ='5. NOMBRE DE VÉHICULES'!B13 -> 0 | I110: ='5. NOMBRE DE VÉHICULES'!D13 -> 0 | K110: ='5. NOMBRE DE VÉHICULES'!F13 -> 0 | M110: ='5. NOMBRE DE VÉHICULES'!H13 -> 0 | O110: ='5. NOMBRE DE VÉHICULES'!J13 -> 0 | Q110: ='5. NOMBRE DE VÉHICULES'!L13 -> 0 | S110: ='5. NOMBRE DE VÉHICULES'!N13 -> 0 | U110: ='5. NOMBRE DE VÉHICULES'!P13 -> 0 | W110: ='5. NOMBRE DE VÉHICULES'!R13 -> 0 | Y110: ='5. NOMBRE DE VÉHICULES'!T13 -> 0 | AA110: ='5. NOMBRE DE VÉHICULES'!V13 -> 0 | AC110: ='5. NOMBRE DE VÉHICULES'!X13 -> 0 | AE110: ='5. NOMBRE DE VÉHICULES'!Z13 -> 0 | AG110: ='5. NOMBRE DE VÉHICULES'!AB13 -> 0 | AI110: ='5. NOMBRE DE VÉHICULES'!AD13 -> 0 | AK110: ='5. NOMBRE DE VÉHICULES'!AF13 -> 0 | AM110: ='5. NOMBRE DE VÉHICULES'!AH13 -> 0 | AO110: ='5. NOMBRE DE VÉHICULES'!AJ13 -> 0 | AQ110: ='5. NOMBRE DE VÉHICULES'!AL13 -> 0 | AS110: ='5. NOMBRE DE VÉHICULES'!AN13 -> 0 | AU110: ='5. NOMBRE DE VÉHICULES'!AP13 -> 0 | AW110: ='5. NOMBRE DE VÉHICULES'!AR13 -> 0 | AY110: ='5. NOMBRE DE VÉHICULES'!AT13 -> 0
D111: Hybride rechargeable | F111: ='5. NOMBRE DE VÉHICULES'!A14 -> Hybrides rechargeables [2] | G111: ='5. NOMBRE DE VÉHICULES'!B14 -> 0 | I111: ='5. NOMBRE DE VÉHICULES'!D14 -> 0 | K111: ='5. NOMBRE DE VÉHICULES'!F14 -> 0 | M111: ='5. NOMBRE DE VÉHICULES'!H14 -> 0 | O111: ='5. NOMBRE DE VÉHICULES'!J14 -> 0 | Q111: ='5. NOMBRE DE VÉHICULES'!L14 -> 0 | S111: ='5. NOMBRE DE VÉHICULES'!N14 -> 0 | U111: ='5. NOMBRE DE VÉHICULES'!P14 -> 0 | W111: ='5. NOMBRE DE VÉHICULES'!R14 -> 0 | Y111: ='5. NOMBRE DE VÉHICULES'!T14 -> 0 | AA111: ='5. NOMBRE DE VÉHICULES'!V14 -> 0 | AC111: ='5. NOMBRE DE VÉHICULES'!X14 -> 0 | AE111: ='5. NOMBRE DE VÉHICULES'!Z14 -> 0 | AG111: ='5. NOMBRE DE VÉHICULES'!AB14 -> 0 | AI111: ='5. NOMBRE DE VÉHICULES'!AD14 -> 0 | AK111: ='5. NOMBRE DE VÉHICULES'!AF14 -> 0 | AM111: ='5. NOMBRE DE VÉHICULES'!AH14 -> 0 | AO111: ='5. NOMBRE DE VÉHICULES'!AJ14 -> 0 | AQ111: ='5. NOMBRE DE VÉHICULES'!AL14 -> 0 | AS111: ='5. NOMBRE DE VÉHICULES'!AN14 -> 0 | AU111: ='5. NOMBRE DE VÉHICULES'!AP14 -> 0 | AW111: ='5. NOMBRE DE VÉHICULES'!AR14 -> 0 | AY111: ='5. NOMBRE DE VÉHICULES'!AT14 -> 0
D112: 100% électrique | F112: ='5. NOMBRE DE VÉHICULES'!A15 -> Électriques à batterie (100% électrique) [3] | G112: ='5. NOMBRE DE VÉHICULES'!B15 -> 0 | I112: ='5. NOMBRE DE VÉHICULES'!D15 -> 0 | K112: ='5. NOMBRE DE VÉHICULES'!F15 -> 0 | M112: ='5. NOMBRE DE VÉHICULES'!H15 -> 0 | O112: ='5. NOMBRE DE VÉHICULES'!J15 -> 0 | Q112: ='5. NOMBRE DE VÉHICULES'!L15 -> 0 | S112: ='5. NOMBRE DE VÉHICULES'!N15 -> 0 | U112: ='5. NOMBRE DE VÉHICULES'!P15 -> 0 | W112: ='5. NOMBRE DE VÉHICULES'!R15 -> 0 | Y112: ='5. NOMBRE DE VÉHICULES'!T15 -> 0 | AA112: ='5. NOMBRE DE VÉHICULES'!V15 -> 0 | AC112: ='5. NOMBRE DE VÉHICULES'!X15 -> 0 | AE112: ='5. NOMBRE DE VÉHICULES'!Z15 -> 0 | AG112: ='5. NOMBRE DE VÉHICULES'!AB15 -> 0 | AI112: ='5. NOMBRE DE VÉHICULES'!AD15 -> 0 | AK112: ='5. NOMBRE DE VÉHICULES'!AF15 -> 0 | AM112: ='5. NOMBRE DE VÉHICULES'!AH15 -> 0 | AO112: ='5. NOMBRE DE VÉHICULES'!AJ15 -> 0 | AQ112: ='5. NOMBRE DE VÉHICULES'!AL15 -> 0 | AS112: ='5. NOMBRE DE VÉHICULES'!AN15 -> 0 | AU112: ='5. NOMBRE DE VÉHICULES'!AP15 -> 0 | AW112: ='5. NOMBRE DE VÉHICULES'!AR15 -> 0 | AY112: ='5. NOMBRE DE VÉHICULES'!AT15 -> 0
D115: Date | F115: ='1. IDENTITÉ'!A20 -> Date : | G115: ='1. IDENTITÉ'!$B$20 -> 0 | I115: ='1. IDENTITÉ'!$B$20 -> 0 | K115: ='1. IDENTITÉ'!$B$20 -> 0 | M115: ='1. IDENTITÉ'!$B$20 -> 0 | O115: ='1. IDENTITÉ'!$B$20 -> 0 | Q115: ='1. IDENTITÉ'!$B$20 -> 0 | S115: ='1. IDENTITÉ'!$B$20 -> 0 | U115: ='1. IDENTITÉ'!$B$20 -> 0 | W115: ='1. IDENTITÉ'!$B$20 -> 0 | Y115: ='1. IDENTITÉ'!$B$20 -> 0 | AA115: ='1. IDENTITÉ'!$B$20 -> 0 | AC115: ='1. IDENTITÉ'!$B$20 -> 0 | AE115: ='1. IDENTITÉ'!$B$20 -> 0 | AG115: ='1. IDENTITÉ'!$B$20 -> 0 | AI115: ='1. IDENTITÉ'!$B$20 -> 0 | AK115: ='1. IDENTITÉ'!$B$20 -> 0 | AM115: ='1. IDENTITÉ'!$B$20 -> 0 | AO115: ='1. IDENTITÉ'!$B$20 -> 0 | AQ115: ='1. IDENTITÉ'!$B$20 -> 0 | AS115: ='1. IDENTITÉ'!$B$20 -> 0 | AU115: ='1. IDENTITÉ'!$B$20 -> 0 | AW115: ='1. IDENTITÉ'!$B$20 -> 0 | AY115: ='1. IDENTITÉ'!$B$20 -> 0
C116: TOTAUX (pas importés) | D116: TOTAL Litres [L-éq.] | F116: ='2. CARBURANT (Véhicules légers)'!A34 -> Total [L-éq. essence] | G116: ='2. CARBURANT (Véhicules légers)'!B34 -> 0 | I116: ='2. CARBURANT (Véhicules légers)'!D34 -> 0 | K116: ='2. CARBURANT (Véhicules légers)'!F34 -> 0 | M116: ='2. CARBURANT (Véhicules légers)'!H34 -> 0 | O116: ='2. CARBURANT (Véhicules légers)'!J34 -> 0 | Q116: ='2. CARBURANT (Véhicules légers)'!L34 -> 0 | S116: ='2. CARBURANT (Véhicules légers)'!N34 -> 0 | U116: ='2. CARBURANT (Véhicules légers)'!P34 -> 0 | W116: ='2. CARBURANT (Véhicules légers)'!R34 -> 0 | Y116: ='2. CARBURANT (Véhicules légers)'!T34 -> 0 | AA116: ='2. CARBURANT (Véhicules légers)'!V34 -> 0 | AC116: ='2. CARBURANT (Véhicules légers)'!X34 -> 0 | AE116: ='2. CARBURANT (Véhicules légers)'!Z34 -> 0 | AG116: ='2. CARBURANT (Véhicules légers)'!AB34 -> 0 | AI116: ='2. CARBURANT (Véhicules légers)'!AD34 -> 0 | AK116: ='2. CARBURANT (Véhicules légers)'!AF34 -> 0 | AM116: ='2. CARBURANT (Véhicules légers)'!AH34 -> 0 | AO116: ='2. CARBURANT (Véhicules légers)'!AJ34 -> 0 | AQ116: ='2. CARBURANT (Véhicules légers)'!AL34 -> 0 | AS116: ='2. CARBURANT (Véhicules légers)'!AN34 -> 0 | AU116: ='2. CARBURANT (Véhicules légers)'!AP34 -> 0 | AW116: ='2. CARBURANT (Véhicules légers)'!AR34 -> 0 | AY116: ='2. CARBURANT (Véhicules légers)'!AT34 -> 0
D117: TOTAL [GJ] | F117: ='2. CARBURANT (Véhicules légers)'!A36 -> Total [GJ] | G117: ='2. CARBURANT (Véhicules légers)'!B36 -> 0 | I117: ='2. CARBURANT (Véhicules légers)'!D36 -> 0 | K117: ='2. CARBURANT (Véhicules légers)'!F36 -> 0 | M117: ='2. CARBURANT (Véhicules légers)'!H36 -> 0 | O117: ='2. CARBURANT (Véhicules légers)'!J36 -> 0 | Q117: ='2. CARBURANT (Véhicules légers)'!L36 -> 0 | S117: ='2. CARBURANT (Véhicules légers)'!N36 -> 0 | U117: ='2. CARBURANT (Véhicules légers)'!P36 -> 0 | W117: ='2. CARBURANT (Véhicules légers)'!R36 -> 0 | Y117: ='2. CARBURANT (Véhicules légers)'!T36 -> 0 | AA117: ='2. CARBURANT (Véhicules légers)'!V36 -> 0 | AC117: ='2. CARBURANT (Véhicules légers)'!X36 -> 0 | AE117: ='2. CARBURANT (Véhicules légers)'!Z36 -> 0 | AG117: ='2. CARBURANT (Véhicules légers)'!AB36 -> 0 | AI117: ='2. CARBURANT (Véhicules légers)'!AD36 -> 0 | AK117: ='2. CARBURANT (Véhicules légers)'!AF36 -> 0 | AM117: ='2. CARBURANT (Véhicules légers)'!AH36 -> 0 | AO117: ='2. CARBURANT (Véhicules légers)'!AJ36 -> 0 | AQ117: ='2. CARBURANT (Véhicules légers)'!AL36 -> 0 | AS117: ='2. CARBURANT (Véhicules légers)'!AN36 -> 0 | AU117: ='2. CARBURANT (Véhicules légers)'!AP36 -> 0 | AW117: ='2. CARBURANT (Véhicules légers)'!AR36 -> 0 | AY117: ='2. CARBURANT (Véhicules légers)'!AT36 -> 0
D118: TOTAL ($) | F118: ='2. CARBURANT (Véhicules légers)'!A20 -> Total [$] | G118: ='2. CARBURANT (Véhicules légers)'!B20 -> 0 | I118: ='2. CARBURANT (Véhicules légers)'!D20 -> 0 | K118: ='2. CARBURANT (Véhicules légers)'!F20 -> 0 | M118: ='2. CARBURANT (Véhicules légers)'!H20 -> 0 | O118: ='2. CARBURANT (Véhicules légers)'!J20 -> 0 | Q118: ='2. CARBURANT (Véhicules légers)'!L20 -> 0 | S118: ='2. CARBURANT (Véhicules légers)'!N20 -> 0 | U118: ='2. CARBURANT (Véhicules légers)'!P20 -> 0 | W118: ='2. CARBURANT (Véhicules légers)'!R20 -> 0 | Y118: ='2. CARBURANT (Véhicules légers)'!T20 -> 0 | AA118: ='2. CARBURANT (Véhicules légers)'!V20 -> 0 | AC118: ='2. CARBURANT (Véhicules légers)'!X20 -> 0 | AE118: ='2. CARBURANT (Véhicules légers)'!Z20 -> 0 | AG118: ='2. CARBURANT (Véhicules légers)'!AB20 -> 0 | AI118: ='2. CARBURANT (Véhicules légers)'!AD20 -> 0 | AK118: ='2. CARBURANT (Véhicules légers)'!AF20 -> 0 | AM118: ='2. CARBURANT (Véhicules légers)'!AH20 -> 0 | AO118: ='2. CARBURANT (Véhicules légers)'!AJ20 -> 0 | AQ118: ='2. CARBURANT (Véhicules légers)'!AL20 -> 0 | AS118: ='2. CARBURANT (Véhicules légers)'!AN20 -> 0 | AU118: ='2. CARBURANT (Véhicules légers)'!AP20 -> 0 | AW118: ='2. CARBURANT (Véhicules légers)'!AR20 -> 0 | AY118: ='2. CARBURANT (Véhicules légers)'!AT20 -> 0
D119: TOTAL [ton CO2 éq.] | F119: ='2. CARBURANT (Véhicules légers)'!A50 -> Total [t CO2 éq.] | G119: ='2. CARBURANT (Véhicules légers)'!B50 -> 0 | I119: ='2. CARBURANT (Véhicules légers)'!D50 -> 0 | K119: ='2. CARBURANT (Véhicules légers)'!F50 -> 0 | M119: ='2. CARBURANT (Véhicules légers)'!H50 -> 0 | O119: ='2. CARBURANT (Véhicules légers)'!J50 -> 0 | Q119: ='2. CARBURANT (Véhicules légers)'!L50 -> 0 | S119: ='2. CARBURANT (Véhicules légers)'!N50 -> 0 | U119: ='2. CARBURANT (Véhicules légers)'!P50 -> 0 | W119: ='2. CARBURANT (Véhicules légers)'!R50 -> 0 | Y119: ='2. CARBURANT (Véhicules légers)'!T50 -> 0 | AA119: ='2. CARBURANT (Véhicules légers)'!V50 -> 0 | AC119: ='2. CARBURANT (Véhicules légers)'!X50 -> 0 | AE119: ='2. CARBURANT (Véhicules légers)'!Z50 -> 0 | AG119: ='2. CARBURANT (Véhicules légers)'!AB50 -> 0 | AI119: ='2. CARBURANT (Véhicules légers)'!AD50 -> 0 | AK119: ='2. CARBURANT (Véhicules légers)'!AF50 -> 0 | AM119: ='2. CARBURANT (Véhicules légers)'!AH50 -> 0 | AO119: ='2. CARBURANT (Véhicules légers)'!AJ50 -> 0 | AQ119: ='2. CARBURANT (Véhicules légers)'!AL50 -> 0 | AS119: ='2. CARBURANT (Véhicules légers)'!AN50 -> 0 | AU119: ='2. CARBURANT (Véhicules légers)'!AP50 -> 0 | AW119: ='2. CARBURANT (Véhicules légers)'!AR50 -> 0 | AY119: ='2. CARBURANT (Véhicules légers)'!AT50 -> 0
C120: Estimation des émissions de gaz à effet de serre | D120: Carburants conventionnels | E120: Essence [ton CO2 éq.] | F120: ='2. CARBURANT (Véhicules légers)'!A41 -> Essence [t CO2 éq.] | G120: ='2. CARBURANT (Véhicules légers)'!B41 -> 0 | I120: ='2. CARBURANT (Véhicules légers)'!D41 -> 0 | K120: ='2. CARBURANT (Véhicules légers)'!F41 -> 0 | M120: ='2. CARBURANT (Véhicules légers)'!H41 -> 0 | O120: ='2. CARBURANT (Véhicules légers)'!J41 -> 0 | Q120: ='2. CARBURANT (Véhicules légers)'!L41 -> 0 | S120: ='2. CARBURANT (Véhicules légers)'!N41 -> 0 | U120: ='2. CARBURANT (Véhicules légers)'!P41 -> 0 | W120: ='2. CARBURANT (Véhicules légers)'!R41 -> 0 | Y120: ='2. CARBURANT (Véhicules légers)'!T41 -> 0 | AA120: ='2. CARBURANT (Véhicules légers)'!V41 -> 0 | AC120: ='2. CARBURANT (Véhicules légers)'!X41 -> 0 | AE120: ='2. CARBURANT (Véhicules légers)'!Z41 -> 0 | AG120: ='2. CARBURANT (Véhicules légers)'!AB41 -> 0 | AI120: ='2. CARBURANT (Véhicules légers)'!AD41 -> 0 | AK120: ='2. CARBURANT (Véhicules légers)'!AF41 -> 0 | AM120: ='2. CARBURANT (Véhicules légers)'!AH41 -> 0 | AO120: ='2. CARBURANT (Véhicules légers)'!AJ41 -> 0 | AQ120: ='2. CARBURANT (Véhicules légers)'!AL41 -> 0 | AS120: ='2. CARBURANT (Véhicules légers)'!AN41 -> 0 | AU120: ='2. CARBURANT (Véhicules légers)'!AP41 -> 0 | AW120: ='2. CARBURANT (Véhicules légers)'!AR41 -> 0 | AY120: ='2. CARBURANT (Véhicules légers)'!AT41 -> 0
E121: Diesel [ton CO2 éq.] | F121: ='2. CARBURANT (Véhicules légers)'!A42 -> Diesel [t CO2 éq.] | G121: ='2. CARBURANT (Véhicules légers)'!B42 -> 0 | I121: ='2. CARBURANT (Véhicules légers)'!D42 -> 0 | K121: ='2. CARBURANT (Véhicules légers)'!F42 -> 0 | M121: ='2. CARBURANT (Véhicules légers)'!H42 -> 0 | O121: ='2. CARBURANT (Véhicules légers)'!J42 -> 0 | Q121: ='2. CARBURANT (Véhicules légers)'!L42 -> 0 | S121: ='2. CARBURANT (Véhicules légers)'!N42 -> 0 | U121: ='2. CARBURANT (Véhicules légers)'!P42 -> 0 | W121: ='2. CARBURANT (Véhicules légers)'!R42 -> 0 | Y121: ='2. CARBURANT (Véhicules légers)'!T42 -> 0 | AA121: ='2. CARBURANT (Véhicules légers)'!V42 -> 0 | AC121: ='2. CARBURANT (Véhicules légers)'!X42 -> 0 | AE121: ='2. CARBURANT (Véhicules légers)'!Z42 -> 0 | AG121: ='2. CARBURANT (Véhicules légers)'!AB42 -> 0 | AI121: ='2. CARBURANT (Véhicules légers)'!AD42 -> 0 | AK121: ='2. CARBURANT (Véhicules légers)'!AF42 -> 0 | AM121: ='2. CARBURANT (Véhicules légers)'!AH42 -> 0 | AO121: ='2. CARBURANT (Véhicules légers)'!AJ42 -> 0 | AQ121: ='2. CARBURANT (Véhicules légers)'!AL42 -> 0 | AS121: ='2. CARBURANT (Véhicules légers)'!AN42 -> 0 | AU121: ='2. CARBURANT (Véhicules légers)'!AP42 -> 0 | AW121: ='2. CARBURANT (Véhicules légers)'!AR42 -> 0 | AY121: ='2. CARBURANT (Véhicules légers)'!AT42 -> 0
E122: Gaz naturel [ton CO2 éq.] | F122: ='2. CARBURANT (Véhicules légers)'!A43 -> Gaz naturel [t CO2 éq.] | G122: ='2. CARBURANT (Véhicules légers)'!B43 -> 0 | I122: ='2. CARBURANT (Véhicules légers)'!D43 -> 0 | K122: ='2. CARBURANT (Véhicules légers)'!F43 -> 0 | M122: ='2. CARBURANT (Véhicules légers)'!H43 -> 0 | O122: ='2. CARBURANT (Véhicules légers)'!J43 -> 0 | Q122: ='2. CARBURANT (Véhicules légers)'!L43 -> 0 | S122: ='2. CARBURANT (Véhicules légers)'!N43 -> 0 | U122: ='2. CARBURANT (Véhicules légers)'!P43 -> 0 | W122: ='2. CARBURANT (Véhicules légers)'!R43 -> 0 | Y122: ='2. CARBURANT (Véhicules légers)'!T43 -> 0 | AA122: ='2. CARBURANT (Véhicules légers)'!V43 -> 0 | AC122: ='2. CARBURANT (Véhicules légers)'!X43 -> 0 | AE122: ='2. CARBURANT (Véhicules légers)'!Z43 -> 0 | AG122: ='2. CARBURANT (Véhicules légers)'!AB43 -> 0 | AI122: ='2. CARBURANT (Véhicules légers)'!AD43 -> 0 | AK122: ='2. CARBURANT (Véhicules légers)'!AF43 -> 0 | AM122: ='2. CARBURANT (Véhicules légers)'!AH43 -> 0 | AO122: ='2. CARBURANT (Véhicules légers)'!AJ43 -> 0 | AQ122: ='2. CARBURANT (Véhicules légers)'!AL43 -> 0 | AS122: ='2. CARBURANT (Véhicules légers)'!AN43 -> 0 | AU122: ='2. CARBURANT (Véhicules légers)'!AP43 -> 0 | AW122: ='2. CARBURANT (Véhicules légers)'!AR43 -> 0 | AY122: ='2. CARBURANT (Véhicules légers)'!AT43 -> 0
E123: Propane [ton CO2 éq.] | F123: ='2. CARBURANT (Véhicules légers)'!A44 -> Propane [t CO2 éq.] | G123: ='2. CARBURANT (Véhicules légers)'!B44 -> 0 | I123: ='2. CARBURANT (Véhicules légers)'!D44 -> 0 | K123: ='2. CARBURANT (Véhicules légers)'!F44 -> 0 | M123: ='2. CARBURANT (Véhicules légers)'!H44 -> 0 | O123: ='2. CARBURANT (Véhicules légers)'!J44 -> 0 | Q123: ='2. CARBURANT (Véhicules légers)'!L44 -> 0 | S123: ='2. CARBURANT (Véhicules légers)'!N44 -> 0 | U123: ='2. CARBURANT (Véhicules légers)'!P44 -> 0 | W123: ='2. CARBURANT (Véhicules légers)'!R44 -> 0 | Y123: ='2. CARBURANT (Véhicules légers)'!T44 -> 0 | AA123: ='2. CARBURANT (Véhicules légers)'!V44 -> 0 | AC123: ='2. CARBURANT (Véhicules légers)'!X44 -> 0 | AE123: ='2. CARBURANT (Véhicules légers)'!Z44 -> 0 | AG123: ='2. CARBURANT (Véhicules légers)'!AB44 -> 0 | AI123: ='2. CARBURANT (Véhicules légers)'!AD44 -> 0 | AK123: ='2. CARBURANT (Véhicules légers)'!AF44 -> 0 | AM123: ='2. CARBURANT (Véhicules légers)'!AH44 -> 0 | AO123: ='2. CARBURANT (Véhicules légers)'!AJ44 -> 0 | AQ123: ='2. CARBURANT (Véhicules légers)'!AL44 -> 0 | AS123: ='2. CARBURANT (Véhicules légers)'!AN44 -> 0 | AU123: ='2. CARBURANT (Véhicules légers)'!AP44 -> 0 | AW123: ='2. CARBURANT (Véhicules légers)'!AR44 -> 0 | AY123: ='2. CARBURANT (Véhicules légers)'!AT44 -> 0
D124: Biocarburants | E124: Essence Ethanol [ton CO2 éq.] | F124: ='2. CARBURANT (Véhicules légers)'!A47 -> Essence éthanol [t CO2 éq.] | G124: ='2. CARBURANT (Véhicules légers)'!B47 -> 0 | I124: ='2. CARBURANT (Véhicules légers)'!D47 -> 0 | K124: ='2. CARBURANT (Véhicules légers)'!F47 -> 0 | M124: ='2. CARBURANT (Véhicules légers)'!H47 -> 0 | O124: ='2. CARBURANT (Véhicules légers)'!J47 -> 0 | Q124: ='2. CARBURANT (Véhicules légers)'!L47 -> 0 | S124: ='2. CARBURANT (Véhicules légers)'!N47 -> 0 | U124: ='2. CARBURANT (Véhicules légers)'!P47 -> 0 | W124: ='2. CARBURANT (Véhicules légers)'!R47 -> 0 | Y124: ='2. CARBURANT (Véhicules légers)'!T47 -> 0 | AA124: ='2. CARBURANT (Véhicules légers)'!V47 -> 0 | AC124: ='2. CARBURANT (Véhicules légers)'!X47 -> 0 | AE124: ='2. CARBURANT (Véhicules légers)'!Z47 -> 0 | AG124: ='2. CARBURANT (Véhicules légers)'!AB47 -> 0 | AI124: ='2. CARBURANT (Véhicules légers)'!AD47 -> 0 | AK124: ='2. CARBURANT (Véhicules légers)'!AF47 -> 0 | AM124: ='2. CARBURANT (Véhicules légers)'!AH47 -> 0 | AO124: ='2. CARBURANT (Véhicules légers)'!AJ47 -> 0 | AQ124: ='2. CARBURANT (Véhicules légers)'!AL47 -> 0 | AS124: ='2. CARBURANT (Véhicules légers)'!AN47 -> 0 | AU124: ='2. CARBURANT (Véhicules légers)'!AP47 -> 0 | AW124: ='2. CARBURANT (Véhicules légers)'!AR47 -> 0 | AY124: ='2. CARBURANT (Véhicules légers)'!AT47 -> 0
E125: Bio Diesel [ton CO2 éq.] | F125: ='2. CARBURANT (Véhicules légers)'!A48 -> Biodiesel [t CO2 éq.] | G125: ='2. CARBURANT (Véhicules légers)'!B48 -> 0 | I125: ='2. CARBURANT (Véhicules légers)'!D48 -> 0 | K125: ='2. CARBURANT (Véhicules légers)'!F48 -> 0 | M125: ='2. CARBURANT (Véhicules légers)'!H48 -> 0 | O125: ='2. CARBURANT (Véhicules légers)'!J48 -> 0 | Q125: ='2. CARBURANT (Véhicules légers)'!L48 -> 0 | S125: ='2. CARBURANT (Véhicules légers)'!N48 -> 0 | U125: ='2. CARBURANT (Véhicules légers)'!P48 -> 0 | W125: ='2. CARBURANT (Véhicules légers)'!R48 -> 0 | Y125: ='2. CARBURANT (Véhicules légers)'!T48 -> 0 | AA125: ='2. CARBURANT (Véhicules légers)'!V48 -> 0 | AC125: ='2. CARBURANT (Véhicules légers)'!X48 -> 0 | AE125: ='2. CARBURANT (Véhicules légers)'!Z48 -> 0 | AG125: ='2. CARBURANT (Véhicules légers)'!AB48 -> 0 | AI125: ='2. CARBURANT (Véhicules légers)'!AD48 -> 0 | AK125: ='2. CARBURANT (Véhicules légers)'!AF48 -> 0 | AM125: ='2. CARBURANT (Véhicules légers)'!AH48 -> 0 | AO125: ='2. CARBURANT (Véhicules légers)'!AJ48 -> 0 | AQ125: ='2. CARBURANT (Véhicules légers)'!AL48 -> 0 | AS125: ='2. CARBURANT (Véhicules légers)'!AN48 -> 0 | AU125: ='2. CARBURANT (Véhicules légers)'!AP48 -> 0 | AW125: ='2. CARBURANT (Véhicules légers)'!AR48 -> 0 | AY125: ='2. CARBURANT (Véhicules légers)'!AT48 -> 0
D126: Véhicule de location courte durée [km] | F126: ='3. KM POLLUANTS'!A30 -> Véhicule de location courte durée [km] | G126: ='3. KM POLLUANTS'!B$28 -> 0 | I126: ='3. KM POLLUANTS'!D30 -> 0 | K126: ='3. KM POLLUANTS'!F30 -> 0 | M126: ='3. KM POLLUANTS'!H30 -> 0 | O126: ='3. KM POLLUANTS'!J30 -> 0 | Q126: ='3. KM POLLUANTS'!L30 -> 0 | S126: ='3. KM POLLUANTS'!N30 -> 0 | U126: ='3. KM POLLUANTS'!P30 -> 0 | W126: ='3. KM POLLUANTS'!R30 -> 0 | Y126: ='3. KM POLLUANTS'!T30 -> 0 | AA126: ='3. KM POLLUANTS'!V30 -> 0 | AC126: ='3. KM POLLUANTS'!X30 -> 0 | AE126: ='3. KM POLLUANTS'!Z30 -> 0 | AG126: ='3. KM POLLUANTS'!AB30 -> 0 | AI126: ='3. KM POLLUANTS'!AD30 -> 0 | AK126: ='3. KM POLLUANTS'!AF30 -> 0 | AM126: ='3. KM POLLUANTS'!AH30 -> 0 | AO126: ='3. KM POLLUANTS'!AJ30 -> 0 | AQ126: ='3. KM POLLUANTS'!AL30 -> 0 | AS126: ='3. KM POLLUANTS'!AN30 -> 0 | AU126: ='3. KM POLLUANTS'!AP30 -> 0 | AW126: ='3. KM POLLUANTS'!AR30 -> 0 | AY126: ='3. KM POLLUANTS'!AT30 -> 0
D127: Véhicule personnel [km] | F127: ='3. KM POLLUANTS'!A31 -> Véhicule personnel [km] | G127: ='3. KM POLLUANTS'!B$29 -> 0 | I127: ='3. KM POLLUANTS'!D31 -> 0 | K127: ='3. KM POLLUANTS'!F31 -> 0 | M127: ='3. KM POLLUANTS'!H31 -> 0 | O127: ='3. KM POLLUANTS'!J31 -> 0 | Q127: ='3. KM POLLUANTS'!L31 -> 0 | S127: ='3. KM POLLUANTS'!N31 -> 0 | U127: ='3. KM POLLUANTS'!P31 -> 0 | W127: ='3. KM POLLUANTS'!R31 -> 0 | Y127: ='3. KM POLLUANTS'!T31 -> 0 | AA127: ='3. KM POLLUANTS'!V31 -> 0 | AC127: ='3. KM POLLUANTS'!X31 -> 0 | AE127: ='3. KM POLLUANTS'!Z31 -> 0 | AG127: ='3. KM POLLUANTS'!AB31 -> 0 | AI127: ='3. KM POLLUANTS'!AD31 -> 0 | AK127: ='3. KM POLLUANTS'!AF31 -> 0 | AM127: ='3. KM POLLUANTS'!AH31 -> 0 | AO127: ='3. KM POLLUANTS'!AJ31 -> 0 | AQ127: ='3. KM POLLUANTS'!AL31 -> 0 | AS127: ='3. KM POLLUANTS'!AN31 -> 0 | AU127: ='3. KM POLLUANTS'!AP31 -> 0 | AW127: ='3. KM POLLUANTS'!AR31 -> 0 | AY127: ='3. KM POLLUANTS'!AT31 -> 0
D128: Passager en covoiturage [km] | F128: ='3. KM POLLUANTS'!A25 -> Passager covoiturage [km] | G128: ='3. KM POLLUANTS'!B$31 -> 0 | I128: ='3. KM POLLUANTS'!D25 -> 0 | K128: ='3. KM POLLUANTS'!F25 -> 0 | M128: ='3. KM POLLUANTS'!H25 -> 0 | O128: ='3. KM POLLUANTS'!J25 -> 0 | Q128: ='3. KM POLLUANTS'!L25 -> 0 | S128: ='3. KM POLLUANTS'!N25 -> 0 | U128: ='3. KM POLLUANTS'!P25 -> 0 | W128: ='3. KM POLLUANTS'!R25 -> 0 | Y128: ='3. KM POLLUANTS'!T25 -> 0 | AA128: ='3. KM POLLUANTS'!V25 -> 0 | AC128: ='3. KM POLLUANTS'!X25 -> 0 | AE128: ='3. KM POLLUANTS'!Z25 -> 0 | AG128: ='3. KM POLLUANTS'!AB25 -> 0 | AI128: ='3. KM POLLUANTS'!AD25 -> 0 | AK128: ='3. KM POLLUANTS'!AF25 -> 0 | AM128: ='3. KM POLLUANTS'!AH25 -> 0 | AO128: ='3. KM POLLUANTS'!AJ25 -> 0 | AQ128: ='3. KM POLLUANTS'!AL25 -> 0 | AS128: ='3. KM POLLUANTS'!AN25 -> 0 | AU128: ='3. KM POLLUANTS'!AP25 -> 0 | AW128: ='3. KM POLLUANTS'!AR25 -> 0 | AY128: ='3. KM POLLUANTS'!AT25 -> 0
D129: Taxi [km] | F129: ='3. KM POLLUANTS'!A24 -> Taxi [km] | G129: ='3. KM POLLUANTS'!B$32 -> 0 | I129: ='3. KM POLLUANTS'!D24 -> 0 | K129: ='3. KM POLLUANTS'!F24 -> 0 | M129: ='3. KM POLLUANTS'!H24 -> 0 | O129: ='3. KM POLLUANTS'!J24 -> 0 | Q129: ='3. KM POLLUANTS'!L24 -> 0 | S129: ='3. KM POLLUANTS'!N24 -> 0 | U129: ='3. KM POLLUANTS'!P24 -> 0 | W129: ='3. KM POLLUANTS'!R24 -> 0 | Y129: ='3. KM POLLUANTS'!T24 -> 0 | AA129: ='3. KM POLLUANTS'!V24 -> 0 | AC129: ='3. KM POLLUANTS'!X24 -> 0 | AE129: ='3. KM POLLUANTS'!Z24 -> 0 | AG129: ='3. KM POLLUANTS'!AB24 -> 0 | AI129: ='3. KM POLLUANTS'!AD24 -> 0 | AK129: ='3. KM POLLUANTS'!AF24 -> 0 | AM129: ='3. KM POLLUANTS'!AH24 -> 0 | AO129: ='3. KM POLLUANTS'!AJ24 -> 0 | AQ129: ='3. KM POLLUANTS'!AL24 -> 0 | AS129: ='3. KM POLLUANTS'!AN24 -> 0 | AU129: ='3. KM POLLUANTS'!AP24 -> 0 | AW129: ='3. KM POLLUANTS'!AR24 -> 0 | AY129: ='3. KM POLLUANTS'!AT24 -> 0
D130: Avion [km] | F130: ='3. KM POLLUANTS'!A32 -> Avion [km] | G130: ='3. KM POLLUANTS'!B$25 -> 0 | I130: ='3. KM POLLUANTS'!D32 -> 0 | K130: ='3. KM POLLUANTS'!F32 -> 0 | M130: ='3. KM POLLUANTS'!H32 -> 0 | O130: ='3. KM POLLUANTS'!J32 -> 0 | Q130: ='3. KM POLLUANTS'!L32 -> 0 | S130: ='3. KM POLLUANTS'!N32 -> 0 | U130: ='3. KM POLLUANTS'!P32 -> 0 | W130: ='3. KM POLLUANTS'!R32 -> 0 | Y130: ='3. KM POLLUANTS'!T32 -> 0 | AA130: ='3. KM POLLUANTS'!V32 -> 0 | AC130: ='3. KM POLLUANTS'!X32 -> 0 | AE130: ='3. KM POLLUANTS'!Z32 -> 0 | AG130: ='3. KM POLLUANTS'!AB32 -> 0 | AI130: ='3. KM POLLUANTS'!AD32 -> 0 | AK130: ='3. KM POLLUANTS'!AF32 -> 0 | AM130: ='3. KM POLLUANTS'!AH32 -> 0 | AO130: ='3. KM POLLUANTS'!AJ32 -> 0 | AQ130: ='3. KM POLLUANTS'!AL32 -> 0 | AS130: ='3. KM POLLUANTS'!AN32 -> 0 | AU130: ='3. KM POLLUANTS'!AP32 -> 0 | AW130: ='3. KM POLLUANTS'!AR32 -> 0 | AY130: ='3. KM POLLUANTS'!AT32 -> 0
A131: Autres déplacements | C131: Déplacements pour lesquels il y a des émissions de GES | D131: Train [km] | F131: ='3. KM POLLUANTS'!A29 -> Train [km] | G131: ='3. KM POLLUANTS'!B$24 -> 0 | I131: ='3. KM POLLUANTS'!D29 -> 0 | K131: ='3. KM POLLUANTS'!F29 -> 0 | M131: ='3. KM POLLUANTS'!H29 -> 0 | O131: ='3. KM POLLUANTS'!J29 -> 0 | Q131: ='3. KM POLLUANTS'!L29 -> 0 | S131: ='3. KM POLLUANTS'!N29 -> 0 | U131: ='3. KM POLLUANTS'!P29 -> 0 | W131: ='3. KM POLLUANTS'!R29 -> 0 | Y131: ='3. KM POLLUANTS'!T29 -> 0 | AA131: ='3. KM POLLUANTS'!V29 -> 0 | AC131: ='3. KM POLLUANTS'!X29 -> 0 | AE131: ='3. KM POLLUANTS'!Z29 -> 0 | AG131: ='3. KM POLLUANTS'!AB29 -> 0 | AI131: ='3. KM POLLUANTS'!AD29 -> 0 | AK131: ='3. KM POLLUANTS'!AF29 -> 0 | AM131: ='3. KM POLLUANTS'!AH29 -> 0 | AO131: ='3. KM POLLUANTS'!AJ29 -> 0 | AQ131: ='3. KM POLLUANTS'!AL29 -> 0 | AS131: ='3. KM POLLUANTS'!AN29 -> 0 | AU131: ='3. KM POLLUANTS'!AP29 -> 0 | AW131: ='3. KM POLLUANTS'!AR29 -> 0 | AY131: ='3. KM POLLUANTS'!AT29 -> 0
D132: Autobus interurbain [km] | F132: ='3. KM POLLUANTS'!A27 -> Autobus interurbain [km] | G132: ='3. KM POLLUANTS'!B$26 -> 0 | I132: ='3. KM POLLUANTS'!D27 -> 0 | K132: ='3. KM POLLUANTS'!F27 -> 0 | M132: ='3. KM POLLUANTS'!H27 -> 0 | O132: ='3. KM POLLUANTS'!J27 -> 0 | Q132: ='3. KM POLLUANTS'!L27 -> 0 | S132: ='3. KM POLLUANTS'!N27 -> 0 | U132: ='3. KM POLLUANTS'!P27 -> 0 | W132: ='3. KM POLLUANTS'!R27 -> 0 | Y132: ='3. KM POLLUANTS'!T27 -> 0 | AA132: ='3. KM POLLUANTS'!V27 -> 0 | AC132: ='3. KM POLLUANTS'!X27 -> 0 | AE132: ='3. KM POLLUANTS'!Z27 -> 0 | AG132: ='3. KM POLLUANTS'!AB27 -> 0 | AI132: ='3. KM POLLUANTS'!AD27 -> 0 | AK132: ='3. KM POLLUANTS'!AF27 -> 0 | AM132: ='3. KM POLLUANTS'!AH27 -> 0 | AO132: ='3. KM POLLUANTS'!AJ27 -> 0 | AQ132: ='3. KM POLLUANTS'!AL27 -> 0 | AS132: ='3. KM POLLUANTS'!AN27 -> 0 | AU132: ='3. KM POLLUANTS'!AP27 -> 0 | AW132: ='3. KM POLLUANTS'!AR27 -> 0 | AY132: ='3. KM POLLUANTS'!AT27 -> 0
D133: Autobus urbain [km] | F133: ='3. KM POLLUANTS'!A26 -> Autobus urbain [km] | G133: ='3. KM POLLUANTS'!B$27 -> 0 | I133: ='3. KM POLLUANTS'!D26 -> 0 | K133: ='3. KM POLLUANTS'!F26 -> 0 | M133: ='3. KM POLLUANTS'!H26 -> 0 | O133: ='3. KM POLLUANTS'!J26 -> 0 | Q133: ='3. KM POLLUANTS'!L26 -> 0 | S133: ='3. KM POLLUANTS'!N26 -> 0 | U133: ='3. KM POLLUANTS'!P26 -> 0 | W133: ='3. KM POLLUANTS'!R26 -> 0 | Y133: ='3. KM POLLUANTS'!T26 -> 0 | AA133: ='3. KM POLLUANTS'!V26 -> 0 | AC133: ='3. KM POLLUANTS'!X26 -> 0 | AE133: ='3. KM POLLUANTS'!Z26 -> 0 | AG133: ='3. KM POLLUANTS'!AB26 -> 0 | AI133: ='3. KM POLLUANTS'!AD26 -> 0 | AK133: ='3. KM POLLUANTS'!AF26 -> 0 | AM133: ='3. KM POLLUANTS'!AH26 -> 0 | AO133: ='3. KM POLLUANTS'!AJ26 -> 0 | AQ133: ='3. KM POLLUANTS'!AL26 -> 0 | AS133: ='3. KM POLLUANTS'!AN26 -> 0 | AU133: ='3. KM POLLUANTS'!AP26 -> 0 | AW133: ='3. KM POLLUANTS'!AR26 -> 0 | AY133: ='3. KM POLLUANTS'!AT26 -> 0
D134: Métro [km] | F134: ='3. KM POLLUANTS'!A28 -> Métro [km] | G134: ='3. KM POLLUANTS'!B$30 -> 0 | I134: ='3. KM POLLUANTS'!D28 -> 0 | K134: ='3. KM POLLUANTS'!F28 -> 0 | M134: ='3. KM POLLUANTS'!H28 -> 0 | O134: ='3. KM POLLUANTS'!J28 -> 0 | Q134: ='3. KM POLLUANTS'!L28 -> 0 | S134: ='3. KM POLLUANTS'!N28 -> 0 | U134: ='3. KM POLLUANTS'!P28 -> 0 | W134: ='3. KM POLLUANTS'!R28 -> 0 | Y134: ='3. KM POLLUANTS'!T28 -> 0 | AA134: ='3. KM POLLUANTS'!V28 -> 0 | AC134: ='3. KM POLLUANTS'!X28 -> 0 | AE134: ='3. KM POLLUANTS'!Z28 -> 0 | AG134: ='3. KM POLLUANTS'!AB28 -> 0 | AI134: ='3. KM POLLUANTS'!AD28 -> 0 | AK134: ='3. KM POLLUANTS'!AF28 -> 0 | AM134: ='3. KM POLLUANTS'!AH28 -> 0 | AO134: ='3. KM POLLUANTS'!AJ28 -> 0 | AQ134: ='3. KM POLLUANTS'!AL28 -> 0 | AS134: ='3. KM POLLUANTS'!AN28 -> 0 | AU134: ='3. KM POLLUANTS'!AP28 -> 0 | AW134: ='3. KM POLLUANTS'!AR28 -> 0 | AY134: ='3. KM POLLUANTS'!AT28 -> 0
C138: Déplacements ZÉRO émissions de GES | D138: Bicyclette [km] | F138: ='4. KM ZÉRO ÉMISSION'!A12 -> À bicyclette [km] | G138: ='4. KM ZÉRO ÉMISSION'!B$12 -> 0 | I138: ='4. KM ZÉRO ÉMISSION'!D12 -> 0 | K138: ='4. KM ZÉRO ÉMISSION'!F12 -> 0 | M138: ='4. KM ZÉRO ÉMISSION'!H12 -> 0 | O138: ='4. KM ZÉRO ÉMISSION'!J12 -> 0 | Q138: ='4. KM ZÉRO ÉMISSION'!L12 -> 0 | S138: ='4. KM ZÉRO ÉMISSION'!N12 -> 0 | U138: ='4. KM ZÉRO ÉMISSION'!P12 -> 0 | W138: ='4. KM ZÉRO ÉMISSION'!R12 -> 0 | Y138: ='4. KM ZÉRO ÉMISSION'!T12 -> 0 | AA138: ='4. KM ZÉRO ÉMISSION'!V12 -> 0 | AC138: ='4. KM ZÉRO ÉMISSION'!X12 -> 0 | AE138: ='4. KM ZÉRO ÉMISSION'!Z12 -> 0 | AG138: ='4. KM ZÉRO ÉMISSION'!AB12 -> 0 | AI138: ='4. KM ZÉRO ÉMISSION'!AD12 -> 0 | AK138: ='4. KM ZÉRO ÉMISSION'!AF12 -> 0 | AM138: ='4. KM ZÉRO ÉMISSION'!AH12 -> 0 | AO138: ='4. KM ZÉRO ÉMISSION'!AJ12 -> 0 | AQ138: ='4. KM ZÉRO ÉMISSION'!AL12 -> 0 | AS138: ='4. KM ZÉRO ÉMISSION'!AN12 -> 0 | AU138: ='4. KM ZÉRO ÉMISSION'!AP12 -> 0 | AW138: ='4. KM ZÉRO ÉMISSION'!AR12 -> 0 | AY138: ='4. KM ZÉRO ÉMISSION'!AT12 -> 0
D139: À pied [km] | F139: ='4. KM ZÉRO ÉMISSION'!A11 -> À pied [km] | G139: ='4. KM ZÉRO ÉMISSION'!B$11 -> 0 | I139: ='4. KM ZÉRO ÉMISSION'!D11 -> 0 | K139: ='4. KM ZÉRO ÉMISSION'!F11 -> 0 | M139: ='4. KM ZÉRO ÉMISSION'!H11 -> 0 | O139: ='4. KM ZÉRO ÉMISSION'!J11 -> 0 | Q139: ='4. KM ZÉRO ÉMISSION'!L11 -> 0 | S139: ='4. KM ZÉRO ÉMISSION'!N11 -> 0 | U139: ='4. KM ZÉRO ÉMISSION'!P11 -> 0 | W139: ='4. KM ZÉRO ÉMISSION'!R11 -> 0 | Y139: ='4. KM ZÉRO ÉMISSION'!T11 -> 0 | AA139: ='4. KM ZÉRO ÉMISSION'!V11 -> 0 | AC139: ='4. KM ZÉRO ÉMISSION'!X11 -> 0 | AE139: ='4. KM ZÉRO ÉMISSION'!Z11 -> 0 | AG139: ='4. KM ZÉRO ÉMISSION'!AB11 -> 0 | AI139: ='4. KM ZÉRO ÉMISSION'!AD11 -> 0 | AK139: ='4. KM ZÉRO ÉMISSION'!AF11 -> 0 | AM139: ='4. KM ZÉRO ÉMISSION'!AH11 -> 0 | AO139: ='4. KM ZÉRO ÉMISSION'!AJ11 -> 0 | AQ139: ='4. KM ZÉRO ÉMISSION'!AL11 -> 0 | AS139: ='4. KM ZÉRO ÉMISSION'!AN11 -> 0 | AU139: ='4. KM ZÉRO ÉMISSION'!AP11 -> 0 | AW139: ='4. KM ZÉRO ÉMISSION'!AR11 -> 0 | AY139: ='4. KM ZÉRO ÉMISSION'!AT11 -> 0
D140: Autres [km] | F140: ='4. KM ZÉRO ÉMISSION'!A13 -> Autres mesures [km] | G140: ='4. KM ZÉRO ÉMISSION'!B$13 -> 0 | I140: ='4. KM ZÉRO ÉMISSION'!D13 -> 0 | K140: ='4. KM ZÉRO ÉMISSION'!F13 -> 0 | M140: ='4. KM ZÉRO ÉMISSION'!H13 -> 0 | O140: ='4. KM ZÉRO ÉMISSION'!J13 -> 0 | Q140: ='4. KM ZÉRO ÉMISSION'!L13 -> 0 | S140: ='4. KM ZÉRO ÉMISSION'!N13 -> 0 | U140: ='4. KM ZÉRO ÉMISSION'!P13 -> 0 | W140: ='4. KM ZÉRO ÉMISSION'!R13 -> 0 | Y140: ='4. KM ZÉRO ÉMISSION'!T13 -> 0 | AA140: ='4. KM ZÉRO ÉMISSION'!V13 -> 0 | AC140: ='4. KM ZÉRO ÉMISSION'!X13 -> 0 | AE140: ='4. KM ZÉRO ÉMISSION'!Z13 -> 0 | AG140: ='4. KM ZÉRO ÉMISSION'!AB13 -> 0 | AI140: ='4. KM ZÉRO ÉMISSION'!AD13 -> 0 | AK140: ='4. KM ZÉRO ÉMISSION'!AF13 -> 0 | AM140: ='4. KM ZÉRO ÉMISSION'!AH13 -> 0 | AO140: ='4. KM ZÉRO ÉMISSION'!AJ13 -> 0 | AQ140: ='4. KM ZÉRO ÉMISSION'!AL13 -> 0 | AS140: ='4. KM ZÉRO ÉMISSION'!AN13 -> 0 | AU140: ='4. KM ZÉRO ÉMISSION'!AP13 -> 0 | AW140: ='4. KM ZÉRO ÉMISSION'!AR13 -> 0 | AY140: ='4. KM ZÉRO ÉMISSION'!AT13 -> 0
D141: TOTAL [km] | F141: ='4. KM ZÉRO ÉMISSION'!A14 -> Total [km] | G141: ='4. KM ZÉRO ÉMISSION'!B$14 -> 0 | I141: ='4. KM ZÉRO ÉMISSION'!D14 -> 0 | K141: ='4. KM ZÉRO ÉMISSION'!F14 -> 0 | M141: ='4. KM ZÉRO ÉMISSION'!H14 -> 0 | O141: ='4. KM ZÉRO ÉMISSION'!J14 -> 0 | Q141: ='4. KM ZÉRO ÉMISSION'!L14 -> 0 | S141: ='4. KM ZÉRO ÉMISSION'!N14 -> 0 | U141: ='4. KM ZÉRO ÉMISSION'!P14 -> 0 | W141: ='4. KM ZÉRO ÉMISSION'!R14 -> 0 | Y141: ='4. KM ZÉRO ÉMISSION'!T14 -> 0 | AA141: ='4. KM ZÉRO ÉMISSION'!V14 -> 0 | AC141: ='4. KM ZÉRO ÉMISSION'!X14 -> 0 | AE141: ='4. KM ZÉRO ÉMISSION'!Z14 -> 0 | AG141: ='4. KM ZÉRO ÉMISSION'!AB14 -> 0 | AI141: ='4. KM ZÉRO ÉMISSION'!AD14 -> 0 | AK141: ='4. KM ZÉRO ÉMISSION'!AF14 -> 0 | AM141: ='4. KM ZÉRO ÉMISSION'!AH14 -> 0 | AO141: ='4. KM ZÉRO ÉMISSION'!AJ14 -> 0 | AQ141: ='4. KM ZÉRO ÉMISSION'!AL14 -> 0 | AS141: ='4. KM ZÉRO ÉMISSION'!AN14 -> 0 | AU141: ='4. KM ZÉRO ÉMISSION'!AP14 -> 0 | AW141: ='4. KM ZÉRO ÉMISSION'!AR14 -> 0 | AY141: ='4. KM ZÉRO ÉMISSION'!AT14 -> 0
C142: Déplacements ÉVITÉS | D142: Téléconférence [km] | F142: ='4. KM ZÉRO ÉMISSION'!A17 -> Téléconférences [km] | G142: ='4. KM ZÉRO ÉMISSION'!B$17 -> 0 | I142: ='4. KM ZÉRO ÉMISSION'!D17 -> 0 | K142: ='4. KM ZÉRO ÉMISSION'!F17 -> 0 | M142: ='4. KM ZÉRO ÉMISSION'!H17 -> 0 | O142: ='4. KM ZÉRO ÉMISSION'!J17 -> 0 | Q142: ='4. KM ZÉRO ÉMISSION'!L17 -> 0 | S142: ='4. KM ZÉRO ÉMISSION'!N17 -> 0 | U142: ='4. KM ZÉRO ÉMISSION'!P17 -> 0 | W142: ='4. KM ZÉRO ÉMISSION'!R17 -> 0 | Y142: ='4. KM ZÉRO ÉMISSION'!T17 -> 0 | AA142: ='4. KM ZÉRO ÉMISSION'!V17 -> 0 | AC142: ='4. KM ZÉRO ÉMISSION'!X17 -> 0 | AE142: ='4. KM ZÉRO ÉMISSION'!Z17 -> 0 | AG142: ='4. KM ZÉRO ÉMISSION'!AB17 -> 0 | AI142: ='4. KM ZÉRO ÉMISSION'!AD17 -> 0 | AK142: ='4. KM ZÉRO ÉMISSION'!AF17 -> 0 | AM142: ='4. KM ZÉRO ÉMISSION'!AH17 -> 0 | AO142: ='4. KM ZÉRO ÉMISSION'!AJ17 -> 0 | AQ142: ='4. KM ZÉRO ÉMISSION'!AL17 -> 0 | AS142: ='4. KM ZÉRO ÉMISSION'!AN17 -> 0 | AU142: ='4. KM ZÉRO ÉMISSION'!AP17 -> 0 | AW142: ='4. KM ZÉRO ÉMISSION'!AR17 -> 0 | AY142: ='4. KM ZÉRO ÉMISSION'!AT17 -> 0
D143: Autres mesures [km] | F143: ='4. KM ZÉRO ÉMISSION'!A18 -> Autres mesures [km] | G143: ='4. KM ZÉRO ÉMISSION'!B$18 -> 0 | I143: ='4. KM ZÉRO ÉMISSION'!D18 -> 0 | K143: ='4. KM ZÉRO ÉMISSION'!F18 -> 0 | M143: ='4. KM ZÉRO ÉMISSION'!H18 -> 0 | O143: ='4. KM ZÉRO ÉMISSION'!J18 -> 0 | Q143: ='4. KM ZÉRO ÉMISSION'!L18 -> 0 | S143: ='4. KM ZÉRO ÉMISSION'!N18 -> 0 | U143: ='4. KM ZÉRO ÉMISSION'!P18 -> 0 | W143: ='4. KM ZÉRO ÉMISSION'!R18 -> 0 | Y143: ='4. KM ZÉRO ÉMISSION'!T18 -> 0 | AA143: ='4. KM ZÉRO ÉMISSION'!V18 -> 0 | AC143: ='4. KM ZÉRO ÉMISSION'!X18 -> 0 | AE143: ='4. KM ZÉRO ÉMISSION'!Z18 -> 0 | AG143: ='4. KM ZÉRO ÉMISSION'!AB18 -> 0 | AI143: ='4. KM ZÉRO ÉMISSION'!AD18 -> 0 | AK143: ='4. KM ZÉRO ÉMISSION'!AF18 -> 0 | AM143: ='4. KM ZÉRO ÉMISSION'!AH18 -> 0 | AO143: ='4. KM ZÉRO ÉMISSION'!AJ18 -> 0 | AQ143: ='4. KM ZÉRO ÉMISSION'!AL18 -> 0 | AS143: ='4. KM ZÉRO ÉMISSION'!AN18 -> 0 | AU143: ='4. KM ZÉRO ÉMISSION'!AP18 -> 0 | AW143: ='4. KM ZÉRO ÉMISSION'!AR18 -> 0 | AY143: ='4. KM ZÉRO ÉMISSION'!AT18 -> 0
D144: TOTAL [km] | F144: ='4. KM ZÉRO ÉMISSION'!A19 -> Total [km] | G144: ='4. KM ZÉRO ÉMISSION'!B$19 -> 0 | I144: ='4. KM ZÉRO ÉMISSION'!D19 -> 0 | K144: ='4. KM ZÉRO ÉMISSION'!F19 -> 0 | M144: ='4. KM ZÉRO ÉMISSION'!H19 -> 0 | O144: ='4. KM ZÉRO ÉMISSION'!J19 -> 0 | Q144: ='4. KM ZÉRO ÉMISSION'!L19 -> 0 | S144: ='4. KM ZÉRO ÉMISSION'!N19 -> 0 | U144: ='4. KM ZÉRO ÉMISSION'!P19 -> 0 | W144: ='4. KM ZÉRO ÉMISSION'!R19 -> 0 | Y144: ='4. KM ZÉRO ÉMISSION'!T19 -> 0 | AA144: ='4. KM ZÉRO ÉMISSION'!V19 -> 0 | AC144: ='4. KM ZÉRO ÉMISSION'!X19 -> 0 | AE144: ='4. KM ZÉRO ÉMISSION'!Z19 -> 0 | AG144: ='4. KM ZÉRO ÉMISSION'!AB19 -> 0 | AI144: ='4. KM ZÉRO ÉMISSION'!AD19 -> 0 | AK144: ='4. KM ZÉRO ÉMISSION'!AF19 -> 0 | AM144: ='4. KM ZÉRO ÉMISSION'!AH19 -> 0 | AO144: ='4. KM ZÉRO ÉMISSION'!AJ19 -> 0 | AQ144: ='4. KM ZÉRO ÉMISSION'!AL19 -> 0 | AS144: ='4. KM ZÉRO ÉMISSION'!AN19 -> 0 | AU144: ='4. KM ZÉRO ÉMISSION'!AP19 -> 0 | AW144: ='4. KM ZÉRO ÉMISSION'!AR19 -> 0 | AY144: ='4. KM ZÉRO ÉMISSION'!AT19 -> 0
A147: Identification et coordonnées | C147: Concatener (cette colonne permet la géeneration des données sur les rapports personnalisés) | G147: =CONCATENATE(G149,"-",G148) -> 2002-2003- | I147: =CONCATENATE(I149,"-",I148) -> 2003-2004- | K147: =CONCATENATE(K149,"-",K148) -> 2004-2005- | M147: =CONCATENATE(M149,"-",M148) -> 2005-2006- | O147: =CONCATENATE(O149,"-",O148) -> 2006-2007- | Q147: =CONCATENATE(Q149,"-",Q148) -> 2007-2008- | S147: =CONCATENATE(S149,"-",S148) -> 2008-2009- | U147: =CONCATENATE(U149,"-",U148) -> 2009-2010- | W147: =CONCATENATE(W149,"-",W148) -> 2010-2011- | Y147: =CONCATENATE(Y149,"-",Y148) -> 2011-2012- | AA147: =CONCATENATE(AA149,"-",AA148) -> 2012-2013- | AC147: =CONCATENATE(AC149,"-",AC148) -> 2013-2014- | AE147: =CONCATENATE(AE149,"-",AE148) -> 2014-2015- | AG147: =CONCATENATE(AG149,"-",AG148) -> 2015-2016- | AI147: =CONCATENATE(AI149,"-",AI148) -> 2016-2017- | AK147: =CONCATENATE(AK149,"-",AK148) -> 2017-2018- | AM147: =CONCATENATE(AM149,"-",AM148) -> 2018-2019- | AO147: =CONCATENATE(AO149,"-",AO148) -> 2019-2020- | AQ147: =CONCATENATE(AQ149,"-",AQ148) -> 2020-2021- | AS147: =CONCATENATE(AS149,"-",AS148) -> 2021-2022- | AU147: =CONCATENATE(AU149,"-",AU148) -> 2022-2023- | AW147: =CONCATENATE(AW149,"-",AW148) -> 2023-2024- | AY147: =CONCATENATE(AY149,"-",AY148) -> 2024-2025-
C148: Code du ministére | G148: =IF('1. IDENTITÉ'!$B$11<>0,'1. IDENTITÉ'!$B$11,IF(ISERROR(VLOOKUP(G151,ListeMO!$A$3:$B$135,2,FALSE)),"",VLOOKUP(G151,ListeMO!$A$3:$B$135,2,FALSE))) ->  | I148: =IF('1. IDENTITÉ'!$B$11<>0,'1. IDENTITÉ'!$B$11,IF(ISERROR(VLOOKUP(I151,ListeMO!$A$3:$B$135,2,FALSE)),"",VLOOKUP(I151,ListeMO!$A$3:$B$135,2,FALSE))) ->  | K148: =IF('1. IDENTITÉ'!$B$11<>0,'1. IDENTITÉ'!$B$11,IF(ISERROR(VLOOKUP(K151,ListeMO!$A$3:$B$135,2,FALSE)),"",VLOOKUP(K151,ListeMO!$A$3:$B$135,2,FALSE))) ->  | M148: =IF('1. IDENTITÉ'!$B$11<>0,'1. IDENTITÉ'!$B$11,IF(ISERROR(VLOOKUP(M151,ListeMO!$A$3:$B$135,2,FALSE)),"",VLOOKUP(M151,ListeMO!$A$3:$B$135,2,FALSE))) ->  | O148: =IF('1. IDENTITÉ'!$B$11<>0,'1. IDENTITÉ'!$B$11,IF(ISERROR(VLOOKUP(O151,ListeMO!$A$3:$B$135,2,FALSE)),"",VLOOKUP(O151,ListeMO!$A$3:$B$135,2,FALSE))) ->  | Q148: =IF('1. IDENTITÉ'!$B$11<>0,'1. IDENTITÉ'!$B$11,IF(ISERROR(VLOOKUP(Q151,ListeMO!$A$3:$B$135,2,FALSE)),"",VLOOKUP(Q151,ListeMO!$A$3:$B$135,2,FALSE))) ->  | S148: =IF('1. IDENTITÉ'!$B$11<>0,'1. IDENTITÉ'!$B$11,IF(ISERROR(VLOOKUP(S151,ListeMO!$A$3:$B$135,2,FALSE)),"",VLOOKUP(S151,ListeMO!$A$3:$B$135,2,FALSE))) ->  | U148: =IF('1. IDENTITÉ'!$B$11<>0,'1. IDENTITÉ'!$B$11,IF(ISERROR(VLOOKUP(U151,ListeMO!$A$3:$B$135,2,FALSE)),"",VLOOKUP(U151,ListeMO!$A$3:$B$135,2,FALSE))) ->  | W148: =IF('1. IDENTITÉ'!$B$11<>0,'1. IDENTITÉ'!$B$11,IF(ISERROR(VLOOKUP(W151,ListeMO!$A$3:$B$135,2,FALSE)),"",VLOOKUP(W151,ListeMO!$A$3:$B$135,2,FALSE))) ->  | Y148: =IF('1. IDENTITÉ'!$B$11<>0,'1. IDENTITÉ'!$B$11,IF(ISERROR(VLOOKUP(Y151,ListeMO!$A$3:$B$135,2,FALSE)),"",VLOOKUP(Y151,ListeMO!$A$3:$B$135,2,FALSE))) ->  | AA148: =IF('1. IDENTITÉ'!$B$11<>0,'1. IDENTITÉ'!$B$11,IF(ISERROR(VLOOKUP(AA151,ListeMO!$A$3:$B$135,2,FALSE)),"",VLOOKUP(AA151,ListeMO!$A$3:$B$135,2,FALSE))) ->  | AC148: =IF('1. IDENTITÉ'!$B$11<>0,'1. IDENTITÉ'!$B$11,IF(ISERROR(VLOOKUP(AC151,ListeMO!$A$3:$B$135,2,FALSE)),"",VLOOKUP(AC151,ListeMO!$A$3:$B$135,2,FALSE))) ->  | AE148: =IF('1. IDENTITÉ'!$B$11<>0,'1. IDENTITÉ'!$B$11,IF(ISERROR(VLOOKUP(AE151,ListeMO!$A$3:$B$135,2,FALSE)),"",VLOOKUP(AE151,ListeMO!$A$3:$B$135,2,FALSE))) ->  | AG148: =IF('1. IDENTITÉ'!$B$11<>0,'1. IDENTITÉ'!$B$11,IF(ISERROR(VLOOKUP(AG151,ListeMO!$A$3:$B$135,2,FALSE)),"",VLOOKUP(AG151,ListeMO!$A$3:$B$135,2,FALSE))) ->  | AI148: =IF('1. IDENTITÉ'!$B$11<>0,'1. IDENTITÉ'!$B$11,IF(ISERROR(VLOOKUP(AI151,ListeMO!$A$3:$B$135,2,FALSE)),"",VLOOKUP(AI151,ListeMO!$A$3:$B$135,2,FALSE))) ->  | AK148: =IF('1. IDENTITÉ'!$B$11<>0,'1. IDENTITÉ'!$B$11,IF(ISERROR(VLOOKUP(AK151,ListeMO!$A$3:$B$135,2,FALSE)),"",VLOOKUP(AK151,ListeMO!$A$3:$B$135,2,FALSE))) ->  | AM148: =IF('1. IDENTITÉ'!$B$11<>0,'1. IDENTITÉ'!$B$11,IF(ISERROR(VLOOKUP(AM151,ListeMO!$A$3:$B$135,2,FALSE)),"",VLOOKUP(AM151,ListeMO!$A$3:$B$135,2,FALSE))) ->  | AO148: =IF('1. IDENTITÉ'!$B$11<>0,'1. IDENTITÉ'!$B$11,IF(ISERROR(VLOOKUP(AO151,ListeMO!$A$3:$B$135,2,FALSE)),"",VLOOKUP(AO151,ListeMO!$A$3:$B$135,2,FALSE))) ->  | AQ148: =IF('1. IDENTITÉ'!$B$11<>0,'1. IDENTITÉ'!$B$11,IF(ISERROR(VLOOKUP(AQ151,ListeMO!$A$3:$B$135,2,FALSE)),"",VLOOKUP(AQ151,ListeMO!$A$3:$B$135,2,FALSE))) ->  | AS148: =IF('1. IDENTITÉ'!$B$11<>0,'1. IDENTITÉ'!$B$11,IF(ISERROR(VLOOKUP(AS151,ListeMO!$A$3:$B$135,2,FALSE)),"",VLOOKUP(AS151,ListeMO!$A$3:$B$135,2,FALSE))) ->  | AU148: =IF('1. IDENTITÉ'!$B$11<>0,'1. IDENTITÉ'!$B$11,IF(ISERROR(VLOOKUP(AU151,ListeMO!$A$3:$B$135,2,FALSE)),"",VLOOKUP(AU151,ListeMO!$A$3:$B$135,2,FALSE))) ->  | AW148: =IF('1. IDENTITÉ'!$B$11<>0,'1. IDENTITÉ'!$B$11,IF(ISERROR(VLOOKUP(AW151,ListeMO!$A$3:$B$135,2,FALSE)),"",VLOOKUP(AW151,ListeMO!$A$3:$B$135,2,FALSE))) ->  | AY148: =IF('1. IDENTITÉ'!$B$11<>0,'1. IDENTITÉ'!$B$11,IF(ISERROR(VLOOKUP(AY151,ListeMO!$A$3:$B$135,2,FALSE)),"",VLOOKUP(AY151,ListeMO!$A$3:$B$135,2,FALSE))) -> 
C149: Année (Rapport BEIE) | F149: ='2. CARBURANT (Véhicules légers)'!A71 -> 0 | G149: ='2. CARBURANT (Véhicules lourds)'!B9 -> 2002-2003 | I149: ='2. CARBURANT (Véhicules lourds)'!D9 -> 2003-2004 | K149: ='2. CARBURANT (Véhicules lourds)'!F9 -> 2004-2005 | M149: ='2. CARBURANT (Véhicules lourds)'!H9 -> 2005-2006 | O149: ='2. CARBURANT (Véhicules lourds)'!J9 -> 2006-2007 | Q149: ='2. CARBURANT (Véhicules lourds)'!L9 -> 2007-2008 | S149: ='2. CARBURANT (Véhicules lourds)'!N9 -> 2008-2009 | U149: ='2. CARBURANT (Véhicules lourds)'!P9 -> 2009-2010 | W149: ='2. CARBURANT (Véhicules lourds)'!R9 -> 2010-2011 | Y149: ='2. CARBURANT (Véhicules lourds)'!T9 -> 2011-2012 | AA149: ='2. CARBURANT (Véhicules lourds)'!V9 -> 2012-2013 | AC149: ='2. CARBURANT (Véhicules lourds)'!X9 -> 2013-2014 | AE149: ='2. CARBURANT (Véhicules lourds)'!Z9 -> 2014-2015 | AG149: ='2. CARBURANT (Véhicules lourds)'!AB9 -> 2015-2016 | AI149: ='2. CARBURANT (Véhicules lourds)'!AD9 -> 2016-2017 | AK149: ='2. CARBURANT (Véhicules lourds)'!AF9 -> 2017-2018 | AM149: ='2. CARBURANT (Véhicules lourds)'!AH9 -> 2018-2019 | AO149: ='2. CARBURANT (Véhicules lourds)'!AJ9 -> 2019-2020 | AQ149: ='2. CARBURANT (Véhicules lourds)'!AL9 -> 2020-2021 | AS149: ='2. CARBURANT (Véhicules lourds)'!AN9 -> 2021-2022 | AU149: ='2. CARBURANT (Véhicules lourds)'!AP9 -> 2022-2023 | AW149: ='2. CARBURANT (Véhicules lourds)'!AR9 -> 2023-2024 | AY149: ='2. CARBURANT (Véhicules lourds)'!AT9 -> 2024-2025
C150: Ministère (acronyme) | F150: ='1. IDENTITÉ'!A67 -> Voici un exemple pour une quantité d'essence de 100 000 litres: | G150: ='1. IDENTITÉ'!$B$12 -> 0 | I150: ='1. IDENTITÉ'!$B$12 -> 0 | K150: ='1. IDENTITÉ'!$B$12 -> 0 | M150: ='1. IDENTITÉ'!$B$12 -> 0 | O150: ='1. IDENTITÉ'!$B$12 -> 0 | Q150: ='1. IDENTITÉ'!$B$12 -> 0 | S150: ='1. IDENTITÉ'!$B$12 -> 0 | U150: ='1. IDENTITÉ'!$B$12 -> 0 | W150: ='1. IDENTITÉ'!$B$12 -> 0 | Y150: ='1. IDENTITÉ'!$B$12 -> 0 | AA150: ='1. IDENTITÉ'!$B$12 -> 0 | AC150: ='1. IDENTITÉ'!$B$12 -> 0 | AE150: ='1. IDENTITÉ'!$B$12 -> 0 | AG150: ='1. IDENTITÉ'!$B$12 -> 0 | AI150: ='1. IDENTITÉ'!$B$12 -> 0 | AK150: ='1. IDENTITÉ'!$B$12 -> 0 | AM150: ='1. IDENTITÉ'!$B$12 -> 0 | AO150: ='1. IDENTITÉ'!$B$12 -> 0 | AQ150: ='1. IDENTITÉ'!$B$12 -> 0 | AS150: ='1. IDENTITÉ'!$B$12 -> 0 | AU150: ='1. IDENTITÉ'!$B$12 -> 0 | AW150: ='1. IDENTITÉ'!$B$12 -> 0 | AY150: ='1. IDENTITÉ'!$B$12 -> 0
C151: Ministère ou organisme | F151: ='1. IDENTITÉ'!A10 -> Ministère ou organisme : | G151: ='1. IDENTITÉ'!$B$10 -> NOM DE L'ENTITÉ | I151: ='1. IDENTITÉ'!$B$10 -> NOM DE L'ENTITÉ | K151: ='1. IDENTITÉ'!$B$10 -> NOM DE L'ENTITÉ | M151: ='1. IDENTITÉ'!$B$10 -> NOM DE L'ENTITÉ | O151: ='1. IDENTITÉ'!$B$10 -> NOM DE L'ENTITÉ | Q151: ='1. IDENTITÉ'!$B$10 -> NOM DE L'ENTITÉ | S151: ='1. IDENTITÉ'!$B$10 -> NOM DE L'ENTITÉ | U151: ='1. IDENTITÉ'!$B$10 -> NOM DE L'ENTITÉ | W151: ='1. IDENTITÉ'!$B$10 -> NOM DE L'ENTITÉ | Y151: ='1. IDENTITÉ'!$B$10 -> NOM DE L'ENTITÉ | AA151: ='1. IDENTITÉ'!$B$10 -> NOM DE L'ENTITÉ | AC151: ='1. IDENTITÉ'!$B$10 -> NOM DE L'ENTITÉ | AE151: ='1. IDENTITÉ'!$B$10 -> NOM DE L'ENTITÉ | AG151: ='1. IDENTITÉ'!$B$10 -> NOM DE L'ENTITÉ | AI151: ='1. IDENTITÉ'!$B$10 -> NOM DE L'ENTITÉ | AK151: ='1. IDENTITÉ'!$B$10 -> NOM DE L'ENTITÉ | AM151: ='1. IDENTITÉ'!$B$10 -> NOM DE L'ENTITÉ | AO151: ='1. IDENTITÉ'!$B$10 -> NOM DE L'ENTITÉ | AQ151: ='1. IDENTITÉ'!$B$10 -> NOM DE L'ENTITÉ | AS151: ='1. IDENTITÉ'!$B$10 -> NOM DE L'ENTITÉ | AU151: ='1. IDENTITÉ'!$B$10 -> NOM DE L'ENTITÉ | AW151: ='1. IDENTITÉ'!$B$10 -> NOM DE L'ENTITÉ | AY151: ='1. IDENTITÉ'!$B$10 -> NOM DE L'ENTITÉ
C152: Année de référence | F152: ='1. IDENTITÉ'!A76 -> 0 | G152: ='1. IDENTITÉ'!$B$21 -> 0 | I152: ='1. IDENTITÉ'!$B$21 -> 0 | K152: ='1. IDENTITÉ'!$B$21 -> 0 | M152: ='1. IDENTITÉ'!$B$21 -> 0 | O152: ='1. IDENTITÉ'!$B$21 -> 0 | Q152: ='1. IDENTITÉ'!$B$21 -> 0 | S152: ='1. IDENTITÉ'!$B$21 -> 0 | U152: ='1. IDENTITÉ'!$B$21 -> 0 | W152: ='1. IDENTITÉ'!$B$21 -> 0 | Y152: ='1. IDENTITÉ'!$B$21 -> 0 | AA152: ='1. IDENTITÉ'!$B$21 -> 0 | AC152: ='1. IDENTITÉ'!$B$21 -> 0 | AE152: ='1. IDENTITÉ'!$B$21 -> 0 | AG152: ='1. IDENTITÉ'!$B$21 -> 0 | AI152: ='1. IDENTITÉ'!$B$21 -> 0 | AK152: ='1. IDENTITÉ'!$B$21 -> 0 | AM152: ='1. IDENTITÉ'!$B$21 -> 0 | AO152: ='1. IDENTITÉ'!$B$21 -> 0 | AQ152: ='1. IDENTITÉ'!$B$21 -> 0 | AS152: ='1. IDENTITÉ'!$B$21 -> 0 | AU152: ='1. IDENTITÉ'!$B$21 -> 0 | AW152: ='1. IDENTITÉ'!$B$21 -> 0 | AY152: ='1. IDENTITÉ'!$B$21 -> 0
C153: Année financière | F153: ='1. IDENTITÉ'!A74 -> Dans le cas des autres déplacements (voir onglet KM polluants), le calcul se fait en considérant plutôt une quantité de km parcourus, selon le type de déplacement effectué, | G153: ='1. IDENTITÉ'!$B$19 -> 1er avril au 31 mars | I153: ='1. IDENTITÉ'!$B$19 -> 1er avril au 31 mars | K153: ='1. IDENTITÉ'!$B$19 -> 1er avril au 31 mars | M153: ='1. IDENTITÉ'!$B$19 -> 1er avril au 31 mars | O153: ='1. IDENTITÉ'!$B$19 -> 1er avril au 31 mars | Q153: ='1. IDENTITÉ'!$B$19 -> 1er avril au 31 mars | S153: ='1. IDENTITÉ'!$B$19 -> 1er avril au 31 mars | U153: ='1. IDENTITÉ'!$B$19 -> 1er avril au 31 mars | W153: ='1. IDENTITÉ'!$B$19 -> 1er avril au 31 mars | Y153: ='1. IDENTITÉ'!$B$19 -> 1er avril au 31 mars | AA153: ='1. IDENTITÉ'!$B$19 -> 1er avril au 31 mars | AC153: ='1. IDENTITÉ'!$B$19 -> 1er avril au 31 mars | AE153: ='1. IDENTITÉ'!$B$19 -> 1er avril au 31 mars | AG153: ='1. IDENTITÉ'!$B$19 -> 1er avril au 31 mars | AI153: ='1. IDENTITÉ'!$B$19 -> 1er avril au 31 mars | AK153: ='1. IDENTITÉ'!$B$19 -> 1er avril au 31 mars | AM153: ='1. IDENTITÉ'!$B$19 -> 1er avril au 31 mars | AO153: ='1. IDENTITÉ'!$B$19 -> 1er avril au 31 mars | AQ153: ='1. IDENTITÉ'!$B$19 -> 1er avril au 31 mars | AS153: ='1. IDENTITÉ'!$B$19 -> 1er avril au 31 mars | AU153: ='1. IDENTITÉ'!$B$19 -> 1er avril au 31 mars | AW153: ='1. IDENTITÉ'!$B$19 -> 1er avril au 31 mars | AY153: ='1. IDENTITÉ'!$B$19 -> 1er avril au 31 mars
C154: Critère d'inclusion et d'exclusion
C155: Nom de la personne responsable | F155: ='1. IDENTITÉ'!A68 -> quantité d'essence consommée, en litres: | G155: ='1. IDENTITÉ'!$B$13 -> 0 | I155: ='1. IDENTITÉ'!$B$13 -> 0 | K155: ='1. IDENTITÉ'!$B$13 -> 0 | M155: ='1. IDENTITÉ'!$B$13 -> 0 | O155: ='1. IDENTITÉ'!$B$13 -> 0 | Q155: ='1. IDENTITÉ'!$B$13 -> 0 | S155: ='1. IDENTITÉ'!$B$13 -> 0 | U155: ='1. IDENTITÉ'!$B$13 -> 0 | W155: ='1. IDENTITÉ'!$B$13 -> 0 | Y155: ='1. IDENTITÉ'!$B$13 -> 0 | AA155: ='1. IDENTITÉ'!$B$13 -> 0 | AC155: ='1. IDENTITÉ'!$B$13 -> 0 | AE155: ='1. IDENTITÉ'!$B$13 -> 0 | AG155: ='1. IDENTITÉ'!$B$13 -> 0 | AI155: ='1. IDENTITÉ'!$B$13 -> 0 | AK155: ='1. IDENTITÉ'!$B$13 -> 0 | AM155: ='1. IDENTITÉ'!$B$13 -> 0 | AO155: ='1. IDENTITÉ'!$B$13 -> 0 | AQ155: ='1. IDENTITÉ'!$B$13 -> 0 | AS155: ='1. IDENTITÉ'!$B$13 -> 0 | AU155: ='1. IDENTITÉ'!$B$13 -> 0 | AW155: ='1. IDENTITÉ'!$B$13 -> 0 | AY155: ='1. IDENTITÉ'!$B$13 -> 0
C156: Titre | F156: ='1. IDENTITÉ'!A69 -> facteur d'émission associé à un litre d'essence: | G156: ='1. IDENTITÉ'!$B$14 -> 0 | I156: ='1. IDENTITÉ'!$B$14 -> 0 | K156: ='1. IDENTITÉ'!$B$14 -> 0 | M156: ='1. IDENTITÉ'!$B$14 -> 0 | O156: ='1. IDENTITÉ'!$B$14 -> 0 | Q156: ='1. IDENTITÉ'!$B$14 -> 0 | S156: ='1. IDENTITÉ'!$B$14 -> 0 | U156: ='1. IDENTITÉ'!$B$14 -> 0 | W156: ='1. IDENTITÉ'!$B$14 -> 0 | Y156: ='1. IDENTITÉ'!$B$14 -> 0 | AA156: ='1. IDENTITÉ'!$B$14 -> 0 | AC156: ='1. IDENTITÉ'!$B$14 -> 0 | AE156: ='1. IDENTITÉ'!$B$14 -> 0 | AG156: ='1. IDENTITÉ'!$B$14 -> 0 | AI156: ='1. IDENTITÉ'!$B$14 -> 0 | AK156: ='1. IDENTITÉ'!$B$14 -> 0 | AM156: ='1. IDENTITÉ'!$B$14 -> 0 | AO156: ='1. IDENTITÉ'!$B$14 -> 0 | AQ156: ='1. IDENTITÉ'!$B$14 -> 0 | AS156: ='1. IDENTITÉ'!$B$14 -> 0 | AU156: ='1. IDENTITÉ'!$B$14 -> 0 | AW156: ='1. IDENTITÉ'!$B$14 -> 0 | AY156: ='1. IDENTITÉ'!$B$14 -> 0
C157: Adresse | F157: ='1. IDENTITÉ'!A70 -> 0 | G157: ='1. IDENTITÉ'!$B$15 -> 0 | I157: ='1. IDENTITÉ'!$B$15 -> 0 | K157: ='1. IDENTITÉ'!$B$15 -> 0 | M157: ='1. IDENTITÉ'!$B$15 -> 0 | O157: ='1. IDENTITÉ'!$B$15 -> 0 | Q157: ='1. IDENTITÉ'!$B$15 -> 0 | S157: ='1. IDENTITÉ'!$B$15 -> 0 | U157: ='1. IDENTITÉ'!$B$15 -> 0 | W157: ='1. IDENTITÉ'!$B$15 -> 0 | Y157: ='1. IDENTITÉ'!$B$15 -> 0 | AA157: ='1. IDENTITÉ'!$B$15 -> 0 | AC157: ='1. IDENTITÉ'!$B$15 -> 0 | AE157: ='1. IDENTITÉ'!$B$15 -> 0 | AG157: ='1. IDENTITÉ'!$B$15 -> 0 | AI157: ='1. IDENTITÉ'!$B$15 -> 0 | AK157: ='1. IDENTITÉ'!$B$15 -> 0 | AM157: ='1. IDENTITÉ'!$B$15 -> 0 | AO157: ='1. IDENTITÉ'!$B$15 -> 0 | AQ157: ='1. IDENTITÉ'!$B$15 -> 0 | AS157: ='1. IDENTITÉ'!$B$15 -> 0 | AU157: ='1. IDENTITÉ'!$B$15 -> 0 | AW157: ='1. IDENTITÉ'!$B$15 -> 0 | AY157: ='1. IDENTITÉ'!$B$15 -> 0
C158: Ville | F158: ='1. IDENTITÉ'!A71 -> quantité d'émissions de GES correspondante à la consommation d'essence: | G158: ='1. IDENTITÉ'!$B$16 -> 0 | I158: ='1. IDENTITÉ'!$B$16 -> 0 | K158: ='1. IDENTITÉ'!$B$16 -> 0 | M158: ='1. IDENTITÉ'!$B$16 -> 0 | O158: ='1. IDENTITÉ'!$B$16 -> 0 | Q158: ='1. IDENTITÉ'!$B$16 -> 0 | S158: ='1. IDENTITÉ'!$B$16 -> 0 | U158: ='1. IDENTITÉ'!$B$16 -> 0 | W158: ='1. IDENTITÉ'!$B$16 -> 0 | Y158: ='1. IDENTITÉ'!$B$16 -> 0 | AA158: ='1. IDENTITÉ'!$B$16 -> 0 | AC158: ='1. IDENTITÉ'!$B$16 -> 0 | AE158: ='1. IDENTITÉ'!$B$16 -> 0 | AG158: ='1. IDENTITÉ'!$B$16 -> 0 | AI158: ='1. IDENTITÉ'!$B$16 -> 0 | AK158: ='1. IDENTITÉ'!$B$16 -> 0 | AM158: ='1. IDENTITÉ'!$B$16 -> 0 | AO158: ='1. IDENTITÉ'!$B$16 -> 0 | AQ158: ='1. IDENTITÉ'!$B$16 -> 0 | AS158: ='1. IDENTITÉ'!$B$16 -> 0 | AU158: ='1. IDENTITÉ'!$B$16 -> 0 | AW158: ='1. IDENTITÉ'!$B$16 -> 0 | AY158: ='1. IDENTITÉ'!$B$16 -> 0
C159: Téléphone | F159: ='1. IDENTITÉ'!A72 -> 0 | G159: ='1. IDENTITÉ'!$B$17 -> 0 | I159: ='1. IDENTITÉ'!$B$17 -> 0 | K159: ='1. IDENTITÉ'!$B$17 -> 0 | M159: ='1. IDENTITÉ'!$B$17 -> 0 | O159: ='1. IDENTITÉ'!$B$17 -> 0 | Q159: ='1. IDENTITÉ'!$B$17 -> 0 | S159: ='1. IDENTITÉ'!$B$17 -> 0 | U159: ='1. IDENTITÉ'!$B$17 -> 0 | W159: ='1. IDENTITÉ'!$B$17 -> 0 | Y159: ='1. IDENTITÉ'!$B$17 -> 0 | AA159: ='1. IDENTITÉ'!$B$17 -> 0 | AC159: ='1. IDENTITÉ'!$B$17 -> 0 | AE159: ='1. IDENTITÉ'!$B$17 -> 0 | AG159: ='1. IDENTITÉ'!$B$17 -> 0 | AI159: ='1. IDENTITÉ'!$B$17 -> 0 | AK159: ='1. IDENTITÉ'!$B$17 -> 0 | AM159: ='1. IDENTITÉ'!$B$17 -> 0 | AO159: ='1. IDENTITÉ'!$B$17 -> 0 | AQ159: ='1. IDENTITÉ'!$B$17 -> 0 | AS159: ='1. IDENTITÉ'!$B$17 -> 0 | AU159: ='1. IDENTITÉ'!$B$17 -> 0 | AW159: ='1. IDENTITÉ'!$B$17 -> 0 | AY159: ='1. IDENTITÉ'!$B$17 -> 0
C160: Courriel | F160: ='1. IDENTITÉ'!A73 -> 0 | G160: ='1. IDENTITÉ'!$B$18 -> 0 | I160: ='1. IDENTITÉ'!$B$18 -> 0 | K160: ='1. IDENTITÉ'!$B$18 -> 0 | M160: ='1. IDENTITÉ'!$B$18 -> 0 | O160: ='1. IDENTITÉ'!$B$18 -> 0 | Q160: ='1. IDENTITÉ'!$B$18 -> 0 | S160: ='1. IDENTITÉ'!$B$18 -> 0 | U160: ='1. IDENTITÉ'!$B$18 -> 0 | W160: ='1. IDENTITÉ'!$B$18 -> 0 | Y160: ='1. IDENTITÉ'!$B$18 -> 0 | AA160: ='1. IDENTITÉ'!$B$18 -> 0 | AC160: ='1. IDENTITÉ'!$B$18 -> 0 | AE160: ='1. IDENTITÉ'!$B$18 -> 0 | AG160: ='1. IDENTITÉ'!$B$18 -> 0 | AI160: ='1. IDENTITÉ'!$B$18 -> 0 | AK160: ='1. IDENTITÉ'!$B$18 -> 0 | AM160: ='1. IDENTITÉ'!$B$18 -> 0 | AO160: ='1. IDENTITÉ'!$B$18 -> 0 | AQ160: ='1. IDENTITÉ'!$B$18 -> 0 | AS160: ='1. IDENTITÉ'!$B$18 -> 0 | AU160: ='1. IDENTITÉ'!$B$18 -> 0 | AW160: ='1. IDENTITÉ'!$B$18 -> 0 | AY160: ='1. IDENTITÉ'!$B$18 -> 0
A161: Déplacements standards avec le véhicule de l'institution (véhicules en propriété ou en location à long durée) Véhicules lourds | C161: Distance | E161: Sur route [km] | F161: ='3. KM POLLUANTS'!A90 -> 0 | G161: ='3. KM POLLUANTS'!B$15 -> 0 | I161: ='3. KM POLLUANTS'!D$15 -> 0 | K161: ='3. KM POLLUANTS'!F$15 -> 0 | M161: ='3. KM POLLUANTS'!H$15 -> 0 | O161: ='3. KM POLLUANTS'!J$15 -> 0 | Q161: ='3. KM POLLUANTS'!L$15 -> 0 | S161: ='3. KM POLLUANTS'!N$15 -> 0 | U161: ='3. KM POLLUANTS'!P$15 -> 0 | W161: ='3. KM POLLUANTS'!R$15 -> 0 | Y161: ='3. KM POLLUANTS'!T$15 -> 0 | AA161: ='3. KM POLLUANTS'!V$15 -> 0 | AC161: ='3. KM POLLUANTS'!X$15 -> 0 | AE161: ='3. KM POLLUANTS'!Z$15 -> 0 | AG161: ='3. KM POLLUANTS'!AB$15 -> 0 | AI161: ='3. KM POLLUANTS'!AD$15 -> 0 | AK161: ='3. KM POLLUANTS'!AF$15 -> 0 | AM161: ='3. KM POLLUANTS'!AH$15 -> 0 | AO161: ='3. KM POLLUANTS'!AJ$15 -> 0 | AQ161: ='3. KM POLLUANTS'!AL$15 -> 0 | AS161: ='3. KM POLLUANTS'!AN$15 -> 0 | AU161: ='3. KM POLLUANTS'!AP$15 -> 0 | AW161: ='3. KM POLLUANTS'!AR$15 -> 0 | AY161: ='3. KM POLLUANTS'!AT$15 -> 0
E162: Hors route [km] | F162: ='3. KM POLLUANTS'!A91 -> 0 | G162: ='3. KM POLLUANTS'!B$16 -> 0 | I162: ='3. KM POLLUANTS'!D$16 -> 0 | K162: ='3. KM POLLUANTS'!F$16 -> 0 | M162: ='3. KM POLLUANTS'!H$16 -> 0 | O162: ='3. KM POLLUANTS'!J$16 -> 0 | Q162: ='3. KM POLLUANTS'!L$16 -> 0 | S162: ='3. KM POLLUANTS'!N$16 -> 0 | U162: ='3. KM POLLUANTS'!P$16 -> 0 | W162: ='3. KM POLLUANTS'!R$16 -> 0 | Y162: ='3. KM POLLUANTS'!T$16 -> 0 | AA162: ='3. KM POLLUANTS'!V$16 -> 0 | AC162: ='3. KM POLLUANTS'!X$16 -> 0 | AE162: ='3. KM POLLUANTS'!Z$16 -> 0 | AG162: ='3. KM POLLUANTS'!AB$16 -> 0 | AI162: ='3. KM POLLUANTS'!AD$16 -> 0 | AK162: ='3. KM POLLUANTS'!AF$16 -> 0 | AM162: ='3. KM POLLUANTS'!AH$16 -> 0 | AO162: ='3. KM POLLUANTS'!AJ$16 -> 0 | AQ162: ='3. KM POLLUANTS'!AL$16 -> 0 | AS162: ='3. KM POLLUANTS'!AN$16 -> 0 | AU162: ='3. KM POLLUANTS'!AP$16 -> 0 | AW162: ='3. KM POLLUANTS'!AR$16 -> 0 | AY162: ='3. KM POLLUANTS'!AT$16 -> 0
E163: Totale [km] | F163: ='3. KM POLLUANTS'!A92 -> 0 | G163: ='3. KM POLLUANTS'!B$17 -> 0 | I163: ='3. KM POLLUANTS'!D$17 -> 0 | K163: ='3. KM POLLUANTS'!F$17 -> 0 | M163: ='3. KM POLLUANTS'!H$17 -> 0 | O163: ='3. KM POLLUANTS'!J$17 -> 0 | Q163: ='3. KM POLLUANTS'!L$17 -> 0 | S163: ='3. KM POLLUANTS'!N$17 -> 0 | U163: ='3. KM POLLUANTS'!P$17 -> 0 | W163: ='3. KM POLLUANTS'!R$17 -> 0 | Y163: ='3. KM POLLUANTS'!T$17 -> 0 | AA163: ='3. KM POLLUANTS'!V$17 -> 0 | AC163: ='3. KM POLLUANTS'!X$17 -> 0 | AE163: ='3. KM POLLUANTS'!Z$17 -> 0 | AG163: ='3. KM POLLUANTS'!AB$17 -> 0 | AI163: ='3. KM POLLUANTS'!AD$17 -> 0 | AK163: ='3. KM POLLUANTS'!AF$17 -> 0 | AM163: ='3. KM POLLUANTS'!AH$17 -> 0 | AO163: ='3. KM POLLUANTS'!AJ$17 -> 0 | AQ163: ='3. KM POLLUANTS'!AL$17 -> 0 | AS163: ='3. KM POLLUANTS'!AN$17 -> 0 | AU163: ='3. KM POLLUANTS'!AP$17 -> 0 | AW163: ='3. KM POLLUANTS'!AR$17 -> 0 | AY163: ='3. KM POLLUANTS'!AT$17 -> 0
C164: Essence | E164: Essence Litres [L] | F164: ='2. CARBURANT (Véhicules légers)'!A100 -> 0 | G164: ='2. CARBURANT (Véhicules lourds)'!B$25 -> 0 | I164: ='2. CARBURANT (Véhicules lourds)'!D$25 -> 0 | K164: ='2. CARBURANT (Véhicules lourds)'!F$25 -> 0 | M164: ='2. CARBURANT (Véhicules lourds)'!H$25 -> 0 | O164: ='2. CARBURANT (Véhicules lourds)'!J$25 -> 0 | Q164: ='2. CARBURANT (Véhicules lourds)'!L$25 -> 0 | S164: ='2. CARBURANT (Véhicules lourds)'!N$25 -> 0 | U164: ='2. CARBURANT (Véhicules lourds)'!P$25 -> 0 | W164: ='2. CARBURANT (Véhicules lourds)'!R$25 -> 0 | Y164: ='2. CARBURANT (Véhicules lourds)'!T$25 -> 0 | AA164: ='2. CARBURANT (Véhicules lourds)'!V$25 -> 0 | AC164: ='2. CARBURANT (Véhicules lourds)'!X$25 -> 0 | AE164: ='2. CARBURANT (Véhicules lourds)'!Z$25 -> 0 | AG164: ='2. CARBURANT (Véhicules lourds)'!AB$25 -> 0 | AI164: ='2. CARBURANT (Véhicules lourds)'!AD$25 -> 0 | AK164: ='2. CARBURANT (Véhicules lourds)'!AF$25 -> 0 | AM164: ='2. CARBURANT (Véhicules lourds)'!AH$25 -> 0 | AO164: ='2. CARBURANT (Véhicules lourds)'!AJ$25 -> 0 | AQ164: ='2. CARBURANT (Véhicules lourds)'!AL$25 -> 0 | AS164: ='2. CARBURANT (Véhicules lourds)'!AN$25 -> 0 | AU164: ='2. CARBURANT (Véhicules lourds)'!AP$25 -> 0 | AW164: ='2. CARBURANT (Véhicules lourds)'!AR$25 -> 0 | AY164: ='2. CARBURANT (Véhicules lourds)'!AT$25 -> 0
E165: Essence [$] | F165: ='2. CARBURANT (Véhicules légers)'!A86 -> 0 | G165: ='2. CARBURANT (Véhicules lourds)'!B$11 -> 0 | I165: ='2. CARBURANT (Véhicules lourds)'!D$11 -> 0 | K165: ='2. CARBURANT (Véhicules lourds)'!F$11 -> 0 | M165: ='2. CARBURANT (Véhicules lourds)'!H$11 -> 0 | O165: ='2. CARBURANT (Véhicules lourds)'!J$11 -> 0 | Q165: ='2. CARBURANT (Véhicules lourds)'!L$11 -> 0 | S165: ='2. CARBURANT (Véhicules lourds)'!N$11 -> 0 | U165: ='2. CARBURANT (Véhicules lourds)'!P$11 -> 0 | W165: ='2. CARBURANT (Véhicules lourds)'!R$11 -> 0 | Y165: ='2. CARBURANT (Véhicules lourds)'!T$11 -> 0 | AA165: ='2. CARBURANT (Véhicules lourds)'!V$11 -> 0 | AC165: ='2. CARBURANT (Véhicules lourds)'!X$11 -> 0 | AE165: ='2. CARBURANT (Véhicules lourds)'!Z$11 -> 0 | AG165: ='2. CARBURANT (Véhicules lourds)'!AB$11 -> 0 | AI165: ='2. CARBURANT (Véhicules lourds)'!AD$11 -> 0 | AK165: ='2. CARBURANT (Véhicules lourds)'!AF$11 -> 0 | AM165: ='2. CARBURANT (Véhicules lourds)'!AH$11 -> 0 | AO165: ='2. CARBURANT (Véhicules lourds)'!AJ$11 -> 0 | AQ165: ='2. CARBURANT (Véhicules lourds)'!AL$11 -> 0 | AS165: ='2. CARBURANT (Véhicules lourds)'!AN$11 -> 0 | AU165: ='2. CARBURANT (Véhicules lourds)'!AP$11 -> 0 | AW165: ='2. CARBURANT (Véhicules lourds)'!AR$11 -> 0 | AY165: ='2. CARBURANT (Véhicules lourds)'!AT$11 -> 0
C171: Diesel | E171: Diesel Litres [L] | F171: ='2. CARBURANT (Véhicules légers)'!A101 -> 0 | G171: ='2. CARBURANT (Véhicules lourds)'!B$26 -> 0 | I171: ='2. CARBURANT (Véhicules lourds)'!D$26 -> 0 | K171: ='2. CARBURANT (Véhicules lourds)'!F$26 -> 0 | M171: ='2. CARBURANT (Véhicules lourds)'!H$26 -> 0 | O171: ='2. CARBURANT (Véhicules lourds)'!J$26 -> 0 | Q171: ='2. CARBURANT (Véhicules lourds)'!L$26 -> 0 | S171: ='2. CARBURANT (Véhicules lourds)'!N$26 -> 0 | U171: ='2. CARBURANT (Véhicules lourds)'!P$26 -> 0 | W171: ='2. CARBURANT (Véhicules lourds)'!R$26 -> 0 | Y171: ='2. CARBURANT (Véhicules lourds)'!T$26 -> 0 | AA171: ='2. CARBURANT (Véhicules lourds)'!V$26 -> 0 | AC171: ='2. CARBURANT (Véhicules lourds)'!X$26 -> 0 | AE171: ='2. CARBURANT (Véhicules lourds)'!Z$26 -> 0 | AG171: ='2. CARBURANT (Véhicules lourds)'!AB$26 -> 0 | AI171: ='2. CARBURANT (Véhicules lourds)'!AD$26 -> 0 | AK171: ='2. CARBURANT (Véhicules lourds)'!AF$26 -> 0 | AM171: ='2. CARBURANT (Véhicules lourds)'!AH$26 -> 0 | AO171: ='2. CARBURANT (Véhicules lourds)'!AJ$26 -> 0 | AQ171: ='2. CARBURANT (Véhicules lourds)'!AL$26 -> 0 | AS171: ='2. CARBURANT (Véhicules lourds)'!AN$26 -> 0 | AU171: ='2. CARBURANT (Véhicules lourds)'!AP$26 -> 0 | AW171: ='2. CARBURANT (Véhicules lourds)'!AR$26 -> 0 | AY171: ='2. CARBURANT (Véhicules lourds)'!AT$26 -> 0
E172: Diesel [$] | F172: ='2. CARBURANT (Véhicules légers)'!A87 -> 0 | G172: ='2. CARBURANT (Véhicules lourds)'!B$12 -> 0 | I172: ='2. CARBURANT (Véhicules lourds)'!D$12 -> 0 | K172: ='2. CARBURANT (Véhicules lourds)'!F$12 -> 0 | M172: ='2. CARBURANT (Véhicules lourds)'!H$12 -> 0 | O172: ='2. CARBURANT (Véhicules lourds)'!J$12 -> 0 | Q172: ='2. CARBURANT (Véhicules lourds)'!L$12 -> 0 | S172: ='2. CARBURANT (Véhicules lourds)'!N$12 -> 0 | U172: ='2. CARBURANT (Véhicules lourds)'!P$12 -> 0 | W172: ='2. CARBURANT (Véhicules lourds)'!R$12 -> 0 | Y172: ='2. CARBURANT (Véhicules lourds)'!T$12 -> 0 | AA172: ='2. CARBURANT (Véhicules lourds)'!V$12 -> 0 | AC172: ='2. CARBURANT (Véhicules lourds)'!X$12 -> 0 | AE172: ='2. CARBURANT (Véhicules lourds)'!Z$12 -> 0 | AG172: ='2. CARBURANT (Véhicules lourds)'!AB$12 -> 0 | AI172: ='2. CARBURANT (Véhicules lourds)'!AD$12 -> 0 | AK172: ='2. CARBURANT (Véhicules lourds)'!AF$12 -> 0 | AM172: ='2. CARBURANT (Véhicules lourds)'!AH$12 -> 0 | AO172: ='2. CARBURANT (Véhicules lourds)'!AJ$12 -> 0 | AQ172: ='2. CARBURANT (Véhicules lourds)'!AL$12 -> 0 | AS172: ='2. CARBURANT (Véhicules lourds)'!AN$12 -> 0 | AU172: ='2. CARBURANT (Véhicules lourds)'!AP$12 -> 0 | AW172: ='2. CARBURANT (Véhicules lourds)'!AR$12 -> 0 | AY172: ='2. CARBURANT (Véhicules lourds)'!AT$12 -> 0
C178: Gaz naturel | E178: Gaz naturel [m³] | F178: ='2. CARBURANT (Véhicules légers)'!A102 -> 0 | G178: ='2. CARBURANT (Véhicules lourds)'!B$27 -> 0 | I178: ='2. CARBURANT (Véhicules lourds)'!D$27 -> 0 | K178: ='2. CARBURANT (Véhicules lourds)'!F$27 -> 0 | M178: ='2. CARBURANT (Véhicules lourds)'!H$27 -> 0 | O178: ='2. CARBURANT (Véhicules lourds)'!J$27 -> 0 | Q178: ='2. CARBURANT (Véhicules lourds)'!L$27 -> 0 | S178: ='2. CARBURANT (Véhicules lourds)'!N$27 -> 0 | U178: ='2. CARBURANT (Véhicules lourds)'!P$27 -> 0 | W178: ='2. CARBURANT (Véhicules lourds)'!R$27 -> 0 | Y178: ='2. CARBURANT (Véhicules lourds)'!T$27 -> 0 | AA178: ='2. CARBURANT (Véhicules lourds)'!V$27 -> 0 | AC178: ='2. CARBURANT (Véhicules lourds)'!X$27 -> 0 | AE178: ='2. CARBURANT (Véhicules lourds)'!Z$27 -> 0 | AG178: ='2. CARBURANT (Véhicules lourds)'!AB$27 -> 0 | AI178: ='2. CARBURANT (Véhicules lourds)'!AD$27 -> 0 | AK178: ='2. CARBURANT (Véhicules lourds)'!AF$27 -> 0 | AM178: ='2. CARBURANT (Véhicules lourds)'!AH$27 -> 0 | AO178: ='2. CARBURANT (Véhicules lourds)'!AJ$27 -> 0 | AQ178: ='2. CARBURANT (Véhicules lourds)'!AL$27 -> 0 | AS178: ='2. CARBURANT (Véhicules lourds)'!AN$27 -> 0 | AU178: ='2. CARBURANT (Véhicules lourds)'!AP$27 -> 0 | AW178: ='2. CARBURANT (Véhicules lourds)'!AR$27 -> 0 | AY178: ='2. CARBURANT (Véhicules lourds)'!AT$27 -> 0
E179: Gaz naturel [$] | F179: ='2. CARBURANT (Véhicules légers)'!A88 -> 0 | G179: ='2. CARBURANT (Véhicules lourds)'!B$13 -> 0 | I179: ='2. CARBURANT (Véhicules lourds)'!D$13 -> 0 | K179: ='2. CARBURANT (Véhicules lourds)'!F$13 -> 0 | M179: ='2. CARBURANT (Véhicules lourds)'!H$13 -> 0 | O179: ='2. CARBURANT (Véhicules lourds)'!J$13 -> 0 | Q179: ='2. CARBURANT (Véhicules lourds)'!L$13 -> 0 | S179: ='2. CARBURANT (Véhicules lourds)'!N$13 -> 0 | U179: ='2. CARBURANT (Véhicules lourds)'!P$13 -> 0 | W179: ='2. CARBURANT (Véhicules lourds)'!R$13 -> 0 | Y179: ='2. CARBURANT (Véhicules lourds)'!T$13 -> 0 | AA179: ='2. CARBURANT (Véhicules lourds)'!V$13 -> 0 | AC179: ='2. CARBURANT (Véhicules lourds)'!X$13 -> 0 | AE179: ='2. CARBURANT (Véhicules lourds)'!Z$13 -> 0 | AG179: ='2. CARBURANT (Véhicules lourds)'!AB$13 -> 0 | AI179: ='2. CARBURANT (Véhicules lourds)'!AD$13 -> 0 | AK179: ='2. CARBURANT (Véhicules lourds)'!AF$13 -> 0 | AM179: ='2. CARBURANT (Véhicules lourds)'!AH$13 -> 0 | AO179: ='2. CARBURANT (Véhicules lourds)'!AJ$13 -> 0 | AQ179: ='2. CARBURANT (Véhicules lourds)'!AL$13 -> 0 | AS179: ='2. CARBURANT (Véhicules lourds)'!AN$13 -> 0 | AU179: ='2. CARBURANT (Véhicules lourds)'!AP$13 -> 0 | AW179: ='2. CARBURANT (Véhicules lourds)'!AR$13 -> 0 | AY179: ='2. CARBURANT (Véhicules lourds)'!AT$13 -> 0
C185: Propane | E185: Propane Litres [L] | F185: ='2. CARBURANT (Véhicules légers)'!A103 -> 0 | G185: ='2. CARBURANT (Véhicules lourds)'!B$28 -> 0 | I185: ='2. CARBURANT (Véhicules lourds)'!D$28 -> 0 | K185: ='2. CARBURANT (Véhicules lourds)'!F$28 -> 0 | M185: ='2. CARBURANT (Véhicules lourds)'!H$28 -> 0 | O185: ='2. CARBURANT (Véhicules lourds)'!J$28 -> 0 | Q185: ='2. CARBURANT (Véhicules lourds)'!L$28 -> 0 | S185: ='2. CARBURANT (Véhicules lourds)'!N$28 -> 0 | U185: ='2. CARBURANT (Véhicules lourds)'!P$28 -> 0 | W185: ='2. CARBURANT (Véhicules lourds)'!R$28 -> 0 | Y185: ='2. CARBURANT (Véhicules lourds)'!T$28 -> 0 | AA185: ='2. CARBURANT (Véhicules lourds)'!V$28 -> 0 | AC185: ='2. CARBURANT (Véhicules lourds)'!X$28 -> 0 | AE185: ='2. CARBURANT (Véhicules lourds)'!Z$28 -> 0 | AG185: ='2. CARBURANT (Véhicules lourds)'!AB$28 -> 0 | AI185: ='2. CARBURANT (Véhicules lourds)'!AD$28 -> 0 | AK185: ='2. CARBURANT (Véhicules lourds)'!AF$28 -> 0 | AM185: ='2. CARBURANT (Véhicules lourds)'!AH$28 -> 0 | AO185: ='2. CARBURANT (Véhicules lourds)'!AJ$28 -> 0 | AQ185: ='2. CARBURANT (Véhicules lourds)'!AL$28 -> 0 | AS185: ='2. CARBURANT (Véhicules lourds)'!AN$28 -> 0 | AU185: ='2. CARBURANT (Véhicules lourds)'!AP$28 -> 0 | AW185: ='2. CARBURANT (Véhicules lourds)'!AR$28 -> 0 | AY185: ='2. CARBURANT (Véhicules lourds)'!AT$28 -> 0
E186: Propane [$] | F186: ='2. CARBURANT (Véhicules légers)'!A89 -> 0 | G186: ='2. CARBURANT (Véhicules lourds)'!B$14 -> 0 | I186: ='2. CARBURANT (Véhicules lourds)'!D$14 -> 0 | K186: ='2. CARBURANT (Véhicules lourds)'!F$14 -> 0 | M186: ='2. CARBURANT (Véhicules lourds)'!H$14 -> 0 | O186: ='2. CARBURANT (Véhicules lourds)'!J$14 -> 0 | Q186: ='2. CARBURANT (Véhicules lourds)'!L$14 -> 0 | S186: ='2. CARBURANT (Véhicules lourds)'!N$14 -> 0 | U186: ='2. CARBURANT (Véhicules lourds)'!P$14 -> 0 | W186: ='2. CARBURANT (Véhicules lourds)'!R$14 -> 0 | Y186: ='2. CARBURANT (Véhicules lourds)'!T$14 -> 0 | AA186: ='2. CARBURANT (Véhicules lourds)'!V$14 -> 0 | AC186: ='2. CARBURANT (Véhicules lourds)'!X$14 -> 0 | AE186: ='2. CARBURANT (Véhicules lourds)'!Z$14 -> 0 | AG186: ='2. CARBURANT (Véhicules lourds)'!AB$14 -> 0 | AI186: ='2. CARBURANT (Véhicules lourds)'!AD$14 -> 0 | AK186: ='2. CARBURANT (Véhicules lourds)'!AF$14 -> 0 | AM186: ='2. CARBURANT (Véhicules lourds)'!AH$14 -> 0 | AO186: ='2. CARBURANT (Véhicules lourds)'!AJ$14 -> 0 | AQ186: ='2. CARBURANT (Véhicules lourds)'!AL$14 -> 0 | AS186: ='2. CARBURANT (Véhicules lourds)'!AN$14 -> 0 | AU186: ='2. CARBURANT (Véhicules lourds)'!AP$14 -> 0 | AW186: ='2. CARBURANT (Véhicules lourds)'!AR$14 -> 0 | AY186: ='2. CARBURANT (Véhicules lourds)'!AT$14 -> 0
C192: Essence Ethanol | E192: Essence Ethanol Litres [L] | F192: ='2. CARBURANT (Véhicules légers)'!A106 -> 0 | G192: ='2. CARBURANT (Véhicules lourds)'!B$31 -> 0 | I192: ='2. CARBURANT (Véhicules lourds)'!D$31 -> 0 | K192: ='2. CARBURANT (Véhicules lourds)'!F$31 -> 0 | M192: ='2. CARBURANT (Véhicules lourds)'!H$31 -> 0 | O192: ='2. CARBURANT (Véhicules lourds)'!J$31 -> 0 | Q192: ='2. CARBURANT (Véhicules lourds)'!L$31 -> 0 | S192: ='2. CARBURANT (Véhicules lourds)'!N$31 -> 0 | U192: ='2. CARBURANT (Véhicules lourds)'!P$31 -> 0 | W192: ='2. CARBURANT (Véhicules lourds)'!R$31 -> 0 | Y192: ='2. CARBURANT (Véhicules lourds)'!T$31 -> 0 | AA192: ='2. CARBURANT (Véhicules lourds)'!V$31 -> 0 | AC192: ='2. CARBURANT (Véhicules lourds)'!X$31 -> 0 | AE192: ='2. CARBURANT (Véhicules lourds)'!Z$31 -> 0 | AG192: ='2. CARBURANT (Véhicules lourds)'!AB$31 -> 0 | AI192: ='2. CARBURANT (Véhicules lourds)'!AD$31 -> 0 | AK192: ='2. CARBURANT (Véhicules lourds)'!AF$31 -> 0 | AM192: ='2. CARBURANT (Véhicules lourds)'!AH$31 -> 0 | AO192: ='2. CARBURANT (Véhicules lourds)'!AJ$31 -> 0 | AQ192: ='2. CARBURANT (Véhicules lourds)'!AL$31 -> 0 | AS192: ='2. CARBURANT (Véhicules lourds)'!AN$31 -> 0 | AU192: ='2. CARBURANT (Véhicules lourds)'!AP$31 -> 0 | AW192: ='2. CARBURANT (Véhicules lourds)'!AR$31 -> 0 | AY192: ='2. CARBURANT (Véhicules lourds)'!AT$31 -> 0
E193: Essence Ethanol [$] | F193: ='2. CARBURANT (Véhicules légers)'!A92 -> 0 | G193: ='2. CARBURANT (Véhicules lourds)'!B$17 -> 0 | I193: ='2. CARBURANT (Véhicules lourds)'!D$17 -> 0 | K193: ='2. CARBURANT (Véhicules lourds)'!F$17 -> 0 | M193: ='2. CARBURANT (Véhicules lourds)'!H$17 -> 0 | O193: ='2. CARBURANT (Véhicules lourds)'!J$17 -> 0 | Q193: ='2. CARBURANT (Véhicules lourds)'!L$17 -> 0 | S193: ='2. CARBURANT (Véhicules lourds)'!N$17 -> 0 | U193: ='2. CARBURANT (Véhicules lourds)'!P$17 -> 0 | W193: ='2. CARBURANT (Véhicules lourds)'!R$17 -> 0 | Y193: ='2. CARBURANT (Véhicules lourds)'!T$17 -> 0 | AA193: ='2. CARBURANT (Véhicules lourds)'!V$17 -> 0 | AC193: ='2. CARBURANT (Véhicules lourds)'!X$17 -> 0 | AE193: ='2. CARBURANT (Véhicules lourds)'!Z$17 -> 0 | AG193: ='2. CARBURANT (Véhicules lourds)'!AB$17 -> 0 | AI193: ='2. CARBURANT (Véhicules lourds)'!AD$17 -> 0 | AK193: ='2. CARBURANT (Véhicules lourds)'!AF$17 -> 0 | AM193: ='2. CARBURANT (Véhicules lourds)'!AH$17 -> 0 | AO193: ='2. CARBURANT (Véhicules lourds)'!AJ$17 -> 0 | AQ193: ='2. CARBURANT (Véhicules lourds)'!AL$17 -> 0 | AS193: ='2. CARBURANT (Véhicules lourds)'!AN$17 -> 0 | AU193: ='2. CARBURANT (Véhicules lourds)'!AP$17 -> 0 | AW193: ='2. CARBURANT (Véhicules lourds)'!AR$17 -> 0 | AY193: ='2. CARBURANT (Véhicules lourds)'!AT$17 -> 0
C199: Bio Diesel | E199: Bio Diesel Litres [L] | F199: ='2. CARBURANT (Véhicules légers)'!A107 -> 0 | G199: ='2. CARBURANT (Véhicules lourds)'!B$32 -> 0 | I199: ='2. CARBURANT (Véhicules lourds)'!D$32 -> 0 | K199: ='2. CARBURANT (Véhicules lourds)'!F$32 -> 0 | M199: ='2. CARBURANT (Véhicules lourds)'!H$32 -> 0 | O199: ='2. CARBURANT (Véhicules lourds)'!J$32 -> 0 | Q199: ='2. CARBURANT (Véhicules lourds)'!L$32 -> 0 | S199: ='2. CARBURANT (Véhicules lourds)'!N$32 -> 0 | U199: ='2. CARBURANT (Véhicules lourds)'!P$32 -> 0 | W199: ='2. CARBURANT (Véhicules lourds)'!R$32 -> 0 | Y199: ='2. CARBURANT (Véhicules lourds)'!T$32 -> 0 | AA199: ='2. CARBURANT (Véhicules lourds)'!V$32 -> 0 | AC199: ='2. CARBURANT (Véhicules lourds)'!X$32 -> 0 | AE199: ='2. CARBURANT (Véhicules lourds)'!Z$32 -> 0 | AG199: ='2. CARBURANT (Véhicules lourds)'!AB$32 -> 0 | AI199: ='2. CARBURANT (Véhicules lourds)'!AD$32 -> 0 | AK199: ='2. CARBURANT (Véhicules lourds)'!AF$32 -> 0 | AM199: ='2. CARBURANT (Véhicules lourds)'!AH$32 -> 0 | AO199: ='2. CARBURANT (Véhicules lourds)'!AJ$32 -> 0 | AQ199: ='2. CARBURANT (Véhicules lourds)'!AL$32 -> 0 | AS199: ='2. CARBURANT (Véhicules lourds)'!AN$32 -> 0 | AU199: ='2. CARBURANT (Véhicules lourds)'!AP$32 -> 0 | AW199: ='2. CARBURANT (Véhicules lourds)'!AR$32 -> 0 | AY199: ='2. CARBURANT (Véhicules lourds)'!AT$32 -> 0
E200: Bio Diesel [$] | F200: ='2. CARBURANT (Véhicules légers)'!A93 -> 0 | G200: ='2. CARBURANT (Véhicules lourds)'!B$18 -> 0 | I200: ='2. CARBURANT (Véhicules lourds)'!D$18 -> 0 | K200: ='2. CARBURANT (Véhicules lourds)'!F$18 -> 0 | M200: ='2. CARBURANT (Véhicules lourds)'!H$18 -> 0 | O200: ='2. CARBURANT (Véhicules lourds)'!J$18 -> 0 | Q200: ='2. CARBURANT (Véhicules lourds)'!L$18 -> 0 | S200: ='2. CARBURANT (Véhicules lourds)'!N$18 -> 0 | U200: ='2. CARBURANT (Véhicules lourds)'!P$18 -> 0 | W200: ='2. CARBURANT (Véhicules lourds)'!R$18 -> 0 | Y200: ='2. CARBURANT (Véhicules lourds)'!T$18 -> 0 | AA200: ='2. CARBURANT (Véhicules lourds)'!V$18 -> 0 | AC200: ='2. CARBURANT (Véhicules lourds)'!X$18 -> 0 | AE200: ='2. CARBURANT (Véhicules lourds)'!Z$18 -> 0 | AG200: ='2. CARBURANT (Véhicules lourds)'!AB$18 -> 0 | AI200: ='2. CARBURANT (Véhicules lourds)'!AD$18 -> 0 | AK200: ='2. CARBURANT (Véhicules lourds)'!AF$18 -> 0 | AM200: ='2. CARBURANT (Véhicules lourds)'!AH$18 -> 0 | AO200: ='2. CARBURANT (Véhicules lourds)'!AJ$18 -> 0 | AQ200: ='2. CARBURANT (Véhicules lourds)'!AL$18 -> 0 | AS200: ='2. CARBURANT (Véhicules lourds)'!AN$18 -> 0 | AU200: ='2. CARBURANT (Véhicules lourds)'!AP$18 -> 0 | AW200: ='2. CARBURANT (Véhicules lourds)'!AR$18 -> 0 | AY200: ='2. CARBURANT (Véhicules lourds)'!AT$18 -> 0
C206: Formules
C223: Nombre de véhicules | D223: Sur route | F223: ='5. NOMBRE DE VÉHICULES'!A87 -> 0 | G223: ='5. NOMBRE DE VÉHICULES'!B23 -> 0 | I223: ='5. NOMBRE DE VÉHICULES'!D23 -> 0 | K223: ='5. NOMBRE DE VÉHICULES'!F23 -> 0 | M223: ='5. NOMBRE DE VÉHICULES'!H23 -> 0 | O223: ='5. NOMBRE DE VÉHICULES'!J23 -> 0 | Q223: ='5. NOMBRE DE VÉHICULES'!L23 -> 0 | S223: ='5. NOMBRE DE VÉHICULES'!N23 -> 0 | U223: ='5. NOMBRE DE VÉHICULES'!P23 -> 0 | W223: ='5. NOMBRE DE VÉHICULES'!R23 -> 0 | Y223: ='5. NOMBRE DE VÉHICULES'!T23 -> 0 | AA223: ='5. NOMBRE DE VÉHICULES'!V23 -> 0 | AC223: ='5. NOMBRE DE VÉHICULES'!X23 -> 0 | AE223: ='5. NOMBRE DE VÉHICULES'!Z23 -> 0 | AG223: ='5. NOMBRE DE VÉHICULES'!AB23 -> 0 | AI223: ='5. NOMBRE DE VÉHICULES'!AD23 -> 0 | AK223: ='5. NOMBRE DE VÉHICULES'!AF23 -> 0 | AM223: ='5. NOMBRE DE VÉHICULES'!AH23 -> 0 | AO223: ='5. NOMBRE DE VÉHICULES'!AJ23 -> 0 | AQ223: ='5. NOMBRE DE VÉHICULES'!AL23 -> 0 | AS223: ='5. NOMBRE DE VÉHICULES'!AN23 -> 0 | AU223: ='5. NOMBRE DE VÉHICULES'!AP23 -> 0 | AW223: ='5. NOMBRE DE VÉHICULES'!AR23 -> 0 | AY223: ='5. NOMBRE DE VÉHICULES'!AT23 -> 0
D224: Hors route | F224: ='5. NOMBRE DE VÉHICULES'!A88 -> 0 | G224: ='5. NOMBRE DE VÉHICULES'!B24 -> 0 | I224: ='5. NOMBRE DE VÉHICULES'!D24 -> 0 | K224: ='5. NOMBRE DE VÉHICULES'!F24 -> 0 | M224: ='5. NOMBRE DE VÉHICULES'!H24 -> 0 | O224: ='5. NOMBRE DE VÉHICULES'!J24 -> 0 | Q224: ='5. NOMBRE DE VÉHICULES'!L24 -> 0 | S224: ='5. NOMBRE DE VÉHICULES'!N24 -> 0 | U224: ='5. NOMBRE DE VÉHICULES'!P24 -> 0 | W224: ='5. NOMBRE DE VÉHICULES'!R24 -> 0 | Y224: ='5. NOMBRE DE VÉHICULES'!T24 -> 0 | AA224: ='5. NOMBRE DE VÉHICULES'!V24 -> 0 | AC224: ='5. NOMBRE DE VÉHICULES'!X24 -> 0 | AE224: ='5. NOMBRE DE VÉHICULES'!Z24 -> 0 | AG224: ='5. NOMBRE DE VÉHICULES'!AB24 -> 0 | AI224: ='5. NOMBRE DE VÉHICULES'!AD24 -> 0 | AK224: ='5. NOMBRE DE VÉHICULES'!AF24 -> 0 | AM224: ='5. NOMBRE DE VÉHICULES'!AH24 -> 0 | AO224: ='5. NOMBRE DE VÉHICULES'!AJ24 -> 0 | AQ224: ='5. NOMBRE DE VÉHICULES'!AL24 -> 0 | AS224: ='5. NOMBRE DE VÉHICULES'!AN24 -> 0 | AU224: ='5. NOMBRE DE VÉHICULES'!AP24 -> 0 | AW224: ='5. NOMBRE DE VÉHICULES'!AR24 -> 0 | AY224: ='5. NOMBRE DE VÉHICULES'!AT24 -> 0
D225: Hybride | G225: ='5. NOMBRE DE VÉHICULES'!B25 -> 0 | I225: ='5. NOMBRE DE VÉHICULES'!D25 -> 0 | K225: ='5. NOMBRE DE VÉHICULES'!F25 -> 0 | M225: ='5. NOMBRE DE VÉHICULES'!H25 -> 0 | O225: ='5. NOMBRE DE VÉHICULES'!J25 -> 0 | Q225: ='5. NOMBRE DE VÉHICULES'!L25 -> 0 | S225: ='5. NOMBRE DE VÉHICULES'!N25 -> 0 | U225: ='5. NOMBRE DE VÉHICULES'!P25 -> 0 | W225: ='5. NOMBRE DE VÉHICULES'!R25 -> 0 | Y225: ='5. NOMBRE DE VÉHICULES'!T25 -> 0 | AA225: ='5. NOMBRE DE VÉHICULES'!V25 -> 0 | AC225: ='5. NOMBRE DE VÉHICULES'!X25 -> 0 | AE225: ='5. NOMBRE DE VÉHICULES'!Z25 -> 0 | AG225: ='5. NOMBRE DE VÉHICULES'!AB25 -> 0 | AI225: ='5. NOMBRE DE VÉHICULES'!AD25 -> 0 | AK225: ='5. NOMBRE DE VÉHICULES'!AF25 -> 0 | AM225: ='5. NOMBRE DE VÉHICULES'!AH25 -> 0 | AO225: ='5. NOMBRE DE VÉHICULES'!AJ25 -> 0 | AQ225: ='5. NOMBRE DE VÉHICULES'!AL25 -> 0 | AS225: ='5. NOMBRE DE VÉHICULES'!AN25 -> 0 | AU225: ='5. NOMBRE DE VÉHICULES'!AP25 -> 0 | AW225: ='5. NOMBRE DE VÉHICULES'!AR25 -> 0 | AY225: ='5. NOMBRE DE VÉHICULES'!AT25 -> 0
D226: Hybride rechargeable | G226: ='5. NOMBRE DE VÉHICULES'!B26 -> 0 | I226: ='5. NOMBRE DE VÉHICULES'!D26 -> 0 | K226: ='5. NOMBRE DE VÉHICULES'!F26 -> 0 | M226: ='5. NOMBRE DE VÉHICULES'!H26 -> 0 | O226: ='5. NOMBRE DE VÉHICULES'!J26 -> 0 | Q226: ='5. NOMBRE DE VÉHICULES'!L26 -> 0 | S226: ='5. NOMBRE DE VÉHICULES'!N26 -> 0 | U226: ='5. NOMBRE DE VÉHICULES'!P26 -> 0 | W226: ='5. NOMBRE DE VÉHICULES'!R26 -> 0 | Y226: ='5. NOMBRE DE VÉHICULES'!T26 -> 0 | AA226: ='5. NOMBRE DE VÉHICULES'!V26 -> 0 | AC226: ='5. NOMBRE DE VÉHICULES'!X26 -> 0 | AE226: ='5. NOMBRE DE VÉHICULES'!Z26 -> 0 | AG226: ='5. NOMBRE DE VÉHICULES'!AB26 -> 0 | AI226: ='5. NOMBRE DE VÉHICULES'!AD26 -> 0 | AK226: ='5. NOMBRE DE VÉHICULES'!AF26 -> 0 | AM226: ='5. NOMBRE DE VÉHICULES'!AH26 -> 0 | AO226: ='5. NOMBRE DE VÉHICULES'!AJ26 -> 0 | AQ226: ='5. NOMBRE DE VÉHICULES'!AL26 -> 0 | AS226: ='5. NOMBRE DE VÉHICULES'!AN26 -> 0 | AU226: ='5. NOMBRE DE VÉHICULES'!AP26 -> 0 | AW226: ='5. NOMBRE DE VÉHICULES'!AR26 -> 0 | AY226: ='5. NOMBRE DE VÉHICULES'!AT26 -> 0
D227: 100% électrique | G227: ='5. NOMBRE DE VÉHICULES'!B27 -> 0 | I227: ='5. NOMBRE DE VÉHICULES'!D27 -> 0 | K227: ='5. NOMBRE DE VÉHICULES'!F27 -> 0 | M227: ='5. NOMBRE DE VÉHICULES'!H27 -> 0 | O227: ='5. NOMBRE DE VÉHICULES'!J27 -> 0 | Q227: ='5. NOMBRE DE VÉHICULES'!L27 -> 0 | S227: ='5. NOMBRE DE VÉHICULES'!N27 -> 0 | U227: ='5. NOMBRE DE VÉHICULES'!P27 -> 0 | W227: ='5. NOMBRE DE VÉHICULES'!R27 -> 0 | Y227: ='5. NOMBRE DE VÉHICULES'!T27 -> 0 | AA227: ='5. NOMBRE DE VÉHICULES'!V27 -> 0 | AC227: ='5. NOMBRE DE VÉHICULES'!X27 -> 0 | AE227: ='5. NOMBRE DE VÉHICULES'!Z27 -> 0 | AG227: ='5. NOMBRE DE VÉHICULES'!AB27 -> 0 | AI227: ='5. NOMBRE DE VÉHICULES'!AD27 -> 0 | AK227: ='5. NOMBRE DE VÉHICULES'!AF27 -> 0 | AM227: ='5. NOMBRE DE VÉHICULES'!AH27 -> 0 | AO227: ='5. NOMBRE DE VÉHICULES'!AJ27 -> 0 | AQ227: ='5. NOMBRE DE VÉHICULES'!AL27 -> 0 | AS227: ='5. NOMBRE DE VÉHICULES'!AN27 -> 0 | AU227: ='5. NOMBRE DE VÉHICULES'!AP27 -> 0 | AW227: ='5. NOMBRE DE VÉHICULES'!AR27 -> 0 | AY227: ='5. NOMBRE DE VÉHICULES'!AT27 -> 0
D230: Date | F230: Date: | G230: ='1. IDENTITÉ'!$B$20 -> 0 | I230: ='1. IDENTITÉ'!$B$20 -> 0 | K230: ='1. IDENTITÉ'!$B$20 -> 0 | M230: ='1. IDENTITÉ'!$B$20 -> 0 | O230: ='1. IDENTITÉ'!$B$20 -> 0 | Q230: ='1. IDENTITÉ'!$B$20 -> 0 | S230: ='1. IDENTITÉ'!$B$20 -> 0 | U230: ='1. IDENTITÉ'!$B$20 -> 0 | W230: ='1. IDENTITÉ'!$B$20 -> 0 | Y230: ='1. IDENTITÉ'!$B$20 -> 0 | AA230: ='1. IDENTITÉ'!$B$20 -> 0 | AC230: ='1. IDENTITÉ'!$B$20 -> 0 | AE230: ='1. IDENTITÉ'!$B$20 -> 0 | AG230: ='1. IDENTITÉ'!$B$20 -> 0 | AI230: ='1. IDENTITÉ'!$B$20 -> 0 | AK230: ='1. IDENTITÉ'!$B$20 -> 0 | AM230: ='1. IDENTITÉ'!$B$20 -> 0 | AO230: ='1. IDENTITÉ'!$B$20 -> 0 | AQ230: ='1. IDENTITÉ'!$B$20 -> 0 | AS230: ='1. IDENTITÉ'!$B$20 -> 0 | AU230: ='1. IDENTITÉ'!$B$20 -> 0 | AW230: ='1. IDENTITÉ'!$B$20 -> 0 | AY230: ='1. IDENTITÉ'!$B$20 -> 0
C231: TOTAUX | D231: TOTAL Litres [L-éq.] | F231: ='2. CARBURANT (Véhicules légers)'!A109 -> 0 | G231: ='2. CARBURANT (Véhicules lourds)'!B$34 -> 0 | I231: ='2. CARBURANT (Véhicules lourds)'!D$34 -> 0 | K231: ='2. CARBURANT (Véhicules lourds)'!F$34 -> 0 | M231: ='2. CARBURANT (Véhicules lourds)'!H$34 -> 0 | O231: ='2. CARBURANT (Véhicules lourds)'!J$34 -> 0 | Q231: ='2. CARBURANT (Véhicules lourds)'!L$34 -> 0 | S231: ='2. CARBURANT (Véhicules lourds)'!N$34 -> 0 | U231: ='2. CARBURANT (Véhicules lourds)'!P$34 -> 0 | W231: ='2. CARBURANT (Véhicules lourds)'!R$34 -> 0 | Y231: ='2. CARBURANT (Véhicules lourds)'!T$34 -> 0 | AA231: ='2. CARBURANT (Véhicules lourds)'!V$34 -> 0 | AC231: ='2. CARBURANT (Véhicules lourds)'!X$34 -> 0 | AE231: ='2. CARBURANT (Véhicules lourds)'!Z$34 -> 0 | AG231: ='2. CARBURANT (Véhicules lourds)'!AB$34 -> 0 | AI231: ='2. CARBURANT (Véhicules lourds)'!AD$34 -> 0 | AK231: ='2. CARBURANT (Véhicules lourds)'!AF$34 -> 0 | AM231: ='2. CARBURANT (Véhicules lourds)'!AH$34 -> 0 | AO231: ='2. CARBURANT (Véhicules lourds)'!AJ$34 -> 0 | AQ231: ='2. CARBURANT (Véhicules lourds)'!AL$34 -> 0 | AS231: ='2. CARBURANT (Véhicules lourds)'!AN$34 -> 0 | AU231: ='2. CARBURANT (Véhicules lourds)'!AP$34 -> 0 | AW231: ='2. CARBURANT (Véhicules lourds)'!AR$34 -> 0 | AY231: ='2. CARBURANT (Véhicules lourds)'!AT$34 -> 0
D232: TOTAL [GJ] | F232: ='2. CARBURANT (Véhicules légers)'!A111 -> 0 | G232: ='2. CARBURANT (Véhicules lourds)'!B$36 -> 0 | I232: ='2. CARBURANT (Véhicules lourds)'!D$36 -> 0 | K232: ='2. CARBURANT (Véhicules lourds)'!F$36 -> 0 | M232: ='2. CARBURANT (Véhicules lourds)'!H$36 -> 0 | O232: ='2. CARBURANT (Véhicules lourds)'!J$36 -> 0 | Q232: ='2. CARBURANT (Véhicules lourds)'!L$36 -> 0 | S232: ='2. CARBURANT (Véhicules lourds)'!N$36 -> 0 | U232: ='2. CARBURANT (Véhicules lourds)'!P$36 -> 0 | W232: ='2. CARBURANT (Véhicules lourds)'!R$36 -> 0 | Y232: ='2. CARBURANT (Véhicules lourds)'!T$36 -> 0 | AA232: ='2. CARBURANT (Véhicules lourds)'!V$36 -> 0 | AC232: ='2. CARBURANT (Véhicules lourds)'!X$36 -> 0 | AE232: ='2. CARBURANT (Véhicules lourds)'!Z$36 -> 0 | AG232: ='2. CARBURANT (Véhicules lourds)'!AB$36 -> 0 | AI232: ='2. CARBURANT (Véhicules lourds)'!AD$36 -> 0 | AK232: ='2. CARBURANT (Véhicules lourds)'!AF$36 -> 0 | AM232: ='2. CARBURANT (Véhicules lourds)'!AH$36 -> 0 | AO232: ='2. CARBURANT (Véhicules lourds)'!AJ$36 -> 0 | AQ232: ='2. CARBURANT (Véhicules lourds)'!AL$36 -> 0 | AS232: ='2. CARBURANT (Véhicules lourds)'!AN$36 -> 0 | AU232: ='2. CARBURANT (Véhicules lourds)'!AP$36 -> 0 | AW232: ='2. CARBURANT (Véhicules lourds)'!AR$36 -> 0 | AY232: ='2. CARBURANT (Véhicules lourds)'!AT$36 -> 0
D233: TOTAL ($) | F233: ='2. CARBURANT (Véhicules légers)'!A95 -> 0 | G233: ='2. CARBURANT (Véhicules lourds)'!B$20 -> 0 | I233: ='2. CARBURANT (Véhicules lourds)'!D$20 -> 0 | K233: ='2. CARBURANT (Véhicules lourds)'!F$20 -> 0 | M233: ='2. CARBURANT (Véhicules lourds)'!H$20 -> 0 | O233: ='2. CARBURANT (Véhicules lourds)'!J$20 -> 0 | Q233: ='2. CARBURANT (Véhicules lourds)'!L$20 -> 0 | S233: ='2. CARBURANT (Véhicules lourds)'!N$20 -> 0 | U233: ='2. CARBURANT (Véhicules lourds)'!P$20 -> 0 | W233: ='2. CARBURANT (Véhicules lourds)'!R$20 -> 0 | Y233: ='2. CARBURANT (Véhicules lourds)'!T$20 -> 0 | AA233: ='2. CARBURANT (Véhicules lourds)'!V$20 -> 0 | AC233: ='2. CARBURANT (Véhicules lourds)'!X$20 -> 0 | AE233: ='2. CARBURANT (Véhicules lourds)'!Z$20 -> 0 | AG233: ='2. CARBURANT (Véhicules lourds)'!AB$20 -> 0 | AI233: ='2. CARBURANT (Véhicules lourds)'!AD$20 -> 0 | AK233: ='2. CARBURANT (Véhicules lourds)'!AF$20 -> 0 | AM233: ='2. CARBURANT (Véhicules lourds)'!AH$20 -> 0 | AO233: ='2. CARBURANT (Véhicules lourds)'!AJ$20 -> 0 | AQ233: ='2. CARBURANT (Véhicules lourds)'!AL$20 -> 0 | AS233: ='2. CARBURANT (Véhicules lourds)'!AN$20 -> 0 | AU233: ='2. CARBURANT (Véhicules lourds)'!AP$20 -> 0 | AW233: ='2. CARBURANT (Véhicules lourds)'!AR$20 -> 0 | AY233: ='2. CARBURANT (Véhicules lourds)'!AT$20 -> 0
D234: TOTAL [ton CO2 éq.] | F234: ='2. CARBURANT (Véhicules légers)'!A125 -> 0 | G234: ='2. CARBURANT (Véhicules lourds)'!B$50 -> 0 | I234: ='2. CARBURANT (Véhicules lourds)'!D$50 -> 0 | K234: ='2. CARBURANT (Véhicules lourds)'!F$50 -> 0 | M234: ='2. CARBURANT (Véhicules lourds)'!H$50 -> 0 | O234: ='2. CARBURANT (Véhicules lourds)'!J$50 -> 0 | Q234: ='2. CARBURANT (Véhicules lourds)'!L$50 -> 0 | S234: ='2. CARBURANT (Véhicules lourds)'!N$50 -> 0 | U234: ='2. CARBURANT (Véhicules lourds)'!P$50 -> 0 | W234: ='2. CARBURANT (Véhicules lourds)'!R$50 -> 0 | Y234: ='2. CARBURANT (Véhicules lourds)'!T$50 -> 0 | AA234: ='2. CARBURANT (Véhicules lourds)'!V$50 -> 0 | AC234: ='2. CARBURANT (Véhicules lourds)'!X$50 -> 0 | AE234: ='2. CARBURANT (Véhicules lourds)'!Z$50 -> 0 | AG234: ='2. CARBURANT (Véhicules lourds)'!AB$50 -> 0 | AI234: ='2. CARBURANT (Véhicules lourds)'!AD$50 -> 0 | AK234: ='2. CARBURANT (Véhicules lourds)'!AF$50 -> 0 | AM234: ='2. CARBURANT (Véhicules lourds)'!AH$50 -> 0 | AO234: ='2. CARBURANT (Véhicules lourds)'!AJ$50 -> 0 | AQ234: ='2. CARBURANT (Véhicules lourds)'!AL$50 -> 0 | AS234: ='2. CARBURANT (Véhicules lourds)'!AN$50 -> 0 | AU234: ='2. CARBURANT (Véhicules lourds)'!AP$50 -> 0 | AW234: ='2. CARBURANT (Véhicules lourds)'!AR$50 -> 0 | AY234: ='2. CARBURANT (Véhicules lourds)'!AT$50 -> 0
C235: Estimation des émissions de gaz à effet de serre | D235: Carburants conventionnels | E235: Essence [ton CO2 éq.] | F235: ='2. CARBURANT (Véhicules légers)'!A116 -> 0 | G235: ='2. CARBURANT (Véhicules lourds)'!B$41 -> 0 | I235: ='2. CARBURANT (Véhicules lourds)'!D$41 -> 0 | K235: ='2. CARBURANT (Véhicules lourds)'!F$41 -> 0 | M235: ='2. CARBURANT (Véhicules lourds)'!H$41 -> 0 | O235: ='2. CARBURANT (Véhicules lourds)'!J$41 -> 0 | Q235: ='2. CARBURANT (Véhicules lourds)'!L$41 -> 0 | S235: ='2. CARBURANT (Véhicules lourds)'!N$41 -> 0 | U235: ='2. CARBURANT (Véhicules lourds)'!P$41 -> 0 | W235: ='2. CARBURANT (Véhicules lourds)'!R$41 -> 0 | Y235: ='2. CARBURANT (Véhicules lourds)'!T$41 -> 0 | AA235: ='2. CARBURANT (Véhicules lourds)'!V$41 -> 0 | AC235: ='2. CARBURANT (Véhicules lourds)'!X$41 -> 0 | AE235: ='2. CARBURANT (Véhicules lourds)'!Z$41 -> 0 | AG235: ='2. CARBURANT (Véhicules lourds)'!AB$41 -> 0 | AI235: ='2. CARBURANT (Véhicules lourds)'!AD$41 -> 0 | AK235: ='2. CARBURANT (Véhicules lourds)'!AF$41 -> 0 | AM235: ='2. CARBURANT (Véhicules lourds)'!AH$41 -> 0 | AO235: ='2. CARBURANT (Véhicules lourds)'!AJ$41 -> 0 | AQ235: ='2. CARBURANT (Véhicules lourds)'!AL$41 -> 0 | AS235: ='2. CARBURANT (Véhicules lourds)'!AN$41 -> 0 | AU235: ='2. CARBURANT (Véhicules lourds)'!AP$41 -> 0 | AW235: ='2. CARBURANT (Véhicules lourds)'!AR$41 -> 0 | AY235: ='2. CARBURANT (Véhicules lourds)'!AT$41 -> 0
E236: Diesel [ton CO2 éq.] | F236: ='2. CARBURANT (Véhicules légers)'!A117 -> 0 | G236: ='2. CARBURANT (Véhicules lourds)'!B$42 -> 0 | I236: ='2. CARBURANT (Véhicules lourds)'!D$42 -> 0 | K236: ='2. CARBURANT (Véhicules lourds)'!F$42 -> 0 | M236: ='2. CARBURANT (Véhicules lourds)'!H$42 -> 0 | O236: ='2. CARBURANT (Véhicules lourds)'!J$42 -> 0 | Q236: ='2. CARBURANT (Véhicules lourds)'!L$42 -> 0 | S236: ='2. CARBURANT (Véhicules lourds)'!N$42 -> 0 | U236: ='2. CARBURANT (Véhicules lourds)'!P$42 -> 0 | W236: ='2. CARBURANT (Véhicules lourds)'!R$42 -> 0 | Y236: ='2. CARBURANT (Véhicules lourds)'!T$42 -> 0 | AA236: ='2. CARBURANT (Véhicules lourds)'!V$42 -> 0 | AC236: ='2. CARBURANT (Véhicules lourds)'!X$42 -> 0 | AE236: ='2. CARBURANT (Véhicules lourds)'!Z$42 -> 0 | AG236: ='2. CARBURANT (Véhicules lourds)'!AB$42 -> 0 | AI236: ='2. CARBURANT (Véhicules lourds)'!AD$42 -> 0 | AK236: ='2. CARBURANT (Véhicules lourds)'!AF$42 -> 0 | AM236: ='2. CARBURANT (Véhicules lourds)'!AH$42 -> 0 | AO236: ='2. CARBURANT (Véhicules lourds)'!AJ$42 -> 0 | AQ236: ='2. CARBURANT (Véhicules lourds)'!AL$42 -> 0 | AS236: ='2. CARBURANT (Véhicules lourds)'!AN$42 -> 0 | AU236: ='2. CARBURANT (Véhicules lourds)'!AP$42 -> 0 | AW236: ='2. CARBURANT (Véhicules lourds)'!AR$42 -> 0 | AY236: ='2. CARBURANT (Véhicules lourds)'!AT$42 -> 0
E237: Gaz naturel [ton CO2 éq.] | F237: ='2. CARBURANT (Véhicules légers)'!A118 -> 0 | G237: ='2. CARBURANT (Véhicules lourds)'!B$43 -> 0 | I237: ='2. CARBURANT (Véhicules lourds)'!D$43 -> 0 | K237: ='2. CARBURANT (Véhicules lourds)'!F$43 -> 0 | M237: ='2. CARBURANT (Véhicules lourds)'!H$43 -> 0 | O237: ='2. CARBURANT (Véhicules lourds)'!J$43 -> 0 | Q237: ='2. CARBURANT (Véhicules lourds)'!L$43 -> 0 | S237: ='2. CARBURANT (Véhicules lourds)'!N$43 -> 0 | U237: ='2. CARBURANT (Véhicules lourds)'!P$43 -> 0 | W237: ='2. CARBURANT (Véhicules lourds)'!R$43 -> 0 | Y237: ='2. CARBURANT (Véhicules lourds)'!T$43 -> 0 | AA237: ='2. CARBURANT (Véhicules lourds)'!V$43 -> 0 | AC237: ='2. CARBURANT (Véhicules lourds)'!X$43 -> 0 | AE237: ='2. CARBURANT (Véhicules lourds)'!Z$43 -> 0 | AG237: ='2. CARBURANT (Véhicules lourds)'!AB$43 -> 0 | AI237: ='2. CARBURANT (Véhicules lourds)'!AD$43 -> 0 | AK237: ='2. CARBURANT (Véhicules lourds)'!AF$43 -> 0 | AM237: ='2. CARBURANT (Véhicules lourds)'!AH$43 -> 0 | AO237: ='2. CARBURANT (Véhicules lourds)'!AJ$43 -> 0 | AQ237: ='2. CARBURANT (Véhicules lourds)'!AL$43 -> 0 | AS237: ='2. CARBURANT (Véhicules lourds)'!AN$43 -> 0 | AU237: ='2. CARBURANT (Véhicules lourds)'!AP$43 -> 0 | AW237: ='2. CARBURANT (Véhicules lourds)'!AR$43 -> 0 | AY237: ='2. CARBURANT (Véhicules lourds)'!AT$43 -> 0
E238: Propane [ton CO2 éq.] | F238: ='2. CARBURANT (Véhicules légers)'!A119 -> 0 | G238: ='2. CARBURANT (Véhicules lourds)'!B$44 -> 0 | I238: ='2. CARBURANT (Véhicules lourds)'!D$44 -> 0 | K238: ='2. CARBURANT (Véhicules lourds)'!F$44 -> 0 | M238: ='2. CARBURANT (Véhicules lourds)'!H$44 -> 0 | O238: ='2. CARBURANT (Véhicules lourds)'!J$44 -> 0 | Q238: ='2. CARBURANT (Véhicules lourds)'!L$44 -> 0 | S238: ='2. CARBURANT (Véhicules lourds)'!N$44 -> 0 | U238: ='2. CARBURANT (Véhicules lourds)'!P$44 -> 0 | W238: ='2. CARBURANT (Véhicules lourds)'!R$44 -> 0 | Y238: ='2. CARBURANT (Véhicules lourds)'!T$44 -> 0 | AA238: ='2. CARBURANT (Véhicules lourds)'!V$44 -> 0 | AC238: ='2. CARBURANT (Véhicules lourds)'!X$44 -> 0 | AE238: ='2. CARBURANT (Véhicules lourds)'!Z$44 -> 0 | AG238: ='2. CARBURANT (Véhicules lourds)'!AB$44 -> 0 | AI238: ='2. CARBURANT (Véhicules lourds)'!AD$44 -> 0 | AK238: ='2. CARBURANT (Véhicules lourds)'!AF$44 -> 0 | AM238: ='2. CARBURANT (Véhicules lourds)'!AH$44 -> 0 | AO238: ='2. CARBURANT (Véhicules lourds)'!AJ$44 -> 0 | AQ238: ='2. CARBURANT (Véhicules lourds)'!AL$44 -> 0 | AS238: ='2. CARBURANT (Véhicules lourds)'!AN$44 -> 0 | AU238: ='2. CARBURANT (Véhicules lourds)'!AP$44 -> 0 | AW238: ='2. CARBURANT (Véhicules lourds)'!AR$44 -> 0 | AY238: ='2. CARBURANT (Véhicules lourds)'!AT$44 -> 0
D239: Biocarburants | E239: Essence Ethanol [ton CO2 éq.] | F239: ='2. CARBURANT (Véhicules légers)'!A122 -> 0 | G239: ='2. CARBURANT (Véhicules lourds)'!B$47 -> 0 | I239: ='2. CARBURANT (Véhicules lourds)'!D$47 -> 0 | K239: ='2. CARBURANT (Véhicules lourds)'!F$47 -> 0 | M239: ='2. CARBURANT (Véhicules lourds)'!H$47 -> 0 | O239: ='2. CARBURANT (Véhicules lourds)'!J$47 -> 0 | Q239: ='2. CARBURANT (Véhicules lourds)'!L$47 -> 0 | S239: ='2. CARBURANT (Véhicules lourds)'!N$47 -> 0 | U239: ='2. CARBURANT (Véhicules lourds)'!P$47 -> 0 | W239: ='2. CARBURANT (Véhicules lourds)'!R$47 -> 0 | Y239: ='2. CARBURANT (Véhicules lourds)'!T$47 -> 0 | AA239: ='2. CARBURANT (Véhicules lourds)'!V$47 -> 0 | AC239: ='2. CARBURANT (Véhicules lourds)'!X$47 -> 0 | AE239: ='2. CARBURANT (Véhicules lourds)'!Z$47 -> 0 | AG239: ='2. CARBURANT (Véhicules lourds)'!AB$47 -> 0 | AI239: ='2. CARBURANT (Véhicules lourds)'!AD$47 -> 0 | AK239: ='2. CARBURANT (Véhicules lourds)'!AF$47 -> 0 | AM239: ='2. CARBURANT (Véhicules lourds)'!AH$47 -> 0 | AO239: ='2. CARBURANT (Véhicules lourds)'!AJ$47 -> 0 | AQ239: ='2. CARBURANT (Véhicules lourds)'!AL$47 -> 0 | AS239: ='2. CARBURANT (Véhicules lourds)'!AN$47 -> 0 | AU239: ='2. CARBURANT (Véhicules lourds)'!AP$47 -> 0 | AW239: ='2. CARBURANT (Véhicules lourds)'!AR$47 -> 0 | AY239: ='2. CARBURANT (Véhicules lourds)'!AT$47 -> 0
E240: Bio Diesel [ton CO2 éq.] | F240: ='2. CARBURANT (Véhicules légers)'!A123 -> 0 | G240: ='2. CARBURANT (Véhicules lourds)'!B$48 -> 0 | I240: ='2. CARBURANT (Véhicules lourds)'!D$48 -> 0 | K240: ='2. CARBURANT (Véhicules lourds)'!F$48 -> 0 | M240: ='2. CARBURANT (Véhicules lourds)'!H$48 -> 0 | O240: ='2. CARBURANT (Véhicules lourds)'!J$48 -> 0 | Q240: ='2. CARBURANT (Véhicules lourds)'!L$48 -> 0 | S240: ='2. CARBURANT (Véhicules lourds)'!N$48 -> 0 | U240: ='2. CARBURANT (Véhicules lourds)'!P$48 -> 0 | W240: ='2. CARBURANT (Véhicules lourds)'!R$48 -> 0 | Y240: ='2. CARBURANT (Véhicules lourds)'!T$48 -> 0 | AA240: ='2. CARBURANT (Véhicules lourds)'!V$48 -> 0 | AC240: ='2. CARBURANT (Véhicules lourds)'!X$48 -> 0 | AE240: ='2. CARBURANT (Véhicules lourds)'!Z$48 -> 0 | AG240: ='2. CARBURANT (Véhicules lourds)'!AB$48 -> 0 | AI240: ='2. CARBURANT (Véhicules lourds)'!AD$48 -> 0 | AK240: ='2. CARBURANT (Véhicules lourds)'!AF$48 -> 0 | AM240: ='2. CARBURANT (Véhicules lourds)'!AH$48 -> 0 | AO240: ='2. CARBURANT (Véhicules lourds)'!AJ$48 -> 0 | AQ240: ='2. CARBURANT (Véhicules lourds)'!AL$48 -> 0 | AS240: ='2. CARBURANT (Véhicules lourds)'!AN$48 -> 0 | AU240: ='2. CARBURANT (Véhicules lourds)'!AP$48 -> 0 | AW240: ='2. CARBURANT (Véhicules lourds)'!AR$48 -> 0 | AY240: ='2. CARBURANT (Véhicules lourds)'!AT$48 -> 0
A241: Autres déplacements | C241: Déplacements pour lesquels il y a des émissions de GES | D241: Train [km] | F241: ='3. KM POLLUANTS'!A91 -> 0
D242: Avion [km] | F242: ='3. KM POLLUANTS'!A94 -> 0
D243: Autobus interurbain [km] | F243: ='3. KM POLLUANTS'!A89 -> 0
D244: Autobus urbain [km] | F244: ='3. KM POLLUANTS'!A88 -> 0
D245: Véhicule de location courte durée [km] | F245: ='3. KM POLLUANTS'!A92 -> 0
D246: Véhicule personnel [km] | F246: ='3. KM POLLUANTS'!A93 -> 0
D247: Métro [km] | F247: ='3. KM POLLUANTS'!A90 -> 0
D248: Passager en covoiturage [km] | F248: ='3. KM POLLUANTS'!A87 -> 0
D249: Taxi [km] | F249: ='3. KM POLLUANTS'!A86 -> 0
D250: TOTAL [km] | F250: ='3. KM POLLUANTS'!A148 -> 0 | G250: ='3. KM POLLUANTS'!B$33 -> 0 | I250: ='3. KM POLLUANTS'!D148 -> 0 | K250: ='3. KM POLLUANTS'!F148 -> 0 | M250: ='3. KM POLLUANTS'!H148 -> 0 | O250: ='3. KM POLLUANTS'!J148 -> 0 | Q250: ='3. KM POLLUANTS'!L148 -> 0 | S250: ='3. KM POLLUANTS'!N148 -> 0 | U250: ='3. KM POLLUANTS'!P148 -> 0 | W250: ='3. KM POLLUANTS'!R148 -> 0 | Y250: ='3. KM POLLUANTS'!T148 -> 0 | AA250: ='3. KM POLLUANTS'!V148 -> 0 | AC250: ='3. KM POLLUANTS'!X148 -> 0 | AE250: ='3. KM POLLUANTS'!Z148 -> 0 | AG250: ='3. KM POLLUANTS'!AB148 -> 0 | AI250: ='3. KM POLLUANTS'!AD148 -> 0 | AK250: ='3. KM POLLUANTS'!AF148 -> 0 | AM250: ='3. KM POLLUANTS'!AH148 -> 0 | AO250: ='3. KM POLLUANTS'!AJ148 -> 0 | AQ250: ='3. KM POLLUANTS'!AL148 -> 0 | AS250: ='3. KM POLLUANTS'!AN148 -> 0 | AU250: ='3. KM POLLUANTS'!AP148 -> 0 | AW250: ='3. KM POLLUANTS'!AR148 -> 0 | AY250: ='3. KM POLLUANTS'!AT148 -> 0
D251: TOTAL [GJ] | F251: ='3. KM POLLUANTS'!A150 -> 0 | G251: ='3. KM POLLUANTS'!B$35 -> 0 | I251: ='3. KM POLLUANTS'!D150 -> 0 | K251: ='3. KM POLLUANTS'!F150 -> 0 | M251: ='3. KM POLLUANTS'!H150 -> 0 | O251: ='3. KM POLLUANTS'!J150 -> 0 | Q251: ='3. KM POLLUANTS'!L150 -> 0 | S251: ='3. KM POLLUANTS'!N150 -> 0 | U251: ='3. KM POLLUANTS'!P150 -> 0 | W251: ='3. KM POLLUANTS'!R150 -> 0 | Y251: ='3. KM POLLUANTS'!T150 -> 0 | AA251: ='3. KM POLLUANTS'!V150 -> 0 | AC251: ='3. KM POLLUANTS'!X150 -> 0 | AE251: ='3. KM POLLUANTS'!Z150 -> 0 | AG251: ='3. KM POLLUANTS'!AB150 -> 0 | AI251: ='3. KM POLLUANTS'!AD150 -> 0 | AK251: ='3. KM POLLUANTS'!AF150 -> 0 | AM251: ='3. KM POLLUANTS'!AH150 -> 0 | AO251: ='3. KM POLLUANTS'!AJ150 -> 0 | AQ251: ='3. KM POLLUANTS'!AL150 -> 0 | AS251: ='3. KM POLLUANTS'!AN150 -> 0 | AU251: ='3. KM POLLUANTS'!AP150 -> 0 | AW251: ='3. KM POLLUANTS'!AR150 -> 0 | AY251: ='3. KM POLLUANTS'!AT150 -> 0
D252: TOTAL [ton CO2 éq.] | F252: ='3. KM POLLUANTS'!A152 -> 0 | G252: ='3. KM POLLUANTS'!B$37 -> 0 | I252: ='3. KM POLLUANTS'!D152 -> 0 | K252: ='3. KM POLLUANTS'!F152 -> 0 | M252: ='3. KM POLLUANTS'!H152 -> 0 | O252: ='3. KM POLLUANTS'!J152 -> 0 | Q252: ='3. KM POLLUANTS'!L152 -> 0 | S252: ='3. KM POLLUANTS'!N152 -> 0 | U252: ='3. KM POLLUANTS'!P152 -> 0 | W252: ='3. KM POLLUANTS'!R152 -> 0 | Y252: ='3. KM POLLUANTS'!T152 -> 0 | AA252: ='3. KM POLLUANTS'!V152 -> 0 | AC252: ='3. KM POLLUANTS'!X152 -> 0 | AE252: ='3. KM POLLUANTS'!Z152 -> 0 | AG252: ='3. KM POLLUANTS'!AB152 -> 0 | AI252: ='3. KM POLLUANTS'!AD152 -> 0 | AK252: ='3. KM POLLUANTS'!AF152 -> 0 | AM252: ='3. KM POLLUANTS'!AH152 -> 0 | AO252: ='3. KM POLLUANTS'!AJ152 -> 0 | AQ252: ='3. KM POLLUANTS'!AL152 -> 0 | AS252: ='3. KM POLLUANTS'!AN152 -> 0 | AU252: ='3. KM POLLUANTS'!AP152 -> 0 | AW252: ='3. KM POLLUANTS'!AR152 -> 0 | AY252: ='3. KM POLLUANTS'!AT152 -> 0
C253: Déplacements ZÉRO émissions de GES | D253: Bicyclette [km] | F253: ='4. KM ZÉRO ÉMISSION'!A74 -> 0 | G253: ='4. KM ZÉRO ÉMISSION'!B$12 -> 0 | I253: ='4. KM ZÉRO ÉMISSION'!D$12 -> 0 | K253: ='4. KM ZÉRO ÉMISSION'!F$12 -> 0 | M253: ='4. KM ZÉRO ÉMISSION'!H$12 -> 0 | O253: ='4. KM ZÉRO ÉMISSION'!J$12 -> 0 | Q253: ='4. KM ZÉRO ÉMISSION'!L$12 -> 0 | S253: ='4. KM ZÉRO ÉMISSION'!N$12 -> 0 | U253: ='4. KM ZÉRO ÉMISSION'!P$12 -> 0 | W253: ='4. KM ZÉRO ÉMISSION'!R$12 -> 0 | Y253: ='4. KM ZÉRO ÉMISSION'!T$12 -> 0 | AA253: ='4. KM ZÉRO ÉMISSION'!V$12 -> 0 | AC253: ='4. KM ZÉRO ÉMISSION'!X$12 -> 0 | AE253: ='4. KM ZÉRO ÉMISSION'!Z$12 -> 0 | AG253: ='4. KM ZÉRO ÉMISSION'!AB$12 -> 0 | AI253: ='4. KM ZÉRO ÉMISSION'!AD$12 -> 0 | AK253: ='4. KM ZÉRO ÉMISSION'!AF$12 -> 0 | AM253: ='4. KM ZÉRO ÉMISSION'!AH$12 -> 0 | AO253: ='4. KM ZÉRO ÉMISSION'!AJ$12 -> 0 | AQ253: ='4. KM ZÉRO ÉMISSION'!AL$12 -> 0 | AS253: ='4. KM ZÉRO ÉMISSION'!AN$12 -> 0 | AU253: ='4. KM ZÉRO ÉMISSION'!AP$12 -> 0 | AW253: ='4. KM ZÉRO ÉMISSION'!AR$12 -> 0 | AY253: ='4. KM ZÉRO ÉMISSION'!AT$12 -> 0
D254: À pied [km] | F254: ='4. KM ZÉRO ÉMISSION'!A73 -> 0 | G254: ='4. KM ZÉRO ÉMISSION'!B$11 -> 0 | I254: ='4. KM ZÉRO ÉMISSION'!D$11 -> 0 | K254: ='4. KM ZÉRO ÉMISSION'!F$11 -> 0 | M254: ='4. KM ZÉRO ÉMISSION'!H$11 -> 0 | O254: ='4. KM ZÉRO ÉMISSION'!J$11 -> 0 | Q254: ='4. KM ZÉRO ÉMISSION'!L$11 -> 0 | S254: ='4. KM ZÉRO ÉMISSION'!N$11 -> 0 | U254: ='4. KM ZÉRO ÉMISSION'!P$11 -> 0 | W254: ='4. KM ZÉRO ÉMISSION'!R$11 -> 0 | Y254: ='4. KM ZÉRO ÉMISSION'!T$11 -> 0 | AA254: ='4. KM ZÉRO ÉMISSION'!V$11 -> 0 | AC254: ='4. KM ZÉRO ÉMISSION'!X$11 -> 0 | AE254: ='4. KM ZÉRO ÉMISSION'!Z$11 -> 0 | AG254: ='4. KM ZÉRO ÉMISSION'!AB$11 -> 0 | AI254: ='4. KM ZÉRO ÉMISSION'!AD$11 -> 0 | AK254: ='4. KM ZÉRO ÉMISSION'!AF$11 -> 0 | AM254: ='4. KM ZÉRO ÉMISSION'!AH$11 -> 0 | AO254: ='4. KM ZÉRO ÉMISSION'!AJ$11 -> 0 | AQ254: ='4. KM ZÉRO ÉMISSION'!AL$11 -> 0 | AS254: ='4. KM ZÉRO ÉMISSION'!AN$11 -> 0 | AU254: ='4. KM ZÉRO ÉMISSION'!AP$11 -> 0 | AW254: ='4. KM ZÉRO ÉMISSION'!AR$11 -> 0 | AY254: ='4. KM ZÉRO ÉMISSION'!AT$11 -> 0
D255: Autres [km] | F255: ='4. KM ZÉRO ÉMISSION'!A75 -> 0 | G255: ='4. KM ZÉRO ÉMISSION'!B$13 -> 0 | I255: ='4. KM ZÉRO ÉMISSION'!D$13 -> 0 | K255: ='4. KM ZÉRO ÉMISSION'!F$13 -> 0 | M255: ='4. KM ZÉRO ÉMISSION'!H$13 -> 0 | O255: ='4. KM ZÉRO ÉMISSION'!J$13 -> 0 | Q255: ='4. KM ZÉRO ÉMISSION'!L$13 -> 0 | S255: ='4. KM ZÉRO ÉMISSION'!N$13 -> 0 | U255: ='4. KM ZÉRO ÉMISSION'!P$13 -> 0 | W255: ='4. KM ZÉRO ÉMISSION'!R$13 -> 0 | Y255: ='4. KM ZÉRO ÉMISSION'!T$13 -> 0 | AA255: ='4. KM ZÉRO ÉMISSION'!V$13 -> 0 | AC255: ='4. KM ZÉRO ÉMISSION'!X$13 -> 0 | AE255: ='4. KM ZÉRO ÉMISSION'!Z$13 -> 0 | AG255: ='4. KM ZÉRO ÉMISSION'!AB$13 -> 0 | AI255: ='4. KM ZÉRO ÉMISSION'!AD$13 -> 0 | AK255: ='4. KM ZÉRO ÉMISSION'!AF$13 -> 0 | AM255: ='4. KM ZÉRO ÉMISSION'!AH$13 -> 0 | AO255: ='4. KM ZÉRO ÉMISSION'!AJ$13 -> 0 | AQ255: ='4. KM ZÉRO ÉMISSION'!AL$13 -> 0 | AS255: ='4. KM ZÉRO ÉMISSION'!AN$13 -> 0 | AU255: ='4. KM ZÉRO ÉMISSION'!AP$13 -> 0 | AW255: ='4. KM ZÉRO ÉMISSION'!AR$13 -> 0 | AY255: ='4. KM ZÉRO ÉMISSION'!AT$13 -> 0
D256: TOTAL [km] | F256: ='4. KM ZÉRO ÉMISSION'!A76 -> 0 | G256: ='4. KM ZÉRO ÉMISSION'!B$14 -> 0 | I256: ='4. KM ZÉRO ÉMISSION'!D$14 -> 0 | K256: ='4. KM ZÉRO ÉMISSION'!F$14 -> 0 | M256: ='4. KM ZÉRO ÉMISSION'!H$14 -> 0 | O256: ='4. KM ZÉRO ÉMISSION'!J$14 -> 0 | Q256: ='4. KM ZÉRO ÉMISSION'!L$14 -> 0 | S256: ='4. KM ZÉRO ÉMISSION'!N$14 -> 0 | U256: ='4. KM ZÉRO ÉMISSION'!P$14 -> 0 | W256: ='4. KM ZÉRO ÉMISSION'!R$14 -> 0 | Y256: ='4. KM ZÉRO ÉMISSION'!T$14 -> 0 | AA256: ='4. KM ZÉRO ÉMISSION'!V$14 -> 0 | AC256: ='4. KM ZÉRO ÉMISSION'!X$14 -> 0 | AE256: ='4. KM ZÉRO ÉMISSION'!Z$14 -> 0 | AG256: ='4. KM ZÉRO ÉMISSION'!AB$14 -> 0 | AI256: ='4. KM ZÉRO ÉMISSION'!AD$14 -> 0 | AK256: ='4. KM ZÉRO ÉMISSION'!AF$14 -> 0 | AM256: ='4. KM ZÉRO ÉMISSION'!AH$14 -> 0 | AO256: ='4. KM ZÉRO ÉMISSION'!AJ$14 -> 0 | AQ256: ='4. KM ZÉRO ÉMISSION'!AL$14 -> 0 | AS256: ='4. KM ZÉRO ÉMISSION'!AN$14 -> 0 | AU256: ='4. KM ZÉRO ÉMISSION'!AP$14 -> 0 | AW256: ='4. KM ZÉRO ÉMISSION'!AR$14 -> 0 | AY256: ='4. KM ZÉRO ÉMISSION'!AT$14 -> 0
C257: Déplacements ÉVITÉS | D257: Téléconférence [km] | F257: ='4. KM ZÉRO ÉMISSION'!A79 -> 0 | G257: ='4. KM ZÉRO ÉMISSION'!B$17 -> 0 | I257: ='4. KM ZÉRO ÉMISSION'!D$17 -> 0 | K257: ='4. KM ZÉRO ÉMISSION'!F$17 -> 0 | M257: ='4. KM ZÉRO ÉMISSION'!H$17 -> 0 | O257: ='4. KM ZÉRO ÉMISSION'!J$17 -> 0 | Q257: ='4. KM ZÉRO ÉMISSION'!L$17 -> 0 | S257: ='4. KM ZÉRO ÉMISSION'!N$17 -> 0 | U257: ='4. KM ZÉRO ÉMISSION'!P$17 -> 0 | W257: ='4. KM ZÉRO ÉMISSION'!R$17 -> 0 | Y257: ='4. KM ZÉRO ÉMISSION'!T$17 -> 0 | AA257: ='4. KM ZÉRO ÉMISSION'!V$17 -> 0 | AC257: ='4. KM ZÉRO ÉMISSION'!X$17 -> 0 | AE257: ='4. KM ZÉRO ÉMISSION'!Z$17 -> 0 | AG257: ='4. KM ZÉRO ÉMISSION'!AB$17 -> 0 | AI257: ='4. KM ZÉRO ÉMISSION'!AD$17 -> 0 | AK257: ='4. KM ZÉRO ÉMISSION'!AF$17 -> 0 | AM257: ='4. KM ZÉRO ÉMISSION'!AH$17 -> 0 | AO257: ='4. KM ZÉRO ÉMISSION'!AJ$17 -> 0 | AQ257: ='4. KM ZÉRO ÉMISSION'!AL$17 -> 0 | AS257: ='4. KM ZÉRO ÉMISSION'!AN$17 -> 0 | AU257: ='4. KM ZÉRO ÉMISSION'!AP$17 -> 0 | AW257: ='4. KM ZÉRO ÉMISSION'!AR$17 -> 0 | AY257: ='4. KM ZÉRO ÉMISSION'!AT$17 -> 0
D258: Autres mesures [km] | F258: ='4. KM ZÉRO ÉMISSION'!A80 -> 0 | G258: ='4. KM ZÉRO ÉMISSION'!B$18 -> 0 | I258: ='4. KM ZÉRO ÉMISSION'!D$18 -> 0 | K258: ='4. KM ZÉRO ÉMISSION'!F$18 -> 0 | M258: ='4. KM ZÉRO ÉMISSION'!H$18 -> 0 | O258: ='4. KM ZÉRO ÉMISSION'!J$18 -> 0 | Q258: ='4. KM ZÉRO ÉMISSION'!L$18 -> 0 | S258: ='4. KM ZÉRO ÉMISSION'!N$18 -> 0 | U258: ='4. KM ZÉRO ÉMISSION'!P$18 -> 0 | W258: ='4. KM ZÉRO ÉMISSION'!R$18 -> 0 | Y258: ='4. KM ZÉRO ÉMISSION'!T$18 -> 0 | AA258: ='4. KM ZÉRO ÉMISSION'!V$18 -> 0 | AC258: ='4. KM ZÉRO ÉMISSION'!X$18 -> 0 | AE258: ='4. KM ZÉRO ÉMISSION'!Z$18 -> 0 | AG258: ='4. KM ZÉRO ÉMISSION'!AB$18 -> 0 | AI258: ='4. KM ZÉRO ÉMISSION'!AD$18 -> 0 | AK258: ='4. KM ZÉRO ÉMISSION'!AF$18 -> 0 | AM258: ='4. KM ZÉRO ÉMISSION'!AH$18 -> 0 | AO258: ='4. KM ZÉRO ÉMISSION'!AJ$18 -> 0 | AQ258: ='4. KM ZÉRO ÉMISSION'!AL$18 -> 0 | AS258: ='4. KM ZÉRO ÉMISSION'!AN$18 -> 0 | AU258: ='4. KM ZÉRO ÉMISSION'!AP$18 -> 0 | AW258: ='4. KM ZÉRO ÉMISSION'!AR$18 -> 0 | AY258: ='4. KM ZÉRO ÉMISSION'!AT$18 -> 0
D259: TOTAL [km] | F259: ='4. KM ZÉRO ÉMISSION'!A81 -> 0 | G259: ='4. KM ZÉRO ÉMISSION'!B$19 -> 0 | I259: ='4. KM ZÉRO ÉMISSION'!D$19 -> 0 | K259: ='4. KM ZÉRO ÉMISSION'!F$19 -> 0 | M259: ='4. KM ZÉRO ÉMISSION'!H$19 -> 0 | O259: ='4. KM ZÉRO ÉMISSION'!J$19 -> 0 | Q259: ='4. KM ZÉRO ÉMISSION'!L$19 -> 0 | S259: ='4. KM ZÉRO ÉMISSION'!N$19 -> 0 | U259: ='4. KM ZÉRO ÉMISSION'!P$19 -> 0 | W259: ='4. KM ZÉRO ÉMISSION'!R$19 -> 0 | Y259: ='4. KM ZÉRO ÉMISSION'!T$19 -> 0 | AA259: ='4. KM ZÉRO ÉMISSION'!V$19 -> 0 | AC259: ='4. KM ZÉRO ÉMISSION'!X$19 -> 0 | AE259: ='4. KM ZÉRO ÉMISSION'!Z$19 -> 0 | AG259: ='4. KM ZÉRO ÉMISSION'!AB$19 -> 0 | AI259: ='4. KM ZÉRO ÉMISSION'!AD$19 -> 0 | AK259: ='4. KM ZÉRO ÉMISSION'!AF$19 -> 0 | AM259: ='4. KM ZÉRO ÉMISSION'!AH$19 -> 0 | AO259: ='4. KM ZÉRO ÉMISSION'!AJ$19 -> 0 | AQ259: ='4. KM ZÉRO ÉMISSION'!AL$19 -> 0 | AS259: ='4. KM ZÉRO ÉMISSION'!AN$19 -> 0 | AU259: ='4. KM ZÉRO ÉMISSION'!AP$19 -> 0 | AW259: ='4. KM ZÉRO ÉMISSION'!AR$19 -> 0 | AY259: ='4. KM ZÉRO ÉMISSION'!AT$19 -> 0
F263: 0
F264: 0
F265: 0
F266: 0
F267: 0
F268: 0
F269: 0
F270: 0
F271: 0
F272: 0
F273: 0
F274: 0
F275: 0

Sheet RÉSUMÉ
F5: ÉVOLUTION DE LA CONSOMMATION ÉNERGÉTIQUE POUR LE TRANSPORT | AC5: ÉVOLUTION DE LA CONSOMMATION ÉNERGÉTIQUE POUR LE TRANSPORT
B7: 2002-2003 | D7: 2003-2004 | F7: 2004-2005 | H7: 2005-2006 | J7: 2006-2007 | L7: 2007-2008 | N7: 2008-2009 | P7: 2009-2010 | R7: 2010-2011 | T7: 2011-2012 | V7: 2012-2013 | X7: 2013-2014 | Z7: 2014-2015 | AB7: 2015-2016 | AD7: 2016-2017 | AF7: 2017-2018 | AH7: 2018-2019 | AJ7: 2019-2020 | AL7: 2020-2021 | AN7: 2021-2022 | AP7: 2022-2023 | AR7: 2023-2024 | AT7: 2024-2025
A8: Consommation énergétique
A9: véhicules légers: Consommation [GJ] | B9: =GJ_vehic_instit_02_03 -> 0 | D9: =GJ_vehic_instit_03_04 -> 0 | F9: =GJ_vehic_instit_04_05 -> 0 | H9: =GJ_vehic_instit_05_06 -> 0 | J9: =GJ_vehic_instit_06_07 -> 0 | L9: =GJ_vehic_instit_07_08 -> 0 | N9: =GJ_vehic_instit_08_09 -> 0 | P9: =IFERROR(GJ_vehic_instit_09_10,0) -> 0 | R9: =IFERROR(GJ_vehic_instit_10_11,0) -> 0 | T9: =IFERROR(GJ_vehic_instit_11_12,0) -> 0 | V9: =IFERROR(GJ_vehic_instit_12_13,0) -> 0 | X9: =IFERROR(GJ_vehic_instit_13_14,0) -> 0 | Z9: =IFERROR(GJ_vehic_instit_14_15,0) -> 0 | AB9: =IFERROR(GJ_vehic_instit_15_16,0) -> 0 | AD9: =IFERROR(GJ_vehic_instit_16_17,0) -> 0 | AF9: =IFERROR(GJ_vehic_instit_17_18,0) -> 0 | AH9: =IFERROR(GJ_vehic_instit_18_19,0) -> 0 | AJ9: =IFERROR(GJ_vehic_instit_19_20,0) -> 0 | AL9: =IFERROR(GJ_vehic_instit_20_21,0) -> 0 | AN9: =IFERROR(GJ_vehic_instit_21_22,0) -> 0 | AP9: =IFERROR(GJ_vehic_instit_22_23,0) -> 0 | AR9: =IFERROR(GJ_vehic_instit_23_24,0) -> 0 | AT9: =IFERROR(GJ_vehic_instit_24_25,0) -> 0
A10: Consommation [L-éq. essence] | B10: =B9/L_ess_to_GJ -> 0 | D10: =D9/L_ess_to_GJ -> 0 | F10: =F9/L_ess_to_GJ -> 0 | H10: =H9/L_ess_to_GJ -> 0 | J10: =J9/L_ess_to_GJ -> 0 | L10: =L9/L_ess_to_GJ -> 0 | N10: =N9/L_ess_to_GJ -> 0 | P10: =IFERROR(P9/L_ess_to_GJ,0) -> 0 | R10: =IFERROR(R9/L_ess_to_GJ,0) -> 0 | T10: =IFERROR(T9/L_ess_to_GJ,0) -> 0 | V10: =IFERROR(V9/L_ess_to_GJ,0) -> 0 | X10: =IFERROR(X9/L_ess_to_GJ,0) -> 0 | Z10: =IFERROR(Z9/L_ess_to_GJ,0) -> 0 | AB10: =IFERROR(AB9/L_ess_to_GJ,0) -> 0 | AD10: =AD9/L_ess_to_GJ -> 0 | AF10: =AF9/L_ess_to_GJ -> 0 | AH10: =AH9/L_ess_to_GJ -> 0 | AJ10: =AJ9/L_ess_to_GJ -> 0 | AL10: =AL9/L_ess_to_GJ -> 0 | AN10: =AN9/L_ess_to_GJ -> 0 | AP10: =AP9/L_ess_to_GJ -> 0 | AR10: =AR9/L_ess_to_GJ -> 0 | AT10: =AT9/L_ess_to_GJ -> 0
A11: Variation/année de référence [%] | R11: =IF((R10=0),"",(R10/$P10-1)) ->  | T11: =IF((T10=0),"",(T10/$P10-1)) ->  | V11: =IF((V10=0),"",(V10/$P10-1)) ->  | X11: =IF((X10=0),"",(X10/$P10-1)) ->  | Z11: =IF((Z10=0),"",(Z10/$P10-1)) ->  | AB11: =IF((AB10=0),"",(AB10/$P10-1)) ->  | AD11: =IF(ISERROR(AD10/$P10-1),0,(AD10/$P10-1)) -> 0 | AF11: =IF(ISERROR(AF10/$P10-1),0,(AF10/$P10-1)) -> 0 | AH11: =IF(ISERROR(AH10/$P10-1),0,(AH10/$P10-1)) -> 0 | AJ11: =IF(ISERROR(AJ10/$P10-1),0,(AJ10/$P10-1)) -> 0 | AL11: =IF(ISERROR(AL10/$P10-1),0,(AL10/$P10-1)) -> 0 | AN11: =IF(ISERROR(AN10/$P10-1),0,(AN10/$P10-1)) -> 0 | AP11: =IF(ISERROR(AP10/$P10-1),0,(AP10/$P10-1)) -> 0 | AR11: =IF(ISERROR(AR10/$P10-1),0,(AR10/$P10-1)) -> 0 | AT11: =IF(ISERROR(AT10/$P10-1),0,(AT10/$P10-1)) -> 0
A12: véhicules lourds: Consommation [GJ] | B12: =GJ_vehic_instit_02_03L -> 0 | D12: =GJ_vehic_instit_03_04L -> 0 | F12: =GJ_vehic_instit_04_05L -> 0 | H12: =GJ_vehic_instit_05_06L -> 0 | J12: =GJ_vehic_instit_06_07L -> 0 | L12: =GJ_vehic_instit_07_08L -> 0 | N12: =GJ_vehic_instit_08_09L -> 0 | P12: =IFERROR(GJ_vehic_instit_09_10L,0) -> 0 | R12: =IFERROR(GJ_vehic_instit_10_11L,0) -> 0 | T12: =IFERROR(GJ_vehic_instit_11_12L,0) -> 0 | V12: =IFERROR(GJ_vehic_instit_12_13L,0) -> 0 | X12: =IFERROR(GJ_vehic_instit_13_14L,0) -> 0 | Z12: =IFERROR(GJ_vehic_instit_14_15L,0) -> 0 | AB12: =IFERROR(GJ_vehic_instit_15_16L,0) -> 0 | AD12: =IFERROR(GJ_vehic_instit_16_17L,0) -> 0 | AF12: =IFERROR(GJ_vehic_instit_17_18L,0) -> 0 | AH12: =IFERROR(GJ_vehic_instit_18_19L,0) -> 0 | AJ12: =IFERROR(GJ_vehic_instit_19_20L,0) -> 0 | AL12: =IFERROR(GJ_vehic_instit_20_21L,0) -> 0 | AN12: =IFERROR(GJ_vehic_instit_21_22L,0) -> 0 | AP12: =IFERROR(GJ_vehic_instit_22_23L,0) -> 0 | AR12: =IFERROR(GJ_vehic_instit_23_24L,0) -> 0 | AT12: =IFERROR(GJ_vehic_instit_24_25L,0) -> 0
A13: Consommation [L-éq. diesel] | B13: =B12/L_ess_to_GJ -> 0 | D13: =D12/L_ess_to_GJ -> 0 | F13: =F12/L_ess_to_GJ -> 0 | H13: =H12/L_ess_to_GJ -> 0 | J13: =J12/L_ess_to_GJ -> 0 | L13: =L12/L_ess_to_GJ -> 0 | N13: =N12/L_ess_to_GJ -> 0 | P13: =IFERROR(P12/L_dies_to_GJ_Lourd,0) -> 0 | R13: =IFERROR(R12/L_dies_to_GJ_Lourd,0) -> 0 | T13: =IFERROR(T12/L_dies_to_GJ_Lourd, 0) -> 0 | V13: =IFERROR(V12/L_dies_to_GJ_Lourd,0) -> 0 | X13: =IFERROR(X12/L_dies_to_GJ_Lourd,0) -> 0 | Z13: =IFERROR(Z12/L_dies_to_GJ_Lourd,0) -> 0 | AB13: =IFERROR(AB12/L_dies_to_GJ_Lourd,0) -> 0 | AD13: =IFERROR(AD12/L_dies_to_GJ_Lourd,0) -> 0 | AF13: =IFERROR(AF12/L_dies_to_GJ_Lourd,0) -> 0 | AH13: =IFERROR(AH12/L_dies_to_GJ_Lourd,0) -> 0 | AJ13: =IFERROR(AJ12/L_dies_to_GJ_Lourd,0) -> 0 | AL13: =IFERROR(AL12/L_dies_to_GJ_Lourd,0) -> 0 | AN13: =IFERROR(AN12/L_dies_to_GJ_Lourd,0) -> 0 | AP13: =IFERROR(AP12/L_dies_to_GJ_Lourd,0) -> 0 | AR13: =IFERROR(AR12/L_dies_to_GJ_Lourd,0) -> 0 | AT13: =IFERROR(AT12/L_dies_to_GJ_Lourd,0) -> 0
A14: Variation/année de référence [%] | R14: =IF((R13=0),"",(R13/$P13-1)) ->  | T14: =IF((T13=0),"",(T13/$P13-1)) ->  | V14: =IF((V13=0),"",(V13/$P13-1)) ->  | X14: =IF((X13=0),"",(X13/$P13-1)) ->  | Z14: =IF((Z13=0),"",(Z13/$P13-1)) ->  | AB14: =IF((AB13=0),"",(AB13/$P13-1)) ->  | AD14: =IF(ISERROR(AD13/$P13-1),0,(AD13/$P13-1)) -> 0 | AF14: =IF(ISERROR(AF13/$P13-1),0,(AF13/$P13-1)) -> 0 | AH14: =IF(ISERROR(AH13/$P13-1),0,(AH13/$P13-1)) -> 0 | AJ14: =IF(ISERROR(AJ13/$P13-1),0,(AJ13/$P13-1)) -> 0 | AL14: =IF(ISERROR(AL13/$P13-1),0,(AL13/$P13-1)) -> 0 | AN14: =IF(ISERROR(AN13/$P13-1),0,(AN13/$P13-1)) -> 0 | AP14: =IF(ISERROR(AP13/$P13-1),0,(AP13/$P13-1)) -> 0 | AR14: =IF(ISERROR(AR13/$P13-1),0,(AR13/$P13-1)) -> 0 | AT14: =IF(ISERROR(AT13/$P13-1),0,(AT13/$P13-1)) -> 0
A15: autres: Consommation [GJ] | B15: =GJ_autre_02_03 -> 0 | D15: =GJ_autre_03_04 -> 0 | F15: =GJ_autre_04_05 -> 0 | H15: =GJ_autre_05_06 -> 0 | J15: =GJ_autre_06_07 -> 0 | L15: =GJ_autre_07_08 -> 0 | N15: =GJ_autre_08_09 -> 0 | P15: =IFERROR(GJ_autre_09_10,0) -> 0 | R15: =IFERROR(GJ_autre_10_11,0) -> 0 | T15: =GJ_autre_11_12 -> 0 | V15: =IFERROR(GJ_autre_12_13,0) -> 0 | X15: =IFERROR(GJ_autre_13_14,0) -> 0 | Z15: =IFERROR(GJ_autre_14_15,0) -> 0 | AB15: =IFERROR(GJ_autre_15_16,0) -> 0 | AD15: =GJ_autre_16_17 -> 0 | AF15: =GJ_autre_17_18 -> 0 | AH15: =GJ_autre_18_19 -> 0 | AJ15: =GJ_autre_19_20 -> 0 | AL15: =GJ_autre_20_21 -> 0 | AN15: =GJ_autre_21_22 -> 0 | AP15: =GJ_autre_22_23 -> 0 | AR15: =GJ_autre_23_24 -> 0 | AT15: =GJ_autre_24_25 -> 0
A16: Consommation [L-éq. essence] | B16: =B15/L_ess_to_GJ -> 0 | D16: =D15/L_ess_to_GJ -> 0 | F16: =F15/L_ess_to_GJ -> 0 | H16: =H15/L_ess_to_GJ -> 0 | J16: =J15/L_ess_to_GJ -> 0 | L16: =L15/L_ess_to_GJ -> 0 | N16: =N15/L_ess_to_GJ -> 0 | P16: =IFERROR(P15/L_ess_to_GJ,0) -> 0 | R16: =IFERROR(R15/L_ess_to_GJ,0) -> 0 | T16: =T15/L_ess_to_GJ -> 0 | V16: =IFERROR(V15/L_ess_to_GJ,0) -> 0 | X16: =IFERROR(X15/L_ess_to_GJ,0) -> 0 | Z16: =IFERROR(Z15/L_ess_to_GJ,0) -> 0 | AB16: =IFERROR(AB15/L_ess_to_GJ,0) -> 0 | AD16: =AD15/L_ess_to_GJ -> 0 | AF16: =AF15/L_ess_to_GJ -> 0 | AH16: =AH15/L_ess_to_GJ -> 0 | AJ16: =AJ15/L_ess_to_GJ -> 0 | AL16: =AL15/L_ess_to_GJ -> 0 | AN16: =AN15/L_ess_to_GJ -> 0 | AP16: =AP15/L_ess_to_GJ -> 0 | AR16: =AR15/L_ess_to_GJ -> 0 | AT16: =AT15/L_ess_to_GJ -> 0
A17: Consommation totale [GJ] | P17: =IFERROR(P9+P12+P15,0) -> 0 | R17: =IFERROR(R9+R12+R15,0) -> 0 | T17: =IFERROR(T9+T12+T15,0) -> 0 | V17: =IFERROR(V9+V12+V15,0) -> 0 | X17: =IFERROR(X9+X12+X15,0) -> 0 | Z17: =IFERROR(Z9+Z12+Z15,0) -> 0 | AB17: =AB9+AB12+AB15 -> 0 | AD17: =IFERROR(AD9+AD12+AD15,0) -> 0 | AF17: =IFERROR(AF9+AF12+AF15,0) -> 0 | AH17: =AH9+AH12+AH15 -> 0 | AJ17: =AJ9+AJ12+AJ15 -> 0 | AL17: =AL9+AL12+AL15 -> 0 | AN17: =AN9+AN12+AN15 -> 0 | AP17: =AP9+AP12+AP15 -> 0 | AR17: =AR9+AR12+AR15 -> 0 | AT17: =AT9+AT12+AT15 -> 0
A18: Consommation totale [L-éq. essence] | P18: =IFERROR(P10+P13+P16,0) -> 0 | R18: =IFERROR(R10+R13+R16,0) -> 0 | T18: =IFERROR(T10+T13+T16,0) -> 0 | V18: =IFERROR(V10+V13+V16,0) -> 0 | X18: =IFERROR(X10+X13+X16,0) -> 0 | Z18: =IFERROR(Z10+Z13+Z16,0) -> 0 | AB18: =IFERROR(AB10+AB13+AB16,0) -> 0 | AD18: =IFERROR(AD10+AD13+AD16,0) -> 0 | AF18: =IFERROR(AF10+AF13+AF16,0) -> 0 | AH18: =AH10+AH13+AH16 -> 0 | AJ18: =AJ10+AJ13+AJ16 -> 0 | AL18: =AL10+AL13+AL16 -> 0 | AN18: =AN10+AN13+AN16 -> 0 | AP18: =AP10+AP13+AP16 -> 0 | AR18: =AR10+AR13+AR16 -> 0 | AT18: =AT10+AT13+AT16 -> 0
A20: Dépenses énergétiques des véhicules de l'organisation
A21: véhicules légers: Dépenses [$] | B21: =CAD_vehic_instit_02_03 -> 0 | D21: =CAD_vehic_instit_03_04 -> 0 | F21: =CAD_vehic_instit_04_05 -> 0 | H21: =CAD_vehic_instit_05_06 -> 0 | J21: =CAD_vehic_instit_06_07 -> 0 | L21: =CAD_vehic_instit_07_08 -> 0 | N21: =CAD_vehic_instit_08_09 -> 0 | P21: =CAD_vehic_instit_09_10 -> 0 | R21: =CAD_vehic_instit_10_11 -> 0 | T21: =CAD_vehic_instit_11_12 -> 0 | V21: =CAD_vehic_instit_12_13 -> 0 | X21: =CAD_vehic_instit_13_14 -> 0 | Z21: =CAD_vehic_instit_14_15 -> 0 | AB21: =CAD_vehic_instit_15_16 -> 0 | AD21: =CAD_vehic_instit_16_17 -> 0 | AF21: =CAD_vehic_instit_17_18 -> 0 | AH21: =CAD_vehic_instit_18_19 -> 0 | AJ21: =CAD_vehic_instit_19_20 -> 0 | AL21: =CAD_vehic_instit_20_21 -> 0 | AN21: =CAD_vehic_instit_21_22 -> 0 | AP21: =CAD_vehic_instit_22_23 -> 0 | AR21: =CAD_vehic_instit_23_24 -> 0 | AT21: =CAD_vehic_instit_24_25 -> 0
A22: Variation/année de référence [%] | R22: =IF((R21=0),"",(R21/$P21-1)) ->  | T22: =IF((T21=0),"",(T21/$P21-1)) ->  | V22: =IF((V21=0),"",(V21/$P21-1)) ->  | X22: =IF((X21=0),"",(X21/$P21-1)) ->  | Z22: =IF((Z21=0),"",(Z21/$P21-1)) ->  | AB22: =IF((AB21=0),"",(AB21/$P21-1)) ->  | AD22: =IF(ISERROR(AD21/$P21-1),0,(AD21/$P21-1)) -> 0 | AF22: =IF(ISERROR(AF21/$P21-1),0,(AF21/$P21-1)) -> 0 | AH22: =IF(ISERROR(AH21/$P21-1),0,(AH21/$P21-1)) -> 0 | AJ22: =IF(ISERROR(AJ21/$P21-1),0,(AJ21/$P21-1)) -> 0 | AL22: =IF(ISERROR(AL21/$P21-1),0,(AL21/$P21-1)) -> 0 | AN22: =IF(ISERROR(AN21/$P21-1),0,(AN21/$P21-1)) -> 0 | AP22: =IF(ISERROR(AP21/$P21-1),0,(AP21/$P21-1)) -> 0 | AR22: =IF(ISERROR(AR21/$P21-1),0,(AR21/$P21-1)) -> 0 | AT22: =IF(ISERROR(AT21/$P21-1),0,(AT21/$P21-1)) -> 0
A23: véhicules lourds: Dépenses [$] | B23: =CAD_vehic_instit_02_03L -> 0 | D23: =CAD_vehic_instit_03_04L -> 0 | F23: =CAD_vehic_instit_04_05L -> 0 | H23: =CAD_vehic_instit_05_06L -> 0 | J23: =CAD_vehic_instit_06_07L -> 0 | L23: =CAD_vehic_instit_07_08L -> 0 | N23: =CAD_vehic_instit_08_09L -> 0 | P23: =CAD_vehic_instit_09_10L -> 0 | R23: =CAD_vehic_instit_10_11L -> 0 | T23: =CAD_vehic_instit_11_12L -> 0 | V23: =CAD_vehic_instit_12_13L -> 0 | X23: =CAD_vehic_instit_13_14L -> 0 | Z23: =CAD_vehic_instit_14_15L -> 0 | AB23: =CAD_vehic_instit_15_16L -> 0 | AD23: =CAD_vehic_instit_16_17L -> 0 | AF23: =CAD_vehic_instit_17_18L -> 0 | AH23: =CAD_vehic_instit_18_19L -> 0 | AJ23: =CAD_vehic_instit_19_20L -> 0 | AL23: =CAD_vehic_instit_20_21L -> 0 | AN23: =CAD_vehic_instit_21_22L -> 0 | AP23: =CAD_vehic_instit_22_23L -> 0 | AR23: =CAD_vehic_instit_23_24L -> 0 | AT23: =CAD_vehic_instit_24_25L -> 0
A24: Variation/année de référence [%] | R24: =IF((R23=0),"",(R23/$P23-1)) ->  | T24: =IF((T23=0),"",(T23/$P23-1)) ->  | V24: =IF((V23=0),"",(V23/$P23-1)) ->  | X24: =IF((X23=0),"",(X23/$P23-1)) ->  | Z24: =IF((Z23=0),"",(Z23/$P23-1)) ->  | AB24: =IF((AB23=0),"",(AB23/$P23-1)) ->  | AD24: =IF(ISERROR(AD23/$P23-1),0,(AD23/$P23-1)) -> 0 | AF24: =IF(ISERROR(AF23/$P23-1),0,(AF23/$P23-1)) -> 0 | AH24: =IF(ISERROR(AH23/$P23-1),0,(AH23/$P23-1)) -> 0 | AJ24: =IF(ISERROR(AJ23/$P23-1),0,(AJ23/$P23-1)) -> 0 | AL24: =IF(ISERROR(AL23/$P23-1),0,(AL23/$P23-1)) -> 0 | AN24: =IF(ISERROR(AN23/$P23-1),0,(AN23/$P23-1)) -> 0 | AP24: =IF(ISERROR(AP23/$P23-1),0,(AP23/$P23-1)) -> 0 | AR24: =IF(ISERROR(AR23/$P23-1),0,(AR23/$P23-1)) -> 0 | AT24: =IF(ISERROR(AT23/$P23-1),0,(AT23/$P23-1)) -> 0
A25: Dépenses totales [$] | P25: =P21+P23 -> 0 | R25: =R21+R23 -> 0 | T25: =T21+T23 -> 0 | V25: =V21+V23 -> 0 | X25: =X21+X23 -> 0 | Z25: =Z21+Z23 -> 0 | AB25: =AB21+AB23 -> 0 | AD25: =AD21+AD23 -> 0 | AF25: =AF21+AF23 -> 0 | AH25: =AH21+AH23 -> 0 | AJ25: =AJ21+AJ23 -> 0 | AL25: =AL21+AL23 -> 0 | AN25: =AN21+AN23 -> 0 | AP25: =AP21+AP23 -> 0 | AR25: =AR21+AR23 -> 0 | AT25: =AT21+AT23 -> 0
A27: Distance
A28: Parcourue par les véhicules légers de l'organisation [km] | B28: =km_vehic_inst_02_03 -> 0 | D28: =km_vehic_inst_03_04 -> 0 | F28: =km_vehic_inst_04_05 -> 0 | H28: =km_vehic_inst_05_06 -> 0 | J28: =km_vehic_inst_06_07 -> 0 | L28: =km_vehic_inst_07_08 -> 0 | N28: =km_vehic_inst_08_09 -> 0 | P28: =km_vehic_inst_09_10 -> 0 | R28: =km_vehic_inst_10_11 -> 0 | T28: =km_vehic_inst_11_12 -> 0 | V28: =km_vehic_inst_12_13 -> 0 | X28: =km_vehic_inst_13_14 -> 0 | Z28: =km_vehic_inst_14_15 -> 0 | AB28: =km_vehic_inst_15_16 -> 0 | AD28: =km_vehic_inst_16_17 -> 0 | AF28: =km_vehic_inst_17_18 -> 0 | AH28: =km_vehic_inst_18_19 -> 0 | AJ28: =km_vehic_inst_19_20 -> 0 | AL28: =km_vehic_inst_20_21 -> 0 | AN28: =km_vehic_inst_21_22 -> 0 | AP28: =km_vehic_inst_22_23 -> 0 | AR28: =km_vehic_inst_23_24 -> 0 | AT28: =km_vehic_inst_24_25 -> 0
A29: Parcourue par les véhicules lourds de l'organisation [km] | B29: =km_vehic_inst_02_03L -> 0 | D29: =km_vehic_inst_03_04L -> 0 | F29: =km_vehic_inst_04_05L -> 0 | H29: =km_vehic_inst_05_06L -> 0 | J29: =km_vehic_inst_06_07L -> 0 | L29: =km_vehic_inst_07_08L -> 0 | N29: =km_vehic_inst_08_09L -> 0 | P29: =km_vehic_inst_09_10L -> 0 | R29: =km_vehic_inst_10_11L -> 0 | T29: =km_vehic_inst_11_12L -> 0 | V29: =km_vehic_inst_12_13L -> 0 | X29: =km_vehic_inst_13_14L -> 0 | Z29: =km_vehic_inst_14_15L -> 0 | AB29: =km_vehic_inst_15_16L -> 0 | AD29: =km_vehic_inst_16_17L -> 0 | AF29: =km_vehic_inst_17_18L -> 0 | AH29: =km_vehic_inst_18_19L -> 0 | AJ29: =km_vehic_inst_19_20L -> 0 | AL29: =km_vehic_inst_20_21L -> 0 | AN29: =km_vehic_inst_21_22L -> 0 | AP29: =km_vehic_inst_22_23L -> 0 | AR29: =km_vehic_inst_23_24L -> 0 | AT29: =km_vehic_inst_24_25L -> 0
A30: Parcourue par d'autres moyens de transport [km] | B30: =km_autre_02_03 -> 0 | D30: =km_autre_03_04 -> 0 | F30: =km_autre_04_05 -> 0 | H30: =km_autre_05_06 -> 0 | J30: =km_autre_06_07 -> 0 | L30: =km_autre_07_08 -> 0 | N30: =km_autre_08_09 -> 0 | P30: =km_autre_09_10 -> 0 | R30: =km_autre_10_11 -> 0 | T30: =km_autre_11_12 -> 0 | V30: =km_autre_12_13 -> 0 | X30: =km_autre_13_14 -> 0 | Z30: =km_autre_14_15 -> 0 | AB30: =km_autre_15_16 -> 0 | AD30: =km_autre_16_17 -> 0 | AF30: =km_autre_17_18 -> 0 | AH30: =km_autre_18_19 -> 0 | AJ30: =km_autre_19_20 -> 0 | AL30: =km_autre_20_21 -> 0 | AN30: =km_autre_21_22 -> 0 | AP30: =km_autre_22_23 -> 0 | AR30: =km_autre_23_24 -> 0 | AT30: =km_autre_24_25 -> 0
A31: Parcourue par les transports zéro émission et évitée [km] | B31: =km_zero_02_03+km_evite_02_03 -> 0 | D31: =km_zero_03_04+km_evite_03_04 -> 0 | F31: =km_zero_04_05+km_evite_04_05 -> 0 | H31: =km_zero_05_06+km_evite_05_06 -> 0 | J31: =km_zero_06_07+km_evite_06_07 -> 0 | L31: =km_zero_07_08+km_evite_07_08 -> 0 | N31: =km_zero_08_09+km_evite_08_09 -> 0 | P31: =km_zero_09_10+km_evite_09_10 -> 0 | R31: =km_zero_10_11+km_evite_10_11 -> 0 | T31: =km_zero_11_12+km_evite_11_12 -> 0 | V31: =km_zero_12_13+km_evite_12_13 -> 0 | X31: =km_zero_13_14+km_evite_13_14 -> 0 | Z31: =km_zero_14_15+km_evite_14_15 -> 0 | AB31: =km_zero_15_16+km_evite_15_16 -> 0 | AD31: =km_zero_16_17+km_evite_16_17 -> 0 | AF31: =km_zero_17_18+km_evite_17_18 -> 0 | AH31: =km_zero_18_19+km_evite_18_19 -> 0 | AJ31: =km_zero_19_20+km_evite_19_20 -> 0 | AL31: =km_zero_20_21+km_evite_20_21 -> 0 | AN31: =km_zero_21_22+km_evite_21_22 -> 0 | AP31: =km_zero_22_23+km_evite_22_23 -> 0 | AR31: =km_zero_23_24+km_evite_23_24 -> 0 | AT31: =km_zero_24_25+km_evite_24_25 -> 0
A33: Nombre de véhicules
A34: Nombre de véhicules légers sur route et hors route | B34: =nb_vehic_inst_02_03 -> 0 | D34: =nb_vehic_inst_03_04 -> 0 | F34: =nb_vehic_inst_04_05 -> 0 | H34: =nb_vehic_inst_05_06 -> 0 | J34: =nb_vehic_inst_06_07 -> 0 | L34: =nb_vehic_inst_07_08 -> 0 | N34: =nb_vehic_inst_08_09 -> 0 | P34: =nb_vehic_inst_09_10 -> 0 | R34: =nb_vehic_inst_10_11 -> 0 | T34: =nb_vehic_inst_11_12 -> 0 | V34: =nb_vehic_inst_12_13 -> 0 | X34: =nb_vehic_inst_13_14 -> 0 | Z34: =nb_vehic_inst_14_15 -> 0 | AB34: =nb_vehic_inst_15_16 -> 0 | AD34: =nb_vehic_inst_16_17 -> 0 | AF34: =nb_vehic_inst_17_18 -> 0 | AH34: =nb_vehic_inst_18_19 -> 0 | AJ34: =nb_vehic_inst_19_20 -> 0 | AL34: =nb_vehic_inst_20_21 -> 0 | AN34: =nb_vehic_inst_21_22 -> 0 | AP34: =nb_vehic_inst_22_23 -> 0 | AR34: =nb_vehic_inst_23_24 -> 0 | AT34: =nb_vehic_inst_24_25 -> 0
A35: Nombre de véhicules lourds sur route et hors route | B35: =nb_vehic_inst_02_03L -> 0 | D35: =nb_vehic_inst_03_04L -> 0 | F35: =nb_vehic_inst_04_05L -> 0 | H35: =nb_vehic_inst_05_06L -> 0 | J35: =nb_vehic_inst_06_07L -> 0 | L35: =nb_vehic_inst_07_08L -> 0 | N35: =nb_vehic_inst_08_09L -> 0 | P35: =nb_vehic_inst_09_10L -> 0 | R35: =nb_vehic_inst_10_11L -> 0 | T35: =nb_vehic_inst_11_12L -> 0 | V35: =nb_vehic_inst_12_13L -> 0 | X35: =nb_vehic_inst_13_14L -> 0 | Z35: =nb_vehic_inst_14_15L -> 0 | AB35: =nb_vehic_inst_15_16L -> 0 | AD35: =nb_vehic_inst_16_17L -> 0 | AF35: =nb_vehic_inst_17_18L -> 0 | AH35: =nb_vehic_inst_18_19L -> 0 | AJ35: =nb_vehic_inst_19_20L -> 0 | AL35: =nb_vehic_inst_20_21L -> 0 | AN35: =nb_vehic_inst_21_22L -> 0 | AP35: =nb_vehic_inst_22_23L -> 0 | AR35: =nb_vehic_inst_23_24L -> 0 | AT35: =nb_vehic_inst_24_25L -> 0
A36: Nombre de véhicules sur route et hors route (total) | P36: =P34+P35 -> 0 | R36: =R34+R35 -> 0 | T36: =T34+T35 -> 0 | V36: =V34+V35 -> 0 | X36: =X34+X35 -> 0 | Z36: =Z34+Z35 -> 0 | AB36: =AB34+AB35 -> 0 | AD36: =AD34+AD35 -> 0 | AF36: =AF34+AF35 -> 0 | AH36: =AH34+AH35 -> 0 | AJ36: =AJ34+AJ35 -> 0 | AL36: =AL34+AL35 -> 0 | AN36: =AN34+AN35 -> 0 | AP36: =AP34+AP35 -> 0 | AR36: =AR34+AR35 -> 0 | AT36: =AT34+AT35 -> 0
A38: Indice spécifique
A39: Véhicules légers: Consommation [L-éq. essence/100 km] | B39: =IF(ISERROR(B10/(B28+B30)*100),0,(B10/(B28+B30)*100)) -> 0 | D39: =IF(ISERROR(D10/(D28+D30)*100),0,(D10/(D28+D30)*100)) -> 0 | F39: =IF(ISERROR(F10/(F28+F30)*100),0,(F10/(F28+F30)*100)) -> 0 | H39: =IF(ISERROR(H10/(H28+H30)*100),0,(H10/(H28+H30)*100)) -> 0 | J39: =IF(ISERROR(J10/(J28+J30)*100),0,(J10/(J28+J30)*100)) -> 0 | L39: =IF(ISERROR(L10/(L28+L30)*100),0,(L10/(L28+L30)*100)) -> 0 | N39: =IF(ISERROR(N10/(N28+N30)*100),0,(N10/(N28+N30)*100)) -> 0 | P39: =IFERROR((P10/(P28)*100),0) -> 0 | R39: =IFERROR((R10/(R28)*100),0) -> 0 | T39: =IFERROR((T10/(T28)*100),0) -> 0 | V39: =IFERROR((V10/(V28)*100),0) -> 0 | X39: =IFERROR((X10/(X28)*100),0) -> 0 | Z39: =IFERROR((Z10/(Z28)*100),0) -> 0 | AB39: =IFERROR((AB10/(AB28)*100),0) -> 0 | AD39: =IFERROR((AD10/(AD28)*100),0) -> 0 | AF39: =IFERROR((AF10/(AF28)*100),0) -> 0 | AH39: =IFERROR((AH10/(AH28)*100),0) -> 0 | AJ39: =IFERROR((AJ10/(AJ28)*100),0) -> 0 | AL39: =IFERROR((AL10/(AL28)*100),0) -> 0 | AN39: =IFERROR((AN10/(AN28)*100),0) -> 0 | AP39: =IFERROR((AP10/(AP28)*100),0) -> 0 | AR39: =IFERROR((AR10/(AR28)*100),0) -> 0 | AT39: =IFERROR((AT10/(AT28)*100),0) -> 0
A40: Variation/année de référence [%] | R40: =IF((R39=0),"",(R39/$P39-1)) ->  | T40: =IF((T39=0),"",(T39/$P39-1)) ->  | V40: =IF((V39=0),"",(V39/$P39-1)) ->  | X40: =IF((X39=0),"",(X39/$P39-1)) ->  | Z40: =IF((Z39=0),"",(Z39/$P39-1)) ->  | AB40: =IF((AB39=0),"",(AB39/$P39-1)) ->  | AD40: =IF(ISERROR(AD39/$P39-1),0,(AD39/$P39-1)) -> 0 | AF40: =IF(ISERROR(AF39/$P39-1),0,(AF39/$P39-1)) -> 0 | AH40: =IF(ISERROR(AH39/$P39-1),0,(AH39/$P39-1)) -> 0 | AJ40: =IF(ISERROR(AJ39/$P39-1),0,(AJ39/$P39-1)) -> 0 | AL40: =IF(ISERROR(AL39/$P39-1),0,(AL39/$P39-1)) -> 0 | AN40: =IF(ISERROR(AN39/$P39-1),0,(AN39/$P39-1)) -> 0 | AP40: =IF(ISERROR(AP39/$P39-1),0,(AP39/$P39-1)) -> 0 | AR40: =IF(ISERROR(AR39/$P39-1),0,(AR39/$P39-1)) -> 0 | AT40: =IF(ISERROR(AT39/$P39-1),0,(AT39/$P39-1)) -> 0
A41: Véhicules lourds: Consommation [L-éq. diesel/100 km] | B41: =IF(ISERROR(#REF!/(#REF!+B35)*100),0,(#REF!/(#REF!+B35)*100)) -> 0 | D41: =IF(ISERROR(#REF!/(#REF!+D35)*100),0,(#REF!/(#REF!+D35)*100)) -> 0 | F41: =IF(ISERROR(#REF!/(#REF!+F35)*100),0,(#REF!/(#REF!+F35)*100)) -> 0 | H41: =IF(ISERROR(#REF!/(#REF!+H35)*100),0,(#REF!/(#REF!+H35)*100)) -> 0 | J41: =IF(ISERROR(#REF!/(#REF!+J35)*100),0,(#REF!/(#REF!+J35)*100)) -> 0 | L41: =IF(ISERROR(#REF!/(#REF!+L35)*100),0,(#REF!/(#REF!+L35)*100)) -> 0 | N41: =IF(ISERROR(#REF!/(#REF!+N35)*100),0,(#REF!/(#REF!+N35)*100)) -> 0 | P41: =IFERROR((P13/(P29)*100),0) -> 0 | R41: =IFERROR((R13/(R29)*100),0) -> 0 | T41: =IFERROR((T13/(T29)*100),0) -> 0 | V41: =IFERROR((V13/(V29)*100),0) -> 0 | X41: =IFERROR((X13/(X29)*100),0) -> 0 | Z41: =IFERROR((Z13/(Z29)*100),0) -> 0 | AB41: =IFERROR((AB13/(AB29)*100),0) -> 0 | AD41: =IFERROR((AD13/(AD29)*100),0) -> 0 | AF41: =IFERROR((AF13/(AF29)*100),0) -> 0 | AH41: =IFERROR((AH13/(AH29)*100),0) -> 0 | AJ41: =IFERROR((AJ13/(AJ29)*100),0) -> 0 | AL41: =IFERROR((AL13/(AL29)*100),0) -> 0 | AN41: =IFERROR((AN13/(AN29)*100),0) -> 0 | AP41: =IFERROR((AP13/(AP29)*100),0) -> 0 | AR41: =IFERROR((AR13/(AR29)*100),0) -> 0 | AT41: =IFERROR((AT13/(AT29)*100),0) -> 0
A42: Variation/année de référence [%] | R42: =IF((R41=0),"",(R41/$P41-1)) ->  | T42: =IF((T41=0),"",(T41/$P41-1)) ->  | V42: =IF((V41=0),"",(V41/$P41-1)) ->  | X42: =IF((X41=0),"",(X41/$P41-1)) ->  | Z42: =IF((Z41=0),"",(Z41/$P41-1)) ->  | AB42: =IF((AB41=0),"",(AB41/$P41-1)) ->  | AD42: =IF(ISERROR(AD41/$P41-1),0,(AD41/$P41-1)) -> 0 | AF42: =IF(ISERROR(AF41/$P41-1),0,(AF41/$P41-1)) -> 0 | AH42: =IF(ISERROR(AH41/$P41-1),0,(AH41/$P41-1)) -> 0 | AJ42: =IF(ISERROR(AJ41/$P41-1),0,(AJ41/$P41-1)) -> 0 | AL42: =IF(ISERROR(AL41/$P41-1),0,(AL41/$P41-1)) -> 0 | AN42: =IF(ISERROR(AN41/$P41-1),0,(AN41/$P41-1)) -> 0 | AP42: =IF(ISERROR(AP41/$P41-1),0,(AP41/$P41-1)) -> 0 | AR42: =IF(ISERROR(AR41/$P41-1),0,(AR41/$P41-1)) -> 0 | AT42: =IF(ISERROR(AT41/$P41-1),0,(AT41/$P41-1)) -> 0
A43: Véhicules (légers et lourds): [L-éq. essence/100 km] | P43: =IFERROR(((P13 + P10)/(P28+P29)*100),0) -> 0 | R43: =IFERROR(((R13 + R10)/(R28+R29)*100),0) -> 0 | T43: =IFERROR(((T13 + T10)/(T28+T29)*100),0) -> 0 | V43: =IFERROR(((V13 + V10)/(V28+V29)*100),0) -> 0 | X43: =IFERROR(((X13 + X10)/(X28+X29)*100),0) -> 0 | Z43: =IFERROR(((Z13 + Z10)/(Z28+Z29)*100),0) -> 0 | AB43: =IFERROR(((AB13 + AB10)/(AB28+AB29)*100),0) -> 0 | AD43: =IFERROR(((AD13 + AD10)/(AD28+AD29)*100),0) -> 0 | AF43: =IFERROR(((AF13 + AF10)/(AF28+AF29)*100),0) -> 0 | AH43: =IFERROR(((AH13 + AH10)/(AH28+AH29)*100),0) -> 0 | AJ43: =IFERROR(((AJ13 + AJ10)/(AJ28+AJ29)*100),0) -> 0 | AL43: =IFERROR(((AL13 + AL10)/(AL28+AL29)*100),0) -> 0 | AN43: =IFERROR(((AN13 + AN10)/(AN28+AN29)*100),0) -> 0 | AP43: =IFERROR(((AP13 + AP10)/(AP28+AP29)*100),0) -> 0 | AR43: =IFERROR(((AR13 + AR10)/(AR28+AR29)*100),0) -> 0 | AT43: =IFERROR(((AT13 + AT10)/(AT28+AT29)*100),0) -> 0
A44: Variation/année de référence [%] | R44: =IF((R43=0),"",(R43/$P43-1)) ->  | T44: =IF((T43=0),"",(T43/$P43-1)) ->  | V44: =IF((V43=0),"",(V43/$P43-1)) ->  | X44: =IF((X43=0),"",(X43/$P43-1)) ->  | Z44: =IF((Z43=0),"",(Z43/$P43-1)) ->  | AB44: =IF((AB43=0),"",(AB43/$P43-1)) ->  | AD44: =IF((AD43=0),"",(AD43/$P43-1)) ->  | AF44: =IF((AF43=0),"",(AF43/$P43-1)) ->  | AH44: =IF((AH43=0),"",(AH43/$P43-1)) ->  | AJ44: =IF((AJ43=0),"",(AJ43/$P43-1)) ->  | AL44: =IF((AL43=0),"",(AL43/$P43-1)) ->  | AN44: =IF((AN43=0),"",(AN43/$P43-1)) ->  | AP44: =IF((AP43=0),"",(AP43/$P43-1)) ->  | AR44: =IF((AR43=0),"",(AR43/$P43-1)) ->  | AT44: =IF((AT43=0),"",(AT43/$P43-1)) -> 
A45: Véhicules et autres déplacements: [L-éq. essence/100 km] | P45: =IFERROR(((P13 + P10)/(P28+P29+P30)*100),0) -> 0 | R45: =IFERROR(((R13 + R10)/(R28+R29+R30)*100),0) -> 0 | T45: =IFERROR(((T13 + T10)/(T28+T29+T30)*100),0) -> 0 | V45: =IFERROR(((V13 + V10)/(V28+V29+V30)*100),0) -> 0 | X45: =IFERROR(((X13 + X10)/(X28+X29+X30)*100),0) -> 0 | Z45: =IFERROR(((Z13 + Z10)/(Z28+Z29+Z30)*100),0) -> 0 | AB45: =IFERROR(((AB13 + AB10)/(AB28+AB29+AB30)*100),0) -> 0 | AD45: =IFERROR(((AD13 + AD10)/(AD28+AD29+AD30)*100),0) -> 0 | AF45: =IFERROR(((AF13 + AF10)/(AF28+AF29+AF30)*100),0) -> 0 | AH45: =IFERROR(((AH13 + AH10)/(AH28+AH29+AH30)*100),0) -> 0 | AJ45: =IFERROR(((AJ13 + AJ10)/(AJ28+AJ29+AJ30)*100),0) -> 0 | AL45: =IFERROR(((AL13 + AL10)/(AL28+AL29+AL30)*100),0) -> 0 | AN45: =IFERROR(((AN13 + AN10)/(AN28+AN29+AN30)*100),0) -> 0 | AP45: =IFERROR(((AP13 + AP10)/(AP28+AP29+AP30)*100),0) -> 0 | AR45: =IFERROR(((AR13 + AR10)/(AR28+AR29+AR30)*100),0) -> 0 | AT45: =IFERROR(((AT13 + AT10)/(AT28+AT29+AT30)*100),0) -> 0
A46: Variation/année de référence [%] | R46: =IF((R45=0),"",(R45/$P45-1)) ->  | T46: =IF((T45=0),"",(T45/$P45-1)) ->  | V46: =IF((V45=0),"",(V45/$P45-1)) ->  | X46: =IF((X45=0),"",(X45/$P45-1)) ->  | Z46: =IF((Z45=0),"",(Z45/$P45-1)) ->  | AB46: =IF((AB45=0),"",(AB45/$P45-1)) ->  | AD46: =IF((AD45=0),"",(AD45/$P45-1)) ->  | AF46: =IF((AF45=0),"",(AF45/$P45-1)) ->  | AH46: =IF((AH45=0),"",(AH45/$P45-1)) ->  | AJ46: =IF((AJ45=0),"",(AJ45/$P45-1)) ->  | AL46: =IF((AL45=0),"",(AL45/$P45-1)) ->  | AN46: =IF((AN45=0),"",(AN45/$P45-1)) ->  | AP46: =IF((AP45=0),"",(AP45/$P45-1)) ->  | AR46: =IF((AR45=0),"",(AR45/$P45-1)) ->  | AT46: =IF((AT45=0),"",(AT45/$P45-1)) -> 
A48: GES
A49: véhicules légers: Total des rejets [t CO2 éq] | B49: =GES_vehic_instit_02_03+GES_autre_02_03 -> 0 | D49: =GES_vehic_instit_03_04+GES_autre_03_04 -> 0 | F49: =GES_vehic_instit_04_05+GES_autre_04_05 -> 0 | H49: =GES_vehic_instit_05_06+GES_autre_05_06 -> 0 | J49: =GES_vehic_instit_06_07+GES_autre_06_07 -> 0 | L49: =GES_vehic_instit_07_08+GES_autre_07_08 -> 0 | N49: =GES_vehic_instit_08_09+GES_autre_08_09 -> 0 | P49: =IFERROR(GES_vehic_instit_09_10,0) -> 0 | R49: =IFERROR(GES_vehic_instit_10_11,0) -> 0 | T49: =IFERROR(GES_vehic_instit_11_12,0) -> 0 | V49: =IFERROR(GES_vehic_instit_12_13,0) -> 0 | X49: =IFERROR(GES_vehic_instit_13_14,0) -> 0 | Z49: =IFERROR(GES_vehic_instit_14_15,0) -> 0 | AB49: =IFERROR(GES_vehic_instit_15_16,0) -> 0 | AD49: =IFERROR(GES_vehic_instit_16_17,0) -> 0 | AF49: =IFERROR(GES_vehic_instit_17_18,0) -> 0 | AH49: =IFERROR(GES_vehic_instit_18_19,0) -> 0 | AJ49: =IFERROR(GES_vehic_instit_19_20,0) -> 0 | AL49: =IFERROR(GES_vehic_instit_20_21,0) -> 0 | AN49: =IFERROR(GES_vehic_instit_21_22,0) -> 0 | AP49: =IFERROR(GES_vehic_instit_22_23,0) -> 0 | AR49: =IFERROR(GES_vehic_instit_23_24,0) -> 0 | AT49: =IFERROR(GES_vehic_instit_24_25,0) -> 0
A50: Variation/année de référence [%] | R50: =IF((R49=0),"",(R49/$P49-1)) ->  | T50: =IF((T49=0),"",(T49/$P49-1)) ->  | V50: =IF((V49=0),"",(V49/$P49-1)) ->  | X50: =IF((X49=0),"",(X49/$P49-1)) ->  | Z50: =IF((Z49=0),"",(Z49/$P49-1)) ->  | AB50: =IF((AB49=0),"",(AB49/$P49-1)) ->  | AD50: =IF(ISERROR(AD49/$P49-1),0,(AD49/$P49-1)) -> 0 | AF50: =IF(ISERROR(AF49/$P49-1),0,(AF49/$P49-1)) -> 0 | AH50: =IF(ISERROR(AH49/$P49-1),0,(AH49/$P49-1)) -> 0 | AJ50: =IF(ISERROR(AJ49/$P49-1),0,(AJ49/$P49-1)) -> 0 | AL50: =IF(ISERROR(AL49/$P49-1),0,(AL49/$P49-1)) -> 0 | AN50: =IF(ISERROR(AN49/$P49-1),0,(AN49/$P49-1)) -> 0 | AP50: =IF(ISERROR(AP49/$P49-1),0,(AP49/$P49-1)) -> 0 | AR50: =IF(ISERROR(AR49/$P49-1),0,(AR49/$P49-1)) -> 0 | AT50: =IF(ISERROR(AT49/$P49-1),0,(AT49/$P49-1)) -> 0
A51: véhicules lourds: Total des rejets [t CO2 éq] | P51: =IFERROR(GES_vehic_instit_09_10L,0) -> 0 | R51: =IFERROR(GES_vehic_instit_10_11L,0) -> 0 | T51: =IFERROR(GES_vehic_instit_11_12L,0) -> 0 | V51: =IFERROR(GES_vehic_instit_12_13L,0) -> 0 | X51: =IFERROR(GES_vehic_instit_13_14L,0) -> 0 | Z51: =IFERROR(GES_vehic_instit_14_15L,0) -> 0 | AB51: =IFERROR(GES_vehic_instit_15_16L,0) -> 0 | AD51: =IFERROR(GES_vehic_instit_16_17L,0) -> 0 | AF51: =IFERROR(GES_vehic_instit_17_18L,0) -> 0 | AH51: =IFERROR(GES_vehic_instit_18_19L,0) -> 0 | AJ51: =IFERROR(GES_vehic_instit_19_20L,0) -> 0 | AL51: =IFERROR(GES_vehic_instit_20_21L,0) -> 0 | AN51: =IFERROR(GES_vehic_instit_21_22L,0) -> 0 | AP51: =IFERROR(GES_vehic_instit_22_23L,0) -> 0 | AR51: =IFERROR(GES_vehic_instit_23_24L,0) -> 0 | AT51: =IFERROR(GES_vehic_instit_24_25L,0) -> 0
A52: Variation/année de référence [%] | R52: =IF((R51=0),"",(R51/$P51-1)) ->  | T52: =IF((T51=0),"",(T51/$P51-1)) ->  | V52: =IF((V51=0),"",(V51/$P51-1)) ->  | X52: =IF((X51=0),"",(X51/$P51-1)) ->  | Z52: =IF((Z51=0),"",(Z51/$P51-1)) ->  | AB52: =IF((AB51=0),"",(AB51/$P51-1)) ->  | AD52: =IF(ISERROR(AD51/$P51-1),0,(AD51/$P51-1)) -> 0 | AF52: =IF(ISERROR(AF51/$P51-1),0,(AF51/$P51-1)) -> 0 | AH52: =IF(ISERROR(AH51/$P51-1),0,(AH51/$P51-1)) -> 0 | AJ52: =IF(ISERROR(AJ51/$P51-1),0,(AJ51/$P51-1)) -> 0 | AL52: =IF(ISERROR(AL51/$P51-1),0,(AL51/$P51-1)) -> 0 | AN52: =IF(ISERROR(AN51/$P51-1),0,(AN51/$P51-1)) -> 0 | AP52: =IF(ISERROR(AP51/$P51-1),0,(AP51/$P51-1)) -> 0 | AR52: =IF(ISERROR(AR51/$P51-1),0,(AR51/$P51-1)) -> 0 | AT52: =IF(ISERROR(AT51/$P51-1),0,(AT51/$P51-1)) -> 0
A53: autres: Total des rejets [t CO2 éq.] | P53: =GES_autre_09_10 -> 0 | R53: =GES_autre_10_11 -> 0 | T53: =GES_autre_11_12 -> 0 | V53: =GES_autre_12_13 -> 0 | X53: =GES_autre_13_14 -> 0 | Z53: =GES_autre_14_15 -> 0 | AB53: =GES_autre_15_16 -> 0 | AD53: =GES_autre_16_17 -> 0 | AF53: =GES_autre_17_18 -> 0 | AH53: =GES_autre_18_19 -> 0 | AJ53: =GES_autre_19_20 -> 0 | AL53: =GES_autre_20_21 -> 0 | AN53: =GES_autre_21_22 -> 0 | AP53: =GES_autre_22_23 -> 0 | AR53: =GES_autre_23_24 -> 0 | AT53: =GES_autre_24_25 -> 0
A54: Total des rejets [t CO2 éq.] | P54: =P49+P51+P53 -> 0 | R54: =R49+R51+R53 -> 0 | T54: =T49+T51+T53 -> 0 | V54: =V49+V51+V53 -> 0 | X54: =X49+X51+X53 -> 0 | Z54: =Z49+Z51+Z53 -> 0 | AB54: =AB49+AB51+AB53 -> 0 | AD54: =AD49+AD51+AD53 -> 0 | AF54: =AF49+AF51+AF53 -> 0 | AH54: =AH49+AH51+AH53 -> 0 | AJ54: =AJ49+AJ51+AJ53 -> 0 | AL54: =AL49+AL51+AL53 -> 0 | AN54: =AN49+AN51+AN53 -> 0 | AP54: =AP49+AP51+AP53 -> 0 | AR54: =AR49+AR51+AR53 -> 0 | AT54: =AT49+AT51+AT53 -> 0

Sheet Conversion
E5: PRIX MOYEN DES CARBURANTS AU QUÉBEC (Avec lien vers le site de la Régie)
C6: GJ | D6: GES | E6: 2002-2003 | F6: 2003-2004 | G6: 2004-2005 | H6: 2005-2006 | I6: 2006-2007 | J6: 2007-2008 | K6: 2008-2009 | L6: 2009-2010 | M6: 2010-2011 | N6: 2011-2012 | O6: 2012-2013 | P6: 2013-2014 | Q6: 2014-2015 | R6: 2015-2016 | S6: 2016-2017 | T6: 2017-2018 | U6: 2018-2019 | V6: 2019-2020 | W6: 2020-2021 | X6: 2021-2022 | Y6: 2022-2023 | Z6: 2023-2024 | AA6: 2024-2025
A7: Carburants conventionnels
A8: Essence [litres] | B8: Essence (automobile) | D8: 2.3686 | E8: 0.7598333333 | F8: 0.75925 | G8: 0.8714166667 | H8: 0.9946666667 | I8: 1.010666667 | J8: 1.0975 | K8: 1.114916667 | L8: 1.009666667 | M8: 1.1035 | N8: 1.309416667 | O8: 1.344833333 | P8: 1.347916667 | Q8: 1.270833333 | R8: 1.1045 | S8: 1.08125 | T8: 1.1835 | U8: 1.257083333 | V8: 1.21 | W8: 1.056 | X8: 1.45225 | Y8: 1.764833333 | Z8: 1.660416667 | AA8: 1.6221
A9: Véhicules légers | C9: 0.03345 | D9: =2.317356/1000 -> 0.002317356
A10: Véhicules lourds | C10: 0.03345 | D10: =2.3686/1000 -> 0.0023686
A11: Diesel [litres] | B11: Diesel (automobile) | E11: 0.7374166667 | F11: 0.7181666667 | G11: 0.855 | H11: 1.011166667 | I11: 1.037583333 | J11: 1.114083333 | K11: 1.254 | L11: 0.9858333333 | M11: 1.117916667 | N11: 1.33175 | O11: 1.371333333 | P11: 1.402583333 | Q11: 1.331083333 | R11: 1.107166667 | S11: 1.059916667 | T11: 1.157083333 | U11: 1.314083333 | V11: 1.26 | W11: 1.0503 | X11: 1.4155 | Y11: 2.17575 | Z11: 1.854083333 | AA11: 1.7645
A12: Véhicules légers | C12: 0.03835 | D12: =0.002747335*0+((2680.5/1000/1000)+25*(0.051/1000/1000)+298*(0.22/1000/1000)) -> 0.002747335
A13: Véhicules lourds | C13: 0.03835 | D13: =0.002708436*0+((2680.5/1000/1000)+25*(0.14/1000/1000)+298*(0.082/1000/1000)) -> 0.002708436
A14: Gaz naturel [m³] | B14: Gaz naturel | C14: 0.03789 | D14: =2.13788/1000 -> 0.00213788 | E14: 0.7 | F14: 0.7 | G14: 0.7 | H14: 0.7 | I14: 0.7 | J14: 0.7 | K14: 0.7 | L14: 0.7 | M14: 0.72 | N14: 0.72 | O14: 0.72 | P14: 0.75 | R14: nd | S14: nd | T14: nd | U14: nd | V14: nd | W14: 0
A15: Propane [litres] | B15: Propane | C15: 0.02534 | D15: =1.539344/1000 -> 0.001539344 | E15: 0.95 | F15: 0.95 | G15: 0.95 | H15: 0.95 | I15: 0.95 | J15: 0.95 | K15: 0.95 | L15: 0.95 | M15: 0.98 | N15: 0.98 | O15: 0.91 | P15: 0.77 | Q15: 0.58 | R15: nd | S15: nd | T15: nd | U15: nd | V15: nd | W15: 0
A17: Biocarburants
A18: Essence Ethanol [litres] | B18: Essence Ethanol
A19: Véhicules légers | C19: 0.02341 | D19: =0.010056/1000 -> 1.0056e-05
A20: Véhicules lourds | C20: 0.02341 | D20: =0.0613/1000 -> 6.13e-05
A21: Bio Diesel [litres] | B21: Bio Diesel
A22: Véhicules légers | C22: 0.03567 | D22: =0.190445/1000 -> 0.000190445
A23: Véhicules lourds | C23: 0.03567 | D23: =0.151546/1000 -> 0.000151546
A26: Véhicules hors institution ratios | C26: GJ / km | D26: GES (ton CO2éq.) / km
A27: Taxi | B27: Voiture | C27: 0.00307071 | D27: 0.0002127332808
A28: Passager covoiturage | B28: Covoiturage | C28: 0.00102357 | D28: 7.09110936e-05
A29: Autobus urbain | B29: Autobus urbain | C29: 0.0008373865243 | D29: 6e-05
A30: Autobus interurbain | B30: Autobus interurbain | C30: 0.0008373865243 | D30: 6e-05
A31: Métro | B31: Métro | C31: 0.0001296 | D31: 5.4e-08
A32: Train | B32: Train | C32: 0.00154476041 | D32: 0.00011
A33: Voiture de location courte durée ou véhicule personnel | B33: Voiture | C33: 0.00307071 | D33: 0.0002127332808
A34: Avion | B34: Avion - longue distance (1600 km et plus) | C34: 0.001549452483 | D34: 0.00011319
A37: PRIX MOYEN AFFICHÉ
A38: Pour l'ensemble des régions administratives du Québec
A39: Selon la Régie de l'énergie pour le Québec
A41: FACTEURS DE CONVERSION
A43: Pour les carburants et biocarburants :
A44: 1. Environnement et Changement climatique Canada. 2024. Rapport d'inventaire national 1990-2022 : Sources et puis de gaz à effet de serre au Canada.
A45: 2. Règlement sur la déclaration obligatoire de certaines émissions de contaminants dans l'atmosphère. Loi sur la qualité de l'environnement (chapitre Q-2, a. 2.2, 46.2, 115.27, 115.34 et 124.1)
A47: Pour les véhicules (autres déplacements à des fins professionnels) :
A48: Fonds d'action québécois sur le développement durable. 2020. « Calculateur d'émissions de gaz à effet de serre (GES) »

Sheet ListeMO (hidden)
A1: Liste des ministères et organismes
A2: NOM DE L'ENTITÉ | B2: NUMÉRO APPARENTÉ SAGIR
A3: Ministère de la Culture et des Communications | B3: 0010
A4: Ministère des Relations internationales et de la Francophonie | B4: 0030
A5: Ministère des Affaires municipales et de l'Habitation | B5: 0050
A6: Ministère de l’Immigration, de la Francisation et de l’Intégration | B6: 0055
A7: Ministère de la Santé et des Services sociaux | B7: 0060
A8: Retraite Québec | B8: 0063
A9: Régie de l'assurance maladie du Québec | B9: 0064
A10: Ministère de la Famille | B10: 0065
A11: Ministère de l'Enseignement supérieur | B11: 0067
A12: Ministère du Tourisme | B12: 0071
A13: Ministère de l'Agriculture, des Pêcheries et de l'Alimentation | B13: 0080
A14: Ministère de la Sécurité publique | B14: 0095
A15: Ministère du Conseil exécutif | B15: 0140
A16: Secrétariat du conseil du trésor | B16: 0160
A17: Comité consultatif de lutte contre la pauvreté et l'exclusion sociale | B17: 0201
A18: Conseil Cris-Québec sur la foresterie | B18: 0203
A19: Conseil du patrimoine culturel du Québec | B19: 0206
A20: Ministère des Finances | B20: 0210
A21: Conseil des appellations réservées et des termes valorisants | B21: 0212
A22: Centre de la francophonie des Amériques | B22: 0222
A23: Conseil supérieur de l'éducation | B23: 0238
A24: Office Québec-Monde pour la jeunesse | B24: 0239
A25: Commissaire à la lutte contre la corruption (Unité permanente anticorruption) | B25: 0244
A26: Directeur des poursuites criminelles et pénales | B26: 0246
A27: Bureau d'audiences publiques sur l'environnement | B27: 0256
A28: Commissaire à la déontologie policière | B28: 0267
A29: Commission des droits de la personne et des droits de la jeunesse | B29: 0271
A30: Conseil de la justice administrative | B30: 0272
A31: Commission d'évaluation de l'enseignement collégial | B31: 0274
A32: Ministère de l'Économie, de l'Innovation et de l'Énergie | B32: 0280
A33: Bureau du coroner | B33: 0293
A34: Protecteur du citoyen | B34: 0295
A35: Commission des partenaires du marché du travail | B35: 0310
A36: Conseil des arts et des lettres du Québec | B36: 0314
A37: Commission des services juridiques | B37: 0315
A38: Conservatoire de musique et d'art dramatique du Québec | B38: 0317
A39: Fonds de recherche du Québec - Société et culture | B39: 0318
A40: Société de l'assurance automobile du Québec | B40: 0320
A41: Fonds d'aide aux recours collectifs | B41: 0321
A42: Institut de la statistique du Québec | B42: 0323
A43: Fonds de recherche du Québec - Santé | B43: 0324
A44: Bibliothèque et Archives nationales du Québec | B44: 0326
A45: Fonds de la recherche du Québec – Nature et technologies | B45: 0327
A46: Commission de protection du territoire agricole du Québec | B46: 0328
A47: École nationale de police du Québec | B47: 0329
A48: Institut national de santé publique du Québec | B48: 0332
A49: École nationale des pompiers du Québec | B49: 0335
A50: Société québécoise des infrastructures | B50: 0339
A51: Office de la protection du consommateur | B51: 0344
A52: Office Québec-Amériques pour la jeunesse | B52: 0346
A53: Centre de services partagés du Québec | B53: 0347
A54: Ministère de l'Éducation | B54: 0350
A55: Régie du cinéma | B55: 0352
A56: Autorité des marchés financiers | B56: 0356
A57: Institut national d'excellence en santé et en services sociaux | B57: 0357
A58: Office des professions du Québec | B58: 0360
A59: Commission de toponymie du Québec | B59: 0361
A60: Régie du bâtiment du Québec | B60: 0367
A61: Commission municipale du Québec | B61: 0368
A62: Société du Plan Nord | B62: 0376
A63: Ministère de l'Environnement, de la Lutte contre les changements climatiques, de la Faune et des Parcs | B63: 0380
A64: Régie de l'énergie | B64: 0385
A65: Régie des alcools, des courses et des jeux | B65: 0386
A66: Sûreté du Québec | B66: 0390
A67: Régie des marchés agricoles et alimentaires du Québec | B67: 0392
A68: Autorité des marchés publics | B68: 0395
A69: Infrastructures technologiques Québec | B69: 0396
A70: Centre d'aquisitions gouvernementales | B70: 0397
A71: Ministère de la justice | B71: 0400
A72: Tribunal administratif de déontologie policière | B72: 0402
A73: Commission d'accès à l'information | B73: 0408
A74: Bureau des enquêtes indépendantes | B74: 0413
A75: Tribunal administratif du travail | B75: 0415
A76: Commission québécoise des libérations conditionnelles | B76: 0425
A77: Commission de la fonction publique du Québec | B77: 0430
A78: Tribunal des droits de la personne | B78: 0434
A79: Agence du revenu du Québec | B79: 0445
A80: Tribunal administratif du Québec | B80: 0450
A81: Office de la sécurité du revenu des chasseurs et piégeurs cris | B81: 0483
A82: Commission de la qualité de l'environnement Kativik | B82: 0486
A83: Conseil de gestion de l'assurance parentale | B83: 0505
A84: Commission de la construction du Québec | B84: 0509
A85: Tribunal administratif du logement | B85: 0510
A86: Financière agricole du Québec | B86: 0520
A87: Centre de recherche industrielle du Québec | B87: 0523
A88: Fondation de la faune du Québec | B88: 0525
A89: Investissement Québec | B89: 0537
A90: Office des personnes handicapées du Québec | B90: 0538
A91: Société de développement des entreprises culturelles | B91: 0539
A92: Musée d'art contemporain de Montréal | B92: 0541
A93: Musées de la civilisation | B93: 0544
A94: Musée national des beaux-arts du Québec | B94: 0545
A95: Société de développement et de mise en valeur du Parc olympique | B95: 0546
A96: Institut de tourisme et d'hôtellerie du Québec | B96: 0547
A97: Commission de la capitale nationale du Québec | B97: 0549
A98: Société de la Place de Arts de Montréal | B98: 0552
A99: Réseau de transport métropolitain | B99: 0553
A100: Société des traversiers du Québec | B100: 0554
A101: Société du Centre des congrès de Québec | B101: 0557
A102: Société du Grand Théâtre de Québec | B102: 0558
A103: Société du Palais des congrès de Montréal | B103: 0559
A104: Curateur public du Québec | B104: 0560
A105: Société du parc industriel et portuaire de Bécancour | B105: 0565
A106: Société des établissements de plein air du Québec | B106: 0569
A107: Corporation d'urgences-santé | B107: 0571
A108: Héma-Québec | B108: 0573
A109: Société de télédiffusion du Québec | B109: 0582
A110: Société québécoise d'information juridique | B110: 0585
A111: Société québécoise de récupération et de recyclage | B111: 0586
A112: Ministère des Ressources naturelles et des Forêts | B112: 0600
A113: Caisse de dépôt et placement du Québec | B113: 0603
A114: Hydro-Québec | B114: 0606
A115: Société de développement de la Baie-James | B115: 0618
A116: Société des Alcools du Québec | B116: 0624
A117: Société des loteries du Québec | B117: 0627
A118: Élections Québec | B118: 0630
A119: Conseil du statut de la femme | B119: 0660
A120: Conseil supérieur de la langue française | B120: 0690
A121: Ministère de l'Emploi et de la Solidarité sociale | B121: 0700
A122: Commission des normes, de l'équité, de la santé et de la sécurité du travail | B122: 0703
A123: Office québécois de la langue française | B123: 0710
A124: Société d'habitation du Québec | B124: 0730
A125: Commission des transports du Québec | B125: 0830
A126: Ministère des Transports et de la Mobilité durable | B126: 0850
A127: Financement-Québec | B127: 0876
A128: La Financière agricole du Québec | B128: 0899
A129: Régie régionale de la santé et des services sociaux du Nunavik | B129: 4017
A130: Centre régional de santé et de services sociaux de la Baie-James | B130: 4051
A131: Bureau du forestier en chef | B131: NA
A132: Comité d'examen (COMEX) (Convention de la Baie-James et du Nord québécois) | B132: NA
A133: Secrétariat à la Capitale nationale | B133: NA
A164: Transition énergétique Québec | B164: 0379

Sheet Validation (hidden)
F5: ÉVOLUTION DE LA CONSOMMATION ÉNERGÉTIQUE POUR LE TRANSPORT | U5: ÉVOLUTION DE LA CONSOMMATION ÉNERGÉTIQUE POUR LE TRANSPORT
B7: 2002-2003 | D7: 2003-2004 | F7: 2004-2005 | H7: 2005-2006 | J7: 2006-2007 | L7: 2007-2008 | N7: 2008-2009 | P7: 2009-2010 | R7: 2010-2011 | T7: 2011-2012 | V7: 2012-2013 | X7: 2013-2014 | Z7: 2014-2015 | AB7: 2015-2016 | AD7: 2016-2017 | AF7: 2017-2018 | AH7: 2018-2019 | AJ7: 2019-2020 | AL7: 2020-2021
A8: Consommation énergétique
A9: véhicules légers: Consommation [GJ] | B9: =RÉSUMÉ!B9 -> 0 | C9: =RÉSUMÉ!C9 -> 0 | D9: =RÉSUMÉ!D9 -> 0 | E9: =RÉSUMÉ!E9 -> 0 | F9: =RÉSUMÉ!F9 -> 0 | G9: =RÉSUMÉ!G9 -> 0 | H9: =RÉSUMÉ!H9 -> 0 | I9: =RÉSUMÉ!I9 -> 0 | J9: =RÉSUMÉ!J9 -> 0 | K9: =RÉSUMÉ!K9 -> 0 | L9: =RÉSUMÉ!L9 -> 0 | M9: =RÉSUMÉ!M9 -> 0 | N9: =RÉSUMÉ!N9 -> 0 | O9: =RÉSUMÉ!O9 -> 0 | P9: =RÉSUMÉ!P9 -> 0 | Q9: =RÉSUMÉ!Q9 -> 0 | R9: =RÉSUMÉ!R9 -> 0 | S9: =RÉSUMÉ!S9 -> 0 | T9: =RÉSUMÉ!T9 -> 0 | U9: =RÉSUMÉ!U9 -> 0 | V9: =RÉSUMÉ!V9 -> 0 | W9: =RÉSUMÉ!W9 -> 0 | X9: =RÉSUMÉ!X9 -> 0 | Y9: =RÉSUMÉ!Y9 -> 0 | Z9: =RÉSUMÉ!Z9 -> 0 | AA9: =RÉSUMÉ!AA9 -> 0 | AB9: =RÉSUMÉ!AB9 -> 0 | AC9: =RÉSUMÉ!AC9 -> 0 | AD9: =RÉSUMÉ!AD9 -> 0 | AE9: =RÉSUMÉ!AE9 -> 0 | AF9: =RÉSUMÉ!AF9 -> 0 | AG9: =RÉSUMÉ!AG9 -> 0 | AH9: =RÉSUMÉ!AH9 -> 0 | AI9: =RÉSUMÉ!AI9 -> 0 | AJ9: =RÉSUMÉ!AJ9 -> 0 | AK9: =RÉSUMÉ!AK9 -> 0 | AL9: =RÉSUMÉ!AL9 -> 0
A10: Consommation [L-éq. essence] | B10: =RÉSUMÉ!B10 -> 0 | C10: =RÉSUMÉ!C10 -> 0 | D10: =RÉSUMÉ!D10 -> 0 | E10: =RÉSUMÉ!E10 -> 0 | F10: =RÉSUMÉ!F10 -> 0 | G10: =RÉSUMÉ!G10 -> 0 | H10: =RÉSUMÉ!H10 -> 0 | I10: =RÉSUMÉ!I10 -> 0 | J10: =RÉSUMÉ!J10 -> 0 | K10: =RÉSUMÉ!K10 -> 0 | L10: =RÉSUMÉ!L10 -> 0 | M10: =RÉSUMÉ!M10 -> 0 | N10: =RÉSUMÉ!N10 -> 0 | O10: =RÉSUMÉ!O10 -> 0 | P10: =RÉSUMÉ!P10 -> 0 | Q10: =RÉSUMÉ!Q10 -> 0 | R10: =RÉSUMÉ!R10 -> 0 | S10: =RÉSUMÉ!S10 -> 0 | T10: =RÉSUMÉ!T10 -> 0 | U10: =RÉSUMÉ!U10 -> 0 | V10: =RÉSUMÉ!V10 -> 0 | W10: =RÉSUMÉ!W10 -> 0 | X10: =RÉSUMÉ!X10 -> 0 | Y10: =RÉSUMÉ!Y10 -> 0 | Z10: =RÉSUMÉ!Z10 -> 0 | AA10: =RÉSUMÉ!AA10 -> 0 | AB10: =RÉSUMÉ!AB10 -> 0 | AC10: =RÉSUMÉ!AC10 -> 0 | AD10: =RÉSUMÉ!AD10 -> 0 | AE10: =RÉSUMÉ!AE10 -> 0 | AF10: =RÉSUMÉ!AF10 -> 0 | AG10: =RÉSUMÉ!AG10 -> 0 | AH10: =RÉSUMÉ!AH10 -> 0 | AI10: =RÉSUMÉ!AI10 -> 0 | AJ10: =RÉSUMÉ!AJ10 -> 0 | AK10: =RÉSUMÉ!AK10 -> 0 | AL10: =RÉSUMÉ!AL10 -> 0
A11: Variation/année de référence [%] | B11: =RÉSUMÉ!B11 -> 0 | C11: =RÉSUMÉ!C11 -> 0 | D11: =RÉSUMÉ!D11 -> 0 | E11: =RÉSUMÉ!E11 -> 0 | F11: =RÉSUMÉ!F11 -> 0 | G11: =RÉSUMÉ!G11 -> 0 | H11: =RÉSUMÉ!H11 -> 0 | I11: =RÉSUMÉ!I11 -> 0 | J11: =RÉSUMÉ!J11 -> 0 | K11: =RÉSUMÉ!K11 -> 0 | L11: =RÉSUMÉ!L11 -> 0 | M11: =RÉSUMÉ!M11 -> 0 | N11: =RÉSUMÉ!N11 -> 0 | O11: =RÉSUMÉ!O11 -> 0 | P11: =RÉSUMÉ!P11 -> 0 | Q11: =RÉSUMÉ!Q11 -> 0 | R11: =RÉSUMÉ!R11 ->  | S11: =RÉSUMÉ!S11 -> 0 | T11: =RÉSUMÉ!T11 ->  | U11: =RÉSUMÉ!U11 -> 0 | V11: =RÉSUMÉ!V11 ->  | W11: =RÉSUMÉ!W11 -> 0 | X11: =RÉSUMÉ!X11 ->  | Y11: =RÉSUMÉ!Y11 -> 0 | Z11: =RÉSUMÉ!Z11 ->  | AA11: =RÉSUMÉ!AA11 -> 0 | AB11: =RÉSUMÉ!AB11 ->  | AC11: =RÉSUMÉ!AC11 -> 0 | AD11: =RÉSUMÉ!AD11 -> 0 | AE11: =RÉSUMÉ!AE11 -> 0 | AF11: =RÉSUMÉ!AF11 -> 0 | AG11: =RÉSUMÉ!AG11 -> 0 | AH11: =RÉSUMÉ!AH11 -> 0 | AI11: =RÉSUMÉ!AI11 -> 0 | AJ11: =RÉSUMÉ!AJ11 -> 0 | AK11: =RÉSUMÉ!AK11 -> 0 | AL11: =RÉSUMÉ!AL11 -> 0
A12: véhicules lourds: Consommation [GJ] | B12: =RÉSUMÉ!B12 -> 0 | C12: =RÉSUMÉ!C12 -> 0 | D12: =RÉSUMÉ!D12 -> 0 | E12: =RÉSUMÉ!E12 -> 0 | F12: =RÉSUMÉ!F12 -> 0 | G12: =RÉSUMÉ!G12 -> 0 | H12: =RÉSUMÉ!H12 -> 0 | I12: =RÉSUMÉ!I12 -> 0 | J12: =RÉSUMÉ!J12 -> 0 | K12: =RÉSUMÉ!K12 -> 0 | L12: =RÉSUMÉ!L12 -> 0 | M12: =RÉSUMÉ!M12 -> 0 | N12: =RÉSUMÉ!N12 -> 0 | O12: =RÉSUMÉ!O12 -> 0 | P12: =RÉSUMÉ!P12 -> 0 | Q12: =RÉSUMÉ!Q12 -> 0 | R12: =RÉSUMÉ!R12 -> 0 | S12: =RÉSUMÉ!S12 -> 0 | T12: =RÉSUMÉ!T12 -> 0 | U12: =RÉSUMÉ!U12 -> 0 | V12: =RÉSUMÉ!V12 -> 0 | W12: =RÉSUMÉ!W12 -> 0 | X12: =RÉSUMÉ!X12 -> 0 | Y12: =RÉSUMÉ!Y12 -> 0 | Z12: =RÉSUMÉ!Z12 -> 0 | AA12: =RÉSUMÉ!AA12 -> 0 | AB12: =RÉSUMÉ!AB12 -> 0 | AC12: =RÉSUMÉ!AC12 -> 0 | AD12: =RÉSUMÉ!AD12 -> 0 | AE12: =RÉSUMÉ!AE12 -> 0 | AF12: =RÉSUMÉ!AF12 -> 0 | AG12: =RÉSUMÉ!AG12 -> 0 | AH12: =RÉSUMÉ!AH12 -> 0 | AI12: =RÉSUMÉ!AI12 -> 0 | AJ12: =RÉSUMÉ!AJ12 -> 0 | AK12: =RÉSUMÉ!AK12 -> 0 | AL12: =RÉSUMÉ!AL12 -> 0
A13: Consommation [L-éq. essence] | B13: =RÉSUMÉ!B13 -> 0 | C13: =RÉSUMÉ!C13 -> 0 | D13: =RÉSUMÉ!D13 -> 0 | E13: =RÉSUMÉ!E13 -> 0 | F13: =RÉSUMÉ!F13 -> 0 | G13: =RÉSUMÉ!G13 -> 0 | H13: =RÉSUMÉ!H13 -> 0 | I13: =RÉSUMÉ!I13 -> 0 | J13: =RÉSUMÉ!J13 -> 0 | K13: =RÉSUMÉ!K13 -> 0 | L13: =RÉSUMÉ!L13 -> 0 | M13: =RÉSUMÉ!M13 -> 0 | N13: =RÉSUMÉ!N13 -> 0 | O13: =RÉSUMÉ!O13 -> 0 | P13: =RÉSUMÉ!P13 -> 0 | Q13: =RÉSUMÉ!Q13 -> 0 | R13: =RÉSUMÉ!R13 -> 0 | S13: =RÉSUMÉ!S13 -> 0 | T13: =RÉSUMÉ!T13 -> 0 | U13: =RÉSUMÉ!U13 -> 0 | V13: =RÉSUMÉ!V13 -> 0 | W13: =RÉSUMÉ!W13 -> 0 | X13: =RÉSUMÉ!X13 -> 0 | Y13: =RÉSUMÉ!Y13 -> 0 | Z13: =RÉSUMÉ!Z13 -> 0 | AA13: =RÉSUMÉ!AA13 -> 0 | AB13: =RÉSUMÉ!AB13 -> 0 | AC13: =RÉSUMÉ!AC13 -> 0 | AD13: =RÉSUMÉ!AD13 -> 0 | AE13: =RÉSUMÉ!AE13 -> 0 | AF13: =RÉSUMÉ!AF13 -> 0 | AG13: =RÉSUMÉ!AG13 -> 0 | AH13: =RÉSUMÉ!AH13 -> 0 | AI13: =RÉSUMÉ!AI13 -> 0 | AJ13: =RÉSUMÉ!AJ13 -> 0 | AK13: =RÉSUMÉ!AK13 -> 0 | AL13: =RÉSUMÉ!AL13 -> 0
A14: Variation/année de référence [%] | B14: =RÉSUMÉ!B14 -> 0 | C14: =RÉSUMÉ!C14 -> 0 | D14: =RÉSUMÉ!D14 -> 0 | E14: =RÉSUMÉ!E14 -> 0 | F14: =RÉSUMÉ!F14 -> 0 | G14: =RÉSUMÉ!G14 -> 0 | H14: =RÉSUMÉ!H14 -> 0 | I14: =RÉSUMÉ!I14 -> 0 | J14: =RÉSUMÉ!J14 -> 0 | K14: =RÉSUMÉ!K14 -> 0 | L14: =RÉSUMÉ!L14 -> 0 | M14: =RÉSUMÉ!M14 -> 0 | N14: =RÉSUMÉ!N14 -> 0 | O14: =RÉSUMÉ!O14 -> 0 | P14: =RÉSUMÉ!P14 -> 0 | Q14: =RÉSUMÉ!Q14 -> 0 | R14: =RÉSUMÉ!R14 ->  | S14: =RÉSUMÉ!S14 -> 0 | T14: =RÉSUMÉ!T14 ->  | U14: =RÉSUMÉ!U14 -> 0 | V14: =RÉSUMÉ!V14 ->  | W14: =RÉSUMÉ!W14 -> 0 | X14: =RÉSUMÉ!X14 ->  | Y14: =RÉSUMÉ!Y14 -> 0 | Z14: =RÉSUMÉ!Z14 ->  | AA14: =RÉSUMÉ!AA14 -> 0 | AB14: =RÉSUMÉ!AB14 ->  | AC14: =RÉSUMÉ!AC14 -> 0 | AD14: =RÉSUMÉ!AD14 -> 0 | AE14: =RÉSUMÉ!AE14 -> 0 | AF14: =RÉSUMÉ!AF14 -> 0 | AG14: =RÉSUMÉ!AG14 -> 0 | AH14: =RÉSUMÉ!AH14 -> 0 | AI14: =RÉSUMÉ!AI14 -> 0 | AJ14: =RÉSUMÉ!AJ14 -> 0 | AK14: =RÉSUMÉ!AK14 -> 0 | AL14: =RÉSUMÉ!AL14 -> 0
A15: autres: Consommation [GJ] | B15: =RÉSUMÉ!B15 -> 0 | C15: =RÉSUMÉ!C15 -> 0 | D15: =RÉSUMÉ!D15 -> 0 | E15: =RÉSUMÉ!E15 -> 0 | F15: =RÉSUMÉ!F15 -> 0 | G15: =RÉSUMÉ!G15 -> 0 | H15: =RÉSUMÉ!H15 -> 0 | I15: =RÉSUMÉ!I15 -> 0 | J15: =RÉSUMÉ!J15 -> 0 | K15: =RÉSUMÉ!K15 -> 0 | L15: =RÉSUMÉ!L15 -> 0 | M15: =RÉSUMÉ!M15 -> 0 | N15: =RÉSUMÉ!N15 -> 0 | O15: =RÉSUMÉ!O15 -> 0 | P15: =RÉSUMÉ!P15 -> 0 | Q15: =RÉSUMÉ!Q15 -> 0 | R15: =RÉSUMÉ!R15 -> 0 | S15: =RÉSUMÉ!S15 -> 0 | T15: =RÉSUMÉ!T15 -> 0 | U15: =RÉSUMÉ!U15 -> 0 | V15: =RÉSUMÉ!V15 -> 0 | W15: =RÉSUMÉ!W15 -> 0 | X15: =RÉSUMÉ!X15 -> 0 | Y15: =RÉSUMÉ!Y15 -> 0 | Z15: =RÉSUMÉ!Z15 -> 0 | AA15: =RÉSUMÉ!AA15 -> 0 | AB15: =RÉSUMÉ!AB15 -> 0 | AC15: =RÉSUMÉ!AC15 -> 0 | AD15: =RÉSUMÉ!AD15 -> 0 | AE15: =RÉSUMÉ!AE15 -> 0 | AF15: =RÉSUMÉ!AF15 -> 0 | AG15: =RÉSUMÉ!AG15 -> 0 | AH15: =RÉSUMÉ!AH15 -> 0 | AI15: =RÉSUMÉ!AI15 -> 0 | AJ15: =RÉSUMÉ!AJ15 -> 0 | AK15: =RÉSUMÉ!AK15 -> 0 | AL15: =RÉSUMÉ!AL15 -> 0
A16: Consommation [L-éq. essence] | B16: =RÉSUMÉ!B16 -> 0 | C16: =RÉSUMÉ!C16 -> 0 | D16: =RÉSUMÉ!D16 -> 0 | E16: =RÉSUMÉ!E16 -> 0 | F16: =RÉSUMÉ!F16 -> 0 | G16: =RÉSUMÉ!G16 -> 0 | H16: =RÉSUMÉ!H16 -> 0 | I16: =RÉSUMÉ!I16 -> 0 | J16: =RÉSUMÉ!J16 -> 0 | K16: =RÉSUMÉ!K16 -> 0 | L16: =RÉSUMÉ!L16 -> 0 | M16: =RÉSUMÉ!M16 -> 0 | N16: =RÉSUMÉ!N16 -> 0 | O16: =RÉSUMÉ!O16 -> 0 | P16: =RÉSUMÉ!P16 -> 0 | Q16: =RÉSUMÉ!Q16 -> 0 | R16: =RÉSUMÉ!R16 -> 0 | S16: =RÉSUMÉ!S16 -> 0 | T16: =RÉSUMÉ!T16 -> 0 | U16: =RÉSUMÉ!U16 -> 0 | V16: =RÉSUMÉ!V16 -> 0 | W16: =RÉSUMÉ!W16 -> 0 | X16: =RÉSUMÉ!X16 -> 0 | Y16: =RÉSUMÉ!Y16 -> 0 | Z16: =RÉSUMÉ!Z16 -> 0 | AA16: =RÉSUMÉ!AA16 -> 0 | AB16: =RÉSUMÉ!AB16 -> 0 | AC16: =RÉSUMÉ!AC16 -> 0 | AD16: =RÉSUMÉ!AD16 -> 0 | AE16: =RÉSUMÉ!AE16 -> 0 | AF16: =RÉSUMÉ!AF16 -> 0 | AG16: =RÉSUMÉ!AG16 -> 0 | AH16: =RÉSUMÉ!AH16 -> 0 | AI16: =RÉSUMÉ!AI16 -> 0 | AJ16: =RÉSUMÉ!AJ16 -> 0 | AK16: =RÉSUMÉ!AK16 -> 0 | AL16: =RÉSUMÉ!AL16 -> 0
A17: Consommation totale [GJ] | B17: =RÉSUMÉ!B17 -> 0 | C17: =RÉSUMÉ!C17 -> 0 | D17: =RÉSUMÉ!D17 -> 0 | E17: =RÉSUMÉ!E17 -> 0 | F17: =RÉSUMÉ!F17 -> 0 | G17: =RÉSUMÉ!G17 -> 0 | H17: =RÉSUMÉ!H17 -> 0 | I17: =RÉSUMÉ!I17 -> 0 | J17: =RÉSUMÉ!J17 -> 0 | K17: =RÉSUMÉ!K17 -> 0 | L17: =RÉSUMÉ!L17 -> 0 | M17: =RÉSUMÉ!M17 -> 0 | N17: =RÉSUMÉ!N17 -> 0 | O17: =RÉSUMÉ!O17 -> 0 | P17: =RÉSUMÉ!P17 -> 0 | Q17: =RÉSUMÉ!Q17 -> 0 | R17: =RÉSUMÉ!R17 -> 0 | S17: =RÉSUMÉ!S17 -> 0 | T17: =RÉSUMÉ!T17 -> 0 | U17: =RÉSUMÉ!U17 -> 0 | V17: =RÉSUMÉ!V17 -> 0 | W17: =RÉSUMÉ!W17 -> 0 | X17: =RÉSUMÉ!X17 -> 0 | Y17: =RÉSUMÉ!Y17 -> 0 | Z17: =RÉSUMÉ!Z17 -> 0 | AA17: =RÉSUMÉ!AA17 -> 0 | AB17: =RÉSUMÉ!AB17 -> 0 | AC17: =RÉSUMÉ!AC17 -> 0 | AD17: =RÉSUMÉ!AD17 -> 0 | AE17: =RÉSUMÉ!AE17 -> 0 | AF17: =RÉSUMÉ!AF17 -> 0 | AG17: =RÉSUMÉ!AG17 -> 0 | AH17: =RÉSUMÉ!AH17 -> 0 | AI17: =RÉSUMÉ!AI17 -> 0 | AJ17: =RÉSUMÉ!AJ17 -> 0 | AK17: =RÉSUMÉ!AK17 -> 0 | AL17: =RÉSUMÉ!AL17 -> 0
A18: Consommation totale [L-éq. essence] | B18: =RÉSUMÉ!B18 -> 0 | C18: =RÉSUMÉ!C18 -> 0 | D18: =RÉSUMÉ!D18 -> 0 | E18: =RÉSUMÉ!E18 -> 0 | F18: =RÉSUMÉ!F18 -> 0 | G18: =RÉSUMÉ!G18 -> 0 | H18: =RÉSUMÉ!H18 -> 0 | I18: =RÉSUMÉ!I18 -> 0 | J18: =RÉSUMÉ!J18 -> 0 | K18: =RÉSUMÉ!K18 -> 0 | L18: =RÉSUMÉ!L18 -> 0 | M18: =RÉSUMÉ!M18 -> 0 | N18: =RÉSUMÉ!N18 -> 0 | O18: =RÉSUMÉ!O18 -> 0 | P18: =RÉSUMÉ!P18 -> 0 | Q18: =RÉSUMÉ!Q18 -> 0 | R18: =RÉSUMÉ!R18 -> 0 | S18: =RÉSUMÉ!S18 -> 0 | T18: =RÉSUMÉ!T18 -> 0 | U18: =RÉSUMÉ!U18 -> 0 | V18: =RÉSUMÉ!V18 -> 0 | W18: =RÉSUMÉ!W18 -> 0 | X18: =RÉSUMÉ!X18 -> 0 | Y18: =RÉSUMÉ!Y18 -> 0 | Z18: =RÉSUMÉ!Z18 -> 0 | AA18: =RÉSUMÉ!AA18 -> 0 | AB18: =RÉSUMÉ!AB18 -> 0 | AC18: =RÉSUMÉ!AC18 -> 0 | AD18: =RÉSUMÉ!AD18 -> 0 | AE18: =RÉSUMÉ!AE18 -> 0 | AF18: =RÉSUMÉ!AF18 -> 0 | AG18: =RÉSUMÉ!AG18 -> 0 | AH18: =RÉSUMÉ!AH18 -> 0 | AI18: =RÉSUMÉ!AI18 -> 0 | AJ18: =RÉSUMÉ!AJ18 -> 0 | AK18: =RÉSUMÉ!AK18 -> 0 | AL18: =RÉSUMÉ!AL18 -> 0
B19: =RÉSUMÉ!B19 -> 0 | C19: =RÉSUMÉ!C19 -> 0 | D19: =RÉSUMÉ!D19 -> 0 | E19: =RÉSUMÉ!E19 -> 0 | F19: =RÉSUMÉ!F19 -> 0 | G19: =RÉSUMÉ!G19 -> 0 | H19: =RÉSUMÉ!H19 -> 0 | I19: =RÉSUMÉ!I19 -> 0 | J19: =RÉSUMÉ!J19 -> 0 | K19: =RÉSUMÉ!K19 -> 0 | L19: =RÉSUMÉ!L19 -> 0 | M19: =RÉSUMÉ!M19 -> 0 | N19: =RÉSUMÉ!N19 -> 0 | O19: =RÉSUMÉ!O19 -> 0 | P19: =RÉSUMÉ!P19 -> 0 | Q19: =RÉSUMÉ!Q19 -> 0 | R19: =RÉSUMÉ!R19 -> 0 | S19: =RÉSUMÉ!S19 -> 0 | T19: =RÉSUMÉ!T19 -> 0 | U19: =RÉSUMÉ!U19 -> 0 | V19: =RÉSUMÉ!V19 -> 0 | W19: =RÉSUMÉ!W19 -> 0 | X19: =RÉSUMÉ!X19 -> 0 | Y19: =RÉSUMÉ!Y19 -> 0 | Z19: =RÉSUMÉ!Z19 -> 0 | AA19: =RÉSUMÉ!AA19 -> 0 | AB19: =RÉSUMÉ!AB19 -> 0 | AC19: =RÉSUMÉ!AC19 -> 0 | AD19: =RÉSUMÉ!AD19 -> 0 | AE19: =RÉSUMÉ!AE19 -> 0 | AF19: =RÉSUMÉ!AF19 -> 0 | AG19: =RÉSUMÉ!AG19 -> 0 | AH19: =RÉSUMÉ!AH19 -> 0 | AI19: =RÉSUMÉ!AI19 -> 0 | AJ19: =RÉSUMÉ!AJ19 -> 0 | AK19: =RÉSUMÉ!AK19 -> 0 | AL19: =RÉSUMÉ!AL19 -> 0
A20: Dépenses énergétiques des véhicules de l'organisation | B20: =RÉSUMÉ!B20 -> 0 | C20: =RÉSUMÉ!C20 -> 0 | D20: =RÉSUMÉ!D20 -> 0 | E20: =RÉSUMÉ!E20 -> 0 | F20: =RÉSUMÉ!F20 -> 0 | G20: =RÉSUMÉ!G20 -> 0 | H20: =RÉSUMÉ!H20 -> 0 | I20: =RÉSUMÉ!I20 -> 0 | J20: =RÉSUMÉ!J20 -> 0 | K20: =RÉSUMÉ!K20 -> 0 | L20: =RÉSUMÉ!L20 -> 0 | M20: =RÉSUMÉ!M20 -> 0 | N20: =RÉSUMÉ!N20 -> 0 | O20: =RÉSUMÉ!O20 -> 0 | P20: =RÉSUMÉ!P20 -> 0 | Q20: =RÉSUMÉ!Q20 -> 0 | R20: =RÉSUMÉ!R20 -> 0 | S20: =RÉSUMÉ!S20 -> 0 | T20: =RÉSUMÉ!T20 -> 0 | U20: =RÉSUMÉ!U20 -> 0 | V20: =RÉSUMÉ!V20 -> 0 | W20: =RÉSUMÉ!W20 -> 0 | X20: =RÉSUMÉ!X20 -> 0 | Y20: =RÉSUMÉ!Y20 -> 0 | Z20: =RÉSUMÉ!Z20 -> 0 | AA20: =RÉSUMÉ!AA20 -> 0 | AB20: =RÉSUMÉ!AB20 -> 0 | AC20: =RÉSUMÉ!AC20 -> 0 | AD20: =RÉSUMÉ!AD20 -> 0 | AE20: =RÉSUMÉ!AE20 -> 0 | AF20: =RÉSUMÉ!AF20 -> 0 | AG20: =RÉSUMÉ!AG20 -> 0 | AH20: =RÉSUMÉ!AH20 -> 0 | AI20: =RÉSUMÉ!AI20 -> 0 | AJ20: =RÉSUMÉ!AJ20 -> 0 | AK20: =RÉSUMÉ!AK20 -> 0 | AL20: =RÉSUMÉ!AL20 -> 0
A21: véhicules légers: Dépenses [$] | B21: =RÉSUMÉ!B21 -> 0 | C21: =RÉSUMÉ!C21 -> 0 | D21: =RÉSUMÉ!D21 -> 0 | E21: =RÉSUMÉ!E21 -> 0 | F21: =RÉSUMÉ!F21 -> 0 | G21: =RÉSUMÉ!G21 -> 0 | H21: =RÉSUMÉ!H21 -> 0 | I21: =RÉSUMÉ!I21 -> 0 | J21: =RÉSUMÉ!J21 -> 0 | K21: =RÉSUMÉ!K21 -> 0 | L21: =RÉSUMÉ!L21 -> 0 | M21: =RÉSUMÉ!M21 -> 0 | N21: =RÉSUMÉ!N21 -> 0 | O21: =RÉSUMÉ!O21 -> 0 | P21: =RÉSUMÉ!P21 -> 0 | Q21: =RÉSUMÉ!Q21 -> 0 | R21: =RÉSUMÉ!R21 -> 0 | S21: =RÉSUMÉ!S21 -> 0 | T21: =RÉSUMÉ!T21 -> 0 | U21: =RÉSUMÉ!U21 -> 0 | V21: =RÉSUMÉ!V21 -> 0 | W21: =RÉSUMÉ!W21 -> 0 | X21: =RÉSUMÉ!X21 -> 0 | Y21: =RÉSUMÉ!Y21 -> 0 | Z21: =RÉSUMÉ!Z21 -> 0 | AA21: =RÉSUMÉ!AA21 -> 0 | AB21: =RÉSUMÉ!AB21 -> 0 | AC21: =RÉSUMÉ!AC21 -> 0 | AD21: =RÉSUMÉ!AD21 -> 0 | AE21: =RÉSUMÉ!AE21 -> 0 | AF21: =RÉSUMÉ!AF21 -> 0 | AG21: =RÉSUMÉ!AG21 -> 0 | AH21: =RÉSUMÉ!AH21 -> 0 | AI21: =RÉSUMÉ!AI21 -> 0 | AJ21: =RÉSUMÉ!AJ21 -> 0 | AK21: =RÉSUMÉ!AK21 -> 0 | AL21: =RÉSUMÉ!AL21 -> 0
A22: Variation/année de référence [%] | B22: =RÉSUMÉ!B22 -> 0 | C22: =RÉSUMÉ!C22 -> 0 | D22: =RÉSUMÉ!D22 -> 0 | E22: =RÉSUMÉ!E22 -> 0 | F22: =RÉSUMÉ!F22 -> 0 | G22: =RÉSUMÉ!G22 -> 0 | H22: =RÉSUMÉ!H22 -> 0 | I22: =RÉSUMÉ!I22 -> 0 | J22: =RÉSUMÉ!J22 -> 0 | K22: =RÉSUMÉ!K22 -> 0 | L22: =RÉSUMÉ!L22 -> 0 | M22: =RÉSUMÉ!M22 -> 0 | N22: =RÉSUMÉ!N22 -> 0 | O22: =RÉSUMÉ!O22 -> 0 | P22: =RÉSUMÉ!P22 -> 0 | Q22: =RÉSUMÉ!Q22 -> 0 | R22: =RÉSUMÉ!R22 ->  | S22: =RÉSUMÉ!S22 -> 0 | T22: =RÉSUMÉ!T22 ->  | U22: =RÉSUMÉ!U22 -> 0 | V22: =RÉSUMÉ!V22 ->  | W22: =RÉSUMÉ!W22 -> 0 | X22: =RÉSUMÉ!X22 ->  | Y22: =RÉSUMÉ!Y22 -> 0 | Z22: =RÉSUMÉ!Z22 ->  | AA22: =RÉSUMÉ!AA22 -> 0 | AB22: =RÉSUMÉ!AB22 ->  | AC22: =RÉSUMÉ!AC22 -> 0 | AD22: =RÉSUMÉ!AD22 -> 0 | AE22: =RÉSUMÉ!AE22 -> 0 | AF22: =RÉSUMÉ!AF22 -> 0 | AG22: =RÉSUMÉ!AG22 -> 0 | AH22: =RÉSUMÉ!AH22 -> 0 | AI22: =RÉSUMÉ!AI22 -> 0 | AJ22: =RÉSUMÉ!AJ22 -> 0 | AK22: =RÉSUMÉ!AK22 -> 0 | AL22: =RÉSUMÉ!AL22 -> 0
A23: véhicules lourds: Dépenses [$] | B23: =RÉSUMÉ!B23 -> 0 | C23: =RÉSUMÉ!C23 -> 0 | D23: =RÉSUMÉ!D23 -> 0 | E23: =RÉSUMÉ!E23 -> 0 | F23: =RÉSUMÉ!F23 -> 0 | G23: =RÉSUMÉ!G23 -> 0 | H23: =RÉSUMÉ!H23 -> 0 | I23: =RÉSUMÉ!I23 -> 0 | J23: =RÉSUMÉ!J23 -> 0 | K23: =RÉSUMÉ!K23 -> 0 | L23: =RÉSUMÉ!L23 -> 0 | M23: =RÉSUMÉ!M23 -> 0 | N23: =RÉSUMÉ!N23 -> 0 | O23: =RÉSUMÉ!O23 -> 0 | P23: =RÉSUMÉ!P23 -> 0 | Q23: =RÉSUMÉ!Q23 -> 0 | R23: =RÉSUMÉ!R23 -> 0 | S23: =RÉSUMÉ!S23 -> 0 | T23: =RÉSUMÉ!T23 -> 0 | U23: =RÉSUMÉ!U23 -> 0 | V23: =RÉSUMÉ!V23 -> 0 | W23: =RÉSUMÉ!W23 -> 0 | X23: =RÉSUMÉ!X23 -> 0 | Y23: =RÉSUMÉ!Y23 -> 0 | Z23: =RÉSUMÉ!Z23 -> 0 | AA23: =RÉSUMÉ!AA23 -> 0 | AB23: =RÉSUMÉ!AB23 -> 0 | AC23: =RÉSUMÉ!AC23 -> 0 | AD23: =RÉSUMÉ!AD23 -> 0 | AE23: =RÉSUMÉ!AE23 -> 0 | AF23: =RÉSUMÉ!AF23 -> 0 | AG23: =RÉSUMÉ!AG23 -> 0 | AH23: =RÉSUMÉ!AH23 -> 0 | AI23: =RÉSUMÉ!AI23 -> 0 | AJ23: =RÉSUMÉ!AJ23 -> 0 | AK23: =RÉSUMÉ!AK23 -> 0 | AL23: =RÉSUMÉ!AL23 -> 0
A24: Variation/année de référence [%] | B24: =RÉSUMÉ!B24 -> 0 | C24: =RÉSUMÉ!C24 -> 0 | D24: =RÉSUMÉ!D24 -> 0 | E24: =RÉSUMÉ!E24 -> 0 | F24: =RÉSUMÉ!F24 -> 0 | G24: =RÉSUMÉ!G24 -> 0 | H24: =RÉSUMÉ!H24 -> 0 | I24: =RÉSUMÉ!I24 -> 0 | J24: =RÉSUMÉ!J24 -> 0 | K24: =RÉSUMÉ!K24 -> 0 | L24: =RÉSUMÉ!L24 -> 0 | M24: =RÉSUMÉ!M24 -> 0 | N24: =RÉSUMÉ!N24 -> 0 | O24: =RÉSUMÉ!O24 -> 0 | P24: =RÉSUMÉ!P24 -> 0 | Q24: =RÉSUMÉ!Q24 -> 0 | R24: =RÉSUMÉ!R24 ->  | S24: =RÉSUMÉ!S24 -> 0 | T24: =RÉSUMÉ!T24 ->  | U24: =RÉSUMÉ!U24 -> 0 | V24: =RÉSUMÉ!V24 ->  | W24: =RÉSUMÉ!W24 -> 0 | X24: =RÉSUMÉ!X24 ->  | Y24: =RÉSUMÉ!Y24 -> 0 | Z24: =RÉSUMÉ!Z24 ->  | AA24: =RÉSUMÉ!AA24 -> 0 | AB24: =RÉSUMÉ!AB24 ->  | AC24: =RÉSUMÉ!AC24 -> 0 | AD24: =RÉSUMÉ!AD24 -> 0 | AE24: =RÉSUMÉ!AE24 -> 0 | AF24: =RÉSUMÉ!AF24 -> 0 | AG24: =RÉSUMÉ!AG24 -> 0 | AH24: =RÉSUMÉ!AH24 -> 0 | AI24: =RÉSUMÉ!AI24 -> 0 | AJ24: =RÉSUMÉ!AJ24 -> 0 | AK24: =RÉSUMÉ!AK24 -> 0 | AL24: =RÉSUMÉ!AL24 -> 0
A25: Dépenses totales [$] | B25: =RÉSUMÉ!B25 -> 0 | C25: =RÉSUMÉ!C25 -> 0 | D25: =RÉSUMÉ!D25 -> 0 | E25: =RÉSUMÉ!E25 -> 0 | F25: =RÉSUMÉ!F25 -> 0 | G25: =RÉSUMÉ!G25 -> 0 | H25: =RÉSUMÉ!H25 -> 0 | I25: =RÉSUMÉ!I25 -> 0 | J25: =RÉSUMÉ!J25 -> 0 | K25: =RÉSUMÉ!K25 -> 0 | L25: =RÉSUMÉ!L25 -> 0 | M25: =RÉSUMÉ!M25 -> 0 | N25: =RÉSUMÉ!N25 -> 0 | O25: =RÉSUMÉ!O25 -> 0 | P25: =RÉSUMÉ!P25 -> 0 | Q25: =RÉSUMÉ!Q25 -> 0 | R25: =RÉSUMÉ!R25 -> 0 | S25: =RÉSUMÉ!S25 -> 0 | T25: =RÉSUMÉ!T25 -> 0 | U25: =RÉSUMÉ!U25 -> 0 | V25: =RÉSUMÉ!V25 -> 0 | W25: =RÉSUMÉ!W25 -> 0 | X25: =RÉSUMÉ!X25 -> 0 | Y25: =RÉSUMÉ!Y25 -> 0 | Z25: =RÉSUMÉ!Z25 -> 0 | AA25: =RÉSUMÉ!AA25 -> 0 | AB25: =RÉSUMÉ!AB25 -> 0 | AC25: =RÉSUMÉ!AC25 -> 0 | AD25: =RÉSUMÉ!AD25 -> 0 | AE25: =RÉSUMÉ!AE25 -> 0 | AF25: =RÉSUMÉ!AF25 -> 0 | AG25: =RÉSUMÉ!AG25 -> 0 | AH25: =RÉSUMÉ!AH25 -> 0 | AI25: =RÉSUMÉ!AI25 -> 0 | AJ25: =RÉSUMÉ!AJ25 -> 0 | AK25: =RÉSUMÉ!AK25 -> 0 | AL25: =RÉSUMÉ!AL25 -> 0
